Workbook

Sheet Instructions
I2: Validation - Croisement des tables
B3: Instructions:
A4: 1 | B4: Dupliquer votre modèle de détermination avant de passer aux étapes suivantes. | I4: Ovoltotrec | J4: Rapport GTYF | K4: Rapport ECONO
A5: 2 | B5: Coller les OUTPUTs ci-dessous dans votre modèle de détermination. | I5: =VLOOKUP("Ovoltotrec",Output!$C:$AM,8,FALSE) -> 5683200 | J5: =VLOOKUP("OVOLTOTREC",GTYF!$C:$AQ,8,FALSE)=I5 -> TRUE | K5: =VLOOKUP("OVOLTOTREC",Econo!$C:$AQ,8,FALSE)=I5 -> TRUE
B6: Outputs pour Cahier_Détermination_2023
A7: 3 | B7: Ajouter l'agrégat FCIMPROD_SNAT au thème 5 de la section LANSCAPE de votre modèle et les courbes SNAT
B8: *AGGREGATE FCIMPROD_SNAT FCxxxx
A9: 4 | B9: Copier coller la syntaxe TARGET_GTYF_DET, TARGET_ECONO, TARGET AREA, TARGET DETAIL (voir plus bas) dans la section "Reports" du scénario de détermination.
B10: *TARGET GTYF_DET.dbf
B11: *TARGET_ECONO.dbf
B12: *TARGET AREA.dbf et *TARGET DETAIL.dbf
A13: 5 | B13: Insérer la syntaxe économique dans les sections Output, Lanscape, …
A14: 6 | B14: Compiler le scénario (Faire une fleche sur vos scénarios)
A15: 7 | B15: Ouvrir vos rapports Output, GTYF et ECONO directement de WS. Contrôle A --> Contrôle C
A16: 8 | B16: Copier/coller vos rapports Output, GTYF et ECONO dans les onglets appropriés. Attention de respecter le nombres de colonnes. Les onglets Output, GTYF et ECONO sont préformatés et contiennent des formules aux colonnes AM à AP.
A17: 9 | B17: Valider que la cellule I5 indique vrai lorsque vous aurez collé vos données dans les onglets "Output", "GTYF" et ÉCONO" pour s'assurer que les données proviennent de la même optimisation.
A18: 10 | B18: Utiliser le fichier DBF pour copier/coller votre calendrier de COS dans l'onglet Cedule_COS et y ajouter les COS absents (COS fermés ou toujours ouverts) et compléter leur calendrier par des "0" ou des "1".
A19: 11 | B19: Compléter toutes les cellules et onglets de couleur | D19: jaune
A20: 12 | B20: Notez que les tableaux 9, 10, 13, 15 et 17 ont des instructions particulières

Sheet Suivi_modif
B4: Modifications apportées au cahier:
B5: Version originale (v1) | C5: Version de départ
B6: Version modifiée 2 novembre 2021 (v2) | C6: Correction du calcul de % de sapin en P0 (cellule O9)
B7: Version modifiée 4 novembre 2021 (v3) | C7: Correction du % récolte volume sur pied destiné à l'aménagement (Tableau - CelluleV59)
B8: Version modifiée 4 novembre 2021 (v3) | C8: Correction des valideurs Vrai/Faux (Tableau - Cellule W101, W102, W103)
B9: Version modifiée 8 novembre 2021 (v4) | C9: Onglet "UTA" - Amélioration de la syntaxe des rechercheV
B10: Version modifiée 8 novembre 2021 (v4) | C10: Tableau 3 - ligne 50: changé la police de caractère pour du Arial
B11: Version modifiée 9 novembre 2021 (v5) | C11: Onglet "Target_ECONO": La syntaxe du rapport a été corrigée.
B12: Version modifiée 11 novembre 2021 (v6) | C12: Tableau 1 - Entente Crie - Correction pour considérer le code "EXEC" pour les UA avec Entente Crie
B13: Version modifiée 15 novembre 2021 (v7) | C13: Tableau 3 - ligne 49 en caractère gras - ligne 51 en caractère normal
B14: Version modifiée 19 novembre 2021 (v8) | C14: Tableau 9 - Dernière ligne du tableau effacée
B15: Version modifiée 22 novembre 2021 (v9) | C15: Tableau 4 - Première colonne (ha/an) changé la mise en forme pour avoir des 0 ha/an au lieu de "-" Voir figure --> Format: Nombre - Utiliser séparateur de millier - sans décimales
B16: Version modifiée 25 novembre 2021 (v10) | C16: Tableau 8, cellules G102 (Coupes partielles de peuplements résineux) et G103 (Coupes partielles de peuplements de feuillus tolérants et de pins) arrondies à la dizaine près et ajouté note en bas
B17: Version modifiée 10 décembre 2021 (v11) | C17: Tableau 10 - Correction de la mise en forme de l'écart en % des plantations
B18: Version modifiée 23 mars 2022 (v12) | C18: Figure 4 - Correction des % de chacune des colonnes de classe d'âge. Les % sont maintenant calculés sur le sous-total FCAGE (signalement 1873)
B19: Version modifiée 27 avril 2022 (v13) | C19: Tableau 3 - ligne 51 : La plage de recherchev a été agrandie pour inclure les UA de la Côte-Nord
B20: Version modifiée 18 mai 2022 (v14) | C20: Figure 14 - possibilité d'ajuster le ratio et la productivité unitaire en fonction de la mortalité TBE

Sheet Tableaux
L1: 2022-05-04 | T1: Instructions : Compléter les cellules oranges | AB1: Avec l'utilisation de l'outil à Éric
B2: PROER1 : vous pouvez utiliser l'outil FoxPro pour compléter les cellules oranges : | T2: 1) Cellule V11 : Inscrire la superficie totale brute de la carte WS | AB2: 2226300.4
B3: l'outil intérroge la carte Woodstock et met les valeurs dans un fichier Excel | T3: 2) Cellule V15 : Inscrire la superficie WS des GS RP1 et RP2 (ça ne devrait être que du EXEX et EXTI) | AB3: 0
B4: interroge_carte_WS_pour cahier_analyse.FXP | T4: 3) Cellule V24 : Inscrire la superficie WS des GS RP3 à RP9 sur INC | AB4: 17380.7
B5: T:\Donnees\Courant\CPF_2023-2028\Comite_Vague_2\30_Phase1\32_Sce1\Outils | T5: 4) Cellule V25 : Inscrire la superficie WS des GS SNAT sur INC (qui ne sont pas des RP) | AB5: 72389.5
T6: 5) Cellules L20 à S21 : Inscrire la superficie de la carte WS pour chacune des cases oranges
B7: Catégories | I7: Superficie | Z7: Total | AA7: Sup_aff | AB7: 14233.9
I8: ha | J8: % | V8: Période | Z8: Total | AA8: Sup_empche | AB8: 20942.5
B9: Superficie totale du territoire d'analyse (EXHU exclu) | I9: =V11-V16 -> 2199199.3 | J9: =IFERROR(I9/I9,"-") -> 1 | S9: =LEFT(B$25,10) -> Tableau 1. | T9: Output | U9: Superficie | V9: 0 | Z9: Total | AA9: Sup_ecot | AB9: 16664
B10: Pertes (emprise chemin, écotone, improductif) | I10: =U20+V20+Y20 -> 39069.3 | J10: =I10/I9 -> 0.01776523847 | S10: =LEFT(B$25,10) -> Tableau 1. | T10: OSUPTOT | U10: WS | V10: =VLOOKUP(T10,Output!$C:$H,6,FALSE) -> 2187231.1 | Z10: INC | AA10: Sup_brivAB | AB10: 35261.7
B11: Territoire improductif (EXEX + EXTI) | I11: =SUM(V13:V14) -> 389523.7 | J11: =I11/I9 -> 0.1771206912 | S11: Tableau 1. | U11: Brute | V11: =AB2 -> 2226300.4 | X11: Sup_soustraite : | Y11: =T20+U20+V20+Y20+AA20 -> 251142.2 | Z11: INC | AA11: Sup_brivCD | AB11: 48741.7
B12: sans possibilité de remise en production | I12: =I11-I13 -> 389523.7 | J12: - | S12: Tableau 1. | U12: pertes | V12: =U20+V20+Y20 -> 39069.3 | X12: Sup nette : | Y12: =V11-Y11 -> 1975158.2 | Z12: Total | AA12: Sup_impro | AB12: 1462.8
B13: avec possibilité de remise en production (RP1 et RP2) | I13: =V15 -> 0 | J13: - | S13: Tableau 1. | T13: OSUPEXEX | U13: EXEX | V13: =VLOOKUP(T13,Output!$C:$H,6,FALSE) -> 281344.9 | Z13: Total | AA13: Sup_pentf | AB13: 197839
S14: Tableau 1. | T14: OSUPEXTI | U14: EXTI | V14: =VLOOKUP(T14,Output!$C:$H,6,FALSE) -> 108178.8 | Z14: INC | AA14: Sup_pentf | AB14: 158398.3
B15: Territoire inclus dans l’UA mais exclu des activités d'aménagement (EXIN) | I15: =V17+X17+Y17 -> 393030 | J15: =I15/I9 -> 0.1787150442 | S15: Tableau 1. | U15: RP1/RP2 | V15: =AB3 -> 0 | X15: Superficie | Y15: sup_redu
B16: pentes abruptes et sommets (codes F et S) --> potentiellement récoltables | I16: =AA21 -> 158398.3 | J16: - | S16: Tableau 1. | T16: OSUPEXHU | U16: EXHU | V16: =VLOOKUP(T16,Output!$C:$H,6,FALSE) -> 27101.1 | X16: EXEC | Y16: EXEC
B17: bandes riveraines (densité AB) --> potentiellement récoltables | I17: =W21 -> 35261.7 | J17: - | S17: Tableau 1. | T17: OSUPEXIN | U17: EXIN | V17: =VLOOKUP(T17,Output!$C:$H,6,FALSE) -> 393030
B18: bandes riveraines (densité CD) --> potentiellement récoltables | I18: =X21 -> 48741.7 | J18: - | S18: Tableau 1. | T18: ↓ | U18: ↓ | V18: ↓ | Y18: ↓ | AA18: ↓
B19: autres | I19: =I15-I16-I17-I18 -> 150628.3 | S19: Tableau 1. | T19: Sup_aff | U19: Sup_empche | V19: Sup_ecot | W19: Sup_brivAB | X19: Sup_brivCD | Y19: Sup_impro | Z19: Sup_aut | AA19: Sup_pentf
B20: Territoire destiné à l'aménagement forestier (INC) | I20: =V22 -> 1377576.3 | J20: =I20/I9 -> 0.6263990262 | S20: Tableau 1. | T20: =AB7 -> 14233.9 | U20: =AB8 -> 20942.5 | V20: =AB9 -> 16664 | Y20: =AB12 -> 1462.8 | AA20: =AB13 -> 197839 | AB20: Total
B21: forestier exploitable | I21: =V22-I22-I23 -> 1287806.1 | J21: - | S21: Tableau 1. | W21: =AB10 -> 35261.7 | X21: =AB11 -> 48741.7 | AA21: =AB14 -> 158398.3 | AB21: INC
B22: forestier inexploitable avec possibilité de remise en production (RP3 à RP15) | I22: =V24 -> 17380.7 | J22: - | S22: Tableau 1. | T22: OSUPINC | U22: INC | V22: =VLOOKUP(T22,Output!$C:$H,6,FALSE) -> 1377576.3
B23: forestier inexploitable sans possibilité de remise en production (SNAT) | I23: =V25 -> 72389.5 | J23: - | S23: Tableau 1.
S24: Tableau 1. | U24: RP3 à RP9 | V24: =AB4 -> 17380.7
B25: Tableau 1. Répartition de la superficie de l'unité d'aménagement pas catégorie de territoire | S25: Tableau 1. | U25: SNAT | V25: =AB5 -> 72389.5 | W25: =V24/(V24+V25) -> 0.193613248
B26: Catégories | F26: Superficies
F27: Hectares | G27: %
B28: Superficie totale de l’unité d’aménagement | F28: =ROUND(I9,-1) -> 2199200 | G28: =F28/F28 -> 1
B29: Retraits de superficie
B30: Territoire non forestier | F30: =ROUND(I10+I11,-1) -> 428590 | G30: =F30/F28 -> 0.1948845035
B31: Territoire forestier peu productif (30 à 50 m³/ha) | F31: =ROUND(I22+I23,-1) -> 89770 | G31: =F31/F28 -> 0.04081938887
B32: Territoire forestier exclu de l’aménagement | F32: =ROUND(F28-F30-F31-F33,-1) -> 393030 | G32: =F32/F28 -> 0.1787149873 | N32: À compléter UA : | O32: UA:
B33: Superficie destinée à l’aménagement forestier | F33: =ROUND(I21,-1) -> 1287810 | G33: =F33/F28 -> 0.5855811204 | O33: 09351 | T33: Légende | U33: Output | V33: P2@P6
S34: =LEFT(B$46,10) -> Tableau 3. | T34: Sepm | U34: OVOLGSEPMREC | V34: =IFERROR(VLOOKUP($U34,Output!$C:$AM,37,FALSE)/5,0) -> 1022717.284
S35: Tableau 3.
S36: Tableau 3. | T36: Tho | U36: OVOLTHOREC | V36: =IFERROR(VLOOKUP($U36,Output!$C:$AM,37,FALSE)/5,0) -> 35.0404
S37: Tableau 3. | T37: Pru | U37: OVOLPRUREC | V37: =IFERROR(VLOOKUP($U37,Output!$C:$AM,37,FALSE)/5,0) -> 0
S38: Tableau 3. | T38: Pins | U38: OVOLGPINSREC | V38: =IFERROR(VLOOKUP($U38,Output!$C:$AM,37,FALSE)/5,0) -> 42.4508
S39: Tableau 3. | T39: Peu | U39: OVOLGPEUREC | V39: =IFERROR(VLOOKUP($U39,Output!$C:$AM,37,FALSE)/5,0) -> 15469.622
S40: Tableau 3. | T40: Bop | U40: OVOLGBPREC | V40: =IFERROR(VLOOKUP($U40,Output!$C:$AM,37,FALSE)/5,0) -> 97890.3424
S41: Tableau 3. | T41: Boj | U41: OVOLBOJREC | V41: =IFERROR(VLOOKUP($U41,Output!$C:$AM,37,FALSE)/5,0) -> 13.688
S42: Tableau 3. | T42: Ers | U42: OVOLERSREC | V42: =IFERROR(VLOOKUP($U42,Output!$C:$AM,37,FALSE)/5,0) -> 0
S43: Tableau 3. | T43: Err | U43: OVOLGEROREC | V43: =IFERROR(VLOOKUP($U43,Output!$C:$AM,37,FALSE)/5,0) -> 468.4684
S44: Tableau 3. | T44: Autre .F. (Auf) | V44: =V47-V42-V41 -> 3.104
S45: Tableau 3. | T45: résineux | U45: OVOLGRREC | V45: =IFERROR(VLOOKUP($U45,Output!$C:$AM,37,FALSE)/5,0) -> 1022794.776
B46: Tableau 3. Possibilités forestières par essence ou par groupe d’essences et écart avec la période 2018-2023 | S46: Tableau 3. | T46: intolérant | U46: OVOLGFIREC | V46: =IFERROR(VLOOKUP($U46,Output!$C:$AM,37,FALSE)/5,0) -> 113828.432
B47: Périodes | C47: ="Possibilités forestières (m"&CHAR(179)&" bruts/an)" -> Possibilités forestières (m³ bruts/an) | S47: Tableau 3. | T47: Tolérant | U47: OVOLGFTREC | V47: =IFERROR(VLOOKUP($U47,Output!$C:$AM,37,FALSE)/5,0) -> 16.792
C48: SEPM | D48: Thuya | E48: Pruche | F48: Pins blanc et rouge | G48: Peupliers | H48: Bouleau à papier | I48: Bouleau jaune | J48: Érables à sucre et rouge | K48: Autres feuillus durs | L48: Total | N48: Possibilité forestière unitaire (PAC / Sup destinée à l'aménagement) | S48: Tableau 3. | T48: Total récoltés | U48: OVOLTOTREC | V48: =IFERROR(VLOOKUP($U48,Output!$C:$AM,37,FALSE)/5,0) -> 1136640
B49: 2023-2028 | C49: =ROUND(V$34,-2) -> 1022700 | D49: =ROUND(V$36,-2) -> 0 | E49: =ROUND(V$37,-2) -> 0 | F49: =ROUND(V$38,-2) -> 0 | G49: =ROUND(V$39,-2) -> 15500 | H49: =ROUND(V$40,-2) -> 97900 | I49: =ROUND(V$41,-2) -> 0 | J49: =ROUND(V$50,-2) -> 500 | K49: =ROUND(V$44,-2) -> 0 | L49: =SUM(C49:K49) -> 1136600 | N49: =V57 -> 0.8826146714 | S49: Tableau 3. | T49: FN sur pied | U49: OVOLGFNREC | V49: =IFERROR(VLOOKUP($U49,Output!$C:$AM,37,FALSE)/5,0) -> 3.1032
C50: =C49/$L$49 -> 0.8997888439 | D50: 0 | E50: 0 | F50: 0 | G50: 0.01363716347 | H50: 0.08613408411 | I50: 0 | J50: 0.000439908499 | K50: 0 | L50: =SUM(C50:K50) -> 1 | S50: Tableau 3. | T50: ER | V50: =V42+V43 -> 468.4684
B51: 2018-2023 | C51: =VLOOKUP($O$33,DataLocal!$A:$W,13,FALSE) -> 1097300 | D51: =VLOOKUP($O$33,DataLocal!$A:$W,14,FALSE) -> 0 | E51: =VLOOKUP($O$33,DataLocal!$A:$W,15,FALSE) -> 0 | F51: =VLOOKUP($O$33,DataLocal!$A:$W,16,FALSE) -> 0 | G51: =VLOOKUP($O$33,DataLocal!$A:$W,17,FALSE) -> 55100 | H51: =VLOOKUP($O$33,DataLocal!$A:$W,18,FALSE) -> 58900 | I51: =VLOOKUP($O$33,DataLocal!$A:$W,19,FALSE) -> 0 | J51: =VLOOKUP($O$33,DataLocal!$A:$W,20,FALSE) -> 8300 | K51: =VLOOKUP($O$33,DataLocal!$A:$W,21,FALSE) -> 4300 | L51: =VLOOKUP($O$33,DataLocal!$A:$W,23,FALSE) -> 1223900 | N51: % du volume sur pied initial | S51: Tableau 3. | U51: OVOLSABREC | V51: =IFERROR(VLOOKUP($U51,Output!$C:$AM,37,FALSE)/5,0) -> 136460.5088
B52: Écart | C52: =IFERROR((C49/C$51)-1,0) -> -0.06798505422 | D52: 0 | E52: 0 | F52: 0 | G52: -0.7186932849 | H52: 0.662139219 | I52: 0 | J52: -0.9397590361 | K52: -1 | L52: -0.07132935697 | N52: =V59 -> 0.01273145374 | S52: Tableau 3. | U52: OVOLGEPXREC | V52: =IFERROR(VLOOKUP($U52,Output!$C:$AM,37,FALSE)/5,0) -> 865936.6776
B53: ="Répartition de la composante SEPM des possibilités forestières 2023-2028 : sapin ("&IFERROR(ROUND(V51/V34*100,0),0)&"%), épinettes ("&IFERROR(ROUND(V52/V34*100,0),0)&"%), pin gris ("&IFERROR(ROUND(V53/V34*100,0),0)&"%) et mélèzes ("&IFERROR(ROUND(V54/V34*100,0),0)&"%)." -> Répartition de la composante SEPM des possibilités forestières 2023-2028 : sapin (13%), épinettes (85%), pin gris (2%) et mélèzes (0%). | S53: Tableau 3. | U53: OVOLGPGREC | V53: =IFERROR(VLOOKUP($U53,Output!$C:$AM,37,FALSE)/5,0) -> 18725.9972
B54: ="Répartition de la composante Érables à sucre et rouge des possibilités forestières 2023-2028 : érable à sucre("&IFERROR(ROUND(V42/(V42+V43)*100,0),0)&"%) et érable rouge ("&IFERROR(ROUND(V43/(V42+V43)*100,0),0)&"%)." -> Répartition de la composante Érables à sucre et rouge des possibilités forestières 2023-2028 : érable à sucre(0%) et érable rouge (100%). | S54: Tableau 3. | U54: OVOLGMLREC | V54: =IFERROR(VLOOKUP($U54,Output!$C:$AM,37,FALSE)/5,0) -> 1594.1
B55: Copier/Coller le tableau ci-dessus avec les lignes 53 et 54 | S55: Tableau 3. | U55: OSUPINC | V55: =IFERROR(VLOOKUP($U55,Output!$C:$AM,6,FALSE),0) -> 1377576.3
C56: =C49-C51 -> -74600 | L56: =L49-L51 -> -87300 | S56: Tableau 3. | U56: OVOLTOTPIEDINC | V56: =IFERROR(VLOOKUP($U56,Output!$C:$AM,7,FALSE),0) -> 91458105.47
S57: Tableau 3. | U57: Possibilité forestière unitaire | V57: =IFERROR(V48/F33,0) -> 0.8826146714
S58: Tableau 3. | U58: % récolte volume sur pied
U59: % récolte volume sur pied destiné à l'aménagement | V59: =V48/Figures!V19 -> 0.01273145374
B61: Tableau 4. Répartition des superficies récoltées et des possibilités forestières par grand type de forêt
B62: Grands types de forêt | D62: Superficie récoltée* | H62: Possibilités forestières* | S62: =LEFT(B$61,10) -> Tableau 4. | V62: Output total non arrondi | W62: Écart entre la somme du tableau et le output total
D63: Coupes totales | F63: Coupes partielles | H63: Résineux | J63: Feuillus tolérants | L63: Feuillus intolérants | N63: Total | S63: Tableau 4. | T63: Total | Z63: P2 à P6
D64: ha/an | E64: % | F64: ha/an | G64: % | H64: m³ bruts/an | I64: % | J64: ="m"&CHAR(179)&" bruts/an" -> m³ bruts/an | K64: % | L64: ="m"&CHAR(179)&" bruts/an" -> m³ bruts/an | M64: % | N64: ="m"&CHAR(179)&" bruts/an" -> m³ bruts/an | O64: % | S64: Tableau 4. | T64: ha/an | U64: % | Y64: Famille de courbe | Z64: OSUPINC | AA64: OSUPREALREGAFIN | AB64: OSUPREALREGAPAR | AC64: OSUPREALREGAPRE | AD64: OVOLGRREC | AE64: OVOLGAURREC | AF64: OVOLGFIREC | AG64: OVOLGFTREC | AH64: OVOLTOTREC
B65: Bétulaies blanches | D65: =ROUND(AA65/5,-1) -> 340 | E65: =IFERROR(D65/D$79,0) -> 0.0358649789 | F65: =ROUND(AB65/5,-1) -> 0 | G65: =IFERROR(F65/F$79,0) -> 0 | H65: =ROUND(AD65/5,-2) -> 3900 | I65: =IFERROR(H65/H$79,0) -> 0.003813062182 | J65: =ROUND(AG65/5,-2) -> 0 | K65: =IFERROR(J65/J$79,0) -> 0 | L65: =ROUND(AF65/5,-2) -> 34300 | M65: =L65/L$79 -> 0.3014059754 | N65: =H65+J65+L65 -> 38200 | O65: =N65/$N$79 -> 0.03360900933 | S65: Tableau 4. | T65: =D65+F65 -> 340 | U65: =IFERROR(T65/T$79,0) -> 0.03113553114 | V65: =(AA65+AB65)/5 -> 341.4652 | W65: =T65-V65 -> -1.4652 | Y65: (FCTYF_BOP) | Z65: =VLOOKUP(Z$64&$Y65,GTYF!$C:$AP,6,FALSE) -> 16402.8 | AA65: =VLOOKUP(AA$64&$Y65,GTYF!$C:$AP,37,FALSE) -> 1707.326 | AB65: =VLOOKUP(AB$64&$Y65,GTYF!$C:$AP,37,FALSE) -> 0 | AC65: =VLOOKUP(AC$64&$Y65,GTYF!$C:$AP,37,FALSE) -> 1707.326 | AD65: =VLOOKUP(AD$64&$Y65,GTYF!$C:$AP,37,FALSE) -> 19741.826 | AE65: =VLOOKUP(AE$64&$Y65,GTYF!$C:$AP,37,FALSE) -> 0 | AF65: =VLOOKUP(AF$64&$Y65,GTYF!$C:$AP,37,FALSE) -> 171438.894 | AG65: =VLOOKUP(AG$64&$Y65,GTYF!$C:$AP,37,FALSE) -> 0 | AH65: =VLOOKUP(AH$64&$Y65,GTYF!$C:$AP,37,FALSE) -> 191180.72
B66: Bétulaies blanches à résineux | D66: 520 | E66: =IFERROR(D66/D$79,0) -> 0.05485232068 | F66: 0 | G66: =IFERROR(F66/F$79,0) -> 0 | H66: =ROUND(AD66/5,-2) -> 23800 | I66: =IFERROR(H66/H$79,0) -> 0.02326945639 | J66: =ROUND(AG66/5,-2) -> 0 | K66: 0 | L66: =ROUND(AF66/5,-2) -> 41200 | M66: =L66/L$79 -> 0.3620386643 | N66: =H66+J66+L66 -> 65000 | O66: 0.05718810487 | S66: Tableau 4. | T66: 520 | U66: =IFERROR(T66/T$79,0) -> 0.04761904762 | V66: =(AA66+AB66)/5 -> 521.5112 | W66: -1.5112 | Y66: (FCTYF_BOPR) | Z66: =VLOOKUP(Z$64&$Y66,GTYF!$C:$AP,6,FALSE) -> 32730.7 | AA66: =VLOOKUP(AA$64&$Y66,GTYF!$C:$AP,37,FALSE) -> 2607.556 | AB66: =VLOOKUP(AB$64&$Y66,GTYF!$C:$AP,37,FALSE) -> 0 | AC66: =VLOOKUP(AC$64&$Y66,GTYF!$C:$AP,37,FALSE) -> 2607.556 | AD66: =VLOOKUP(AD$64&$Y66,GTYF!$C:$AP,37,FALSE) -> 119087.45 | AE66: =VLOOKUP(AE$64&$Y66,GTYF!$C:$AP,37,FALSE) -> 0 | AF66: =VLOOKUP(AF$64&$Y66,GTYF!$C:$AP,37,FALSE) -> 205879.22 | AG66: =VLOOKUP(AG$64&$Y66,GTYF!$C:$AP,37,FALSE) -> 0 | AH66: =VLOOKUP(AH$64&$Y66,GTYF!$C:$AP,37,FALSE) -> 324966.668
B67: Cédrières | D67: 0 | E67: 0 | F67: 0 | G67: 0 | H67: =ROUND(AD67/5,-2) -> 0 | I67: 0 | J67: 0 | K67: 0 | L67: 0 | M67: 0 | N67: 0 | O67: 0 | S67: Tableau 4. | T67: 0 | U67: 0 | V67: =(AA67+AB67)/5 -> 0 | W67: 0 | Y67: (FCTYF_THO) | Z67: =VLOOKUP(Z$64&$Y67,GTYF!$C:$AP,6,FALSE) -> 0 | AA67: =VLOOKUP(AA$64&$Y67,GTYF!$C:$AP,37,FALSE) -> 0 | AB67: =VLOOKUP(AB$64&$Y67,GTYF!$C:$AP,37,FALSE) -> 0 | AC67: =VLOOKUP(AC$64&$Y67,GTYF!$C:$AP,37,FALSE) -> 0 | AD67: =VLOOKUP(AD$64&$Y67,GTYF!$C:$AP,37,FALSE) -> 0 | AE67: =VLOOKUP(AE$64&$Y67,GTYF!$C:$AP,37,FALSE) -> 0 | AF67: =VLOOKUP(AF$64&$Y67,GTYF!$C:$AP,37,FALSE) -> 0 | AG67: =VLOOKUP(AG$64&$Y67,GTYF!$C:$AP,37,FALSE) -> 0 | AH67: =VLOOKUP(AH$64&$Y67,GTYF!$C:$AP,37,FALSE) -> 0
B68: Érablières rouges | D68: 0 | E68: 0 | F68: 0 | G68: 0 | H68: 0 | I68: 0 | J68: 0 | K68: 0 | L68: 0 | M68: 0 | N68: 0 | O68: 0 | S68: Tableau 4. | T68: 0 | U68: 0 | V68: =(AA68+AB68)/5 -> 0 | W68: 0 | Y68: (FCTYF_ERO) | Z68: =VLOOKUP(Z$64&$Y68,GTYF!$C:$AP,6,FALSE) -> 0 | AA68: =VLOOKUP(AA$64&$Y68,GTYF!$C:$AP,37,FALSE) -> 0 | AB68: =VLOOKUP(AB$64&$Y68,GTYF!$C:$AP,37,FALSE) -> 0 | AC68: =VLOOKUP(AC$64&$Y68,GTYF!$C:$AP,37,FALSE) -> 0 | AD68: =VLOOKUP(AD$64&$Y68,GTYF!$C:$AP,37,FALSE) -> 0 | AE68: =VLOOKUP(AE$64&$Y68,GTYF!$C:$AP,37,FALSE) -> 0 | AF68: =VLOOKUP(AF$64&$Y68,GTYF!$C:$AP,37,FALSE) -> 0 | AG68: =VLOOKUP(AG$64&$Y68,GTYF!$C:$AP,37,FALSE) -> 0 | AH68: =VLOOKUP(AH$64&$Y68,GTYF!$C:$AP,37,FALSE) -> 0
B69: Feuillus tolérants | D69: 0 | E69: 0 | F69: 0 | G69: 0 | H69: 0 | I69: 0 | J69: 0 | K69: 0 | L69: 0 | M69: 0 | N69: 0 | O69: 0 | S69: Tableau 4. | T69: 0 | U69: 0 | V69: 0 | W69: 0 | Y69: (FCTYF_FT) | Z69: =VLOOKUP(Z$64&$Y69,GTYF!$C:$AP,6,FALSE) -> 0 | AA69: =VLOOKUP(AA$64&$Y69,GTYF!$C:$AP,37,FALSE) -> 0 | AB69: =VLOOKUP(AB$64&$Y69,GTYF!$C:$AP,37,FALSE) -> 0 | AC69: =VLOOKUP(AC$64&$Y69,GTYF!$C:$AP,37,FALSE) -> 0 | AD69: =VLOOKUP(AD$64&$Y69,GTYF!$C:$AP,37,FALSE) -> 0 | AE69: =VLOOKUP(AE$64&$Y69,GTYF!$C:$AP,37,FALSE) -> 0 | AF69: =VLOOKUP(AF$64&$Y69,GTYF!$C:$AP,37,FALSE) -> 0 | AG69: =VLOOKUP(AG$64&$Y69,GTYF!$C:$AP,37,FALSE) -> 0 | AH69: =VLOOKUP(AH$64&$Y69,GTYF!$C:$AP,37,FALSE) -> 0
B70: Feuillus tolérants à résineux | D70: 0 | E70: 0 | F70: 0 | G70: 0 | H70: 0 | I70: 0 | J70: 0 | K70: 0 | L70: 0 | M70: 0 | N70: 0 | O70: 0 | S70: Tableau 4. | T70: 0 | U70: 0 | V70: 0 | W70: 0 | Y70: (FCTYF_FTR) | Z70: =VLOOKUP(Z$64&$Y70,GTYF!$C:$AP,6,FALSE) -> 0 | AA70: =VLOOKUP(AA$64&$Y70,GTYF!$C:$AP,37,FALSE) -> 0 | AB70: =VLOOKUP(AB$64&$Y70,GTYF!$C:$AP,37,FALSE) -> 0 | AC70: =VLOOKUP(AC$64&$Y70,GTYF!$C:$AP,37,FALSE) -> 0 | AD70: =VLOOKUP(AD$64&$Y70,GTYF!$C:$AP,37,FALSE) -> 0 | AE70: =VLOOKUP(AE$64&$Y70,GTYF!$C:$AP,37,FALSE) -> 0 | AF70: =VLOOKUP(AF$64&$Y70,GTYF!$C:$AP,37,FALSE) -> 0 | AG70: =VLOOKUP(AG$64&$Y70,GTYF!$C:$AP,37,FALSE) -> 0 | AH70: =VLOOKUP(AH$64&$Y70,GTYF!$C:$AP,37,FALSE) -> 0
B71: Pessières | D71: =ROUND(AA71/5,-1) -> 7500 | E71: 0.7911392405 | F71: 1270 | G71: 0.8819444444 | H71: 887800 | I71: 0.868009386 | J71: 0 | K71: 0 | L71: 20400 | M71: 0.1792618629 | N71: 908200 | O71: 0.7990497976 | S71: Tableau 4. | T71: 8770 | U71: 0.8031135531 | V71: 8773.8364 | W71: =T71-V71 -> -3.8364 | Y71: (FCTYF_EPX) | Z71: =VLOOKUP(Z$64&$Y71,GTYF!$C:$AP,6,FALSE) -> 847428.9 | AA71: =VLOOKUP(AA$64&$Y71,GTYF!$C:$AP,37,FALSE) -> 37522.072 | AB71: =VLOOKUP(AB$64&$Y71,GTYF!$C:$AP,37,FALSE) -> 6347.11 | AC71: =VLOOKUP(AC$64&$Y71,GTYF!$C:$AP,37,FALSE) -> 43869.184 | AD71: =VLOOKUP(AD$64&$Y71,GTYF!$C:$AP,37,FALSE) -> 4439207.898 | AE71: =VLOOKUP(AE$64&$Y71,GTYF!$C:$AP,37,FALSE) -> 266.912 | AF71: =VLOOKUP(AF$64&$Y71,GTYF!$C:$AP,37,FALSE) -> 101954.116 | AG71: =VLOOKUP(AG$64&$Y71,GTYF!$C:$AP,37,FALSE) -> 26.45 | AH71: =VLOOKUP(AH$64&$Y71,GTYF!$C:$AP,37,FALSE) -> 4541188.462
B72: Peupleraies | D72: 30 | E72: 0.003164556962 | F72: 0 | G72: 0 | H72: 800 | I72: 0.0007821666015 | J72: 0 | K72: 0 | L72: 2500 | M72: 0.02196836555 | N72: 3300 | O72: 0.002903396094 | S72: Tableau 4. | T72: 30 | U72: 0.002747252747 | V72: 26.6796 | W72: 3.3204 | Y72: (FCTYF_PEU) | Z72: =VLOOKUP(Z$64&$Y72,GTYF!$C:$AP,6,FALSE) -> 23617.7 | AA72: =VLOOKUP(AA$64&$Y72,GTYF!$C:$AP,37,FALSE) -> 133.398 | AB72: =VLOOKUP(AB$64&$Y72,GTYF!$C:$AP,37,FALSE) -> 0 | AC72: =VLOOKUP(AC$64&$Y72,GTYF!$C:$AP,37,FALSE) -> 133.398 | AD72: =VLOOKUP(AD$64&$Y72,GTYF!$C:$AP,37,FALSE) -> 3798.136 | AE72: =VLOOKUP(AE$64&$Y72,GTYF!$C:$AP,37,FALSE) -> 45.828 | AF72: =VLOOKUP(AF$64&$Y72,GTYF!$C:$AP,37,FALSE) -> 12489.32 | AG72: =VLOOKUP(AG$64&$Y72,GTYF!$C:$AP,37,FALSE) -> 31.984 | AH72: =VLOOKUP(AH$64&$Y72,GTYF!$C:$AP,37,FALSE) -> 16319.442
B73: Peupleraies à résineux | D73: 0 | E73: 0 | F73: 0 | G73: 0 | H73: 0 | I73: 0 | J73: 0 | K73: 0 | L73: 0 | M73: 0 | N73: 0 | O73: 0 | S73: Tableau 4. | T73: 0 | U73: 0 | V73: 0 | W73: 0 | Y73: (FCTYF_PEUR) | Z73: =VLOOKUP(Z$64&$Y73,GTYF!$C:$AP,6,FALSE) -> 0 | AA73: =VLOOKUP(AA$64&$Y73,GTYF!$C:$AP,37,FALSE) -> 0 | AB73: =VLOOKUP(AB$64&$Y73,GTYF!$C:$AP,37,FALSE) -> 0 | AC73: =VLOOKUP(AC$64&$Y73,GTYF!$C:$AP,37,FALSE) -> 0 | AD73: =VLOOKUP(AD$64&$Y73,GTYF!$C:$AP,37,FALSE) -> 0 | AE73: =VLOOKUP(AE$64&$Y73,GTYF!$C:$AP,37,FALSE) -> 0 | AF73: =VLOOKUP(AF$64&$Y73,GTYF!$C:$AP,37,FALSE) -> 0 | AG73: =VLOOKUP(AG$64&$Y73,GTYF!$C:$AP,37,FALSE) -> 0 | AH73: =VLOOKUP(AH$64&$Y73,GTYF!$C:$AP,37,FALSE) -> 0
B74: Pinèdes blanches | D74: 0 | E74: 0 | F74: 0 | G74: 0 | H74: 0 | I74: 0 | J74: 0 | K74: 0 | L74: 0 | M74: 0 | N74: 0 | O74: 0 | S74: Tableau 4. | T74: 0 | U74: 0 | V74: 0 | W74: 0 | Y74: (FCTYF_PIN) | Z74: =VLOOKUP(Z$64&$Y74,GTYF!$C:$AP,6,FALSE) -> 0 | AA74: =VLOOKUP(AA$64&$Y74,GTYF!$C:$AP,37,FALSE) -> 0 | AB74: =VLOOKUP(AB$64&$Y74,GTYF!$C:$AP,37,FALSE) -> 0 | AC74: =VLOOKUP(AC$64&$Y74,GTYF!$C:$AP,37,FALSE) -> 0 | AD74: =VLOOKUP(AD$64&$Y74,GTYF!$C:$AP,37,FALSE) -> 0 | AE74: =VLOOKUP(AE$64&$Y74,GTYF!$C:$AP,37,FALSE) -> 0 | AF74: =VLOOKUP(AF$64&$Y74,GTYF!$C:$AP,37,FALSE) -> 0 | AG74: =VLOOKUP(AG$64&$Y74,GTYF!$C:$AP,37,FALSE) -> 0 | AH74: =VLOOKUP(AH$64&$Y74,GTYF!$C:$AP,37,FALSE) -> 0
B75: Pinèdes grises | D75: 260 | E75: 0.02742616034 | F75: 0 | G75: 0 | H75: 17800 | I75: 0.01740320688 | J75: 0 | K75: 0 | L75: 0 | M75: 0 | N75: 17800 | O75: 0.01566074257 | S75: Tableau 4. | T75: 260 | U75: 0.02380952381 | V75: 259.868 | W75: 0.132 | Y75: (FCTYF_PIG) | Z75: =VLOOKUP(Z$64&$Y75,GTYF!$C:$AP,6,FALSE) -> 10774.2 | AA75: =VLOOKUP(AA$64&$Y75,GTYF!$C:$AP,37,FALSE) -> 1299.34 | AB75: =VLOOKUP(AB$64&$Y75,GTYF!$C:$AP,37,FALSE) -> 0 | AC75: =VLOOKUP(AC$64&$Y75,GTYF!$C:$AP,37,FALSE) -> 1299.34 | AD75: =VLOOKUP(AD$64&$Y75,GTYF!$C:$AP,37,FALSE) -> 89068.566 | AE75: =VLOOKUP(AE$64&$Y75,GTYF!$C:$AP,37,FALSE) -> 0 | AF75: =VLOOKUP(AF$64&$Y75,GTYF!$C:$AP,37,FALSE) -> 126.124 | AG75: =VLOOKUP(AG$64&$Y75,GTYF!$C:$AP,37,FALSE) -> 0 | AH75: =VLOOKUP(AH$64&$Y75,GTYF!$C:$AP,37,FALSE) -> 89194.692
B76: Prucheraies | D76: 0 | E76: 0 | F76: 0 | G76: 0 | H76: 0 | I76: 0 | J76: 0 | K76: 0 | L76: 0 | M76: 0 | N76: 0 | O76: 0 | S76: Tableau 4. | T76: 0 | U76: 0 | V76: 0 | W76: 0 | Y76: (FCTYF_PRU) | Z76: =VLOOKUP(Z$64&$Y76,GTYF!$C:$AP,6,FALSE) -> 0 | AA76: =VLOOKUP(AA$64&$Y76,GTYF!$C:$AP,37,FALSE) -> 0 | AB76: =VLOOKUP(AB$64&$Y76,GTYF!$C:$AP,37,FALSE) -> 0 | AC76: =VLOOKUP(AC$64&$Y76,GTYF!$C:$AP,37,FALSE) -> 0 | AD76: =VLOOKUP(AD$64&$Y76,GTYF!$C:$AP,37,FALSE) -> 0 | AE76: =VLOOKUP(AE$64&$Y76,GTYF!$C:$AP,37,FALSE) -> 0 | AF76: =VLOOKUP(AF$64&$Y76,GTYF!$C:$AP,37,FALSE) -> 0 | AG76: =VLOOKUP(AG$64&$Y76,GTYF!$C:$AP,37,FALSE) -> 0 | AH76: =VLOOKUP(AH$64&$Y76,GTYF!$C:$AP,37,FALSE) -> 0
B77: Résineux à feuillus | D77: 310 | E77: 0.03270042194 | F77: 170 | G77: 0.1180555556 | H77: 29600 | I77: 0.02894016425 | J77: 0 | K77: 0 | L77: 13300 | M77: 0.1168717047 | N77: 42900 | O77: 0.03774414922 | S77: Tableau 4. | T77: 480 | U77: 0.04395604396 | V77: 477.336 | W77: 2.664 | Y77: (FCTYF_RF) | Z77: =VLOOKUP(Z$64&$Y77,GTYF!$C:$AP,6,FALSE) -> 60537.7 | AA77: =VLOOKUP(AA$64&$Y77,GTYF!$C:$AP,37,FALSE) -> 1553.716 | AB77: =VLOOKUP(AB$64&$Y77,GTYF!$C:$AP,37,FALSE) -> 832.964 | AC77: =VLOOKUP(AC$64&$Y77,GTYF!$C:$AP,37,FALSE) -> 2386.68 | AD77: =VLOOKUP(AD$64&$Y77,GTYF!$C:$AP,37,FALSE) -> 147802.624 | AE77: =VLOOKUP(AE$64&$Y77,GTYF!$C:$AP,37,FALSE) -> 4.338 | AF77: =VLOOKUP(AF$64&$Y77,GTYF!$C:$AP,37,FALSE) -> 66661.458 | AG77: =VLOOKUP(AG$64&$Y77,GTYF!$C:$AP,37,FALSE) -> 11.35 | AH77: =VLOOKUP(AH$64&$Y77,GTYF!$C:$AP,37,FALSE) -> 214475.432
B78: Sapinières | D78: 520 | E78: 0.05485232068 | F78: 0 | G78: 0 | H78: 59100 | I78: 0.05778255768 | J78: =ROUND(AG78/5,-2) -> 0 | K78: 0 | L78: 2100 | M78: 0.01845342707 | N78: 61200 | O78: 0.05384480028 | S78: Tableau 4. | T78: 520 | U78: 0.04761904762 | V78: 517.1852 | W78: 2.8148 | Y78: (FCTYF_SAB) | Z78: =VLOOKUP(Z$64&$Y78,GTYF!$C:$AP,6,FALSE) -> 296314.1 | AA78: =VLOOKUP(AA$64&$Y78,GTYF!$C:$AP,37,FALSE) -> 2585.926 | AB78: =VLOOKUP(AB$64&$Y78,GTYF!$C:$AP,37,FALSE) -> 0 | AC78: =VLOOKUP(AC$64&$Y78,GTYF!$C:$AP,37,FALSE) -> 2585.926 | AD78: =VLOOKUP(AD$64&$Y78,GTYF!$C:$AP,37,FALSE) -> 295267.382 | AE78: =VLOOKUP(AE$64&$Y78,GTYF!$C:$AP,37,FALSE) -> 70.378 | AF78: =VLOOKUP(AF$64&$Y78,GTYF!$C:$AP,37,FALSE) -> 10593.024 | AG78: =VLOOKUP(AG$64&$Y78,GTYF!$C:$AP,37,FALSE) -> 14.176 | AH78: =VLOOKUP(AH$64&$Y78,GTYF!$C:$AP,37,FALSE) -> 305874.584
B79: Total | D79: =SUM(D65:D78) -> 9480 | E79: =SUM(E65:E78) -> 1 | F79: =SUM(F65:F78) -> 1440 | G79: =SUM(G65:G78) -> 1 | H79: =SUM(H65:H78) -> 1022800 | I79: =SUM(I65:I78) -> 1 | J79: 0 | K79: 0 | L79: 113800 | M79: 1 | N79: =SUM(N65:N78) -> 1136600 | O79: 1 | S79: Tableau 4. | T79: =SUM(T65:T78) -> 10920 | U79: =SUM(U65:U78) -> 1 | V79: =SUM(V65:V78) -> 10917.8816 | W79: 2.1184 | Y79: Somme | Z79: =SUM(Z65:Z78) -> 1287806.1 | AA79: =SUM(AA65:AA78) -> 47409.334 | AB79: =SUM(AB65:AB78) -> 7180.074 | AC79: =SUM(AC65:AC78) -> 54589.41
B80: * Les superficies sont arrondies à la dizaine près et les volumes à la centaine près. Cette opération peut engendrer de légères distorsions sur les sommes. | S80: Tableau 4. | Y80: Total (Output) | Z80: =VLOOKUP(Z$64,Output!$C:$AP,6,FALSE) -> 1377576.3
Y81: Écart | Z81: =Z79-Z80 -> -89770.2
N82: Écart de possibilité
N83: =Instructions!I5/5-N79 -> 40 | O83: Valideur
B84: Tableau 8. Traitements commerciaux supportant les possibilités forestières
B85: Traitements commerciaux (récolte) | G85: Superficie annuelle moyenne (ha/an) | H85: Superficie antérieure (ha/an) | I85: Écart (ha/an)
T88: Légende | U88: Name | V88: PERIOD2@6
B89: Coupe avec protection de la régénération et des sols (CPRS) | G89: =IFERROR(ROUND(V89,-1),0)-G90-G91 -> 9480 | H89: =IFERROR(ROUND(VLOOKUP(O33,DataLocal!$A:$BH,37,FALSE),-1),0) -> 11350 | I89: =G89-H89 -> -1870 | S89: =LEFT(B$84,10) -> Tableau 8. | T89: Coupes avec protection de la régénération et des sols (CPRS) | U89: OSUPCT | V89: =IFERROR(VLOOKUP(U89,Output!$C:$AQ,37,FALSE)/5,"0000") -> 9481.8668
B90: Coupe avec protection des petites tiges marchandes (CPPTM) | G90: =IFERROR(ROUND(V90,-1),0) -> 0 | H90: =IFERROR(ROUND(VLOOKUP(O33,DataLocal!$A:$BH,38,FALSE),-1),0) -> 150 | I90: =G90-H90 -> -150 | S90: Tableau 8. | T90: Coupe avec protection des petites tiges marchandes (CPPTM) | U90: OSUPREALACPPTM | V90: =IFERROR(VLOOKUP(U90,Output!$C:$AQ,37,FALSE)/5,"0000") -> 0
B91: Coupe avec réserve de semenciers (CRS) | G91: =IFERROR(ROUND(V91,-1),0) -> 0 | H91: =IFERROR(ROUND(VLOOKUP(33,DataLocal!$A:$BH,39,FALSE),-1),0) -> 0 | I91: 0 | K91: Coupe finale / sup INC | S91: Tableau 8. | T91: Coupe avec réserve de semenciers (CRS) | U91: OSUPREALACRS | V91: =IFERROR(VLOOKUP(U91,Output!$C:$AQ,37,FALSE)/5,"0000") -> 0
B92: Total des coupes finales | G92: =SUM(G89:G91) -> 9480 | H92: =SUM(H89:H91) -> 11500 | I92: -2020 | K92: =G92/I20 -> 0.006881651492 | S92: Tableau 8.
B93: Éclaircie commerciale | G93: =IFERROR(ROUND(V93,-1),0) -> 70 | H93: =IFERROR(ROUND(VLOOKUP(O33,DataLocal!$A:$BH,40,FALSE),-1),0) -> 0 | I93: 70 | S93: Tableau 8. | T93: Éclaircie commerciale (EC) | U93: OSUPEC_SEPM | V93: =IFERROR(VLOOKUP(U93,Output!$C:$AQ,37,FALSE)/5,"0000") -> 72.1628
B94: Coupe progressive régulière | G94: =IFERROR(ROUND(V94+V95,-1),0) -> 0 | H94: =IFERROR(ROUND(VLOOKUP(O33,DataLocal!$A:$BH,41,FALSE),-1),0) -> 1520 | I94: -1520 | S94: Tableau 8. | T94: Coupe progressive régulière initiale (CPROG) | U94: OSUPCPROG_INI | V94: =IFERROR(VLOOKUP(U94,Output!$C:$AQ,37,FALSE)/5,"0000") -> 0000
B95: Coupe progressive irrégulière à régénération lente (CPIL) | G95: =IFERROR(ROUND(V96+V97,-1),0) -> 1360 | H95: =IFERROR(ROUND(VLOOKUP(O33,DataLocal!$A:$BH,42,FALSE),-1),0) -> 0 | I95: 1360 | S95: Tableau 8. | T95: Coupe progressive régulière finale (CPROG) | U95: OSUPCPROG_FIN | V95: =IFERROR(VLOOKUP(U95,Output!$C:$AQ,37,FALSE)/5,"0000") -> 0000
B96: Coupe progressive irrégulière à couvert permanent (CPICP) | G96: =IFERROR(ROUND(V98,-1),0) -> 0 | H96: =IFERROR(ROUND(VLOOKUP(O33,DataLocal!$A:$BH,43,FALSE),-1),0) -> 0 | I96: 0 | S96: Tableau 8. | T96: Coupe progessive irrégulière initiale (CPIRL) | U96: OSUPCPIRL_INI | V96: =IFERROR(VLOOKUP(U96,Output!$C:$AQ,37,FALSE)/5,"0000") -> 1363.852
B97: Coupes de jardinage ou d'amélioration | G97: =IFERROR(ROUND(V99,-1),0) -> 0 | H97: =IFERROR(ROUND(VLOOKUP(O33,DataLocal!$A:$BH,44,FALSE),-1),0) -> 0 | I97: 0 | T97: Coupe progessive irrégulière finale (CPIRL) | U97: OSUPCPIRL_FIN | V97: =IFERROR(VLOOKUP(U97,Output!$C:$AQ,37,FALSE)/5,"0000") -> 0
B98: Total des coupes partielles | G98: =SUM(G93:G97) -> 1430 | H98: =SUM(H93:H97) -> 1520 | I98: -90 | S98: =LEFT(B$84,10) -> Tableau 8. | T98: Coupe à couvert permanent (CPICP) | U98: OSUPCPICP | V98: =IFERROR(VLOOKUP(U98,Output!$C:$AQ,37,FALSE)/5,"0000") -> 0000
B99: Total des activités de récolte | G99: =G92+G98 -> 10910 | H99: =H98+H92 -> 13020 | I99: -2110 | S99: =LEFT(B$84,10) -> Tableau 8. | T99: Coupe de jardinage (CJ) | U99: OSUPCJ | V99: =IFERROR(VLOOKUP(U99,Output!$C:$AQ,37,FALSE)/5,"0000") -> 0000
B100: % des coupes totales / récolte | G100: =IFERROR(G92/G99,0) -> 0.8689275894 | H100: =IFERROR(H92/H99,0) -> 0.8832565284 | I100: =ROUND(G100-H100,2) -> -0.01 | W100: Valideur
B101: % des coupes partielles / récolte | G101: =IFERROR(G98/G99,0) -> 0.1310724106 | H101: =IFERROR(H98/H99,0) -> 0.1167434716 | I101: =ROUND(G101-H101,2) -> 0.01 | S101: =LEFT(B$84,10) -> Tableau 8. | U101: OSUPREALREGAPAR | V101: =VLOOKUP(U101,Output!$C:$AQ,37,FALSE)/5 -> 1436.0148 | W101: =ROUND(SUM(V93:V99),0)=ROUND(V101,0) -> TRUE
B102: Coupes partielles de peuplements résineux | G102: =ROUND((AB67+AB71+AB75+AB76+AB77+AB78)/5,-1) -> 1440 | H102: =IFERROR(ROUND(VLOOKUP(O33,DataLocal!$A:$BH,45,FALSE),-1),0) -> 1520 | I102: -80 | S102: =LEFT(B$84,10) -> Tableau 8. | U102: OSUPREALREGAFIN | V102: =VLOOKUP(U102,Output!$C:$AQ,37,FALSE)/5 -> 9481.8668 | W102: =ROUND((V89),0)=ROUND(V102,0) -> TRUE
B103: Coupes partielles de peuplements de feuillus tolérants et de pins | G103: =ROUND((AB69+AB70+AB74)/5,-1) -> 0 | H103: =IFERROR(ROUND(VLOOKUP(O33,DataLocal!$A:$BH,46,FALSE),-1),0) -> 0 | I103: 0 | S103: =LEFT(B$84,10) -> Tableau 8. | U103: OSUPREALREGAPRE | V103: =VLOOKUP(U103,Output!$C:$AQ,37,FALSE)/5 -> 10917.8816 | W103: =ROUND(V89+SUM(V93:V99),0)=ROUND(V103,0) -> TRUE
B104: * Les superficies sont arrondies à la dizaine près. Cette opération peut engendrer de légères distorsions sur les sommes.
B109: Tableau 9. Variables descriptives reliées aux coupes partielles et totales par grand type de forêt | L109: La CRV est-elle compabilisée avec les coupes partielles (regaPar)?
B110: Grands types de forêt | E110: Coupes partielles | H110: Coupes totales | L110: Si Oui - Remplacer alors les valeurs (colonne H et I) par celles-ci
E111: Rotation moyenne | F111: Prélèvement moyen | G111: Surface terrière moyenne avant coupe | H111: Âge moyen des peuplements | I111: Volume moyen toutes essences | J111: Dimension des bois SEPM | M111: Âge moyen des peuplements | N111: Volume moyen toutes essences
S113: Référence Tableau 63 du cahier d'analyse VF
E115: Années | F115: ="m"&CHAR(179)&"/ha" -> m³/ha | G115: ="m"&CHAR(178)&"/ha" -> m²/ha | H115: Années | I115: ="m"&CHAR(179)&"/an" -> m³/an | J115: ="dcm"&CHAR(179)&"/tige" -> dcm³/tige | M115: Années | N115: ="m"&CHAR(179)&"/an" -> m³/an | S115: =LEFT(B$109,10) -> Tableau 9. | V115: OSUPREALREGAPRE | W115: OSUPINC | X115: OVOLGSEPMRECREGAFIN | Y115: ONBTGSEPMRECREGAFIN | Z115: OVOLTOTRECACT | AA115: OVOLTOTRECACFP | AB115: OVOLTOTRECACRS | AC115: OVOLTOTRECACPPTM | AD115: OSUPREALREGAFIN | AE115: OVOLTOTRECACRV | AF115: OAGETOTRECACT | AG115: OAGETOTRECACFP | AH115: OAGETOTRECACRS | AI115: OAGETOTRECACPPTM | AJ115: OSUPREALREGAFIN | AK115: OAGETOTRECACRV | AM115: OVOLTOTRECaEC | AN115: OVOLTOTRECaEC2 | AO115: OVOLTOTRECaEC3 | AP115: OVOLTOTRECaCA | AQ115: OVOLTOTRECaCA2 | AR115: OVOLTOTRECaCPROG | AS115: OVOLTOTRECaCPIL | AT115: OVOLTOTRECaCPIP | AU115: OVOLTOTRECaCPFORT | AV115: OVOLTOTRECaCPFAIBL | AW115: OVOLTOTRECaCP | AX115: OVOLTOTRECaCPJ | AY115: OVOLTOTRECaCJ | AZ115: SOMME | BA115: OSUPREALREGAPAR
B116: =T116 -> Bétulaies blanches | E116: - | F116: =IFERROR($AZ116/$BA116,"-") -> - | G116: - | H116: =IFERROR(($AF116+$AG116+$AH116+$AI116+$AK116)/$AJ116*5,"-") -> 90.80777778 | I116: =IFERROR(($Z116+$AA116+$AB116+$AC116+$AE116)/$AD116,"-") -> 111.9766934 | J116: =(IFERROR(X116/Y116*1000,"-")) -> 84.24334831 | M116: =IFERROR(($AF116+$AG116+$AH116+$AI116)/$AJ116*5,"-") -> 90.80777778 | N116: =IFERROR(($Z116+$AA116+$AB116+$AC116)/$AD116,"-") -> 111.9766934 | S116: =LEFT(B$109,10) -> Tableau 9. | T116: Bétulaies blanches | U116: (FCTYF_BOP) | V116: =VLOOKUP(V$115&$U116,GTYF!$C:$AQ,37,FALSE) -> 1707.326 | W116: =VLOOKUP(W$115&$U116,GTYF!$C:$AQ,6,FALSE) -> 16402.8 | X116: =VLOOKUP(X$115&$U116,GTYF!$C:$AQ,37,FALSE) -> 19741.826 | Y116: =VLOOKUP(Y$115&$U116,GTYF!$C:$AQ,37,FALSE) -> 234342.846 | Z116: =VLOOKUP(Z$115&$U116,GTYF!$C:$AQ,37,FALSE) -> 191180.72 | AA116: =VLOOKUP(AA$115&$U116,GTYF!$C:$AQ,37,FALSE) -> 0 | AB116: =VLOOKUP(AB$115&$U116,GTYF!$C:$AQ,37,FALSE) -> 0 | AC116: =VLOOKUP(AC$115&$U116,GTYF!$C:$AQ,37,FALSE) -> 0 | AD116: =VLOOKUP(AD$115&$U116,GTYF!$C:$AQ,37,FALSE) -> 1707.326 | AE116: =VLOOKUP(AE$115&$U116,GTYF!$C:$AQ,37,FALSE) -> 0 | AF116: =VLOOKUP(AF$115&$U116,GTYF!$C:$AQ,37,FALSE) -> 31007.696 | AG116: =VLOOKUP(AG$115&$U116,GTYF!$C:$AQ,37,FALSE) -> 0 | AH116: =VLOOKUP(AH$115&$U116,GTYF!$C:$AQ,37,FALSE) -> 0 | AI116: =VLOOKUP(AI$115&$U116,GTYF!$C:$AQ,37,FALSE) -> 0 | AJ116: =VLOOKUP(AJ$115&$U116,GTYF!$C:$AQ,37,FALSE) -> 1707.326 | AK116: =VLOOKUP(AK$115&$U116,GTYF!$C:$AQ,37,FALSE) -> 0 | AM116: =VLOOKUP(AM$115&$U116,GTYF!$C:$AQ,37,FALSE) -> 0 | AN116: =VLOOKUP(AN$115&$U116,GTYF!$C:$AQ,37,FALSE) -> 0 | AO116: =VLOOKUP(AO$115&$U116,GTYF!$C:$AQ,37,FALSE) -> 0 | AP116: =VLOOKUP(AP$115&$U116,GTYF!$C:$AQ,37,FALSE) -> 0 | AQ116: =VLOOKUP(AQ$115&$U116,GTYF!$C:$AQ,37,FALSE) -> 0 | AR116: =VLOOKUP(AR$115&$U116,GTYF!$C:$AQ,37,FALSE) -> 0 | AS116: =VLOOKUP(AS$115&$U116,GTYF!$C:$AQ,37,FALSE) -> 0 | AT116: =VLOOKUP(AT$115&$U116,GTYF!$C:$AQ,37,FALSE) -> 0 | AU116: =VLOOKUP(AU$115&$U116,GTYF!$C:$AQ,37,FALSE) -> 0 | AV116: =VLOOKUP(AV$115&$U116,GTYF!$C:$AQ,37,FALSE) -> 0 | AW116: =VLOOKUP(AW$115&$U116,GTYF!$C:$AQ,37,FALSE) -> 0 | AX116: =VLOOKUP(AX$115&$U116,GTYF!$C:$AQ,37,FALSE) -> 0 | AY116: =VLOOKUP(AY$115&$U116,GTYF!$C:$AQ,37,FALSE) -> 0 | AZ116: =SUM(AM116:AY116) -> 0 | BA116: =VLOOKUP(BA$115&$U116,GTYF!$C:$AQ,37,FALSE) -> 0
B117: Bétulaies blanches à résineux | E117: - | F117: =IFERROR($AZ117/$BA117,"-") -> - | G117: - | H117: =IFERROR(($AF117+$AG117+$AH117+$AI117+$AK117)/$AJ117*5,"-") -> 84.55483986 | I117: =IFERROR(($Z117+$AA117+$AB117+$AC117+$AE117)/$AD117,"-") -> 124.6250006 | J117: =(IFERROR(X117/Y117*1000,"-")) -> 125.0890466 | M117: =IFERROR(($AF117+$AG117+$AH117+$AI117)/$AJ117*5,"-") -> 84.55483986 | N117: =IFERROR(($Z117+$AA117+$AB117+$AC117)/$AD117,"-") -> 124.6250006 | S117: Tableau 9. | T117: Bétulaies blanches à résineux | U117: (FCTYF_BOPR) | V117: =VLOOKUP(V$115&$U117,GTYF!$C:$AQ,37,FALSE) -> 2607.556 | W117: =VLOOKUP(W$115&$U117,GTYF!$C:$AQ,6,FALSE) -> 32730.7 | X117: =VLOOKUP(X$115&$U117,GTYF!$C:$AQ,37,FALSE) -> 119087.45 | Y117: =VLOOKUP(Y$115&$U117,GTYF!$C:$AQ,37,FALSE) -> 952021.406 | Z117: =VLOOKUP(Z$115&$U117,GTYF!$C:$AQ,37,FALSE) -> 324966.668 | AA117: =VLOOKUP(AA$115&$U117,GTYF!$C:$AQ,37,FALSE) -> 0 | AB117: =VLOOKUP(AB$115&$U117,GTYF!$C:$AQ,37,FALSE) -> 0 | AC117: =VLOOKUP(AC$115&$U117,GTYF!$C:$AQ,37,FALSE) -> 0 | AD117: =VLOOKUP(AD$115&$U117,GTYF!$C:$AQ,37,FALSE) -> 2607.556 | AE117: =VLOOKUP(AE$115&$U117,GTYF!$C:$AQ,37,FALSE) -> 0 | AF117: =VLOOKUP(AF$115&$U117,GTYF!$C:$AQ,37,FALSE) -> 44096.296 | AG117: =VLOOKUP(AG$115&$U117,GTYF!$C:$AQ,37,FALSE) -> 0 | AH117: =VLOOKUP(AH$115&$U117,GTYF!$C:$AQ,37,FALSE) -> 0 | AI117: =VLOOKUP(AI$115&$U117,GTYF!$C:$AQ,37,FALSE) -> 0 | AJ117: =VLOOKUP(AJ$115&$U117,GTYF!$C:$AQ,37,FALSE) -> 2607.556 | AK117: =VLOOKUP(AK$115&$U117,GTYF!$C:$AQ,37,FALSE) -> 0 | AM117: =VLOOKUP(AM$115&$U117,GTYF!$C:$AQ,37,FALSE) -> 0 | AN117: =VLOOKUP(AN$115&$U117,GTYF!$C:$AQ,37,FALSE) -> 0 | AO117: =VLOOKUP(AO$115&$U117,GTYF!$C:$AQ,37,FALSE) -> 0 | AP117: =VLOOKUP(AP$115&$U117,GTYF!$C:$AQ,37,FALSE) -> 0 | AQ117: =VLOOKUP(AQ$115&$U117,GTYF!$C:$AQ,37,FALSE) -> 0 | AR117: =VLOOKUP(AR$115&$U117,GTYF!$C:$AQ,37,FALSE) -> 0 | AS117: =VLOOKUP(AS$115&$U117,GTYF!$C:$AQ,37,FALSE) -> 0 | AT117: =VLOOKUP(AT$115&$U117,GTYF!$C:$AQ,37,FALSE) -> 0 | AU117: =VLOOKUP(AU$115&$U117,GTYF!$C:$AQ,37,FALSE) -> 0 | AV117: =VLOOKUP(AV$115&$U117,GTYF!$C:$AQ,37,FALSE) -> 0 | AW117: =VLOOKUP(AW$115&$U117,GTYF!$C:$AQ,37,FALSE) -> 0 | AX117: =VLOOKUP(AX$115&$U117,GTYF!$C:$AQ,37,FALSE) -> 0 | AY117: =VLOOKUP(AY$115&$U117,GTYF!$C:$AQ,37,FALSE) -> 0 | AZ117: =SUM(AM117:AY117) -> 0 | BA117: =VLOOKUP(BA$115&$U117,GTYF!$C:$AQ,37,FALSE) -> 0
B118: Cédrières | E118: - | F118: - | G118: - | H118: =IFERROR(($AF118+$AG118+$AH118+$AI118+$AK118)/$AJ118*5,"-") -> - | I118: - | J118: =(IFERROR(X118/Y118*1000,"-")) -> - | M118: - | N118: - | S118: Tableau 9. | T118: Cédrières | U118: (FCTYF_THO) | V118: =VLOOKUP(V$115&$U118,GTYF!$C:$AQ,37,FALSE) -> 0 | W118: =VLOOKUP(W$115&$U118,GTYF!$C:$AQ,6,FALSE) -> 0 | X118: =VLOOKUP(X$115&$U118,GTYF!$C:$AQ,37,FALSE) -> 0 | Y118: =VLOOKUP(Y$115&$U118,GTYF!$C:$AQ,37,FALSE) -> 0 | Z118: =VLOOKUP(Z$115&$U118,GTYF!$C:$AQ,37,FALSE) -> 0 | AA118: =VLOOKUP(AA$115&$U118,GTYF!$C:$AQ,37,FALSE) -> 0 | AB118: =VLOOKUP(AB$115&$U118,GTYF!$C:$AQ,37,FALSE) -> 0 | AC118: =VLOOKUP(AC$115&$U118,GTYF!$C:$AQ,37,FALSE) -> 0 | AD118: =VLOOKUP(AD$115&$U118,GTYF!$C:$AQ,37,FALSE) -> 0 | AE118: =VLOOKUP(AE$115&$U118,GTYF!$C:$AQ,37,FALSE) -> 0 | AF118: =VLOOKUP(AF$115&$U118,GTYF!$C:$AQ,37,FALSE) -> 0 | AG118: =VLOOKUP(AG$115&$U118,GTYF!$C:$AQ,37,FALSE) -> 0 | AH118: =VLOOKUP(AH$115&$U118,GTYF!$C:$AQ,37,FALSE) -> 0 | AI118: =VLOOKUP(AI$115&$U118,GTYF!$C:$AQ,37,FALSE) -> 0 | AJ118: =VLOOKUP(AJ$115&$U118,GTYF!$C:$AQ,37,FALSE) -> 0 | AK118: =VLOOKUP(AK$115&$U118,GTYF!$C:$AQ,37,FALSE) -> 0 | AM118: =VLOOKUP(AM$115&$U118,GTYF!$C:$AQ,37,FALSE) -> 0 | AN118: =VLOOKUP(AN$115&$U118,GTYF!$C:$AQ,37,FALSE) -> 0 | AO118: =VLOOKUP(AO$115&$U118,GTYF!$C:$AQ,37,FALSE) -> 0 | AP118: =VLOOKUP(AP$115&$U118,GTYF!$C:$AQ,37,FALSE) -> 0 | AQ118: =VLOOKUP(AQ$115&$U118,GTYF!$C:$AQ,37,FALSE) -> 0 | AR118: =VLOOKUP(AR$115&$U118,GTYF!$C:$AQ,37,FALSE) -> 0 | AS118: =VLOOKUP(AS$115&$U118,GTYF!$C:$AQ,37,FALSE) -> 0 | AT118: =VLOOKUP(AT$115&$U118,GTYF!$C:$AQ,37,FALSE) -> 0 | AU118: =VLOOKUP(AU$115&$U118,GTYF!$C:$AQ,37,FALSE) -> 0 | AV118: =VLOOKUP(AV$115&$U118,GTYF!$C:$AQ,37,FALSE) -> 0 | AW118: =VLOOKUP(AW$115&$U118,GTYF!$C:$AQ,37,FALSE) -> 0 | AX118: =VLOOKUP(AX$115&$U118,GTYF!$C:$AQ,37,FALSE) -> 0 | AY118: =VLOOKUP(AY$115&$U118,GTYF!$C:$AQ,37,FALSE) -> 0 | AZ118: 0 | BA118: =VLOOKUP(BA$115&$U118,GTYF!$C:$AQ,37,FALSE) -> 0
B119: Érablières rouges | E119: - | F119: - | G119: - | H119: - | I119: - | J119: - | M119: - | N119: - | S119: Tableau 9. | T119: Érablières rouges | U119: (FCTYF_ERO) | V119: =VLOOKUP(V$115&$U119,GTYF!$C:$AQ,37,FALSE) -> 0 | W119: =VLOOKUP(W$115&$U119,GTYF!$C:$AQ,6,FALSE) -> 0 | X119: =VLOOKUP(X$115&$U119,GTYF!$C:$AQ,37,FALSE) -> 0 | Y119: =VLOOKUP(Y$115&$U119,GTYF!$C:$AQ,37,FALSE) -> 0 | Z119: =VLOOKUP(Z$115&$U119,GTYF!$C:$AQ,37,FALSE) -> 0 | AA119: =VLOOKUP(AA$115&$U119,GTYF!$C:$AQ,37,FALSE) -> 0 | AB119: =VLOOKUP(AB$115&$U119,GTYF!$C:$AQ,37,FALSE) -> 0 | AC119: =VLOOKUP(AC$115&$U119,GTYF!$C:$AQ,37,FALSE) -> 0 | AD119: =VLOOKUP(AD$115&$U119,GTYF!$C:$AQ,37,FALSE) -> 0 | AE119: =VLOOKUP(AE$115&$U119,GTYF!$C:$AQ,37,FALSE) -> 0 | AF119: =VLOOKUP(AF$115&$U119,GTYF!$C:$AQ,37,FALSE) -> 0 | AG119: =VLOOKUP(AG$115&$U119,GTYF!$C:$AQ,37,FALSE) -> 0 | AH119: =VLOOKUP(AH$115&$U119,GTYF!$C:$AQ,37,FALSE) -> 0 | AI119: =VLOOKUP(AI$115&$U119,GTYF!$C:$AQ,37,FALSE) -> 0 | AJ119: =VLOOKUP(AJ$115&$U119,GTYF!$C:$AQ,37,FALSE) -> 0 | AK119: =VLOOKUP(AK$115&$U119,GTYF!$C:$AQ,37,FALSE) -> 0 | AM119: =VLOOKUP(AM$115&$U119,GTYF!$C:$AQ,37,FALSE) -> 0 | AN119: =VLOOKUP(AN$115&$U119,GTYF!$C:$AQ,37,FALSE) -> 0 | AO119: =VLOOKUP(AO$115&$U119,GTYF!$C:$AQ,37,FALSE) -> 0 | AP119: =VLOOKUP(AP$115&$U119,GTYF!$C:$AQ,37,FALSE) -> 0 | AQ119: =VLOOKUP(AQ$115&$U119,GTYF!$C:$AQ,37,FALSE) -> 0 | AR119: =VLOOKUP(AR$115&$U119,GTYF!$C:$AQ,37,FALSE) -> 0 | AS119: =VLOOKUP(AS$115&$U119,GTYF!$C:$AQ,37,FALSE) -> 0 | AT119: =VLOOKUP(AT$115&$U119,GTYF!$C:$AQ,37,FALSE) -> 0 | AU119: =VLOOKUP(AU$115&$U119,GTYF!$C:$AQ,37,FALSE) -> 0 | AV119: =VLOOKUP(AV$115&$U119,GTYF!$C:$AQ,37,FALSE) -> 0 | AW119: =VLOOKUP(AW$115&$U119,GTYF!$C:$AQ,37,FALSE) -> 0 | AX119: =VLOOKUP(AX$115&$U119,GTYF!$C:$AQ,37,FALSE) -> 0 | AY119: =VLOOKUP(AY$115&$U119,GTYF!$C:$AQ,37,FALSE) -> 0 | AZ119: 0 | BA119: =VLOOKUP(BA$115&$U119,GTYF!$C:$AQ,37,FALSE) -> 0
B120: Feuillus tolérants | E120: - | F120: - | G120: - | H120: - | I120: - | J120: - | M120: - | N120: - | S120: Tableau 9. | T120: Feuillus tolérants | U120: (FCTYF_FT) | V120: =VLOOKUP(V$115&$U120,GTYF!$C:$AQ,37,FALSE) -> 0 | W120: =VLOOKUP(W$115&$U120,GTYF!$C:$AQ,6,FALSE) -> 0 | X120: =VLOOKUP(X$115&$U120,GTYF!$C:$AQ,37,FALSE) -> 0 | Y120: =VLOOKUP(Y$115&$U120,GTYF!$C:$AQ,37,FALSE) -> 0 | Z120: =VLOOKUP(Z$115&$U120,GTYF!$C:$AQ,37,FALSE) -> 0 | AA120: =VLOOKUP(AA$115&$U120,GTYF!$C:$AQ,37,FALSE) -> 0 | AB120: =VLOOKUP(AB$115&$U120,GTYF!$C:$AQ,37,FALSE) -> 0 | AC120: =VLOOKUP(AC$115&$U120,GTYF!$C:$AQ,37,FALSE) -> 0 | AD120: =VLOOKUP(AD$115&$U120,GTYF!$C:$AQ,37,FALSE) -> 0 | AE120: =VLOOKUP(AE$115&$U120,GTYF!$C:$AQ,37,FALSE) -> 0 | AF120: =VLOOKUP(AF$115&$U120,GTYF!$C:$AQ,37,FALSE) -> 0 | AG120: =VLOOKUP(AG$115&$U120,GTYF!$C:$AQ,37,FALSE) -> 0 | AH120: =VLOOKUP(AH$115&$U120,GTYF!$C:$AQ,37,FALSE) -> 0 | AI120: =VLOOKUP(AI$115&$U120,GTYF!$C:$AQ,37,FALSE) -> 0 | AJ120: =VLOOKUP(AJ$115&$U120,GTYF!$C:$AQ,37,FALSE) -> 0 | AK120: =VLOOKUP(AK$115&$U120,GTYF!$C:$AQ,37,FALSE) -> 0 | AM120: =VLOOKUP(AM$115&$U120,GTYF!$C:$AQ,37,FALSE) -> 0 | AN120: =VLOOKUP(AN$115&$U120,GTYF!$C:$AQ,37,FALSE) -> 0 | AO120: =VLOOKUP(AO$115&$U120,GTYF!$C:$AQ,37,FALSE) -> 0 | AP120: =VLOOKUP(AP$115&$U120,GTYF!$C:$AQ,37,FALSE) -> 0 | AQ120: =VLOOKUP(AQ$115&$U120,GTYF!$C:$AQ,37,FALSE) -> 0 | AR120: =VLOOKUP(AR$115&$U120,GTYF!$C:$AQ,37,FALSE) -> 0 | AS120: =VLOOKUP(AS$115&$U120,GTYF!$C:$AQ,37,FALSE) -> 0 | AT120: =VLOOKUP(AT$115&$U120,GTYF!$C:$AQ,37,FALSE) -> 0 | AU120: =VLOOKUP(AU$115&$U120,GTYF!$C:$AQ,37,FALSE) -> 0 | AV120: =VLOOKUP(AV$115&$U120,GTYF!$C:$AQ,37,FALSE) -> 0 | AW120: =VLOOKUP(AW$115&$U120,GTYF!$C:$AQ,37,FALSE) -> 0 | AX120: =VLOOKUP(AX$115&$U120,GTYF!$C:$AQ,37,FALSE) -> 0 | AY120: =VLOOKUP(AY$115&$U120,GTYF!$C:$AQ,37,FALSE) -> 0 | AZ120: 0 | BA120: =VLOOKUP(BA$115&$U120,GTYF!$C:$AQ,37,FALSE) -> 0
B121: Feuillus tolérants à résineux | E121: - | F121: =IFERROR($AZ121/$BA121,"-") -> - | G121: - | H121: - | I121: - | J121: - | M121: - | N121: - | S121: Tableau 9. | T121: Feuillus tolérants à résineux | U121: (FCTYF_FTR) | V121: =VLOOKUP(V$115&$U121,GTYF!$C:$AQ,37,FALSE) -> 0 | W121: =VLOOKUP(W$115&$U121,GTYF!$C:$AQ,6,FALSE) -> 0 | X121: =VLOOKUP(X$115&$U121,GTYF!$C:$AQ,37,FALSE) -> 0 | Y121: =VLOOKUP(Y$115&$U121,GTYF!$C:$AQ,37,FALSE) -> 0 | Z121: =VLOOKUP(Z$115&$U121,GTYF!$C:$AQ,37,FALSE) -> 0 | AA121: =VLOOKUP(AA$115&$U121,GTYF!$C:$AQ,37,FALSE) -> 0 | AB121: =VLOOKUP(AB$115&$U121,GTYF!$C:$AQ,37,FALSE) -> 0 | AC121: =VLOOKUP(AC$115&$U121,GTYF!$C:$AQ,37,FALSE) -> 0 | AD121: =VLOOKUP(AD$115&$U121,GTYF!$C:$AQ,37,FALSE) -> 0 | AE121: =VLOOKUP(AE$115&$U121,GTYF!$C:$AQ,37,FALSE) -> 0 | AF121: =VLOOKUP(AF$115&$U121,GTYF!$C:$AQ,37,FALSE) -> 0 | AG121: =VLOOKUP(AG$115&$U121,GTYF!$C:$AQ,37,FALSE) -> 0 | AH121: =VLOOKUP(AH$115&$U121,GTYF!$C:$AQ,37,FALSE) -> 0 | AI121: =VLOOKUP(AI$115&$U121,GTYF!$C:$AQ,37,FALSE) -> 0 | AJ121: =VLOOKUP(AJ$115&$U121,GTYF!$C:$AQ,37,FALSE) -> 0 | AK121: =VLOOKUP(AK$115&$U121,GTYF!$C:$AQ,37,FALSE) -> 0 | AM121: =VLOOKUP(AM$115&$U121,GTYF!$C:$AQ,37,FALSE) -> 0 | AN121: =VLOOKUP(AN$115&$U121,GTYF!$C:$AQ,37,FALSE) -> 0 | AO121: =VLOOKUP(AO$115&$U121,GTYF!$C:$AQ,37,FALSE) -> 0 | AP121: =VLOOKUP(AP$115&$U121,GTYF!$C:$AQ,37,FALSE) -> 0 | AQ121: =VLOOKUP(AQ$115&$U121,GTYF!$C:$AQ,37,FALSE) -> 0 | AR121: =VLOOKUP(AR$115&$U121,GTYF!$C:$AQ,37,FALSE) -> 0 | AS121: =VLOOKUP(AS$115&$U121,GTYF!$C:$AQ,37,FALSE) -> 0 | AT121: =VLOOKUP(AT$115&$U121,GTYF!$C:$AQ,37,FALSE) -> 0 | AU121: =VLOOKUP(AU$115&$U121,GTYF!$C:$AQ,37,FALSE) -> 0 | AV121: =VLOOKUP(AV$115&$U121,GTYF!$C:$AQ,37,FALSE) -> 0 | AW121: =VLOOKUP(AW$115&$U121,GTYF!$C:$AQ,37,FALSE) -> 0 | AX121: =VLOOKUP(AX$115&$U121,GTYF!$C:$AQ,37,FALSE) -> 0 | AY121: =VLOOKUP(AY$115&$U121,GTYF!$C:$AQ,37,FALSE) -> 0 | AZ121: =SUM(AM121:AY121) -> 0 | BA121: =VLOOKUP(BA$115&$U121,GTYF!$C:$AQ,37,FALSE) -> 0
B122: Pessières | E122: 42 | F122: 72.81983076 | G122: 28.2 | H122: 152.5027925 | I122: 108.7091615 | J122: 99.52023392 | M122: 152.5027925 | N122: 108.7091615 | S122: Tableau 9. | T122: Pessières | U122: (FCTYF_EPX) | V122: =VLOOKUP(V$115&$U122,GTYF!$C:$AQ,37,FALSE) -> 43869.184 | W122: =VLOOKUP(W$115&$U122,GTYF!$C:$AQ,6,FALSE) -> 847428.9 | X122: =VLOOKUP(X$115&$U122,GTYF!$C:$AQ,37,FALSE) -> 3991835.162 | Y122: =VLOOKUP(Y$115&$U122,GTYF!$C:$AQ,37,FALSE) -> 40110789.58 | Z122: =VLOOKUP(Z$115&$U122,GTYF!$C:$AQ,37,FALSE) -> 3861852.202 | AA122: =VLOOKUP(AA$115&$U122,GTYF!$C:$AQ,37,FALSE) -> 217140.784 | AB122: =VLOOKUP(AB$115&$U122,GTYF!$C:$AQ,37,FALSE) -> 0 | AC122: =VLOOKUP(AC$115&$U122,GTYF!$C:$AQ,37,FALSE) -> 0 | AD122: =VLOOKUP(AD$115&$U122,GTYF!$C:$AQ,37,FALSE) -> 37522.072 | AE122: =VLOOKUP(AE$115&$U122,GTYF!$C:$AQ,37,FALSE) -> 0 | AF122: =VLOOKUP(AF$115&$U122,GTYF!$C:$AQ,37,FALSE) -> 1106467.1 | AG122: =VLOOKUP(AG$115&$U122,GTYF!$C:$AQ,37,FALSE) -> 37977.052 | AH122: =VLOOKUP(AH$115&$U122,GTYF!$C:$AQ,37,FALSE) -> 0 | AI122: =VLOOKUP(AI$115&$U122,GTYF!$C:$AQ,37,FALSE) -> 0 | AJ122: =VLOOKUP(AJ$115&$U122,GTYF!$C:$AQ,37,FALSE) -> 37522.072 | AK122: =VLOOKUP(AK$115&$U122,GTYF!$C:$AQ,37,FALSE) -> 0 | AM122: =VLOOKUP(AM$115&$U122,GTYF!$C:$AQ,37,FALSE) -> 13130.914 | AN122: =VLOOKUP(AN$115&$U122,GTYF!$C:$AQ,37,FALSE) -> 0 | AO122: =VLOOKUP(AO$115&$U122,GTYF!$C:$AQ,37,FALSE) -> 0 | AP122: =VLOOKUP(AP$115&$U122,GTYF!$C:$AQ,37,FALSE) -> 0 | AQ122: =VLOOKUP(AQ$115&$U122,GTYF!$C:$AQ,37,FALSE) -> 0 | AR122: =VLOOKUP(AR$115&$U122,GTYF!$C:$AQ,37,FALSE) -> 0 | AS122: =VLOOKUP(AS$115&$U122,GTYF!$C:$AQ,37,FALSE) -> 449064.562 | AT122: =VLOOKUP(AT$115&$U122,GTYF!$C:$AQ,37,FALSE) -> 0 | AU122: =VLOOKUP(AU$115&$U122,GTYF!$C:$AQ,37,FALSE) -> 0 | AV122: =VLOOKUP(AV$115&$U122,GTYF!$C:$AQ,37,FALSE) -> 0 | AW122: =VLOOKUP(AW$115&$U122,GTYF!$C:$AQ,37,FALSE) -> 0 | AX122: =VLOOKUP(AX$115&$U122,GTYF!$C:$AQ,37,FALSE) -> 0 | AY122: =VLOOKUP(AY$115&$U122,GTYF!$C:$AQ,37,FALSE) -> 0 | AZ122: 462195.476 | BA122: =VLOOKUP(BA$115&$U122,GTYF!$C:$AQ,37,FALSE) -> 6347.11
B123: Peupleraies | E123: - | F123: - | G123: - | H123: 67.60798513 | I123: 122.3364818 | J123: 81.79974668 | M123: 67.60798513 | N123: 122.3364818 | S123: Tableau 9. | T123: Peupleraies | U123: (FCTYF_PEU) | V123: =VLOOKUP(V$115&$U123,GTYF!$C:$AQ,37,FALSE) -> 133.398 | W123: =VLOOKUP(W$115&$U123,GTYF!$C:$AQ,6,FALSE) -> 23617.7 | X123: =VLOOKUP(X$115&$U123,GTYF!$C:$AQ,37,FALSE) -> 3752.308 | Y123: =VLOOKUP(Y$115&$U123,GTYF!$C:$AQ,37,FALSE) -> 45871.878 | Z123: =VLOOKUP(Z$115&$U123,GTYF!$C:$AQ,37,FALSE) -> 16319.442 | AA123: =VLOOKUP(AA$115&$U123,GTYF!$C:$AQ,37,FALSE) -> 0 | AB123: =VLOOKUP(AB$115&$U123,GTYF!$C:$AQ,37,FALSE) -> 0 | AC123: =VLOOKUP(AC$115&$U123,GTYF!$C:$AQ,37,FALSE) -> 0 | AD123: =VLOOKUP(AD$115&$U123,GTYF!$C:$AQ,37,FALSE) -> 133.398 | AE123: =VLOOKUP(AE$115&$U123,GTYF!$C:$AQ,37,FALSE) -> 0 | AF123: =VLOOKUP(AF$115&$U123,GTYF!$C:$AQ,37,FALSE) -> 1803.754 | AG123: =VLOOKUP(AG$115&$U123,GTYF!$C:$AQ,37,FALSE) -> 0 | AH123: =VLOOKUP(AH$115&$U123,GTYF!$C:$AQ,37,FALSE) -> 0 | AI123: =VLOOKUP(AI$115&$U123,GTYF!$C:$AQ,37,FALSE) -> 0 | AJ123: =VLOOKUP(AJ$115&$U123,GTYF!$C:$AQ,37,FALSE) -> 133.398 | AK123: =VLOOKUP(AK$115&$U123,GTYF!$C:$AQ,37,FALSE) -> 0 | AM123: =VLOOKUP(AM$115&$U123,GTYF!$C:$AQ,37,FALSE) -> 0 | AN123: =VLOOKUP(AN$115&$U123,GTYF!$C:$AQ,37,FALSE) -> 0 | AO123: =VLOOKUP(AO$115&$U123,GTYF!$C:$AQ,37,FALSE) -> 0 | AP123: =VLOOKUP(AP$115&$U123,GTYF!$C:$AQ,37,FALSE) -> 0 | AQ123: =VLOOKUP(AQ$115&$U123,GTYF!$C:$AQ,37,FALSE) -> 0 | AR123: =VLOOKUP(AR$115&$U123,GTYF!$C:$AQ,37,FALSE) -> 0 | AS123: =VLOOKUP(AS$115&$U123,GTYF!$C:$AQ,37,FALSE) -> 0 | AT123: =VLOOKUP(AT$115&$U123,GTYF!$C:$AQ,37,FALSE) -> 0 | AU123: =VLOOKUP(AU$115&$U123,GTYF!$C:$AQ,37,FALSE) -> 0 | AV123: =VLOOKUP(AV$115&$U123,GTYF!$C:$AQ,37,FALSE) -> 0 | AW123: =VLOOKUP(AW$115&$U123,GTYF!$C:$AQ,37,FALSE) -> 0 | AX123: =VLOOKUP(AX$115&$U123,GTYF!$C:$AQ,37,FALSE) -> 0 | AY123: =VLOOKUP(AY$115&$U123,GTYF!$C:$AQ,37,FALSE) -> 0 | AZ123: 0 | BA123: =VLOOKUP(BA$115&$U123,GTYF!$C:$AQ,37,FALSE) -> 0
B124: Peupleraies à résineux | E124: - | F124: - | G124: - | H124: - | I124: - | J124: - | M124: - | N124: - | S124: Tableau 9. | T124: Peupleraies à résineux | U124: (FCTYF_PEUR) | V124: =VLOOKUP(V$115&$U124,GTYF!$C:$AQ,37,FALSE) -> 0 | W124: =VLOOKUP(W$115&$U124,GTYF!$C:$AQ,6,FALSE) -> 0 | X124: =VLOOKUP(X$115&$U124,GTYF!$C:$AQ,37,FALSE) -> 0 | Y124: =VLOOKUP(Y$115&$U124,GTYF!$C:$AQ,37,FALSE) -> 0 | Z124: =VLOOKUP(Z$115&$U124,GTYF!$C:$AQ,37,FALSE) -> 0 | AA124: =VLOOKUP(AA$115&$U124,GTYF!$C:$AQ,37,FALSE) -> 0 | AB124: =VLOOKUP(AB$115&$U124,GTYF!$C:$AQ,37,FALSE) -> 0 | AC124: =VLOOKUP(AC$115&$U124,GTYF!$C:$AQ,37,FALSE) -> 0 | AD124: =VLOOKUP(AD$115&$U124,GTYF!$C:$AQ,37,FALSE) -> 0 | AE124: =VLOOKUP(AE$115&$U124,GTYF!$C:$AQ,37,FALSE) -> 0 | AF124: =VLOOKUP(AF$115&$U124,GTYF!$C:$AQ,37,FALSE) -> 0 | AG124: =VLOOKUP(AG$115&$U124,GTYF!$C:$AQ,37,FALSE) -> 0 | AH124: =VLOOKUP(AH$115&$U124,GTYF!$C:$AQ,37,FALSE) -> 0 | AI124: =VLOOKUP(AI$115&$U124,GTYF!$C:$AQ,37,FALSE) -> 0 | AJ124: =VLOOKUP(AJ$115&$U124,GTYF!$C:$AQ,37,FALSE) -> 0 | AK124: =VLOOKUP(AK$115&$U124,GTYF!$C:$AQ,37,FALSE) -> 0 | AM124: =VLOOKUP(AM$115&$U124,GTYF!$C:$AQ,37,FALSE) -> 0 | AN124: =VLOOKUP(AN$115&$U124,GTYF!$C:$AQ,37,FALSE) -> 0 | AO124: =VLOOKUP(AO$115&$U124,GTYF!$C:$AQ,37,FALSE) -> 0 | AP124: =VLOOKUP(AP$115&$U124,GTYF!$C:$AQ,37,FALSE) -> 0 | AQ124: =VLOOKUP(AQ$115&$U124,GTYF!$C:$AQ,37,FALSE) -> 0 | AR124: =VLOOKUP(AR$115&$U124,GTYF!$C:$AQ,37,FALSE) -> 0 | AS124: =VLOOKUP(AS$115&$U124,GTYF!$C:$AQ,37,FALSE) -> 0 | AT124: =VLOOKUP(AT$115&$U124,GTYF!$C:$AQ,37,FALSE) -> 0 | AU124: =VLOOKUP(AU$115&$U124,GTYF!$C:$AQ,37,FALSE) -> 0 | AV124: =VLOOKUP(AV$115&$U124,GTYF!$C:$AQ,37,FALSE) -> 0 | AW124: =VLOOKUP(AW$115&$U124,GTYF!$C:$AQ,37,FALSE) -> 0 | AX124: =VLOOKUP(AX$115&$U124,GTYF!$C:$AQ,37,FALSE) -> 0 | AY124: =VLOOKUP(AY$115&$U124,GTYF!$C:$AQ,37,FALSE) -> 0 | AZ124: 0 | BA124: =VLOOKUP(BA$115&$U124,GTYF!$C:$AQ,37,FALSE) -> 0
B125: Pinèdes blanches | E125: - | F125: - | G125: - | H125: - | I125: - | J125: - | M125: - | N125: - | S125: Tableau 9. | T125: Pinèdes blanches | U125: (FCTYF_PIN) | V125: =VLOOKUP(V$115&$U125,GTYF!$C:$AQ,37,FALSE) -> 0 | W125: =VLOOKUP(W$115&$U125,GTYF!$C:$AQ,6,FALSE) -> 0 | X125: =VLOOKUP(X$115&$U125,GTYF!$C:$AQ,37,FALSE) -> 0 | Y125: =VLOOKUP(Y$115&$U125,GTYF!$C:$AQ,37,FALSE) -> 0 | Z125: =VLOOKUP(Z$115&$U125,GTYF!$C:$AQ,37,FALSE) -> 0 | AA125: =VLOOKUP(AA$115&$U125,GTYF!$C:$AQ,37,FALSE) -> 0 | AB125: =VLOOKUP(AB$115&$U125,GTYF!$C:$AQ,37,FALSE) -> 0 | AC125: =VLOOKUP(AC$115&$U125,GTYF!$C:$AQ,37,FALSE) -> 0 | AD125: =VLOOKUP(AD$115&$U125,GTYF!$C:$AQ,37,FALSE) -> 0 | AE125: =VLOOKUP(AE$115&$U125,GTYF!$C:$AQ,37,FALSE) -> 0 | AF125: =VLOOKUP(AF$115&$U125,GTYF!$C:$AQ,37,FALSE) -> 0 | AG125: =VLOOKUP(AG$115&$U125,GTYF!$C:$AQ,37,FALSE) -> 0 | AH125: =VLOOKUP(AH$115&$U125,GTYF!$C:$AQ,37,FALSE) -> 0 | AI125: =VLOOKUP(AI$115&$U125,GTYF!$C:$AQ,37,FALSE) -> 0 | AJ125: =VLOOKUP(AJ$115&$U125,GTYF!$C:$AQ,37,FALSE) -> 0 | AK125: =VLOOKUP(AK$115&$U125,GTYF!$C:$AQ,37,FALSE) -> 0 | AM125: =VLOOKUP(AM$115&$U125,GTYF!$C:$AQ,37,FALSE) -> 0 | AN125: =VLOOKUP(AN$115&$U125,GTYF!$C:$AQ,37,FALSE) -> 0 | AO125: =VLOOKUP(AO$115&$U125,GTYF!$C:$AQ,37,FALSE) -> 0 | AP125: =VLOOKUP(AP$115&$U125,GTYF!$C:$AQ,37,FALSE) -> 0 | AQ125: =VLOOKUP(AQ$115&$U125,GTYF!$C:$AQ,37,FALSE) -> 0 | AR125: =VLOOKUP(AR$115&$U125,GTYF!$C:$AQ,37,FALSE) -> 0 | AS125: =VLOOKUP(AS$115&$U125,GTYF!$C:$AQ,37,FALSE) -> 0 | AT125: =VLOOKUP(AT$115&$U125,GTYF!$C:$AQ,37,FALSE) -> 0 | AU125: =VLOOKUP(AU$115&$U125,GTYF!$C:$AQ,37,FALSE) -> 0 | AV125: =VLOOKUP(AV$115&$U125,GTYF!$C:$AQ,37,FALSE) -> 0 | AW125: =VLOOKUP(AW$115&$U125,GTYF!$C:$AQ,37,FALSE) -> 0 | AX125: =VLOOKUP(AX$115&$U125,GTYF!$C:$AQ,37,FALSE) -> 0 | AY125: =VLOOKUP(AY$115&$U125,GTYF!$C:$AQ,37,FALSE) -> 0 | AZ125: 0 | BA125: =VLOOKUP(BA$115&$U125,GTYF!$C:$AQ,37,FALSE) -> 0
B126: Pinèdes grises | E126: - | F126: - | G126: - | H126: 157.377153 | I126: 68.64615266 | J126: 123.5072175 | M126: 157.377153 | N126: 68.64615266 | S126: Tableau 9. | T126: Pinèdes grises | U126: (FCTYF_PIG) | V126: =VLOOKUP(V$115&$U126,GTYF!$C:$AQ,37,FALSE) -> 1299.34 | W126: =VLOOKUP(W$115&$U126,GTYF!$C:$AQ,6,FALSE) -> 10774.2 | X126: =VLOOKUP(X$115&$U126,GTYF!$C:$AQ,37,FALSE) -> 89068.566 | Y126: =VLOOKUP(Y$115&$U126,GTYF!$C:$AQ,37,FALSE) -> 721160.818 | Z126: =VLOOKUP(Z$115&$U126,GTYF!$C:$AQ,37,FALSE) -> 89194.692 | AA126: =VLOOKUP(AA$115&$U126,GTYF!$C:$AQ,37,FALSE) -> 0 | AB126: =VLOOKUP(AB$115&$U126,GTYF!$C:$AQ,37,FALSE) -> 0 | AC126: =VLOOKUP(AC$115&$U126,GTYF!$C:$AQ,37,FALSE) -> 0 | AD126: =VLOOKUP(AD$115&$U126,GTYF!$C:$AQ,37,FALSE) -> 1299.34 | AE126: =VLOOKUP(AE$115&$U126,GTYF!$C:$AQ,37,FALSE) -> 0 | AF126: =VLOOKUP(AF$115&$U126,GTYF!$C:$AQ,37,FALSE) -> 40897.286 | AG126: =VLOOKUP(AG$115&$U126,GTYF!$C:$AQ,37,FALSE) -> 0 | AH126: =VLOOKUP(AH$115&$U126,GTYF!$C:$AQ,37,FALSE) -> 0 | AI126: =VLOOKUP(AI$115&$U126,GTYF!$C:$AQ,37,FALSE) -> 0 | AJ126: =VLOOKUP(AJ$115&$U126,GTYF!$C:$AQ,37,FALSE) -> 1299.34 | AK126: =VLOOKUP(AK$115&$U126,GTYF!$C:$AQ,37,FALSE) -> 0 | AM126: =VLOOKUP(AM$115&$U126,GTYF!$C:$AQ,37,FALSE) -> 0 | AN126: =VLOOKUP(AN$115&$U126,GTYF!$C:$AQ,37,FALSE) -> 0 | AO126: =VLOOKUP(AO$115&$U126,GTYF!$C:$AQ,37,FALSE) -> 0 | AP126: =VLOOKUP(AP$115&$U126,GTYF!$C:$AQ,37,FALSE) -> 0 | AQ126: =VLOOKUP(AQ$115&$U126,GTYF!$C:$AQ,37,FALSE) -> 0 | AR126: =VLOOKUP(AR$115&$U126,GTYF!$C:$AQ,37,FALSE) -> 0 | AS126: =VLOOKUP(AS$115&$U126,GTYF!$C:$AQ,37,FALSE) -> 0 | AT126: =VLOOKUP(AT$115&$U126,GTYF!$C:$AQ,37,FALSE) -> 0 | AU126: =VLOOKUP(AU$115&$U126,GTYF!$C:$AQ,37,FALSE) -> 0 | AV126: =VLOOKUP(AV$115&$U126,GTYF!$C:$AQ,37,FALSE) -> 0 | AW126: =VLOOKUP(AW$115&$U126,GTYF!$C:$AQ,37,FALSE) -> 0 | AX126: =VLOOKUP(AX$115&$U126,GTYF!$C:$AQ,37,FALSE) -> 0 | AY126: =VLOOKUP(AY$115&$U126,GTYF!$C:$AQ,37,FALSE) -> 0 | AZ126: 0 | BA126: =VLOOKUP(BA$115&$U126,GTYF!$C:$AQ,37,FALSE) -> 0
B127: Prucheraies | E127: - | F127: - | G127: - | H127: - | I127: - | J127: - | M127: - | N127: - | S127: Tableau 9. | T127: Prucheraies | U127: (FCTYF_PRU) | V127: =VLOOKUP(V$115&$U127,GTYF!$C:$AQ,37,FALSE) -> 0 | W127: =VLOOKUP(W$115&$U127,GTYF!$C:$AQ,6,FALSE) -> 0 | X127: =VLOOKUP(X$115&$U127,GTYF!$C:$AQ,37,FALSE) -> 0 | Y127: =VLOOKUP(Y$115&$U127,GTYF!$C:$AQ,37,FALSE) -> 0 | Z127: =VLOOKUP(Z$115&$U127,GTYF!$C:$AQ,37,FALSE) -> 0 | AA127: =VLOOKUP(AA$115&$U127,GTYF!$C:$AQ,37,FALSE) -> 0 | AB127: =VLOOKUP(AB$115&$U127,GTYF!$C:$AQ,37,FALSE) -> 0 | AC127: =VLOOKUP(AC$115&$U127,GTYF!$C:$AQ,37,FALSE) -> 0 | AD127: =VLOOKUP(AD$115&$U127,GTYF!$C:$AQ,37,FALSE) -> 0 | AE127: =VLOOKUP(AE$115&$U127,GTYF!$C:$AQ,37,FALSE) -> 0 | AF127: =VLOOKUP(AF$115&$U127,GTYF!$C:$AQ,37,FALSE) -> 0 | AG127: =VLOOKUP(AG$115&$U127,GTYF!$C:$AQ,37,FALSE) -> 0 | AH127: =VLOOKUP(AH$115&$U127,GTYF!$C:$AQ,37,FALSE) -> 0 | AI127: =VLOOKUP(AI$115&$U127,GTYF!$C:$AQ,37,FALSE) -> 0 | AJ127: =VLOOKUP(AJ$115&$U127,GTYF!$C:$AQ,37,FALSE) -> 0 | AK127: =VLOOKUP(AK$115&$U127,GTYF!$C:$AQ,37,FALSE) -> 0 | AM127: =VLOOKUP(AM$115&$U127,GTYF!$C:$AQ,37,FALSE) -> 0 | AN127: =VLOOKUP(AN$115&$U127,GTYF!$C:$AQ,37,FALSE) -> 0 | AO127: =VLOOKUP(AO$115&$U127,GTYF!$C:$AQ,37,FALSE) -> 0 | AP127: =VLOOKUP(AP$115&$U127,GTYF!$C:$AQ,37,FALSE) -> 0 | AQ127: =VLOOKUP(AQ$115&$U127,GTYF!$C:$AQ,37,FALSE) -> 0 | AR127: =VLOOKUP(AR$115&$U127,GTYF!$C:$AQ,37,FALSE) -> 0 | AS127: =VLOOKUP(AS$115&$U127,GTYF!$C:$AQ,37,FALSE) -> 0 | AT127: =VLOOKUP(AT$115&$U127,GTYF!$C:$AQ,37,FALSE) -> 0 | AU127: =VLOOKUP(AU$115&$U127,GTYF!$C:$AQ,37,FALSE) -> 0 | AV127: =VLOOKUP(AV$115&$U127,GTYF!$C:$AQ,37,FALSE) -> 0 | AW127: =VLOOKUP(AW$115&$U127,GTYF!$C:$AQ,37,FALSE) -> 0 | AX127: =VLOOKUP(AX$115&$U127,GTYF!$C:$AQ,37,FALSE) -> 0 | AY127: =VLOOKUP(AY$115&$U127,GTYF!$C:$AQ,37,FALSE) -> 0 | AZ127: 0 | BA127: =VLOOKUP(BA$115&$U127,GTYF!$C:$AQ,37,FALSE) -> 0
B128: Résineux à feuillus | E128: 44 | F128: 59.86729559 | G128: 25.2 | H128: 116.6718306 | I128: 105.9447969 | J128: 114.2947714 | M128: 116.6718306 | N128: 105.9447969 | S128: Tableau 9. | T128: Résineux à feuillus | U128: (FCTYF_RF) | V128: =VLOOKUP(V$115&$U128,GTYF!$C:$AQ,37,FALSE) -> 2386.68 | W128: =VLOOKUP(W$115&$U128,GTYF!$C:$AQ,6,FALSE) -> 60537.7 | X128: =VLOOKUP(X$115&$U128,GTYF!$C:$AQ,37,FALSE) -> 109671.536 | Y128: =VLOOKUP(Y$115&$U128,GTYF!$C:$AQ,37,FALSE) -> 959549.896 | Z128: =VLOOKUP(Z$115&$U128,GTYF!$C:$AQ,37,FALSE) -> 124308.474 | AA128: =VLOOKUP(AA$115&$U128,GTYF!$C:$AQ,37,FALSE) -> 40299.652 | AB128: =VLOOKUP(AB$115&$U128,GTYF!$C:$AQ,37,FALSE) -> 0 | AC128: =VLOOKUP(AC$115&$U128,GTYF!$C:$AQ,37,FALSE) -> 0 | AD128: =VLOOKUP(AD$115&$U128,GTYF!$C:$AQ,37,FALSE) -> 1553.716 | AE128: =VLOOKUP(AE$115&$U128,GTYF!$C:$AQ,37,FALSE) -> 0 | AF128: =VLOOKUP(AF$115&$U128,GTYF!$C:$AQ,37,FALSE) -> 31073.456 | AG128: =VLOOKUP(AG$115&$U128,GTYF!$C:$AQ,37,FALSE) -> 5181.522 | AH128: =VLOOKUP(AH$115&$U128,GTYF!$C:$AQ,37,FALSE) -> 0 | AI128: =VLOOKUP(AI$115&$U128,GTYF!$C:$AQ,37,FALSE) -> 0 | AJ128: =VLOOKUP(AJ$115&$U128,GTYF!$C:$AQ,37,FALSE) -> 1553.716 | AK128: =VLOOKUP(AK$115&$U128,GTYF!$C:$AQ,37,FALSE) -> 0 | AM128: =VLOOKUP(AM$115&$U128,GTYF!$C:$AQ,37,FALSE) -> 0 | AN128: =VLOOKUP(AN$115&$U128,GTYF!$C:$AQ,37,FALSE) -> 0 | AO128: =VLOOKUP(AO$115&$U128,GTYF!$C:$AQ,37,FALSE) -> 0 | AP128: =VLOOKUP(AP$115&$U128,GTYF!$C:$AQ,37,FALSE) -> 0 | AQ128: =VLOOKUP(AQ$115&$U128,GTYF!$C:$AQ,37,FALSE) -> 0 | AR128: =VLOOKUP(AR$115&$U128,GTYF!$C:$AQ,37,FALSE) -> 0 | AS128: =VLOOKUP(AS$115&$U128,GTYF!$C:$AQ,37,FALSE) -> 49867.302 | AT128: =VLOOKUP(AT$115&$U128,GTYF!$C:$AQ,37,FALSE) -> 0 | AU128: =VLOOKUP(AU$115&$U128,GTYF!$C:$AQ,37,FALSE) -> 0 | AV128: =VLOOKUP(AV$115&$U128,GTYF!$C:$AQ,37,FALSE) -> 0 | AW128: =VLOOKUP(AW$115&$U128,GTYF!$C:$AQ,37,FALSE) -> 0 | AX128: =VLOOKUP(AX$115&$U128,GTYF!$C:$AQ,37,FALSE) -> 0 | AY128: =VLOOKUP(AY$115&$U128,GTYF!$C:$AQ,37,FALSE) -> 0 | AZ128: 49867.302 | BA128: =VLOOKUP(BA$115&$U128,GTYF!$C:$AQ,37,FALSE) -> 832.964
B129: Sapinières | E129: - | F129: - | G129: - | H129: 128.4287524 | I129: 118.2843531 | J129: 109.1007941 | M129: =IFERROR(($AF129+$AG129+$AH129+$AI129)/$AJ129*5,"-") -> 128.4287524 | N129: 118.2843531 | S129: Tableau 9. | T129: Sapinières | U129: (FCTYF_SAB) | V129: =VLOOKUP(V$115&$U129,GTYF!$C:$AQ,37,FALSE) -> 2585.926 | W129: =VLOOKUP(W$115&$U129,GTYF!$C:$AQ,6,FALSE) -> 296314.1 | X129: =VLOOKUP(X$115&$U129,GTYF!$C:$AQ,37,FALSE) -> 295197 | Y129: =VLOOKUP(Y$115&$U129,GTYF!$C:$AQ,37,FALSE) -> 2705727.326 | Z129: =VLOOKUP(Z$115&$U129,GTYF!$C:$AQ,37,FALSE) -> 305874.584 | AA129: =VLOOKUP(AA$115&$U129,GTYF!$C:$AQ,37,FALSE) -> 0 | AB129: =VLOOKUP(AB$115&$U129,GTYF!$C:$AQ,37,FALSE) -> 0 | AC129: =VLOOKUP(AC$115&$U129,GTYF!$C:$AQ,37,FALSE) -> 0 | AD129: =VLOOKUP(AD$115&$U129,GTYF!$C:$AQ,37,FALSE) -> 2585.926 | AE129: =VLOOKUP(AE$115&$U129,GTYF!$C:$AQ,37,FALSE) -> 0 | AF129: =VLOOKUP(AF$115&$U129,GTYF!$C:$AQ,37,FALSE) -> 66421.45 | AG129: =VLOOKUP(AG$115&$U129,GTYF!$C:$AQ,37,FALSE) -> 0 | AH129: =VLOOKUP(AH$115&$U129,GTYF!$C:$AQ,37,FALSE) -> 0 | AI129: =VLOOKUP(AI$115&$U129,GTYF!$C:$AQ,37,FALSE) -> 0 | AJ129: =VLOOKUP(AJ$115&$U129,GTYF!$C:$AQ,37,FALSE) -> 2585.926 | AK129: =VLOOKUP(AK$115&$U129,GTYF!$C:$AQ,37,FALSE) -> 0 | AM129: =VLOOKUP(AM$115&$U129,GTYF!$C:$AQ,37,FALSE) -> 0 | AN129: =VLOOKUP(AN$115&$U129,GTYF!$C:$AQ,37,FALSE) -> 0 | AO129: =VLOOKUP(AO$115&$U129,GTYF!$C:$AQ,37,FALSE) -> 0 | AP129: =VLOOKUP(AP$115&$U129,GTYF!$C:$AQ,37,FALSE) -> 0 | AQ129: =VLOOKUP(AQ$115&$U129,GTYF!$C:$AQ,37,FALSE) -> 0 | AR129: =VLOOKUP(AR$115&$U129,GTYF!$C:$AQ,37,FALSE) -> 0 | AS129: =VLOOKUP(AS$115&$U129,GTYF!$C:$AQ,37,FALSE) -> 0 | AT129: =VLOOKUP(AT$115&$U129,GTYF!$C:$AQ,37,FALSE) -> 0 | AU129: =VLOOKUP(AU$115&$U129,GTYF!$C:$AQ,37,FALSE) -> 0 | AV129: =VLOOKUP(AV$115&$U129,GTYF!$C:$AQ,37,FALSE) -> 0 | AW129: =VLOOKUP(AW$115&$U129,GTYF!$C:$AQ,37,FALSE) -> 0 | AX129: =VLOOKUP(AX$115&$U129,GTYF!$C:$AQ,37,FALSE) -> 0 | AY129: =VLOOKUP(AY$115&$U129,GTYF!$C:$AQ,37,FALSE) -> 0 | AZ129: 0 | BA129: =VLOOKUP(BA$115&$U129,GTYF!$C:$AQ,37,FALSE) -> 0
S130: Tableau 9. | T130: Tous les GTYF | V130: =SUM(V116:V129) -> 54589.41 | W130: =SUM(W116:W129) -> 1287806.1 | X130: 4628353.848 | Y130: 45729463.75 | Z130: 4913696.782 | AA130: 257440.436 | AB130: 0 | AC130: 0 | AD130: 47409.334 | AE130: 0 | AF130: 1321767.038 | AG130: 43158.574 | AH130: 0 | AI130: 0 | AJ130: 47409.334 | AK130: 0
L131: Les statistiques portants sur les coupes partielles proviennent d'un Script R et sont disponibles ici:
L132: T:\Donnees\02_Courant\01_CPF\01_UA\0XXXX\70_Determination\72_Rapport\01_Cahier_DET\Tableau_9
B134: Tableau 10. Traitements non commerciaux supportant les possibilités forestières
B135: Traitements non commerciaux | F135: Superficie annuelle moyenne (ha/an) | G135: Superficie antérieure (ha/an) | H135: Écart (ha/an) | X135: Exemple U03772
K138: Le texte en rouge demande à l'analyste de valider la nature exacte du traitement et les superficies - variable selon la vague et l'UA - veuillez ensuite mettre en noir et supprimer la remarque si elle ne s'applique pas (si DEG_1 ne contient pas de regarni)
B139: Ligniculture (essences à croissance rapide) | F139: =ROUND(V139,-1) -> 0 | G139: =IFERROR(ROUND(VLOOKUP(O33,DataLocal!$A:$BH,47,FALSE),-1),0) -> 0 | H139: =F139-G139 -> 0 | S139: =LEFT(B$134,11) -> Tableau 10. | T139: Plantation ligniculture (pins, feuillus) | U139: OSUPPL_PPF | V139: =IFERROR(VLOOKUP(U139,Output!C:AQ,37,FALSE),0)/5 -> 0
B140: Plantation intensive (2 000 plants/ha) | F140: =ROUND(V140,-1) -> 280 | G140: =IFERROR(ROUND(VLOOKUP(O33,DataLocal!$A:$BH,48,FALSE),-1),0) -> 780 | H140: =F140-G140 -> -500 | S140: =LEFT(B$134,11) -> Tableau 10. | T140: Plantation intensive | U140: OSUPPL_SEPM_I | V140: =IFERROR(VLOOKUP(U140,Output!C:AQ,37,FALSE),0)/5 -> 282.6884
B141: Plantation de base (1 600 plants/ha) | F141: =ROUND(V141,-1) -> 2710 | G141: =IFERROR(ROUND(VLOOKUP(O33,DataLocal!$A:$BH,49,FALSE),-1),0) -> 840 | H141: 1870 | S141: Tableau 10. | T141: Plantation de base | U141: OSUPPL_SEPM_E | V141: =IFERROR(VLOOKUP(U141,Output!C:AQ,37,FALSE),0)/5 -> 2707.3116
B142: Regarni | F142: =ROUND(V142,-1) -> 90 | G142: =IFERROR(ROUND(VLOOKUP(O33,DataLocal!$A:$BH,50,FALSE),-1),0) -> 0 | H142: 90 | S142: Tableau 10. | T142: Regarni | U142: OSUPREG | V142: =IFERROR(VLOOKUP(U142,Output!C:AQ,37,FALSE),0)/5 -> 94
B143: % des plantations dans les coupes totales | F143: =IFERROR(SUM(F139:F141)/G92,0) -> 0.3154008439 | G143: =IFERROR(SUM(G139:G141)/H92,0) -> 0.1408695652 | H143: 0.1745312787 | S143: Tableau 10.
B144: Total des travaux de reboisement | F144: =ROUND(SUM(F139:F142),-1) -> 3080 | G144: =ROUND(SUM(G139:G142),-1) -> 1620 | H144: 1460 | S144: Tableau 10.
B145: Nettoiement (régénération naturelle et plantation) | F145: =ROUND(V145,-1) -> 230 | G145: =IFERROR(ROUND(VLOOKUP(O33,DataLocal!$A:$BH,51,FALSE),-1),0) -> 1320 | H145: -1090 | I145: proer1 OK | S145: Tableau 10. | T145: Nettoiement | U145: OSUPREALNET | V145: =IFERROR(VLOOKUP(U145,Output!C:AQ,37,FALSE),0)/5 -> 228.04
B146: Éclaircie précommerciale | F146: =ROUND(V146,-1) -> 0 | G146: =IFERROR(ROUND(VLOOKUP(O33,DataLocal!$A:$BH,52,FALSE),-1),0) -> 0 | H146: 0 | S146: Tableau 10. | T146: Éclaircie précommerciale de la régénération naturelle | U146: OSUPREALEPC | V146: =IFERROR(VLOOKUP(U146,Output!C:AQ,37,FALSE),0)/5 -> 0 | X146: Exemple U09751
B147: Dégagement de la régénération naturelle (et regarni) | F147: =ROUND(V147,-1) -> 90 | G147: =IFERROR(ROUND(VLOOKUP(O33,DataLocal!$A:$BH,53,FALSE),-1),0) -> 0 | H147: 90 | I147: proer1 OK | S147: Tableau 10. | T147: Dégagement de la régénération naturelle | U147: OSUPDEG_2 | V147: =IFERROR(VLOOKUP(U147,Output!C:AQ,37,FALSE),0)/5 -> 94
B148: Dégagement des plantations | F148: =ROUND(V148,-1) -> 1160 | G148: =IFERROR(ROUND(VLOOKUP(O33,DataLocal!$A:$BH,54,FALSE),-1),0) -> 860 | H148: 300 | I148: proer1 OK DEG PL uniquement | S148: Tableau 10. | T148: Dégagement de plantation | U148: OSUPDEG_1 | V148: =IFERROR(VLOOKUP(U148,Output!C:AQ,37,FALSE),0)/5 -> 1164
B149: Élagage | F149: =ROUND(V149,-1) -> 0 | G149: =IFERROR(ROUND(VLOOKUP(O33,DataLocal!$A:$BN,66,FALSE),-1),0) -> 0 | H149: 0 | S149: Tableau 10. | T149: Élagage (plantation) | U149: OSUPELAG | V149: =IFERROR(VLOOKUP(U149,Output!C:AQ,37,FALSE),0)/5 -> 0
B150: Total des travaux d'éducation | F150: =SUM(F145:F149) -> 1480 | G150: =SUM(G145:G149) -> 2180 | H150: -700 | S150: Tableau 10. | U150: OSUPSCA_LIGN | V150: =IFERROR(VLOOKUP(U150,Output!C:AQ,37,FALSE),0)/5 -> 0
B151: Scarifiage partiel | F151: =ROUND(V152,-1) -> 90 | G151: =IFERROR(ROUND(VLOOKUP(O33,DataLocal!$A:$BH,58,FALSE),-1),0) -> 210 | H151: -120 | S151: Tableau 10. | U151: OSUPSCA_LRD | V151: =IFERROR(VLOOKUP(U151,Output!C:AQ,37,FALSE),0)/5 -> 0
B152: Scarifiage en plein | F152: =ROUND(V153+V150+V151,-1) -> 2990 | G152: =IFERROR(ROUND(VLOOKUP(O33,DataLocal!$A:$BH,59,FALSE),-1),0) -> 1780 | H152: 1210 | S152: Tableau 10. | U152: OSUPSCA_PART | V152: =IFERROR(VLOOKUP(U152,Output!C:AQ,37,FALSE),0)/5 -> 94
B153: Total de la préparation de terrain | F153: =IFERROR(SUM(F151:F152),0) -> 3080 | G153: =IFERROR(SUM(G151:G152),0) -> 1990 | H153: 1090 | S153: Tableau 10. | U153: OSUPSCA_REG | V153: =IFERROR(VLOOKUP(U153,Output!C:AQ,37,FALSE),0)/5 -> 2990
B154: Total des travaux sans récolte | F154: =F153+F150+F144 -> 7640 | G154: =G153+G150+G144 -> 5790 | H154: 1850
B160: Tableau 13 : Variation du volume sur pied à court, moyen et long terme | L160: % du volume total | U160: colonne | V160: 37 | W160: 38 | X160: 39 | Y160: 40 | AF160: 37 | AG160: 38 | AH160: 39 | AI160: 40
B161: Essences | C161: Volume moyen sur pied (m3) | G161: Volume moyen sur pied (%) | V161: Volume moyen sur pied (m3) | Z161: Volume moyen sur pied (%) | AF161: Volume dans courbe SNAT
C162: 2023 à 2048 | D162: 2048 à 2073 | E162: 2073 à 2118 | F162: 2118 à 2168 | G162: =C162 -> 2023 à 2048 | H162: =D162 -> 2048 à 2073 | I162: 2073 à 2118 | J162: 2118 à 2168 | L162: 2023 à 2048 | T162: Légende | U162: Name | V162: p 2 à 6 | W162: p 7 à 11 | X162: p 12 à 20 | Y162: p 21 à 30 | Z162: p 2 à 6 | AA162: p 7 à 11 | AB162: p 12 à 20 | AC162: p 21 à 30 | AE162: Name | AF162: p 2 à 6 | AG162: p 7 à 11 | AH162: p 12 à 20 | AI162: p 21 à 30
B163: =T163 -> Sapin baumier | C163: =ROUND(V163-AF163,-2) -> 15334200 | D163: =ROUND(W163-AG163,-2) -> 21057800 | E163: 23043900 | F163: 21629500 | G163: =C163/C$177 -> 0.1935877269 | H163: =D163/D$177 -> 0.2554333784 | I163: =E163/E$177 -> 0.2606145119 | J163: =F163/F$177 -> 0.2607056935 | L163: =C163/C$177 -> 0.1935877269 | S163: =LEFT(B$160,11) -> Tableau 13 | T163: Sapin baumier | U163: OVOLSABPIEDINC | V163: =VLOOKUP($U163,Output!$C:$AQ,V$160,FALSE) -> 15390468.84 | W163: =VLOOKUP($U163,Output!$C:$AQ,W$160,FALSE) -> 21139466.19 | X163: =VLOOKUP($U163,Output!$C:$AQ,X$160,FALSE) -> 23144604.4 | Y163: =VLOOKUP($U163,Output!$C:$AQ,Y$160,FALSE) -> 21732416.34 | Z163: =V163/V$178 -> 0.1889117237 | AA163: =W163/W$178 -> 0.2495938663 | AB163: =X163/X$178 -> 0.2538227666 | AC163: =Y163/Y$178 -> 0.2526412051 | AE163: OVOLSABPIEDSNAT | AF163: =VLOOKUP($AE163,Output!$C:$AQ,AF$160,FALSE) -> 56241.044 | AG163: =VLOOKUP($AE163,Output!$C:$AQ,AG$160,FALSE) -> 81710.042 | AH163: =VLOOKUP($AE163,Output!$C:$AQ,AH$160,FALSE) -> 100656.6456 | AI163: =VLOOKUP($AE163,Output!$C:$AQ,AI$160,FALSE) -> 102923.965
B164: =T164 -> Épinettes | C164: =ROUND(V164-AF164,-2) -> 52301700 | D164: 50200500 | E164: 52864800 | F164: 49470900 | G164: 0.6602866283 | H164: 0.6089374632 | I164: 0.5978733655 | J164: 0.5962849484 | L164: 0.6602866283 | S164: Tableau 13 | T164: Épinettes | U164: OVOLgEpxPIEDINC | V164: =VLOOKUP($U164,Output!$C:$AQ,V$160,FALSE) -> 54301967.37 | W164: =VLOOKUP($U164,Output!$C:$AQ,W$160,FALSE) -> 52216503.07 | X164: =VLOOKUP($U164,Output!$C:$AQ,X$160,FALSE) -> 55326642.57 | Y164: =VLOOKUP($U164,Output!$C:$AQ,Y$160,FALSE) -> 52219839.52 | Z164: 0.6665344874 | AA164: 0.6165207188 | AB164: 0.6067574645 | AC164: 0.607060116 | AE164: OVOLgEpxPIEDSNAT | AF164: =VLOOKUP($AE164,Output!$C:$AQ,AF$160,FALSE) -> 2000231.508 | AG164: =VLOOKUP($AE164,Output!$C:$AQ,AG$160,FALSE) -> 2016032.68 | AH164: =VLOOKUP($AE164,Output!$C:$AQ,AH$160,FALSE) -> 2461798.342 | AI164: =VLOOKUP($AE164,Output!$C:$AQ,AI$160,FALSE) -> 2748909.077
B165: =T165 -> Pin gris | C165: 1640300 | D165: =ROUND(W165-AG165,-2) -> 2400900 | E165: 3350400 | F165: 2758400 | G165: 0.02070808705 | H165: 0.02912317518 | I165: 0.03789127971 | J165: 0.03324767493 | L165: 0.02070808705 | S165: Tableau 13 | T165: Pin gris | U165: OVOLgPgPIEDINC | V165: =VLOOKUP($U165,Output!$C:$AQ,V$160,FALSE) -> 1777485.482 | W165: =VLOOKUP($U165,Output!$C:$AQ,W$160,FALSE) -> 2507887.708 | X165: =VLOOKUP($U165,Output!$C:$AQ,X$160,FALSE) -> 3485444.463 | Y165: =VLOOKUP($U165,Output!$C:$AQ,Y$160,FALSE) -> 2894696.606 | Z165: 0.02181790885 | AA165: 0.0296106526 | AB165: 0.03822425051 | AC165: 0.03365109647 | AE165: OVOLgPgPIEDSNAT | AF165: =VLOOKUP($AE165,Output!$C:$AQ,AF$160,FALSE) -> 137215.066 | AG165: =VLOOKUP($AE165,Output!$C:$AQ,AG$160,FALSE) -> 107013.088 | AH165: =VLOOKUP($AE165,Output!$C:$AQ,AH$160,FALSE) -> 135040.3267 | AI165: =VLOOKUP($AE165,Output!$C:$AQ,AI$160,FALSE) -> 136320.165
B166: =T166 -> Mélèzes | C166: 260900 | D166: 232700 | E166: 173300 | F166: 129600 | G166: 0.003293751089 | H166: 0.002822676023 | I166: 0.001959932776 | J166: 0.001562100736 | L166: 0.003293751089 | S166: Tableau 13 | T166: Mélèzes | U166: OVOLgMlPIEDINC | V166: =VLOOKUP($U166,Output!$C:$AQ,V$160,FALSE) -> 320806.462 | W166: =VLOOKUP($U166,Output!$C:$AQ,W$160,FALSE) -> 279598.754 | X166: =VLOOKUP($U166,Output!$C:$AQ,X$160,FALSE) -> 233067.8189 | Y166: =VLOOKUP($U166,Output!$C:$AQ,Y$160,FALSE) -> 191087.652 | Z166: 0.003937768391 | AA166: 0.003301224989 | AB166: 0.002556013383 | AC166: 0.002221410354 | AE166: OVOLGMlPIEDSNAT | AF166: =VLOOKUP($AE166,Output!$C:$AQ,AF$160,FALSE) -> 59943.134 | AG166: =VLOOKUP($AE166,Output!$C:$AQ,AG$160,FALSE) -> 46918.016 | AH166: =VLOOKUP($AE166,Output!$C:$AQ,AH$160,FALSE) -> 59755.04556 | AI166: =VLOOKUP($AE166,Output!$C:$AQ,AI$160,FALSE) -> 61476.973
B167: Thuya | C167: =ROUND(V167-AF167,-2) -> 14200 | D167: 18400 | E167: 15400 | F167: 11300 | G167: 0.0001792689362 | H167: 0.0002231939786 | I167: 0.0001741659824 | J167: 0.0001362016846 | L167: 0.0001792689362 | S167: Tableau 13 | T167: Thuya | U167: OVOLTHOPIEDINC | V167: =VLOOKUP($U167,Output!$C:$AQ,V$160,FALSE) -> 14202.29 | W167: =VLOOKUP($U167,Output!$C:$AQ,W$160,FALSE) -> 18445.162 | X167: =VLOOKUP($U167,Output!$C:$AQ,X$160,FALSE) -> 15391.41111 | Y167: =VLOOKUP($U167,Output!$C:$AQ,Y$160,FALSE) -> 11337.076 | Z167: 0.0001743273134 | AA167: 0.0002177821927 | AB167: 0.0001687948726 | AC167: 0.0001317944815 | AE167: OVOLTHOPIEDSNAT | AF167: =VLOOKUP($AE167,Output!$C:$AQ,AF$160,FALSE) -> 0 | AG167: =VLOOKUP($AE167,Output!$C:$AQ,AG$160,FALSE) -> 0 | AH167: =VLOOKUP($AE167,Output!$C:$AQ,AH$160,FALSE) -> 0 | AI167: =VLOOKUP($AE167,Output!$C:$AQ,AI$160,FALSE) -> 0
B168: Pruche | C168: 0 | D168: 0 | E168: 0 | F168: 0 | G168: 0 | H168: 0 | I168: 0 | J168: 0 | L168: 0 | S168: Tableau 13 | T168: Pruche | U168: OVOLPRUPIEDINC | V168: =VLOOKUP($U168,Output!$C:$AQ,V$160,FALSE) -> 0 | W168: =VLOOKUP($U168,Output!$C:$AQ,W$160,FALSE) -> 0 | X168: =VLOOKUP($U168,Output!$C:$AQ,X$160,FALSE) -> 0 | Y168: =VLOOKUP($U168,Output!$C:$AQ,Y$160,FALSE) -> 0 | Z168: 0 | AA168: 0 | AB168: 0 | AC168: 0 | AE168: OVOLPRUPIEDSNAT | AF168: =VLOOKUP($AE168,Output!$C:$AQ,AF$160,FALSE) -> 0 | AG168: =VLOOKUP($AE168,Output!$C:$AQ,AG$160,FALSE) -> 0 | AH168: =VLOOKUP($AE168,Output!$C:$AQ,AH$160,FALSE) -> 0 | AI168: =VLOOKUP($AE168,Output!$C:$AQ,AI$160,FALSE) -> 0
B169: Pins blanc et rouge | C169: 61300 | D169: 66100 | E169: 39200 | F169: 14300 | G169: 0.0007738863233 | H169: 0.000801800108 | I169: 0.0004433315917 | J169: 0.0001723614238 | L169: 0.0007738863233 | S169: Tableau 13 | T169: Pins blanc et rouge | U169: OVOLGPINSPIEDINC | V169: =VLOOKUP($U169,Output!$C:$AQ,V$160,FALSE) -> 61303.94 | W169: =VLOOKUP($U169,Output!$C:$AQ,W$160,FALSE) -> 66119.108 | X169: =VLOOKUP($U169,Output!$C:$AQ,X$160,FALSE) -> 39235.23 | Y169: =VLOOKUP($U169,Output!$C:$AQ,Y$160,FALSE) -> 14345.111 | Z169: 0.0007524808437 | AA169: 0.0007806688996 | AB169: 0.0004302858003 | AC169: 0.0001667631465 | AE169: OVOLGPINSCPIEDSNAT | AF169: =VLOOKUP($AE169,Output!$C:$AQ,AF$160,FALSE) -> 0 | AG169: =VLOOKUP($AE169,Output!$C:$AQ,AG$160,FALSE) -> 0 | AH169: =VLOOKUP($AE169,Output!$C:$AQ,AH$160,FALSE) -> 0 | AI169: =VLOOKUP($AE169,Output!$C:$AQ,AI$160,FALSE) -> 0
B170: Peupliers | C170: 3199300 | D170: 2432900 | E170: 2805200 | F170: 2871400 | G170: 0.04038979632 | H170: 0.02951133862 | I170: 0.03172535156 | J170: 0.03460969177 | L170: 0.04038979632 | S170: Tableau 13 | T170: Peupliers | U170: OVOLGPEUPIEDINC | V170: =VLOOKUP($U170,Output!$C:$AQ,V$160,FALSE) -> 3199288.608 | W170: =VLOOKUP($U170,Output!$C:$AQ,W$160,FALSE) -> 2432857.418 | X170: =VLOOKUP($U170,Output!$C:$AQ,X$160,FALSE) -> 2805338.847 | Y170: =VLOOKUP($U170,Output!$C:$AQ,Y$160,FALSE) -> 2871484.891 | Z170: 0.03926996195 | AA170: 0.02872476929 | AB170: 0.03076565298 | AC170: 0.03338125829 | AE170: OVOLPEUPIEDSNAT | AF170: =VLOOKUP($AE170,Output!$C:$AQ,AF$160,FALSE) -> 0 | AG170: =VLOOKUP($AE170,Output!$C:$AQ,AG$160,FALSE) -> 7.224 | AH170: =VLOOKUP($AE170,Output!$C:$AQ,AH$160,FALSE) -> 92.96444444 | AI170: =VLOOKUP($AE170,Output!$C:$AQ,AI$160,FALSE) -> 117.69
B171: Bouleau à papier | C171: 6238800 | D171: 5867000 | E171: 6008000 | F171: 5970700 | G171: 0.07876218587 | H171: 0.0711673409 | I171: 0.06794735211 | J171: 0.07196631841 | L171: 0.07876218587 | S171: Tableau 13 | T171: Bouleau à papier | U171: OVOLgBpPIEDINC | V171: =VLOOKUP($U171,Output!$C:$AQ,V$160,FALSE) -> 6243678.202 | W171: =VLOOKUP($U171,Output!$C:$AQ,W$160,FALSE) -> 5871273.592 | X171: =VLOOKUP($U171,Output!$C:$AQ,X$160,FALSE) -> 6013359.492 | Y171: =VLOOKUP($U171,Output!$C:$AQ,Y$160,FALSE) -> 5976719.266 | Z171: 0.07663860172 | AA171: 0.06932217982 | AB171: 0.06594744574 | AC171: 0.06947987439 | AE171: OVOLgBpPIEDSNAT | AF171: =VLOOKUP($AE171,Output!$C:$AQ,AF$160,FALSE) -> 4834.076 | AG171: =VLOOKUP($AE171,Output!$C:$AQ,AG$160,FALSE) -> 4234.16 | AH171: =VLOOKUP($AE171,Output!$C:$AQ,AH$160,FALSE) -> 5356.74 | AI171: =VLOOKUP($AE171,Output!$C:$AQ,AI$160,FALSE) -> 5971.063
B172: Bouleau jaune | C172: 8900 | D172: 9400 | E172: 11100 | F172: 16300 | G172: 0.0001123586995 | H172: 0.0001140230108 | I172: 0.0001255352211 | J172: 0.0001964679167 | L172: 0.0001123586995 | S172: Tableau 13 | T172: Bouleau jaune | U172: OVOLBOJPIEDINC | V172: =VLOOKUP($U172,Output!$C:$AQ,V$160,FALSE) -> 8876.31 | W172: =VLOOKUP($U172,Output!$C:$AQ,W$160,FALSE) -> 9423.624 | X172: =VLOOKUP($U172,Output!$C:$AQ,X$160,FALSE) -> 11114.28889 | Y172: =VLOOKUP($U172,Output!$C:$AQ,Y$160,FALSE) -> 16327.751 | Z172: 0.0001089530826 | AA172: 0.0001112648129 | AB172: 0.0001218884327 | AC172: 0.0001898115066 | AE172: OVOLBOJPIEDSNAT | AF172: =VLOOKUP($AE172,Output!$C:$AQ,AF$160,FALSE) -> 0 | AG172: =VLOOKUP($AE172,Output!$C:$AQ,AG$160,FALSE) -> 0 | AH172: =VLOOKUP($AE172,Output!$C:$AQ,AH$160,FALSE) -> 0 | AI172: =VLOOKUP($AE172,Output!$C:$AQ,AI$160,FALSE) -> 0
B173: Érable rouge | C173: 148700 | D173: 151400 | E173: 107900 | F173: 90800 | G173: 0.001877274001 | H173: 0.001836498281 | I173: 0.001220292825 | J173: 0.001094434775 | L173: 0.001877274001 | S173: Tableau 13 | T173: Érable rouge | U173: OVOLgEroPIEDINC | V173: =VLOOKUP($U173,Output!$C:$AQ,V$160,FALSE) -> 148702.636 | W173: =VLOOKUP($U173,Output!$C:$AQ,W$160,FALSE) -> 151423.22 | X173: =VLOOKUP($U173,Output!$C:$AQ,X$160,FALSE) -> 107856.2589 | Y173: =VLOOKUP($U173,Output!$C:$AQ,Y$160,FALSE) -> 90827.83 | Z173: 0.001825264167 | AA173: 0.001787855313 | AB173: 0.001182840439 | AC173: 0.001055881319 | AE173: OVOLgEroPIEDSNAT | AF173: =VLOOKUP($AE173,Output!$C:$AQ,AF$160,FALSE) -> 0 | AG173: =VLOOKUP($AE173,Output!$C:$AQ,AG$160,FALSE) -> 0 | AH173: =VLOOKUP($AE173,Output!$C:$AQ,AH$160,FALSE) -> 0 | AI173: =VLOOKUP($AE173,Output!$C:$AQ,AI$160,FALSE) -> 0
B174: Érable à sucre | C174: 0 | D174: 0 | E174: 0 | F174: 0 | G174: 0 | H174: 0 | I174: 0 | J174: 0 | L174: 0 | S174: Tableau 13 | T174: Érable à sucre | U174: OVOLERSPIEDINC | V174: =VLOOKUP($U174,Output!$C:$AQ,V$160,FALSE) -> 0 | W174: =VLOOKUP($U174,Output!$C:$AQ,W$160,FALSE) -> 0 | X174: =VLOOKUP($U174,Output!$C:$AQ,X$160,FALSE) -> 0 | Y174: =VLOOKUP($U174,Output!$C:$AQ,Y$160,FALSE) -> 0 | Z174: 0 | AA174: 0 | AB174: 0 | AC174: 0 | AE174: OVOLERSPIEDSNAT | AF174: =VLOOKUP($AE174,Output!$C:$AQ,AF$160,FALSE) -> 0 | AG174: =VLOOKUP($AE174,Output!$C:$AQ,AG$160,FALSE) -> 0 | AH174: =VLOOKUP($AE174,Output!$C:$AQ,AH$160,FALSE) -> 0 | AI174: =VLOOKUP($AE174,Output!$C:$AQ,AI$160,FALSE) -> 0
B175: Autres feuillus durs | C175: =ROUND(V175-AF175,-2) -> 2300 | D175: 2500 | E175: 2100 | F175: 1800 | G175: 2.903651784e-05 | H175: 3.032526883e-05 | I175: 2.37499067e-05 | J175: 2.169584356e-05 | L175: 2.903651784e-05 | S175: Tableau 13 | T175: Autres feuillus durs | V175: =V178-V176-V174-V173-V172-V171-V170-V169-V168-V167 -> 2323.702 | W175: =W178-W176-W174-W173-W172-W171-W170-W169-W168-W167 -> 2457.606 | X175: =X178-X176-X174-X173-X172-X171-X170-X169-X168-X167 -> 2060.453333 | Y175: =Y178-Y176-Y174-Y173-Y172-Y171-Y170-Y169-Y168-Y167 -> 1788.289 | Z175: 2.852249369e-05 | AA175: 2.901697602e-05 | AB175: 2.259662583e-05 | AC175: 2.07890131e-05 | AE175: Autres feuillus durs | AF175: =AF178-AF176-AF174-AF173-AF172-AF171-AF170-AF169-AF168-AF167 -> -1.145963324e-10 | AG175: =AG178-AG176-AG174-AG173-AG172-AG171-AG170-AG169-AG168-AG167 -> 0.004000000267 | AH175: =AH178-AH176-AH174-AH173-AH172-AH171-AH170-AH169-AH168-AH167 -> -1.724771437e-10 | AI175: =AI178-AI176-AI174-AI173-AI172-AI171-AI170-AI169-AI168-AI167 -> 0.003000000053
B176: Autres essences | C176: =IF($L$163<0.0095,C163,0)+IF($L$164<0.0095,C164,0)+IF($L$165<0.0095,C165,0)+IF($L$166<0.0095,C166,0)+IF($L$167<0.0095,C167,0)+IF($L$168<0.0095,C168,0)+IF($L$169<0.0095,C169,0)+IF($L$170<0.0095,C170,0)+IF($L$171<0.0095,C171,0)+IF($L$172<0.0095,C172,0)+IF($L$173<0.0095,C173,0)+IF($L$174<0.0095,C174+0)+IF($L$175<0.0095,C175,0) -> 496300 | D176: =IF($L$163<0.0095,D163,0)+IF($L$164<0.0095,D164,0)+IF($L$165<0.0095,D165,0)+IF($L$166<0.0095,D166,0)+IF($L$167<0.0095,D167,0)+IF($L$168<0.0095,D168,0)+IF($L$169<0.0095,D169,0)+IF($L$170<0.0095,D170,0)+IF($L$171<0.0095,D171,0)+IF($L$172<0.0095,D172,0)+IF($L$173<0.0095,D173,0)+IF($L$174<0.0095,D174+0)+IF($L$175<0.0095,D175,0) -> 480500 | E176: =IF($L$163<0.0095,E163,0)+IF($L$164<0.0095,E164,0)+IF($L$165<0.0095,E165,0)+IF($L$166<0.0095,E166,0)+IF($L$167<0.0095,E167,0)+IF($L$168<0.0095,E168,0)+IF($L$169<0.0095,E169,0)+IF($L$170<0.0095,E170,0)+IF($L$171<0.0095,E171,0)+IF($L$172<0.0095,E172,0)+IF($L$173<0.0095,E173,0)+IF($L$174<0.0095,E174+0)+IF($L$175<0.0095,E175,0) -> 349000 | F176: =IF($L$163<0.0095,F163,0)+IF($L$164<0.0095,F164,0)+IF($L$165<0.0095,F165,0)+IF($L$166<0.0095,F166,0)+IF($L$167<0.0095,F167,0)+IF($L$168<0.0095,F168,0)+IF($L$169<0.0095,F169,0)+IF($L$170<0.0095,F170,0)+IF($L$171<0.0095,F171,0)+IF($L$172<0.0095,F172,0)+IF($L$173<0.0095,F173,0)+IF($L$174<0.0095,F174+0)+IF($L$175<0.0095,F175,0) -> 264100 | G176: 0.006265575567 | H176: 0.00582851667 | I176: 0.003947008303 | J176: 0.00318326238 | L176: 0.006265575567 | S176: Tableau 13 | T176: SEPM | U176: OVOLGSEPMPIEDINC | V176: =VLOOKUP($U176,Output!$C:$AQ,V$160,FALSE) -> 71790728.16 | W176: =VLOOKUP($U176,Output!$C:$AQ,W$160,FALSE) -> 76143455.72 | X176: =VLOOKUP($U176,Output!$C:$AQ,X$160,FALSE) -> 82189759.26 | Y176: =VLOOKUP($U176,Output!$C:$AQ,Y$160,FALSE) -> 77038040.12 | Z176: 0.8812018884 | AA176: 0.8990264627 | AB176: 0.9013604951 | AC176: 0.8955738278 | AE176: OVOLgSEPMPIEDSNAT | AF176: =VLOOKUP($AE176,Output!$C:$AQ,AF$160,FALSE) -> 2253630.75 | AG176: =VLOOKUP($AE176,Output!$C:$AQ,AG$160,FALSE) -> 2251673.826 | AH176: =VLOOKUP($AE176,Output!$C:$AQ,AH$160,FALSE) -> 2757250.363 | AI176: =VLOOKUP($AE176,Output!$C:$AQ,AI$160,FALSE) -> 3049630.181
B177: Total | C177: =ROUND(V178-AF178,-2) -> 79210600 | D177: =ROUND(W178-AG178,-2) -> 82439500 | E177: =ROUND(X178-AH178,-2) -> 88421400 | F177: =ROUND(Y178-AI178,-2) -> 82965200 | G177: 1 | H177: 1 | I177: 1 | J177: 1 | S177: Tableau 13 | T177: FN - ERS BOJ | U177: OVOLGFNPIEDINC | V177: =VLOOKUP($U177,Output!$C:$AQ,V$160,FALSE) -> 2323.706 | W177: =VLOOKUP($U177,Output!$C:$AQ,W$160,FALSE) -> 2457.604 | X177: =VLOOKUP($U177,Output!$C:$AQ,X$160,FALSE) -> 2060.453333 | Y177: =VLOOKUP($U177,Output!$C:$AQ,Y$160,FALSE) -> 1788.283 | Z177: 2.852254278e-05 | AA177: 2.901695241e-05 | AB177: 2.259662583e-05 | AC177: 2.078894335e-05 | AE177: OVOLgFnPIEDSNAT | AF177: =VLOOKUP($AE177,Output!$C:$AQ,AF$160,FALSE) -> 0 | AG177: =VLOOKUP($AE177,Output!$C:$AQ,AG$160,FALSE) -> 0 | AH177: =VLOOKUP($AE177,Output!$C:$AQ,AH$160,FALSE) -> 0 | AI177: =VLOOKUP($AE177,Output!$C:$AQ,AI$160,FALSE) -> 0
L178: Masquer les essences du tableau qui sont en surbrillance (< 1%) | S178: Tableau 13 | T178: TOT sur pied | U178: OVOLTOTPIEDINC | V178: =VLOOKUP($U178,Output!$C:$AQ,V$160,FALSE) -> 81469103.85 | W178: =VLOOKUP($U178,Output!$C:$AQ,W$160,FALSE) -> 84695455.45 | X178: =VLOOKUP($U178,Output!$C:$AQ,X$160,FALSE) -> 91184115.24 | Y178: =VLOOKUP($U178,Output!$C:$AQ,Y$160,FALSE) -> 86020870.33 | Z178: 1 | AA178: 1 | AB178: 1 | AC178: 1 | AE178: OVOLTOTPIEDSNAT | AF178: =VLOOKUP($AE178,Output!$C:$AQ,AF$160,FALSE) -> 2258464.826 | AG178: =VLOOKUP($AE178,Output!$C:$AQ,AG$160,FALSE) -> 2255915.214 | AH178: =VLOOKUP($AE178,Output!$C:$AQ,AH$160,FALSE) -> 2762700.068 | AI178: =VLOOKUP($AE178,Output!$C:$AQ,AI$160,FALSE) -> 3055718.937
L179: Ces volumes sont comptabilisés dans "Autres essences" | S179: Tableau 13 | T179: Érables à sucre et rouge
D182: P2 | E182: P3 | F182: P4 | G182: P5 | H182: P6
B183: Tableau 15 Statistiques sur les compartiments d’organisation spatiale admissibles à la récolte par période
B184: Compartiments d'organisation spatiale | D184: 2023-2028 | E184: 2028-2033 | F184: 2033-2038 | G184: 2038-2043 | H184: 2043-2048
B185: Nombre total | D185: =Cedule_COS!G6 -> 432
B186: En pessière | D186: 166 | J186: Fait la sommation automatique des COS débutant par la lettre "P" ou par "C", valider et corriger si nécessaire
B187: En sapinière | D187: 266 | J187: Fait la sommation automatique des COS débutant par la lettre "S", valider et corriger si nécessaire
B188: Admissibles à la récolte | D188: =Cedule_COS!C7 -> 154 | E188: =Cedule_COS!D7 -> 135 | F188: =Cedule_COS!E7 -> 105 | G188: =Cedule_COS!F7 -> 162 | H188: =Cedule_COS!G7 -> 93
B189: % de compartiments admissibles | D189: =Cedule_COS!C8 -> 0.3564814815 | E189: =Cedule_COS!D8 -> 0.3125 | F189: =Cedule_COS!E8 -> 0.2430555556 | G189: =Cedule_COS!F8 -> 0.375 | H189: =Cedule_COS!G8 -> 0.2152777778
B193: Tableau 17 Superficies considérées pour l'analyse de la mortalité d'ici la période 2023-2028 | S193: =LEFT(B$193,11) -> Tableau 17 | T193: Légende | V193: Output | W193: Valeur | X193: Période | Y193: Année
F194: ha | G194: % | S194: =LEFT(B$193,11) -> Tableau 17 | T194: Incluses aux activités de récolte | V194: OSUPINC | W194: =VLOOKUP($V194,Output!$C:$AQ,6,FALSE) -> 1377576.3 | X194: P0 | Y194: 2018
B195: Épidémie sévère confirmée à la photo-interprétation | F195: 44190 | G195: =F195/W$194 -> 0.032078078 | J195: Faire une sélection sur le thème 8 = "INC" et seulement les années correspondant à l'épidémie actuelle | S195: =LEFT(B$193,11) -> Tableau 17 | T195: Épidémie sévère confirmée à la photo-interprétation | V195: Requete dans la table d'attribut
B196: Défoliation cumulative (cote ≥ 15) | F196: =ROUND(W196,-1) -> 729330 | G196: =F196/W$194 -> 0.5294298399 | J196: Des champs avaient été ajoutés par l'analyste à la fin de table d'attribut de la carte woodstock | S196: =LEFT(B$193,11) -> Tableau 17 | T196: Défoliation cumulative projetée 2023 ≥ 15 | V196: OSUPINC15+ | W196: =VLOOKUP($V196,Output!$C:$AQ,7,FALSE) -> 729332.5 | X196: P1 | Y196: 2023
B197: Mortalité projetée | F197: =ROUND(SUM(W197:W198),-1) -> 588650 | G197: =F197/W$194 -> 0.4273084547 | J197: et c'est sur ces derniers que doivent se réaliser les requêtes | S197: =LEFT(B$193,11) -> Tableau 17 | T197: Mortalité projetée (sommation des 2 actions) | V197: osupaTBEmort | W197: =VLOOKUP($V197,Output!$C:$AQ,8,FALSE) -> 481295 | X197: P2 | Y197: 2028
B198: Récupération prévue 2018-2023 | F198: =-ROUND(W199,-1) -> -37680 | G198: =F198/W$194 -> -0.02735238694 | V198: Osupactiontberetard | W198: =VLOOKUP($V198,Output!$C:$AQ,8,FALSE) -> 107352 | X198: P2 | Y198: 2028
S199: =LEFT(B$193,11) -> Tableau 17 | T199: Récolte prévue à court terme (récupération) | V199: osuprealregapre_15+ | W199: =VLOOKUP($V199,Output!$C:$AQ,7,FALSE) -> 37678 | X199: P1 | Y199: 2023

Sheet Figures
B2: Figure 2. Répartition du volume de bois marchand sur pied en début de calcul (m3). | N2: Volume sur pied en P0 | S2: Source: CahierDetermination_2018-2023 | V2: Volume sur pied en P0 - volume en SNAT | Z2: Volume dans courbe SNAT
L3: Conserver les GTYF même s'ils sont absents de l'UA | S3: Intrants | T3: Légende | U3: Name | V3: PERIOD0 | W3: % | X3: PERIOD0 | Z3: Name | AB3: PERIOD0
N4: Total | O4: =V19 -> 89278100 | S4: =LEFT(B$2,10) -> Figure 2. | T4: Autres feuillus durs | V4: =ROUND(V19-V17-V11-V12-V10-V8-V9-V6-V5-V7,-2) -> 1400 | W4: =IFERROR(V4/$V$19,0) -> 1.56813373e-05 | X4: =X19-X17-X11-X12-X10-X8-X9-X6-X5-X7 -> 1343.82 | Z4: Autres feuillus durs | AB4: =ROUND(AB19-AB17-AB11-AB12-AB10-AB8-AB9-AB6-AB5-AB7,-2) -> 0
N5: % R | O5: =(V17+V12+V11+V10)/V19 -> 0.9013744692 | S5: Figure 2. | T5: Érable à sucre | U5: OVOLERSPIEDINC | V5: =ROUND(X5-AB5,-2) -> 0 | W5: 0 | X5: =VLOOKUP(U5,Output!$C:$AQ,6,FALSE) -> 0 | Z5: OVOLERSPIEDSNAT | AB5: =VLOOKUP(Z5,Output!$C:$AQ,6,FALSE) -> 0
N6: %SEPM | O6: =V17/V19 -> 0.9008950683 | S6: Figure 2. | T6: Érable rouge | U6: OVOLgEroPIEDINC | V6: 97700 | W6: 0.001094333325 | X6: =VLOOKUP(U6,Output!$C:$AQ,6,FALSE) -> 97682.48 | Z6: OVOLgEroPIEDSNAT | AB6: =VLOOKUP(Z6,Output!$C:$AQ,6,FALSE) -> 0
N7: % Fi | O7: =W21 -> 0.09855496477 | P7: =O7*O4 -> 8798800 | S7: Figure 2. | T7: Bouleau jaune | U7: OVOLBOJPIEDINC | V7: 4900 | W7: 5.488468057e-05 | X7: =VLOOKUP(U7,Output!$C:$AQ,6,FALSE) -> 4898.43 | Z7: OVOLBOJPIEDSNAT | AB7: =VLOOKUP(Z7,Output!$C:$AQ,6,FALSE) -> 0
N8: % FT | O8: =W22 -> 6.944592235e-05 | S8: Figure 2. | T8: Bouleau à papier | U8: OVOLgBpPIEDINC | V8: 6189400 | W8: 0.06932719222 | X8: =VLOOKUP(U8,Output!$C:$AQ,6,FALSE) -> 6193865.4 | Z8: OVOLgBpPIEDSNAT | AB8: =VLOOKUP(Z8,Output!$C:$AQ,6,FALSE) -> 4449.11
N9: %Sapin | O9: =V16/V17 -> 0.2697270428 | S9: Figure 2. | T9: Peupliers | U9: OVOLGPEUPIEDINC | V9: 2511700 | W9: 0.02813343922 | X9: =VLOOKUP(U9,Output!$C:$AQ,6,FALSE) -> 2511733.35 | Z9: OVOLPEUPIEDSNAT | AB9: =VLOOKUP(Z9,Output!$C:$AQ,6,FALSE) -> 0
N10: %ERR | O10: =IFERROR(V6/(V5+V6),0) -> 1 | S10: Figure 2. | T10: Pins blanc et rouge | U10: OVOLGPINSPIEDINC | V10: 33900 | W10: 0.0003797123819 | X10: =VLOOKUP(U10,Output!$C:$AQ,6,FALSE) -> 33884.45 | Z10: OVOLGPINSCPIEDSNAT | AB10: =VLOOKUP(Z10,Output!$C:$AQ,6,FALSE) -> 0
S11: Figure 2. | T11: Pruche | U11: OVOLPRUPIEDINC | V11: 0 | W11: 0 | X11: =VLOOKUP(U11,Output!$C:$AQ,6,FALSE) -> 0 | Z11: OVOLPRUPIEDSNAT | AB11: =VLOOKUP(Z11,Output!$C:$AQ,6,FALSE) -> 0
N12: Volume sur pied au calcul 2015-2018 | P12: UA | S12: Figure 2. | T12: Thuya | U12: OVOLTHOPIEDINC | V12: 8900 | W12: 9.968850144e-05 | X12: =VLOOKUP(U12,Output!$C:$AQ,6,FALSE) -> 8947.51 | Z12: OVOLTHOPIEDSNAT | AB12: =VLOOKUP(Z12,Output!$C:$AQ,6,FALSE) -> 0
P13: =Tableaux!O33 -> 09351 | S13: Figure 2. | T13: Mélèzes | U13: OVOLgMlPIEDINC | V13: 210400 | W13: 0.002356680978 | X13: =VLOOKUP(U13,Output!$C:$AQ,6,FALSE) -> 263180.05 | Z13: OVOLGMlPIEDSNAT | AB13: =VLOOKUP(Z13,Output!$C:$AQ,6,FALSE) -> 52758.33
N14: Total | O14: =VLOOKUP(P13,DataLocal!$A:$BM,61,FALSE) -> 103127680 | S14: Figure 2. | T14: Pin gris | U14: OVOLgPgPIEDINC | V14: 1301900 | W14: 0.0145825236 | X14: =VLOOKUP(U14,Output!$C:$AQ,6,FALSE) -> 1422044.01 | Z14: OVOLgPgPIEDSNAT | AB14: =VLOOKUP(Z14,Output!$C:$AQ,6,FALSE) -> 120139.76
N15: % R | O15: =VLOOKUP(P13,DataLocal!$A:$BM,62,FALSE) -> 0.9 | S15: Figure 2. | T15: Épinettes | U15: OVOLgEpxPIEDINC | V15: 57223600 | W15: 0.640958981 | X15: =VLOOKUP(U15,Output!$C:$AQ,6,FALSE) -> 59276634.06 | Z15: OVOLgEpxPIEDSNAT | AB15: =VLOOKUP(Z15,Output!$C:$AQ,6,FALSE) -> 2053029.12
N16: % SEPM | O16: =VLOOKUP(P13,DataLocal!$A:$BM,63,FALSE) -> 0.9 | S16: Figure 2. | T16: Sapin baumier | U16: OVOLSABPIEDINC | V16: =ROUND(X16-AB16,-2) -> 21694200 | W16: 0.2429957627 | X16: =VLOOKUP(U16,Output!$C:$AQ,6,FALSE) -> 21764039.41 | Z16: OVOLSABPIEDSNAT | AB16: =VLOOKUP(Z16,Output!$C:$AQ,6,FALSE) -> 69818
N17: % Fi | O17: =VLOOKUP(P13,DataLocal!$A:$BM,64,FALSE) -> 0.1 | S17: Figure 2. | T17: SEPM | U17: OVOLGSEPMPIEDINC | V17: =ROUND(X17-AB17,-2) -> 80430200 | W17: =IFERROR(V17/$V$19,0) -> 0.9008950683 | X17: =VLOOKUP(U17,Output!$C:$AQ,6,FALSE) -> 82725897.53 | Z17: OVOLgSEPMPIEDSNAT | AB17: =VLOOKUP(Z17,Output!$C:$AQ,6,FALSE) -> 2295745.21
N18: % Ft | O18: =VLOOKUP(P13,DataLocal!$A:$BM,65,FALSE) -> 0 | S18: Figure 2. | T18: FN - ERS BOJ | U18: OVOLGFNPIEDINC | V18: 1300 | W18: 1.456124178e-05 | X18: =VLOOKUP(U18,Output!$C:$AQ,6,FALSE) -> 1343.81 | Z18: OVOLgFnPIEDSNAT | AB18: =VLOOKUP(Z18,Output!$C:$AQ,6,FALSE) -> 0
S19: Figure 2. | T19: TOT sur pied | U19: OVOLTOTPIEDINC | V19: =ROUND(X19-AB19,-2) -> 89278100 | W19: 1 | X19: =VLOOKUP(U19,Output!$C:$AQ,6,FALSE) -> 91578252.97 | Z19: OVOLTOTPIEDSNAT | AB19: =VLOOKUP(Z19,Output!$C:$AQ,6,FALSE) -> 2300194.32
N20: Vol R | O20: =ROUND(O15*$O$14,-2) -> 92814900 | T20: Érables à sucre et rouge | U20: Érables à sucre et rouge | V20: =V5+V6 -> 97700 | W20: 0.001094333325 | X20: =X5+X6 -> 97682.48 | Z20: Érables à sucre et rouge | AB20: =AB5+AB6 -> 0
N21: Vol SEPM | O21: =ROUND(O16*$O$14,-2) -> 92814900 | P21: Traduits en m3 | T21: gFi | U21: OVOLgFiPIEDINC | V21: =ROUND(X21-AB21,-2) -> 8798800 | W21: 0.09855496477 | X21: =VLOOKUP(U21,Output!$C:$AQ,6,FALSE) -> 8803281.24 | Z21: OVOLgFiPIEDSNAT | AB21: =VLOOKUP(Z21,Output!$C:$AQ,6,FALSE) -> 4449.11
N22: Vol Fi | O22: =ROUND(O17*$O$14,-2) -> 10312800 | P22: approximativement | T22: gFt | U22: OVOLgFtPIEDINC | V22: 6200 | W22: 6.944592235e-05 | X22: =VLOOKUP(U22,Output!$C:$AQ,6,FALSE) -> 6242.24 | Z22: OVOLgFtPIEDSNAT | AB22: =VLOOKUP(Z22,Output!$C:$AQ,6,FALSE) -> 0
N23: Vol Ft | O23: =ROUND(O18*$O$14,-2) -> 0
B27: Type de couvert : | C27: =#REF! -> 
B28: Figure 3. Répartition de la superficie par grand type de forêt en début de calcul (ha). | S28: Intrants | T28: Légende | V28: PERIOD0 | W28: % | X28: PERIOD0
S29: =LEFT(B$28,10) -> Figure 3. | T29: Sapinières | U29: (FCTYF_SAB) | V29: =ROUND(X29,-1) -> 296310 | W29: =V29/V$44 -> 0.2155007349 | X29: =VLOOKUP("OSUPINC"&$U29,GTYF!$C:$AP,6,FALSE) -> 296314.1
S30: Figure 3. | T30: Résineux à feuillus | U30: (FCTYF_RF) | V30: =ROUND(X30,-1) -> 60540 | W30: 0.04402961254 | X30: =VLOOKUP("OSUPINC"&$U30,GTYF!$C:$AP,6,FALSE) -> 60537.7
S31: Figure 3. | T31: Prucheraies | U31: (FCTYF_PRU) | V31: 0 | W31: 0 | X31: =VLOOKUP("OSUPINC"&$U31,GTYF!$C:$AP,6,FALSE) -> 0
S32: Figure 3. | T32: Pinèdes grises | U32: (FCTYF_PIG) | V32: 10770 | W32: 0.00783282007 | X32: =VLOOKUP("OSUPINC"&$U32,GTYF!$C:$AP,6,FALSE) -> 10774.2
L33: Conserver les GTYF même s'ils sont absents de l'UA | S33: Figure 3. | T33: Pinèdes blanches | U33: (FCTYF_PIN) | V33: 0 | W33: 0 | X33: =VLOOKUP("OSUPINC"&$U33,GTYF!$C:$AP,6,FALSE) -> 0
S34: Figure 3. | T34: Peupleraies à résineux | U34: (FCTYF_PEUR) | V34: 0 | W34: 0 | X34: =VLOOKUP("OSUPINC"&$U34,GTYF!$C:$AP,6,FALSE) -> 0
S35: Figure 3. | T35: Peupleraies | U35: (FCTYF_PEU) | V35: 23620 | W35: 0.01717838534 | X35: =VLOOKUP("OSUPINC"&$U35,GTYF!$C:$AP,6,FALSE) -> 23617.7
S36: Figure 3. | T36: Pessières | U36: (FCTYF_EPX) | V36: 847430 | W36: 0.616320029 | X36: =VLOOKUP("OSUPINC"&$U36,GTYF!$C:$AP,6,FALSE) -> 847428.9
S37: Figure 3. | T37: Feuillus tolérants à résineux | U37: (FCTYF_FTR) | V37: 0 | W37: 0 | X37: =VLOOKUP("OSUPINC"&$U37,GTYF!$C:$AP,6,FALSE) -> 0
S38: Figure 3. | T38: Feuillus tolérants | U38: (FCTYF_FT) | V38: 0 | W38: 0 | X38: =VLOOKUP("OSUPINC"&$U38,GTYF!$C:$AP,6,FALSE) -> 0
S39: Figure 3. | T39: Érablières rouges | U39: (FCTYF_ERO) | V39: 0 | W39: 0 | X39: =VLOOKUP("OSUPINC"&$U39,GTYF!$C:$AP,6,FALSE) -> 0
S40: Figure 3. | T40: Cédrières | U40: (FCTYF_THO) | V40: 0 | W40: 0 | X40: =VLOOKUP("OSUPINC"&$U40,GTYF!$C:$AP,6,FALSE) -> 0
S41: Figure 3. | T41: Bétulaies blanches à résineux | U41: (FCTYF_BOPR) | V41: 32730 | W41: 0.02380391838 | X41: =VLOOKUP("OSUPINC"&$U41,GTYF!$C:$AP,6,FALSE) -> 32730.7
S42: Figure 3. | T42: Bétulaies blanches | U42: (FCTYF_BOP) | V42: 16400 | W42: 0.01192741403 | X42: =VLOOKUP("OSUPINC"&$U42,GTYF!$C:$AP,6,FALSE) -> 16402.8
U43: Somme: | V43: =SUM(V29:V42) -> 1287800 | X43: =SUM(X29:X42) -> 1287806.1
T44: OSUPINC | U44: Tous | V44: =VLOOKUP("OSUPINC",Output!$C:$AP,7,FALSE) -> 1374983.71
V45: =V43-V44 -> -87183.71 | W45: Écart
V49: 2018
B50: Figure 4. Superficie destinée à l'aménagement forestier par classe d'âge en début de calcul (ha). | S50: Intrants | U50: Name | V50: PERIOD0 | X50: Classe d'âge | Y50: OUTPUT | Z50: Superficie (ha) | AA50: Pourcentage (%)
S51: =LEFT(B$50,10) -> Figure 4. | T51: 10 ans | U51: OSUP_INC_CLASSEAGEFCAGEAGE1 | V51: =VLOOKUP(U51,Output!$C:$AQ,6,FALSE) -> 78420.3 | X51: 10 | Z51: =ROUND(SUM(V51:V54),-1) -> 315180 | AA51: =IFERROR(Z51/$V$81,0) -> 0.2287931347
S52: Figure 4. | T52: 10 ans | U52: OSUP_INC_CLASSEAGEFCAGEAGE2 | V52: =VLOOKUP(U52,Output!$C:$AQ,6,FALSE) -> 10522.8 | X52: 30 | Z52: =ROUND(SUM(V55:V58),-1) -> 204600 | AA52: =IFERROR(Z52/$V$81,0) -> 0.1485217189
S53: Figure 4. | T53: 10 ans | U53: OSUP_INC_CLASSEAGEFCAGEAGE3 | V53: =VLOOKUP(U53,Output!$C:$AQ,6,FALSE) -> 98598.9 | X53: 50 | Z53: =ROUND(SUM(V59:V62),-1) -> 138820 | AA53: 0.1007711878
S54: Figure 4. | T54: 10 ans | U54: OSUP_INC_CLASSEAGEFCAGEAGE4 | V54: =VLOOKUP(U54,Output!$C:$AQ,6,FALSE) -> 127638.9 | X54: 70 | Z54: =ROUND(SUM(V63:V66),-1) -> 88370 | AA54: =IFERROR(Z54/$V$81,0) -> 0.06414889687
S55: Figure 4. | T55: 30 ans | U55: OSUP_INC_CLASSEAGEFCAGEAGE5 | V55: =VLOOKUP(U55,Output!$C:$AQ,6,FALSE) -> 82813.1 | X55: 90 | Z55: =ROUND(SUM(V67:V70),-1) -> 79000 | AA55: 0.05734709577
S56: Figure 4. | T56: 30 ans | U56: OSUP_INC_CLASSEAGEFCAGEAGE6 | V56: =VLOOKUP(U56,Output!$C:$AQ,6,FALSE) -> 20231.7 | X56: 120 et plus | Z56: =ROUND(SUM(V71:V80),-1) -> 551600 | AA56: 0.4004133927
S57: Figure 4. | T57: 30 ans | U57: OSUP_INC_CLASSEAGEFCAGEAGE7 | V57: =VLOOKUP(U57,Output!$C:$AQ,6,FALSE) -> 36799.2
S58: Figure 4. | T58: 30 ans | U58: OSUP_INC_CLASSEAGEFCAGEAGE8 | V58: =VLOOKUP(U58,Output!$C:$AQ,6,FALSE) -> 64756.5
S59: Figure 4. | T59: 50 ans | U59: OSUP_INC_CLASSEAGEFCAGEAGE9 | V59: =VLOOKUP(U59,Output!$C:$AQ,6,FALSE) -> 26591.7
S60: Figure 4. | T60: 50 ans | U60: OSUP_INC_CLASSEAGEFCAGEAGE10 | V60: =VLOOKUP(U60,Output!$C:$AQ,6,FALSE) -> 30446.2
S61: Figure 4. | T61: 50 ans | U61: OSUP_INC_CLASSEAGEFCAGEAGE11 | V61: =VLOOKUP(U61,Output!$C:$AQ,6,FALSE) -> 29001.7
N62: Proportion de la superficie dont l'évolution est suivi en âge: | S62: Figure 4. | T62: 50 ans | U62: OSUP_INC_CLASSEAGEFCAGEAGE12 | V62: =VLOOKUP(U62,Output!$C:$AQ,6,FALSE) -> 52780.2
N63: =IF(AND($W$81>=99.5%,$W$81<100%),"> 99%",IF(AND($W$81>=0.1%,$W$81<0.5%),"< 1%",$W$81)) -> 1 | S63: Figure 4. | T63: 70 ans | U63: OSUP_INC_CLASSEAGEFCAGEAGE13 | V63: =VLOOKUP(U63,Output!$C:$AQ,6,FALSE) -> 70598.2
S64: Figure 4. | T64: 70 ans | U64: OSUP_INC_CLASSEAGEFCAGEAGE14 | V64: =VLOOKUP(U64,Output!$C:$AQ,6,FALSE) -> 11118.2
S65: Figure 4. | T65: 70 ans | U65: OSUP_INC_CLASSEAGEFCAGEAGE15 | V65: =VLOOKUP(U65,Output!$C:$AQ,6,FALSE) -> 1129
S66: Figure 4. | T66: 70 ans | U66: OSUP_INC_CLASSEAGEFCAGEAGE16 | V66: =VLOOKUP(U66,Output!$C:$AQ,6,FALSE) -> 5522
S67: Figure 4. | T67: 90 ans | U67: OSUP_INC_CLASSEAGEFCAGEAGE17 | V67: =VLOOKUP(U67,Output!$C:$AQ,6,FALSE) -> 18486.1
S68: Figure 4. | T68: 90 ans | U68: OSUP_INC_CLASSEAGEFCAGEAGE18 | V68: =VLOOKUP(U68,Output!$C:$AQ,6,FALSE) -> 11481.1
B69: Figure 5. Superficie destinée à l'aménagement forestier par classe de surface terrière en début de calcul (ha) | S69: Figure 4. | T69: 90 ans | U69: OSUP_INC_CLASSEAGEFCAGEAGE19 | V69: =VLOOKUP(U69,Output!$C:$AQ,6,FALSE) -> 9826.2
S70: Figure 4. | T70: 90 ans | U70: OSUP_INC_CLASSEAGEFCAGEAGE20 | V70: =VLOOKUP(U70,Output!$C:$AQ,6,FALSE) -> 39210.4
S71: Figure 4. | T71: 120 et plus | U71: OSUP_INC_CLASSEAGEFCAGEAGE21 | V71: =VLOOKUP(U71,Output!$C:$AQ,6,FALSE) -> 26913.9
S72: Figure 4. | T72: 120 et plus | U72: OSUP_INC_CLASSEAGEFCAGEAGE22 | V72: =VLOOKUP(U72,Output!$C:$AQ,6,FALSE) -> 41460.6
S73: Figure 4. | T73: 120 et plus | U73: OSUP_INC_CLASSEAGEFCAGEAGE23 | V73: =VLOOKUP(U73,Output!$C:$AQ,6,FALSE) -> 13661.1
S74: Figure 4. | T74: 120 et plus | U74: OSUP_INC_CLASSEAGEFCAGEAGE24 | V74: =VLOOKUP(U74,Output!$C:$AQ,6,FALSE) -> 41591.3
S75: Figure 4. | T75: 120 et plus | U75: OSUP_INC_CLASSEAGEFCAGEAGE25 | V75: =VLOOKUP(U75,Output!$C:$AQ,6,FALSE) -> 18932.4
N76: Proportion de la superficie dont l'évolution est suivi en surface terrière: | S76: Figure 4. | T76: 120 et plus | U76: OSUP_INC_CLASSEAGEFCAGEAGE26 | V76: =VLOOKUP(U76,Output!$C:$AQ,6,FALSE) -> 33518.9
N77: =IF(AND($W$88>=99.5%,$W$88<100%),"> 99%",IF(AND($W$88>=0.1%,$W$88<0.5%),"< 1%",$W$88)) -> 0 | S77: Figure 4. | T77: 120 et plus | U77: OSUP_INC_CLASSEAGEFCAGEAGE27 | V77: =VLOOKUP(U77,Output!$C:$AQ,6,FALSE) -> 21721.2
S78: Figure 4. | T78: 120 et plus | U78: OSUP_INC_CLASSEAGEFCAGEAGE28 | V78: =VLOOKUP(U78,Output!$C:$AQ,6,FALSE) -> 57053.2
S79: Figure 4. | T79: 120 et plus | U79: OSUP_INC_CLASSEAGEFCAGEAGE29 | V79: =VLOOKUP(U79,Output!$C:$AQ,6,FALSE) -> 19154.1
S80: Figure 4. | T80: 120 et plus | U80: OSUP_INC_CLASSEAGEFCAGEAGE30+ | V80: =VLOOKUP(U80,Output!$C:$AQ,6,FALSE) -> 277597.2
U81: Sous-total | V81: =SUM(V51:V80) -> 1377576.3 | W81: =V81/V89 -> 1
S82: =LEFT(B$69,10) -> Figure 5. | T82: <16 | U82: OSUPINC_ST016(FCST) | V82: =VLOOKUP(U82,GTYF!$C:$AQ,6,FALSE) -> 0 | W82: =IFERROR(V82/$V$88,0) -> 0
S83: Figure 5. | T83: 16 à 18 | U83: OSUPINC_ST1619(FCST) | V83: =VLOOKUP(U83,GTYF!$C:$AQ,6,FALSE) -> 0 | W83: 0
S84: Figure 5. | T84: 19 à 21 | U84: OSUPINC_ST1922(FCST) | V84: =VLOOKUP(U84,GTYF!$C:$AQ,6,FALSE) -> 0 | W84: 0
S85: Figure 5. | T85: 22 à 24 | U85: OSUPINC_ST2225(FCST) | V85: =VLOOKUP(U85,GTYF!$C:$AQ,6,FALSE) -> 0 | W85: 0
S86: Figure 5. | T86: 25 à 28 | U86: OSUPINC_ST2528(FCST) | V86: =VLOOKUP(U86,GTYF!$C:$AQ,6,FALSE) -> 0 | W86: 0
S87: Figure 5. | T87: 29+ | U87: OSUPINC_ST29+(FCST) | V87: =VLOOKUP(U87,GTYF!$C:$AQ,6,FALSE) -> 0 | W87: 0
S88: Figure 5. | T88: Total 0-29+ | U88: Sous-total | V88: =SUM(V82:V87) -> 0 | W88: =V88/V89 -> 0
U89: OSUPINC | V89: =VLOOKUP(U89,Output!$C:$AQ,6,FALSE) -> 1377576.3
A91: 80 | B91: Figure 6. Évolution des volumes et des possibilités forestières à rendement non-décroissant
U93: Période | V93: P0 | W93: P1 | X93: P2 | Y93: P3 | Z93: P4 | AA93: P5 | AB93: P6 | AC93: P7 | AD93: P8 | AE93: P9 | AF93: P10 | AG93: P11 | AH93: P12 | AI93: P13 | AJ93: P14 | AK93: P15 | AL93: P16 | AM93: P17 | AN93: P18 | AO93: P19 | AP93: P20 | AQ93: P21 | AR93: P22 | AS93: P23 | AT93: P24 | AU93: P25 | AV93: P26 | AW93: P27 | AX93: P28 | AY93: P29 | AZ93: P30
U94: Colonne | V94: 6 | W94: 7 | X94: 8 | Y94: 9 | Z94: 10 | AA94: 11 | AB94: 12 | AC94: 13 | AD94: 14 | AE94: 15 | AF94: 16 | AG94: 17 | AH94: 18 | AI94: 19 | AJ94: 20 | AK94: 21 | AL94: 22 | AM94: 23 | AN94: 24 | AO94: 25 | AP94: 26 | AQ94: 27 | AR94: 28 | AS94: 29 | AT94: 30 | AU94: 31 | AV94: 32 | AW94: 33 | AX94: 34 | AY94: 35 | AZ94: 36
S95: =LEFT(B$91,10) -> Figure 6. | T95: Légende | U95: Axe des "X" Début de période | W95: 2018 | X95: 2023 | Y95: 2028 | Z95: 2033 | AA95: 2038 | AB95: 2043 | AC95: 2048 | AD95: 2053 | AE95: 2058 | AF95: 2063 | AG95: 2068 | AH95: 2073 | AI95: 2078 | AJ95: 2083 | AK95: 2088 | AL95: 2093 | AM95: 2098 | AN95: 2103 | AO95: 2108 | AP95: 2113 | AQ95: 2118 | AR95: 2123 | AS95: 2128 | AT95: 2133 | AU95: 2138 | AV95: 2143 | AW95: 2148 | AX95: 2153 | AY95: 2158 | AZ95: 2163
S96: =LEFT(B$91,10) -> Figure 6. | T96: Possibilités forestières quinquennales | U96: OVOLTOTREC | V96: =VLOOKUP($U96,Output!$C:$AM,V$94,FALSE) -> 0 | W96: =VLOOKUP($U96,Output!$C:$AM,W$94,FALSE) -> 6108561.6 | X96: =VLOOKUP($U96,Output!$C:$AM,X$94,FALSE) -> 5683200 | Y96: =VLOOKUP($U96,Output!$C:$AM,Y$94,FALSE) -> 5683200 | Z96: =VLOOKUP($U96,Output!$C:$AM,Z$94,FALSE) -> 5683200 | AA96: =VLOOKUP($U96,Output!$C:$AM,AA$94,FALSE) -> 5683200 | AB96: =VLOOKUP($U96,Output!$C:$AM,AB$94,FALSE) -> 5683200 | AC96: =VLOOKUP($U96,Output!$C:$AM,AC$94,FALSE) -> 6279204.42 | AD96: =VLOOKUP($U96,Output!$C:$AM,AD$94,FALSE) -> 7328888.39 | AE96: =VLOOKUP($U96,Output!$C:$AM,AE$94,FALSE) -> 7329456.77 | AF96: =VLOOKUP($U96,Output!$C:$AM,AF$94,FALSE) -> 7339955.91 | AG96: =VLOOKUP($U96,Output!$C:$AM,AG$94,FALSE) -> 7339955.91 | AH96: =VLOOKUP($U96,Output!$C:$AM,AH$94,FALSE) -> 7346111.41 | AI96: =VLOOKUP($U96,Output!$C:$AM,AI$94,FALSE) -> 7348942.56 | AJ96: =VLOOKUP($U96,Output!$C:$AM,AJ$94,FALSE) -> 7348942.56 | AK96: =VLOOKUP($U96,Output!$C:$AM,AK$94,FALSE) -> 7356287.22 | AL96: =VLOOKUP($U96,Output!$C:$AM,AL$94,FALSE) -> 7356287.22 | AM96: =VLOOKUP($U96,Output!$C:$AM,AM$94,FALSE) -> 7573177.53 | AN96: =VLOOKUP($U96,Output!$C:$AM,AN$94,FALSE) -> 9610857.63 | AO96: =VLOOKUP($U96,Output!$C:$AM,AO$94,FALSE) -> 9610857.63 | AP96: =VLOOKUP($U96,Output!$C:$AM,AP$94,FALSE) -> 9626564.07 | AQ96: =VLOOKUP($U96,Output!$C:$AM,AQ$94,FALSE) -> 9626564.07 | AR96: =VLOOKUP($U96,Output!$C:$AM,AR$94,FALSE) -> 9673803.02 | AS96: =VLOOKUP($U96,Output!$C:$AM,AS$94,FALSE) -> 9673803.02 | AT96: =VLOOKUP($U96,Output!$C:$AM,AT$94,FALSE) -> 9673803.02 | AU96: =VLOOKUP($U96,Output!$C:$AM,AU$94,FALSE) -> 9673920.49 | AV96: =VLOOKUP($U96,Output!$C:$AM,AV$94,FALSE) -> 9673920.49 | AW96: =VLOOKUP($U96,Output!$C:$AM,AW$94,FALSE) -> 9678295.82 | AX96: =VLOOKUP($U96,Output!$C:$AM,AX$94,FALSE) -> 9678295.82 | AY96: =VLOOKUP($U96,Output!$C:$AM,AY$94,FALSE) -> 9678295.82 | AZ96: =VLOOKUP($U96,Output!$C:$AM,AZ$94,FALSE) -> 9678373.67
S97: =LEFT(B$91,10) -> Figure 6. | T97: Volume à maturité | U97: OVOLMATUREADM | V97: =VLOOKUP($U97,Output!$C:$AM,V$94,FALSE) -> 61367253.8 | W97: =VLOOKUP($U97,Output!$C:$AM,W$94,FALSE) -> 59109093 | X97: =VLOOKUP($U97,Output!$C:$AM,X$94,FALSE) -> 58701694.87 | Y97: =VLOOKUP($U97,Output!$C:$AM,Y$94,FALSE) -> 56342462.13 | Z97: =VLOOKUP($U97,Output!$C:$AM,Z$94,FALSE) -> 56862767.32 | AA97: =VLOOKUP($U97,Output!$C:$AM,AA$94,FALSE) -> 56133627.3 | AB97: =VLOOKUP($U97,Output!$C:$AM,AB$94,FALSE) -> 59855429.82 | AC97: =VLOOKUP($U97,Output!$C:$AM,AC$94,FALSE) -> 60808334.19 | AD97: =VLOOKUP($U97,Output!$C:$AM,AD$94,FALSE) -> 62080363.35 | AE97: =VLOOKUP($U97,Output!$C:$AM,AE$94,FALSE) -> 59703235.61 | AF97: =VLOOKUP($U97,Output!$C:$AM,AF$94,FALSE) -> 55701368.66 | AG97: =VLOOKUP($U97,Output!$C:$AM,AG$94,FALSE) -> 55002655.59 | AH97: =VLOOKUP($U97,Output!$C:$AM,AH$94,FALSE) -> 54428863.5 | AI97: =VLOOKUP($U97,Output!$C:$AM,AI$94,FALSE) -> 55439112.32 | AJ97: =VLOOKUP($U97,Output!$C:$AM,AJ$94,FALSE) -> 56576052.75 | AK97: =VLOOKUP($U97,Output!$C:$AM,AK$94,FALSE) -> 58644898.36 | AL97: =VLOOKUP($U97,Output!$C:$AM,AL$94,FALSE) -> 60395862.37 | AM97: =VLOOKUP($U97,Output!$C:$AM,AM$94,FALSE) -> 62008506.13 | AN97: =VLOOKUP($U97,Output!$C:$AM,AN$94,FALSE) -> 60083458.82 | AO97: =VLOOKUP($U97,Output!$C:$AM,AO$94,FALSE) -> 59822295.7 | AP97: =VLOOKUP($U97,Output!$C:$AM,AP$94,FALSE) -> 60630903.25 | AQ97: =VLOOKUP($U97,Output!$C:$AM,AQ$94,FALSE) -> 59436498.1 | AR97: =VLOOKUP($U97,Output!$C:$AM,AR$94,FALSE) -> 57967591.29 | AS97: =VLOOKUP($U97,Output!$C:$AM,AS$94,FALSE) -> 57091362.71 | AT97: =VLOOKUP($U97,Output!$C:$AM,AT$94,FALSE) -> 58657067.51 | AU97: =VLOOKUP($U97,Output!$C:$AM,AU$94,FALSE) -> 56748687.8 | AV97: =VLOOKUP($U97,Output!$C:$AM,AV$94,FALSE) -> 54081990.61 | AW97: =VLOOKUP($U97,Output!$C:$AM,AW$94,FALSE) -> 52925642.32 | AX97: =VLOOKUP($U97,Output!$C:$AM,AX$94,FALSE) -> 51542867.7 | AY97: =VLOOKUP($U97,Output!$C:$AM,AY$94,FALSE) -> 51941300.08 | AZ97: =VLOOKUP($U97,Output!$C:$AM,AZ$94,FALSE) -> 50680488.97
S98: =LEFT(B$91,10) -> Figure 6. | T98: Volume sur pied | U98: OVOLTOTPIEDINC | V98: =VLOOKUP($U98,Output!$C:$AM,V$94,FALSE) -> 91578252.97 | W98: =VLOOKUP($U98,Output!$C:$AM,W$94,FALSE) -> 91458105.47 | X98: =VLOOKUP($U98,Output!$C:$AM,X$94,FALSE) -> 80818611.13 | Y98: =VLOOKUP($U98,Output!$C:$AM,Y$94,FALSE) -> 80818611.13 | Z98: =VLOOKUP($U98,Output!$C:$AM,Z$94,FALSE) -> 80919336.22 | AA98: =VLOOKUP($U98,Output!$C:$AM,AA$94,FALSE) -> 81664110.24 | AB98: =VLOOKUP($U98,Output!$C:$AM,AB$94,FALSE) -> 83124850.51 | AC98: =VLOOKUP($U98,Output!$C:$AM,AC$94,FALSE) -> 84040078.15 | AD98: =VLOOKUP($U98,Output!$C:$AM,AD$94,FALSE) -> 83968099.57 | AE98: =VLOOKUP($U98,Output!$C:$AM,AE$94,FALSE) -> 84346120.94 | AF98: =VLOOKUP($U98,Output!$C:$AM,AF$94,FALSE) -> 85107754.84 | AG98: =VLOOKUP($U98,Output!$C:$AM,AG$94,FALSE) -> 86015223.73 | AH98: =VLOOKUP($U98,Output!$C:$AM,AH$94,FALSE) -> 87003160.75 | AI98: =VLOOKUP($U98,Output!$C:$AM,AI$94,FALSE) -> 88468609.87 | AJ98: =VLOOKUP($U98,Output!$C:$AM,AJ$94,FALSE) -> 89842089.69 | AK98: =VLOOKUP($U98,Output!$C:$AM,AK$94,FALSE) -> 91329582.91 | AL98: =VLOOKUP($U98,Output!$C:$AM,AL$94,FALSE) -> 92778084.12 | AM98: =VLOOKUP($U98,Output!$C:$AM,AM$94,FALSE) -> 94068596.96 | AN98: =VLOOKUP($U98,Output!$C:$AM,AN$94,FALSE) -> 93321446.98 | AO98: =VLOOKUP($U98,Output!$C:$AM,AO$94,FALSE) -> 92431818.67 | AP98: =VLOOKUP($U98,Output!$C:$AM,AP$94,FALSE) -> 91413647.18 | AQ98: =VLOOKUP($U98,Output!$C:$AM,AQ$94,FALSE) -> 90289351.39 | AR98: =VLOOKUP($U98,Output!$C:$AM,AR$94,FALSE) -> 89230914.54 | AS98: =VLOOKUP($U98,Output!$C:$AM,AS$94,FALSE) -> 88237277.46 | AT98: =VLOOKUP($U98,Output!$C:$AM,AT$94,FALSE) -> 87088204.69 | AU98: =VLOOKUP($U98,Output!$C:$AM,AU$94,FALSE) -> 85921081.15 | AV98: =VLOOKUP($U98,Output!$C:$AM,AV$94,FALSE) -> 84773835.27 | AW98: =VLOOKUP($U98,Output!$C:$AM,AW$94,FALSE) -> 83667009.71 | AX98: =VLOOKUP($U98,Output!$C:$AM,AX$94,FALSE) -> 83667009.71 | AY98: =VLOOKUP($U98,Output!$C:$AM,AY$94,FALSE) -> 83667009.71 | AZ98: =VLOOKUP($U98,Output!$C:$AM,AZ$94,FALSE) -> 83667009.71
S99: =LEFT(B$91,10) -> Figure 6. | T99: Volume récoltable | U99: OVOLTOTADMREGAPRE | V99: =VLOOKUP($U99,Output!$C:$AM,V$94,FALSE) -> 0 | W99: =VLOOKUP($U99,Output!$C:$AM,W$94,FALSE) -> 26163288.98 | X99: =VLOOKUP($U99,Output!$C:$AM,X$94,FALSE) -> 33807984.45 | Y99: =VLOOKUP($U99,Output!$C:$AM,Y$94,FALSE) -> 26450547.91 | Z99: =VLOOKUP($U99,Output!$C:$AM,Z$94,FALSE) -> 21923653.51 | AA99: =VLOOKUP($U99,Output!$C:$AM,AA$94,FALSE) -> 22944780.72 | AB99: =VLOOKUP($U99,Output!$C:$AM,AB$94,FALSE) -> 19883933.74 | AC99: =VLOOKUP($U99,Output!$C:$AM,AC$94,FALSE) -> 22307980.63 | AD99: =VLOOKUP($U99,Output!$C:$AM,AD$94,FALSE) -> 31490406.36 | AE99: =VLOOKUP($U99,Output!$C:$AM,AE$94,FALSE) -> 27963574.34 | AF99: =VLOOKUP($U99,Output!$C:$AM,AF$94,FALSE) -> 32151229.08 | AG99: =VLOOKUP($U99,Output!$C:$AM,AG$94,FALSE) -> 16959809.67 | AH99: =VLOOKUP($U99,Output!$C:$AM,AH$94,FALSE) -> 19679069.93 | AI99: =VLOOKUP($U99,Output!$C:$AM,AI$94,FALSE) -> 17677787.48 | AJ99: =VLOOKUP($U99,Output!$C:$AM,AJ$94,FALSE) -> 22890751.52 | AK99: =VLOOKUP($U99,Output!$C:$AM,AK$94,FALSE) -> 22524917.49 | AL99: =VLOOKUP($U99,Output!$C:$AM,AL$94,FALSE) -> 13465499.01 | AM99: =VLOOKUP($U99,Output!$C:$AM,AM$94,FALSE) -> 14617993.07 | AN99: =VLOOKUP($U99,Output!$C:$AM,AN$94,FALSE) -> 20541518.89 | AO99: =VLOOKUP($U99,Output!$C:$AM,AO$94,FALSE) -> 19346865.19 | AP99: =VLOOKUP($U99,Output!$C:$AM,AP$94,FALSE) -> 23222486.78 | AQ99: =VLOOKUP($U99,Output!$C:$AM,AQ$94,FALSE) -> 18516778.94 | AR99: =VLOOKUP($U99,Output!$C:$AM,AR$94,FALSE) -> 23649518.91 | AS99: =VLOOKUP($U99,Output!$C:$AM,AS$94,FALSE) -> 20516679.34 | AT99: =VLOOKUP($U99,Output!$C:$AM,AT$94,FALSE) -> 14536983.86 | AU99: =VLOOKUP($U99,Output!$C:$AM,AU$94,FALSE) -> 15737449.43 | AV99: =VLOOKUP($U99,Output!$C:$AM,AV$94,FALSE) -> 15306040.09 | AW99: =VLOOKUP($U99,Output!$C:$AM,AW$94,FALSE) -> 17660742.07 | AX99: =VLOOKUP($U99,Output!$C:$AM,AX$94,FALSE) -> 20089174.29 | AY99: =VLOOKUP($U99,Output!$C:$AM,AY$94,FALSE) -> 16819745.61 | AZ99: =VLOOKUP($U99,Output!$C:$AM,AZ$94,FALSE) -> 19399619.05
X101: =X96-W96 -> -425361.6 | Y101: =Y96-X96 -> 0 | Z101: 0 | AA101: 0 | AB101: 0 | AC101: 596004.42 | AD101: 1049683.97 | AE101: 568.38 | AF101: 10499.14 | AG101: 0 | AH101: 6155.5 | AI101: 2831.15 | AJ101: 0 | AK101: 7344.66 | AL101: 0 | AM101: 216890.31 | AN101: 2037680.1 | AO101: 0 | AP101: 15706.44 | AQ101: 0 | AR101: 47238.95 | AS101: 0 | AT101: 0 | AU101: 117.47 | AV101: 0 | AW101: 4375.33 | AX101: 0 | AY101: 0 | AZ101: 77.85
AR102: =AR101/AR96 -> 0.004883182953
T116: * Source: Cahier_analyse, Tableau 13, onglet Budget | X116: Moyenne P2 à P6
B117: Figure 7. Répartition du budget annuel par familles de traitements prévus à la stratégie d’aménagement et coût moyen à l’hectare par famille de traitements
S118: =LEFT(B$117,10) -> Figure 7. | T118: Légende | U118: Output taux | V118: Output superficie | W118: $/ha | X118: ha | Y118: $
S119: =LEFT(B$117,10) -> Figure 7. | T119: Coupes avec protection de la régénération et des sols (CPRS) | U119: OTAUXCT_100 | V119: OSUPCT | W119: =IFERROR(VLOOKUP(U119,Output!$C:$AQ,37,FALSE),0) -> 0 | X119: =IFERROR(VLOOKUP(V119,Output!$C:$AQ,37,FALSE),"0000")/5 -> 9481.8668 | Y119: =W119*X119 -> 0
S120: =LEFT(B$117,10) -> Figure 7. | T120: Coupe avec protection des petites tiges marchandes (CPPTM) | V120: OSUPREALaCPPTM | W120: =IFERROR(VLOOKUP(U120,Output!$C:$AQ,8,FALSE),0) -> 0 | X120: =IFERROR(VLOOKUP(V120,Output!$C:$AQ,37,FALSE),"0000")/5 -> 0 | Y120: =W120*X120 -> 0
S121: =LEFT(B$117,10) -> Figure 7. | T121: Coupe avec réserve de semenciers (CRS) | V121: OSUPREALaCRS | W121: =IFERROR(VLOOKUP(U121,Output!$C:$AQ,8,FALSE),0) -> 0 | X121: =IFERROR(VLOOKUP(V121,Output!$C:$AQ,37,FALSE),"0000")/5 -> 0 | Y121: 0
T122: Coupe à rétention variable (CRV, CPPTM, CPPTM, CPHR, CDL)
S123: =LEFT(B$117,10) -> Figure 7. | T123: Coupes finales | W123: =(ROUND(Y123/X123,0))&"$/ha" -> 0$/ha | X123: =SUM(X119:X121) -> 9481.8668 | Y123: =SUM(Y119:Y121) -> 0
S124: Figure 7. | T124: Éclaircie commerciale (EC) | U124: OTAUXEC_SEPM_100 | V124: OSUPEC_SEPM | W124: =IFERROR(VLOOKUP(U124,Output!$C:$AQ,37,FALSE),0) -> 1250 | X124: =IFERROR(VLOOKUP(V124,Output!$C:$AQ,37,FALSE),"0000")/5 -> 72.1628 | Y124: 90203.5
S125: Figure 7. | T125: Coupe progressive régulière initiale (CPROG) | U125: OTAUXCPROG_INI_100 | V125: OSUPCPROG_INI | W125: =IFERROR(VLOOKUP(U125,Output!$C:$AQ,37,FALSE),0) -> 430 | X125: =IFERROR(VLOOKUP(V125,Output!$C:$AQ,37,FALSE),"0000")/5 -> 0 | Y125: 0
S126: Figure 7. | T126: Coupe progressive régulière finale (CPROG) | U126: OTAUXCPROG_FIN_100 | V126: OSUPCPROG_FIN | W126: =IFERROR(VLOOKUP(U126,Output!$C:$AQ,37,FALSE),0) -> 0 | X126: =IFERROR(VLOOKUP(V126,Output!$C:$AQ,37,FALSE),"0000")/5 -> 0 | Y126: 0
S127: Figure 7. | T127: Coupe progessive irrégulière initiale (CPIRL) | U127: OTAUXCPIRL_INI_100 | V127: OSUPCPIRL_INI | W127: =IFERROR(VLOOKUP(U127,Output!$C:$AQ,37,FALSE),0) -> 300 | X127: =IFERROR(VLOOKUP(V127,Output!$C:$AQ,37,FALSE),"0000")/5 -> 1363.852 | Y127: 409155.6
S128: Figure 7. | T128: Coupe progessive irrégulière finale (CPIRL) | U128: OTAUXCPIRL_FIN_100 | V128: OSUPCPIRL_FIN | W128: =IFERROR(VLOOKUP(U128,Output!$C:$AQ,37,FALSE),0) -> 0 | X128: =IFERROR(VLOOKUP(V128,Output!$C:$AQ,37,FALSE),"0000")/5 -> 0 | Y128: 0
S129: Figure 7. | T129: Coupe à couvert permanent (CPICP) | U129: OTAUXCPICP_100 | V129: OSUPCPICP | W129: =IFERROR(VLOOKUP(U129,Output!$C:$AQ,37,FALSE),0) -> 350 | X129: =IFERROR(VLOOKUP(V129,Output!$C:$AQ,37,FALSE),"0000")/5 -> 0 | Y129: 0
S130: Figure 7. | T130: Coupe de jardinage (CJ) | U130: OTAUXCJ_100 | V130: OSUPCJ | W130: =IFERROR(VLOOKUP(U130,Output!$C:$AQ,37,FALSE),0) -> 580 | X130: =IFERROR(VLOOKUP(V130,Output!$C:$AQ,37,FALSE),"0000")/5 -> 0 | Y130: 0
S131: Figure 7. | T131: Coupes partielles | W131: =(ROUND(Y131/X131,0))&"$/ha" -> 348$/ha | X131: =SUM(X124:X130) -> 1436.0148 | Y131: =SUM(Y124:Y130) -> 499359.1
S132: Figure 7. | T132: Plantation ligniculture (pins, feuillus) | U132: OTAUXPL_PPF_100 | V132: OSUPPL_PPF | W132: =IFERROR(VLOOKUP(U132,Output!$C:$AQ,37,FALSE),0) -> 1640 | X132: =IFERROR(VLOOKUP(V132,Output!$C:$AQ,37,FALSE),"0000")/5 -> 0 | Y132: 0
S133: Figure 7. | T133: Plantation intensive | U133: OTAUXPL_SEPM_I_100 | V133: OSUPPL_SEPM_I | W133: =IFERROR(VLOOKUP(U133,Output!$C:$AQ,37,FALSE),0) -> 1390 | X133: =IFERROR(VLOOKUP(V133,Output!$C:$AQ,37,FALSE),"0000")/5 -> 282.6884 | Y133: 392936.876
S134: Figure 7. | T134: Plantation de base | U134: OTAUXPL_SEPM_E_100 | V134: OSUPPL_SEPM_E | W134: =IFERROR(VLOOKUP(U134,Output!$C:$AQ,37,FALSE),0) -> 1110 | X134: =IFERROR(VLOOKUP(V134,Output!$C:$AQ,37,FALSE),"0000")/5 -> 2707.3116 | Y134: 3005115.876
S135: Figure 7. | T135: Regarni | U135: OTAUXREG_100 | V135: OSUPREG | W135: =IFERROR(VLOOKUP(U135,Output!$C:$AQ,37,FALSE),0) -> 420 | X135: =IFERROR(VLOOKUP(V135,Output!$C:$AQ,37,FALSE),"0000")/5 -> 94 | Y135: 39480
S136: Figure 7. | T136: Ensemencement (ENS) | U136: OTAUXENS_100 | V136: OSUPENS | W136: =IFERROR(VLOOKUP(U136,Output!$C:$AQ,37,FALSE),0) -> 130 | X136: =IFERROR(VLOOKUP(V136,Output!$C:$AQ,37,FALSE),"0000")/5 -> 0 | Y136: =W136*X136 -> 0
S137: Figure 7. | T137: Reboisement | W137: =(ROUND(Y137/X137,0))&"$/ha" -> 1115$/ha | X137: =SUM(X132:X136) -> 3084 | Y137: =SUM(Y132:Y136) -> 3437532.752
S138: Figure 7. | T138: Dégagement de la régénération naturelle | U138: OTAUXDEG_2_100 | V138: OSUPDEG_2 | W138: =IFERROR(VLOOKUP(U138,Output!$C:$AQ,37,FALSE),0) -> 1280 | X138: =IFERROR(VLOOKUP(V138,Output!$C:$AQ,37,FALSE),"0000")/5 -> 94 | Y138: 120320
S139: Figure 7. | T139: Dégagement de plantation | U139: OTAUXDEG_1_100 | V139: OSUPDEG_1 | W139: =IFERROR(VLOOKUP(U139,Output!$C:$AQ,37,FALSE),0) -> 1280 | X139: =IFERROR(VLOOKUP(V139,Output!$C:$AQ,37,FALSE),"0000")/5 -> 1164 | Y139: 1489920
S140: Figure 7. | T140: Nettoiement de la régénération naturelle | U140: OTAUXNETT_100 | V140: OSUPREALNET | W140: =IFERROR(VLOOKUP(U140,Output!$C:$AQ,37,FALSE),0) -> 1240 | X140: =IFERROR(VLOOKUP(V140,Output!$C:$AQ,37,FALSE),"0000")/5-X141 -> 0.04 | Y140: 49.6
C141: $ /m3 | E141: $ /ha | S141: Figure 7. | T141: Nettoiement de plantation | U141: OTAUXNETT_100 | V141: OSUPTCADNETT_T100% | W141: =IFERROR(VLOOKUP(U141,Output!$C:$AQ,37,FALSE),0) -> 1240 | X141: =IFERROR(VLOOKUP(V141,Output!$C:$AQ,37,FALSE),"0000")/5 -> 228 | Y141: 282720
C142: =Y151/(Instructions!I5/5) -> 6.306518863 | E142: =Y151/Tableaux!F33 -> 5.566226074 | S142: Figure 7. | T142: Éclaircie précommerciale (EPC_1) | U142: OTAUXEPC_1_100 | V142: OSUPEPC_1 | W142: =IFERROR(VLOOKUP(U142,Output!$C:$AQ,37,FALSE),0) -> 1560 | X142: =IFERROR(VLOOKUP(V142,Output!$C:$AQ,37,FALSE),"0000")/5 -> 0 | Y142: 0
S143: Figure 7. | T143: Éclaircie précommerciale (EPC_2) | U143: OTAUXEPC_2_100 | V143: OSUPEPC_2 | W143: =IFERROR(VLOOKUP(U143,Output!$C:$AQ,37,FALSE),0) -> 1560 | X143: =IFERROR(VLOOKUP(V143,Output!$C:$AQ,37,FALSE),"0000")/5 -> 0 | Y143: 0
S144: Figure 7. | T144: Éclaircie précommerciale de la régénération naturelle | V144: OSUPREALEPC | W144: =IFERROR(VLOOKUP(U144,Output!$C:$AQ,37,FALSE),0) -> 0 | X144: =IFERROR(VLOOKUP(V144,Output!$C:$AQ,37,FALSE),"0000")/5 -> 0 | Y144: 0
S145: Figure 7. | T145: Élagage (plantation) | U145: OTAUXELAG_100 | V145: OSUPELAG | W145: =IFERROR(VLOOKUP(U145,Output!$C:$AQ,37,FALSE),0) -> 1630 | X145: =IFERROR(VLOOKUP(V145,Output!$C:$AQ,37,FALSE),"0000")/5 -> 0 | Y145: 0
S146: Figure 7. | T146: Travaux d'éducation | W146: =(ROUND(Y146/X146,0))&"$/ha" -> 1274$/ha | X146: =SUM(X138:X143)+X145 -> 1486.04 | Y146: =SUM(Y138:Y143)+Y145 -> 1893009.6
S147: Figure 7. | T147: Préparation terrain lignicult. + ferti + élagage (SCA_LIGN) | U147: OTAUXSCA_LIGN_100 | V147: OSUPSCA_LIGN | W147: =IFERROR(VLOOKUP(U147,Output!$C:$AQ,37,FALSE),0) -> 1540 | X147: =IFERROR(VLOOKUP(V147,Output!$C:$AQ,37,FALSE),"0000")/5 -> 0 | Y147: 0
S148: Figure 7. | T148: Préparation de terrain partielle (SCA_PART) | U148: OTAUXSCA_PART_100 | V148: OSUPSCA_PART | W148: =IFERROR(VLOOKUP(U148,Output!$C:$AQ,37,FALSE),0) -> 560 | X148: =IFERROR(VLOOKUP(V148,Output!$C:$AQ,37,FALSE),"0000")/5 -> 94 | Y148: 52640
S149: Figure 7. | T149: Préparation de terrain régulière, 1 passage (SCA_REG) | U149: OTAUXSCA_REG_100 | V149: OSUPSCA_REG | W149: =IFERROR(VLOOKUP(U149,Output!$C:$AQ,37,FALSE),0) -> 430 | X149: =IFERROR(VLOOKUP(V149,Output!$C:$AQ,37,FALSE),"0000")/5 -> 2990 | Y149: 1285700 | AA149: Valideur
B150: Figure 9b Évolution de la superficie des vieilles forêts selon leur degré d'altération | S150: Figure 7. | T150: Préparation de terrain | W150: =(ROUND(Y150/X150,0))&"$/ha" -> 434$/ha | X150: =SUM(X147:X149) -> 3084 | Y150: =SUM(Y147:Y149) -> 1338340 | Z150: =Y123+Y131+Y137+Y146+Y150 -> 7168241.452 | AA150: =Y151-Z150 -> 0.1479999991
S151: Figure 7. | T151: Investissement sylvicole annuel (O$INVESTISTS)* | V151: O$INVESTISTS | Y151: =IFERROR(VLOOKUP(V151,Output!$C:$AQ,37,FALSE),"0000")/5 -> 7168241.6
S155: =LEFT(B$117,10) -> Figure 7. | T155: =T123 -> Coupes finales | U155: =Y123 -> 0 | V155: =W123 -> 0$/ha
S156: =LEFT(B$117,10) -> Figure 7. | T156: =T131 -> Coupes partielles | U156: =Y131 -> 499359.1 | V156: =W131 -> 348$/ha
S157: =LEFT(B$117,10) -> Figure 7. | T157: =T137 -> Reboisement | U157: =Y137 -> 3437532.752 | V157: =W137 -> 1115$/ha
S158: =LEFT(B$117,10) -> Figure 7. | T158: =T146 -> Travaux d'éducation | U158: =Y146 -> 1893009.6 | V158: =W146 -> 1274$/ha
S159: =LEFT(B$117,10) -> Figure 7. | T159: =T150 -> Préparation de terrain | U159: =Y150 -> 1338340 | V159: =W150 -> 434$/ha
U161: Période | V161: P0 | W161: P1 | X161: P2 | Y161: P3 | Z161: P4 | AA161: P5 | AB161: P6 | AC161: P7 | AD161: P8 | AE161: P9 | AF161: P10 | AG161: P11 | AH161: P12 | AI161: P13 | AJ161: P14 | AK161: P15 | AL161: P16 | AM161: P17 | AN161: P18 | AO161: P19 | AP161: P20 | AQ161: P21 | AR161: P22 | AS161: P23 | AT161: P24 | AU161: P25 | AV161: P26 | AW161: P27 | AX161: P28 | AY161: P29 | AZ161: P30
S162: =LEFT(B$150,10) -> Figure 9b | U162: Axe des "X" Fin de période | V162: 2018 | W162: 2023 | X162: 2028 | Y162: 2033 | Z162: 2038 | AA162: 2043 | AB162: 2048 | AC162: 2053 | AD162: 2058 | AE162: 2063 | AF162: 2068 | AG162: 2073 | AH162: 2078 | AI162: 2083 | AJ162: 2088 | AK162: 2093 | AL162: 2098 | AM162: 2103 | AN162: 2108 | AO162: 2113 | AP162: 2118 | AQ162: 2123 | AR162: 2128 | AS162: 2133 | AT162: 2138 | AU162: 2143 | AV162: 2148 | AW162: 2153 | AX162: 2158 | AY162: 2163 | AZ162: 2168
S163: Figure 9b | U163: Colonne | V163: 6 | W163: 7 | X163: 8 | Y163: 9 | Z163: 10 | AA163: 11 | AB163: 12 | AC163: 13 | AD163: 14 | AE163: 15 | AF163: 16 | AG163: 17 | AH163: 18 | AI163: 19 | AJ163: 20 | AK163: 21 | AL163: 22 | AM163: 23 | AN163: 24 | AO163: 25 | AP163: 26 | AQ163: 27 | AR163: 28 | AS163: 29 | AT163: 30 | AU163: 31 | AV163: 32 | AW163: 33 | AX163: 34 | AY163: 35 | AZ163: 36
S164: Figure 9b | U164: OSUPREGECO | V164: =VLOOKUP($U164,Output!$C:$AL,V$163,FALSE) -> 1770606.3 | W164: =VLOOKUP($U164,Output!$C:$AL,W$163,FALSE) -> 1768013.71 | X164: =VLOOKUP($U164,Output!$C:$AL,X$163,FALSE) -> 1765656.03 | Y164: =VLOOKUP($U164,Output!$C:$AL,Y$163,FALSE) -> 1763248.42 | Z164: =VLOOKUP($U164,Output!$C:$AL,Z$163,FALSE) -> 1760803.34 | AA164: =VLOOKUP($U164,Output!$C:$AL,AA$163,FALSE) -> 1758355.12 | AB164: =VLOOKUP($U164,Output!$C:$AL,AB$163,FALSE) -> 1755923.88 | AC164: =VLOOKUP($U164,Output!$C:$AL,AC$163,FALSE) -> 1753585.9 | AD164: =VLOOKUP($U164,Output!$C:$AL,AD$163,FALSE) -> 1751309.37 | AE164: =VLOOKUP($U164,Output!$C:$AL,AE$163,FALSE) -> 1749884.69 | AF164: =VLOOKUP($U164,Output!$C:$AL,AF$163,FALSE) -> 1748066.61 | AG164: =VLOOKUP($U164,Output!$C:$AL,AG$163,FALSE) -> 1746518.03 | AH164: =VLOOKUP($U164,Output!$C:$AL,AH$163,FALSE) -> 1744592.04 | AI164: =VLOOKUP($U164,Output!$C:$AL,AI$163,FALSE) -> 1743056.76 | AJ164: =VLOOKUP($U164,Output!$C:$AL,AJ$163,FALSE) -> 1741757.16 | AK164: =VLOOKUP($U164,Output!$C:$AL,AK$163,FALSE) -> 1740119.37 | AL164: =VLOOKUP($U164,Output!$C:$AL,AL$163,FALSE) -> 1739095.02 | AM164: =VLOOKUP($U164,Output!$C:$AL,AM$163,FALSE) -> 1737848.05 | AN164: =VLOOKUP($U164,Output!$C:$AL,AN$163,FALSE) -> 1736908.8 | AO164: =VLOOKUP($U164,Output!$C:$AL,AO$163,FALSE) -> 1736523.39 | AP164: =VLOOKUP($U164,Output!$C:$AL,AP$163,FALSE) -> 1735938.81 | AQ164: =VLOOKUP($U164,Output!$C:$AL,AQ$163,FALSE) -> 1735327.06 | AR164: =VLOOKUP($U164,Output!$C:$AL,AR$163,FALSE) -> 1734524.97 | AS164: =VLOOKUP($U164,Output!$C:$AL,AS$163,FALSE) -> 1734019.44 | AT164: =VLOOKUP($U164,Output!$C:$AL,AT$163,FALSE) -> 1733789.17 | AU164: =VLOOKUP($U164,Output!$C:$AL,AU$163,FALSE) -> 1733705.98 | AV164: =VLOOKUP($U164,Output!$C:$AL,AV$163,FALSE) -> 1733645.94 | AW164: =VLOOKUP($U164,Output!$C:$AL,AW$163,FALSE) -> 1733415.22 | AX164: =VLOOKUP($U164,Output!$C:$AL,AX$163,FALSE) -> 1733177.22 | AY164: =VLOOKUP($U164,Output!$C:$AL,AY$163,FALSE) -> 1732950.62 | AZ164: =VLOOKUP($U164,Output!$C:$AL,AZ$163,FALSE) -> 1732682.92
S165: Figure 9b | T165: Élevé | U165: OSUPVIEUXALERTEREGECO | V165: =VLOOKUP($U165,Output!$C:$AL,V$163,FALSE) -> 392557.42 | W165: =VLOOKUP($U165,Output!$C:$AL,W$163,FALSE) -> 391984.43 | X165: =VLOOKUP($U165,Output!$C:$AL,X$163,FALSE) -> 391504.52 | Y165: =VLOOKUP($U165,Output!$C:$AL,Y$163,FALSE) -> 391005.26 | Z165: =VLOOKUP($U165,Output!$C:$AL,Z$163,FALSE) -> 390486.56 | AA165: =VLOOKUP($U165,Output!$C:$AL,AA$163,FALSE) -> 389954.75 | AB165: =VLOOKUP($U165,Output!$C:$AL,AB$163,FALSE) -> 389436.4 | AC165: =VLOOKUP($U165,Output!$C:$AL,AC$163,FALSE) -> 388868.88 | AD165: =VLOOKUP($U165,Output!$C:$AL,AD$163,FALSE) -> 388326.36 | AE165: =VLOOKUP($U165,Output!$C:$AL,AE$163,FALSE) -> 388008.13 | AF165: =VLOOKUP($U165,Output!$C:$AL,AF$163,FALSE) -> 387580.79 | AG165: =VLOOKUP($U165,Output!$C:$AL,AG$163,FALSE) -> 387250.39 | AH165: =VLOOKUP($U165,Output!$C:$AL,AH$163,FALSE) -> 386798.67 | AI165: =VLOOKUP($U165,Output!$C:$AL,AI$163,FALSE) -> 386438.24 | AJ165: =VLOOKUP($U165,Output!$C:$AL,AJ$163,FALSE) -> 386161.43 | AK165: =VLOOKUP($U165,Output!$C:$AL,AK$163,FALSE) -> 385783.58 | AL165: =VLOOKUP($U165,Output!$C:$AL,AL$163,FALSE) -> 385559.4 | AM165: =VLOOKUP($U165,Output!$C:$AL,AM$163,FALSE) -> 385258.29 | AN165: =VLOOKUP($U165,Output!$C:$AL,AN$163,FALSE) -> 385042.74 | AO165: =VLOOKUP($U165,Output!$C:$AL,AO$163,FALSE) -> 384958.32 | AP165: =VLOOKUP($U165,Output!$C:$AL,AP$163,FALSE) -> 384817.37 | AQ165: =VLOOKUP($U165,Output!$C:$AL,AQ$163,FALSE) -> 384685.26 | AR165: =VLOOKUP($U165,Output!$C:$AL,AR$163,FALSE) -> 384502.8 | AS165: =VLOOKUP($U165,Output!$C:$AL,AS$163,FALSE) -> 384392.14 | AT165: =VLOOKUP($U165,Output!$C:$AL,AT$163,FALSE) -> 384342.37 | AU165: =VLOOKUP($U165,Output!$C:$AL,AU$163,FALSE) -> 384322.98 | AV165: =VLOOKUP($U165,Output!$C:$AL,AV$163,FALSE) -> 384309.53 | AW165: =VLOOKUP($U165,Output!$C:$AL,AW$163,FALSE) -> 384261.17 | AX165: =VLOOKUP($U165,Output!$C:$AL,AX$163,FALSE) -> 384210.03 | AY165: =VLOOKUP($U165,Output!$C:$AL,AY$163,FALSE) -> 384162.48 | AZ165: =VLOOKUP($U165,Output!$C:$AL,AZ$163,FALSE) -> 384104.37
S166: Figure 9b | U166: OSUPVIEUXACCEPTREGECO | V166: =VLOOKUP($U166,Output!$C:$AL,V$163,FALSE) -> 654262.37 | W166: =VLOOKUP($U166,Output!$C:$AL,W$163,FALSE) -> 653307.38 | X166: =VLOOKUP($U166,Output!$C:$AL,X$163,FALSE) -> 652507.53 | Y166: =VLOOKUP($U166,Output!$C:$AL,Y$163,FALSE) -> 651675.43 | Z166: =VLOOKUP($U166,Output!$C:$AL,Z$163,FALSE) -> 650810.94 | AA166: =VLOOKUP($U166,Output!$C:$AL,AA$163,FALSE) -> 649924.58 | AB166: =VLOOKUP($U166,Output!$C:$AL,AB$163,FALSE) -> 649060.66 | AC166: =VLOOKUP($U166,Output!$C:$AL,AC$163,FALSE) -> 648114.8 | AD166: =VLOOKUP($U166,Output!$C:$AL,AD$163,FALSE) -> 647210.61 | AE166: =VLOOKUP($U166,Output!$C:$AL,AE$163,FALSE) -> 646680.21 | AF166: =VLOOKUP($U166,Output!$C:$AL,AF$163,FALSE) -> 645967.98 | AG166: =VLOOKUP($U166,Output!$C:$AL,AG$163,FALSE) -> 645417.32 | AH166: =VLOOKUP($U166,Output!$C:$AL,AH$163,FALSE) -> 644664.44 | AI166: =VLOOKUP($U166,Output!$C:$AL,AI$163,FALSE) -> 644063.73 | AJ166: =VLOOKUP($U166,Output!$C:$AL,AJ$163,FALSE) -> 643602.38 | AK166: =VLOOKUP($U166,Output!$C:$AL,AK$163,FALSE) -> 642972.64 | AL166: =VLOOKUP($U166,Output!$C:$AL,AL$163,FALSE) -> 642599.01 | AM166: =VLOOKUP($U166,Output!$C:$AL,AM$163,FALSE) -> 642097.15 | AN166: =VLOOKUP($U166,Output!$C:$AL,AN$163,FALSE) -> 641737.9 | AO166: =VLOOKUP($U166,Output!$C:$AL,AO$163,FALSE) -> 641597.2 | AP166: =VLOOKUP($U166,Output!$C:$AL,AP$163,FALSE) -> 641362.28 | AQ166: =VLOOKUP($U166,Output!$C:$AL,AQ$163,FALSE) -> 641142.09 | AR166: =VLOOKUP($U166,Output!$C:$AL,AR$163,FALSE) -> 640838 | AS166: =VLOOKUP($U166,Output!$C:$AL,AS$163,FALSE) -> 640653.56 | AT166: =VLOOKUP($U166,Output!$C:$AL,AT$163,FALSE) -> 640570.61 | AU166: =VLOOKUP($U166,Output!$C:$AL,AU$163,FALSE) -> 640538.3 | AV166: =VLOOKUP($U166,Output!$C:$AL,AV$163,FALSE) -> 640515.88 | AW166: =VLOOKUP($U166,Output!$C:$AL,AW$163,FALSE) -> 640435.28 | AX166: =VLOOKUP($U166,Output!$C:$AL,AX$163,FALSE) -> 640350.04 | AY166: =VLOOKUP($U166,Output!$C:$AL,AY$163,FALSE) -> 640270.8 | AZ166: =VLOOKUP($U166,Output!$C:$AL,AZ$163,FALSE) -> 640173.95
S167: Figure 9b | T167: Moyen | V167: =V166-V165 -> 261704.95 | W167: =W166-W165 -> 261322.95 | X167: 261003.01 | Y167: 260670.17 | Z167: 260324.38 | AA167: 259969.83 | AB167: 259624.26 | AC167: 259245.92 | AD167: 258884.25 | AE167: 258672.08 | AF167: 258387.19 | AG167: 258166.93 | AH167: 257865.77 | AI167: 257625.49 | AJ167: 257440.95 | AK167: 257189.06 | AL167: 257039.61 | AM167: 256838.86 | AN167: 256695.16 | AO167: 256638.88 | AP167: 256544.91 | AQ167: 256456.83 | AR167: 256335.2 | AS167: 256261.42 | AT167: 256228.24 | AU167: 256215.32 | AV167: 256206.35 | AW167: 256174.11 | AX167: 256140.01 | AY167: 256108.32 | AZ167: 256069.58
S168: Figure 9b | T168: Faible | V168: =$V$164-V165-V167 -> 1116343.93 | W168: 1117298.92 | X168: 1118098.77 | Y168: 1118930.87 | Z168: 1119795.36 | AA168: 1120681.72 | AB168: 1121545.64 | AC168: 1122491.5 | AD168: 1123395.69 | AE168: 1123926.09 | AF168: 1124638.32 | AG168: 1125188.98 | AH168: 1125941.86 | AI168: 1126542.57 | AJ168: 1127003.92 | AK168: 1127633.66 | AL168: 1128007.29 | AM168: 1128509.15 | AN168: 1128868.4 | AO168: 1129009.1 | AP168: 1129244.02 | AQ168: 1129464.21 | AR168: 1129768.3 | AS168: 1129952.74 | AT168: 1130035.69 | AU168: 1130068 | AV168: 1130090.42 | AW168: 1130171.02 | AX168: 1130256.26 | AY168: 1130335.5 | AZ168: 1130432.35
S169: Figure 9b | T169: Niveau prédit | U169: OSUPVIEUXTOTREGECO | V169: =VLOOKUP($U169,Output!$C:$AL,V$163,FALSE) -> 840876.2 | W169: =VLOOKUP($U169,Output!$C:$AL,W$163,FALSE) -> 803045.98 | X169: =VLOOKUP($U169,Output!$C:$AL,X$163,FALSE) -> 782444.48 | Y169: =VLOOKUP($U169,Output!$C:$AL,Y$163,FALSE) -> 804787.91 | Z169: =VLOOKUP($U169,Output!$C:$AL,Z$163,FALSE) -> 818282.5 | AA169: =VLOOKUP($U169,Output!$C:$AL,AA$163,FALSE) -> 794821.28 | AB169: =VLOOKUP($U169,Output!$C:$AL,AB$163,FALSE) -> 778707.5 | AC169: =VLOOKUP($U169,Output!$C:$AL,AC$163,FALSE) -> 774050.6 | AD169: =VLOOKUP($U169,Output!$C:$AL,AD$163,FALSE) -> 770599.47 | AE169: =VLOOKUP($U169,Output!$C:$AL,AE$163,FALSE) -> 785083.2 | AF169: =VLOOKUP($U169,Output!$C:$AL,AF$163,FALSE) -> 767958.73 | AG169: =VLOOKUP($U169,Output!$C:$AL,AG$163,FALSE) -> 772919.52 | AH169: =VLOOKUP($U169,Output!$C:$AL,AH$163,FALSE) -> 760981.9 | AI169: =VLOOKUP($U169,Output!$C:$AL,AI$163,FALSE) -> 734267.01 | AJ169: =VLOOKUP($U169,Output!$C:$AL,AJ$163,FALSE) -> 710510.45 | AK169: =VLOOKUP($U169,Output!$C:$AL,AK$163,FALSE) -> 714991.33 | AL169: =VLOOKUP($U169,Output!$C:$AL,AL$163,FALSE) -> 738067.33 | AM169: =VLOOKUP($U169,Output!$C:$AL,AM$163,FALSE) -> 754270.68 | AN169: =VLOOKUP($U169,Output!$C:$AL,AN$163,FALSE) -> 746145.87 | AO169: =VLOOKUP($U169,Output!$C:$AL,AO$163,FALSE) -> 806707.61 | AP169: =VLOOKUP($U169,Output!$C:$AL,AP$163,FALSE) -> 812815.02 | AQ169: =VLOOKUP($U169,Output!$C:$AL,AQ$163,FALSE) -> 806318.21 | AR169: =VLOOKUP($U169,Output!$C:$AL,AR$163,FALSE) -> 779088.24 | AS169: =VLOOKUP($U169,Output!$C:$AL,AS$163,FALSE) -> 768019.92 | AT169: =VLOOKUP($U169,Output!$C:$AL,AT$163,FALSE) -> 759664.58 | AU169: =VLOOKUP($U169,Output!$C:$AL,AU$163,FALSE) -> 751768.92 | AV169: =VLOOKUP($U169,Output!$C:$AL,AV$163,FALSE) -> 742591.1 | AW169: =VLOOKUP($U169,Output!$C:$AL,AW$163,FALSE) -> 731842.14 | AX169: =VLOOKUP($U169,Output!$C:$AL,AX$163,FALSE) -> 736962.13 | AY169: =VLOOKUP($U169,Output!$C:$AL,AY$163,FALSE) -> 737209.36 | AZ169: =VLOOKUP($U169,Output!$C:$AL,AZ$163,FALSE) -> 737504.55
S170: Figure 9b | T170: Portrait préindustriel
B176: Figure 9c Évolution de la superficie des peuplements en régénération selon leur degré d'altération
U177: Période | V177: P0 | W177: P1 | X177: P2 | Y177: P3 | Z177: P4 | AA177: P5 | AB177: P6 | AC177: P7 | AD177: P8 | AE177: P9 | AF177: P10 | AG177: P11 | AH177: P12 | AI177: P13 | AJ177: P14 | AK177: P15 | AL177: P16 | AM177: P17 | AN177: P18 | AO177: P19 | AP177: P20 | AQ177: P21 | AR177: P22 | AS177: P23 | AT177: P24 | AU177: P25 | AV177: P26 | AW177: P27 | AX177: P28 | AY177: P29 | AZ177: P30
U178: Axe des "X" Fin de période | V178: 2018 | W178: 2023 | X178: 2028 | Y178: 2033 | Z178: 2038 | AA178: 2043 | AB178: 2048 | AC178: 2053 | AD178: 2058 | AE178: 2063 | AF178: 2068 | AG178: 2073 | AH178: 2078 | AI178: 2083 | AJ178: 2088 | AK178: 2093 | AL178: 2098 | AM178: 2103 | AN178: 2108 | AO178: 2113 | AP178: 2118 | AQ178: 2123 | AR178: 2128 | AS178: 2133 | AT178: 2138 | AU178: 2143 | AV178: 2148 | AW178: 2153 | AX178: 2158 | AY178: 2163 | AZ178: 2168
S179: =LEFT(B$176,10) -> Figure 9c | U179: Colonne | V179: 6 | W179: 7 | X179: 8 | Y179: 9 | Z179: 10 | AA179: 11 | AB179: 12 | AC179: 13 | AD179: 14 | AE179: 15 | AF179: 16 | AG179: 17 | AH179: 18 | AI179: 19 | AJ179: 20 | AK179: 21 | AL179: 22 | AM179: 23 | AN179: 24 | AO179: 25 | AP179: 26 | AQ179: 27 | AR179: 28 | AS179: 29 | AT179: 30 | AU179: 31 | AV179: 32 | AW179: 33 | AX179: 34 | AY179: 35 | AZ179: 36
S180: Figure 9c | T180: Niveau prédit | U180: OSUPJEUNEREGECO | V180: =VLOOKUP($U180,Output!$C:$AL,V$179,FALSE) -> 339257.7 | W180: =VLOOKUP($U180,Output!$C:$AL,W$179,FALSE) -> 262370.57 | X180: =VLOOKUP($U180,Output!$C:$AL,X$179,FALSE) -> 290895.35 | Y180: =VLOOKUP($U180,Output!$C:$AL,Y$179,FALSE) -> 295336.92 | Z180: =VLOOKUP($U180,Output!$C:$AL,Z$179,FALSE) -> 220370.25 | AA180: =VLOOKUP($U180,Output!$C:$AL,AA$179,FALSE) -> 191651.04 | AB180: =VLOOKUP($U180,Output!$C:$AL,AB$179,FALSE) -> 179550.8 | AC180: =VLOOKUP($U180,Output!$C:$AL,AC$179,FALSE) -> 184238.85 | AD180: =VLOOKUP($U180,Output!$C:$AL,AD$179,FALSE) -> 188902.66 | AE180: =VLOOKUP($U180,Output!$C:$AL,AE$179,FALSE) -> 206155.48 | AF180: =VLOOKUP($U180,Output!$C:$AL,AF$179,FALSE) -> 189090.45 | AG180: =VLOOKUP($U180,Output!$C:$AL,AG$179,FALSE) -> 195021.23 | AH180: =VLOOKUP($U180,Output!$C:$AL,AH$179,FALSE) -> 214642.95 | AI180: =VLOOKUP($U180,Output!$C:$AL,AI$179,FALSE) -> 191813.86 | AJ180: =VLOOKUP($U180,Output!$C:$AL,AJ$179,FALSE) -> 197161.81 | AK180: =VLOOKUP($U180,Output!$C:$AL,AK$179,FALSE) -> 182221.31 | AL180: =VLOOKUP($U180,Output!$C:$AL,AL$179,FALSE) -> 174315.38 | AM180: =VLOOKUP($U180,Output!$C:$AL,AM$179,FALSE) -> 189119.65 | AN180: =VLOOKUP($U180,Output!$C:$AL,AN$179,FALSE) -> 189901.29 | AO180: =VLOOKUP($U180,Output!$C:$AL,AO$179,FALSE) -> 220900.73 | AP180: =VLOOKUP($U180,Output!$C:$AL,AP$179,FALSE) -> 220766 | AQ180: =VLOOKUP($U180,Output!$C:$AL,AQ$179,FALSE) -> 252697.78 | AR180: =VLOOKUP($U180,Output!$C:$AL,AR$179,FALSE) -> 271581.9 | AS180: =VLOOKUP($U180,Output!$C:$AL,AS$179,FALSE) -> 257187.85 | AT180: =VLOOKUP($U180,Output!$C:$AL,AT$179,FALSE) -> 267098.76 | AU180: =VLOOKUP($U180,Output!$C:$AL,AU$179,FALSE) -> 234249.97 | AV180: =VLOOKUP($U180,Output!$C:$AL,AV$179,FALSE) -> 230600.5 | AW180: =VLOOKUP($U180,Output!$C:$AL,AW$179,FALSE) -> 231349.76 | AX180: =VLOOKUP($U180,Output!$C:$AL,AX$179,FALSE) -> 212153.31 | AY180: =VLOOKUP($U180,Output!$C:$AL,AY$179,FALSE) -> 234004.25 | AZ180: =VLOOKUP($U180,Output!$C:$AL,AZ$179,FALSE) -> 221112.74
S181: Figure 9c | U181: OSUPREGECO | V181: =VLOOKUP($U181,Output!$C:$AL,V$179,FALSE) -> 1770606.3 | W181: =VLOOKUP($U181,Output!$C:$AL,W$179,FALSE) -> 1768013.71 | X181: =VLOOKUP($U181,Output!$C:$AL,X$179,FALSE) -> 1765656.03 | Y181: =VLOOKUP($U181,Output!$C:$AL,Y$179,FALSE) -> 1763248.42 | Z181: =VLOOKUP($U181,Output!$C:$AL,Z$179,FALSE) -> 1760803.34 | AA181: =VLOOKUP($U181,Output!$C:$AL,AA$179,FALSE) -> 1758355.12 | AB181: =VLOOKUP($U181,Output!$C:$AL,AB$179,FALSE) -> 1755923.88 | AC181: =VLOOKUP($U181,Output!$C:$AL,AC$179,FALSE) -> 1753585.9 | AD181: =VLOOKUP($U181,Output!$C:$AL,AD$179,FALSE) -> 1751309.37 | AE181: =VLOOKUP($U181,Output!$C:$AL,AE$179,FALSE) -> 1749884.69 | AF181: =VLOOKUP($U181,Output!$C:$AL,AF$179,FALSE) -> 1748066.61 | AG181: =VLOOKUP($U181,Output!$C:$AL,AG$179,FALSE) -> 1746518.03 | AH181: =VLOOKUP($U181,Output!$C:$AL,AH$179,FALSE) -> 1744592.04 | AI181: =VLOOKUP($U181,Output!$C:$AL,AI$179,FALSE) -> 1743056.76 | AJ181: =VLOOKUP($U181,Output!$C:$AL,AJ$179,FALSE) -> 1741757.16 | AK181: =VLOOKUP($U181,Output!$C:$AL,AK$179,FALSE) -> 1740119.37 | AL181: =VLOOKUP($U181,Output!$C:$AL,AL$179,FALSE) -> 1739095.02 | AM181: =VLOOKUP($U181,Output!$C:$AL,AM$179,FALSE) -> 1737848.05 | AN181: =VLOOKUP($U181,Output!$C:$AL,AN$179,FALSE) -> 1736908.8 | AO181: =VLOOKUP($U181,Output!$C:$AL,AO$179,FALSE) -> 1736523.39 | AP181: =VLOOKUP($U181,Output!$C:$AL,AP$179,FALSE) -> 1735938.81 | AQ181: =VLOOKUP($U181,Output!$C:$AL,AQ$179,FALSE) -> 1735327.06 | AR181: =VLOOKUP($U181,Output!$C:$AL,AR$179,FALSE) -> 1734524.97 | AS181: =VLOOKUP($U181,Output!$C:$AL,AS$179,FALSE) -> 1734019.44 | AT181: =VLOOKUP($U181,Output!$C:$AL,AT$179,FALSE) -> 1733789.17 | AU181: =VLOOKUP($U181,Output!$C:$AL,AU$179,FALSE) -> 1733705.98 | AV181: =VLOOKUP($U181,Output!$C:$AL,AV$179,FALSE) -> 1733645.94 | AW181: =VLOOKUP($U181,Output!$C:$AL,AW$179,FALSE) -> 1733415.22 | AX181: =VLOOKUP($U181,Output!$C:$AL,AX$179,FALSE) -> 1733177.22 | AY181: =VLOOKUP($U181,Output!$C:$AL,AY$179,FALSE) -> 1732950.62 | AZ181: =VLOOKUP($U181,Output!$C:$AL,AZ$179,FALSE) -> 1732682.92
S182: Figure 9c | V182: =IFERROR(V180/V181,"0000") -> 0.191605384 | W182: 0.1483984929 | X182: 0.1647519931 | Y182: 0.1674959221 | Z182: 0.125153244 | AA182: 0.1089945016 | AB182: 0.1022543187 | AC182: 0.1050640576 | AD182: 0.1078636723 | AE182: 0.1178108942 | AF182: 0.1081711926 | AG182: 0.1116628782 | AH182: 0.1230333196 | AI182: 0.1100445289 | AJ182: 0.1131970716 | AK182: 0.1047177068 | AL182: 0.1002333846 | AM182: 0.1088240425 | AN182: 0.109332908 | AO182: 0.1272086119 | AP182: 0.1271738374 | AQ182: 0.1456196851 | AR182: 0.1565742233 | AS182: 0.1483188966 | AT182: 0.1540549247 | AU182: 0.1351151653 | AV182: 0.1330147608 | AW182: 0.1334647102 | AX182: 0.122407165 | AY182: 0.1350322665 | AZ182: 0.1276129276
S183: Figure 9c
S184: Figure 9c | U184: OSUPJEUNEALERTEREGECO | V184: =VLOOKUP($U184,Output!$C:$AL,V$179,FALSE) -> 594846.66 | W184: =VLOOKUP($U184,Output!$C:$AL,W$179,FALSE) -> 593950.74 | X184: =VLOOKUP($U184,Output!$C:$AL,X$179,FALSE) -> 593135.68 | Y184: =VLOOKUP($U184,Output!$C:$AL,Y$179,FALSE) -> 592302.22 | Z184: =VLOOKUP($U184,Output!$C:$AL,Z$179,FALSE) -> 591457.67 | AA184: =VLOOKUP($U184,Output!$C:$AL,AA$179,FALSE) -> 590630.15 | AB184: =VLOOKUP($U184,Output!$C:$AL,AB$179,FALSE) -> 589791.85 | AC184: =VLOOKUP($U184,Output!$C:$AL,AC$179,FALSE) -> 589048.41 | AD184: =VLOOKUP($U184,Output!$C:$AL,AD$179,FALSE) -> 588310.94 | AE184: =VLOOKUP($U184,Output!$C:$AL,AE$179,FALSE) -> 587824.76 | AF184: =VLOOKUP($U184,Output!$C:$AL,AF$179,FALSE) -> 587237.04 | AG184: =VLOOKUP($U184,Output!$C:$AL,AG$179,FALSE) -> 586702.65 | AH184: =VLOOKUP($U184,Output!$C:$AL,AH$179,FALSE) -> 586076.39 | AI184: =VLOOKUP($U184,Output!$C:$AL,AI$179,FALSE) -> 585578.91 | AJ184: =VLOOKUP($U184,Output!$C:$AL,AJ$179,FALSE) -> 585131.54 | AK184: =VLOOKUP($U184,Output!$C:$AL,AK$179,FALSE) -> 584594.13 | AL184: =VLOOKUP($U184,Output!$C:$AL,AL$179,FALSE) -> 584236.51 | AM184: =VLOOKUP($U184,Output!$C:$AL,AM$179,FALSE) -> 583837.65 | AN184: =VLOOKUP($U184,Output!$C:$AL,AN$179,FALSE) -> 583522.58 | AO184: =VLOOKUP($U184,Output!$C:$AL,AO$179,FALSE) -> 583388.15 | AP184: =VLOOKUP($U184,Output!$C:$AL,AP$179,FALSE) -> 583199.91 | AQ184: =VLOOKUP($U184,Output!$C:$AL,AQ$179,FALSE) -> 582986.04 | AR184: =VLOOKUP($U184,Output!$C:$AL,AR$179,FALSE) -> 582712.85 | AS184: =VLOOKUP($U184,Output!$C:$AL,AS$179,FALSE) -> 582538.71 | AT184: =VLOOKUP($U184,Output!$C:$AL,AT$179,FALSE) -> 582458.47 | AU184: =VLOOKUP($U184,Output!$C:$AL,AU$179,FALSE) -> 582430.84 | AV184: =VLOOKUP($U184,Output!$C:$AL,AV$179,FALSE) -> 582409.84 | AW184: =VLOOKUP($U184,Output!$C:$AL,AW$179,FALSE) -> 582329.68 | AX184: =VLOOKUP($U184,Output!$C:$AL,AX$179,FALSE) -> 582248.16 | AY184: =VLOOKUP($U184,Output!$C:$AL,AY$179,FALSE) -> 582169.03 | AZ184: =VLOOKUP($U184,Output!$C:$AL,AZ$179,FALSE) -> 582076.9
S185: Figure 9c | T185: Faible | U185: OSUPJEUNEACCEPTREGECO | V185: =VLOOKUP($U185,Output!$C:$AL,V$179,FALSE) -> 418717.58 | W185: =VLOOKUP($U185,Output!$C:$AL,W$179,FALSE) -> 418080.92 | X185: =VLOOKUP($U185,Output!$C:$AL,X$179,FALSE) -> 417501.63 | Y185: =VLOOKUP($U185,Output!$C:$AL,Y$179,FALSE) -> 416908.93 | Z185: =VLOOKUP($U185,Output!$C:$AL,Z$179,FALSE) -> 416308.89 | AA185: =VLOOKUP($U185,Output!$C:$AL,AA$179,FALSE) -> 415726.18 | AB185: =VLOOKUP($U185,Output!$C:$AL,AB$179,FALSE) -> 415131.01 | AC185: =VLOOKUP($U185,Output!$C:$AL,AC$179,FALSE) -> 414621.37 | AD185: =VLOOKUP($U185,Output!$C:$AL,AD$179,FALSE) -> 414111.55 | AE185: =VLOOKUP($U185,Output!$C:$AL,AE$179,FALSE) -> 413767.85 | AF185: =VLOOKUP($U185,Output!$C:$AL,AF$179,FALSE) -> 413361.93 | AG185: =VLOOKUP($U185,Output!$C:$AL,AG$179,FALSE) -> 412982.4 | AH185: =VLOOKUP($U185,Output!$C:$AL,AH$179,FALSE) -> 412548.74 | AI185: =VLOOKUP($U185,Output!$C:$AL,AI$179,FALSE) -> 412204.78 | AJ185: =VLOOKUP($U185,Output!$C:$AL,AJ$179,FALSE) -> 411887.37 | AK185: =VLOOKUP($U185,Output!$C:$AL,AK$179,FALSE) -> 411513.74 | AL185: =VLOOKUP($U185,Output!$C:$AL,AL$179,FALSE) -> 411258.56 | AM185: =VLOOKUP($U185,Output!$C:$AL,AM$179,FALSE) -> 410984.4 | AN185: =VLOOKUP($U185,Output!$C:$AL,AN$179,FALSE) -> 410763.25 | AO185: =VLOOKUP($U185,Output!$C:$AL,AO$179,FALSE) -> 410667.36 | AP185: =VLOOKUP($U185,Output!$C:$AL,AP$179,FALSE) -> 410537.58 | AQ185: =VLOOKUP($U185,Output!$C:$AL,AQ$179,FALSE) -> 410384.88 | AR185: =VLOOKUP($U185,Output!$C:$AL,AR$179,FALSE) -> 410191.9 | AS185: =VLOOKUP($U185,Output!$C:$AL,AS$179,FALSE) -> 410068.32 | AT185: =VLOOKUP($U185,Output!$C:$AL,AT$179,FALSE) -> 410011.11 | AU185: =VLOOKUP($U185,Output!$C:$AL,AU$179,FALSE) -> 409991.79 | AV185: =VLOOKUP($U185,Output!$C:$AL,AV$179,FALSE) -> 409976.79 | AW185: =VLOOKUP($U185,Output!$C:$AL,AW$179,FALSE) -> 409919.71 | AX185: =VLOOKUP($U185,Output!$C:$AL,AX$179,FALSE) -> 409861.99 | AY185: =VLOOKUP($U185,Output!$C:$AL,AY$179,FALSE) -> 409805.51 | AZ185: =VLOOKUP($U185,Output!$C:$AL,AZ$179,FALSE) -> 409740.15
S186: Figure 9c | T186: Moyen | V186: =V184-V185 -> 176129.08 | W186: 175869.82 | X186: 175634.05 | Y186: 175393.29 | Z186: 175148.78 | AA186: 174903.97 | AB186: 174660.84 | AC186: 174427.04 | AD186: 174199.39 | AE186: 174056.91 | AF186: 173875.11 | AG186: 173720.25 | AH186: 173527.65 | AI186: 173374.13 | AJ186: 173244.17 | AK186: 173080.39 | AL186: 172977.95 | AM186: 172853.25 | AN186: 172759.33 | AO186: 172720.79 | AP186: 172662.33 | AQ186: 172601.16 | AR186: 172520.95 | AS186: 172470.39 | AT186: 172447.36 | AU186: 172439.05 | AV186: 172433.05 | AW186: 172409.97 | AX186: 172386.17 | AY186: 172363.52 | AZ186: 172336.75
S187: Figure 9c | T187: Élevé | V187: =$V$181-V184 -> 1175759.64 | W187: 1176655.56 | X187: 1177470.62 | Y187: 1178304.08 | Z187: 1179148.63 | AA187: 1179976.15 | AB187: 1180814.45 | AC187: 1181557.89 | AD187: 1182295.36 | AE187: 1182781.54 | AF187: 1183369.26 | AG187: 1183903.65 | AH187: 1184529.91 | AI187: 1185027.39 | AJ187: 1185474.76 | AK187: 1186012.17 | AL187: 1186369.79 | AM187: 1186768.65 | AN187: 1187083.72 | AO187: 1187218.15 | AP187: 1187406.39 | AQ187: 1187620.26 | AR187: 1187893.45 | AS187: 1188067.59 | AT187: 1188147.83 | AU187: 1188175.46 | AV187: 1188196.46 | AW187: 1188276.62 | AX187: 1188358.14 | AY187: 1188437.27 | AZ187: 1188529.4
U199: Période | V199: P0 | W199: P1 | X199: P2 | Y199: P3 | Z199: P4 | AA199: P5 | AB199: P6 | AC199: P7 | AD199: P8 | AE199: P9 | AF199: P10 | AG199: P11 | AH199: P12 | AI199: P13 | AJ199: P14 | AK199: P15 | AL199: P16 | AM199: P17 | AN199: P18 | AO199: P19 | AP199: P20 | AQ199: P21 | AR199: P22 | AS199: P23 | AT199: P24 | AU199: P25 | AV199: P26 | AW199: P27 | AX199: P28 | AY199: P29 | AZ199: P30
U200: Axe des "X" Fin de période | V200: 2018 | W200: 2023 | X200: 2028 | Y200: 2033 | Z200: 2038 | AA200: 2043 | AB200: 2048 | AC200: 2053 | AD200: 2058 | AE200: 2063 | AF200: 2068 | AG200: 2073 | AH200: 2078 | AI200: 2083 | AJ200: 2088 | AK200: 2093 | AL200: 2098 | AM200: 2103 | AN200: 2108 | AO200: 2113 | AP200: 2118 | AQ200: 2123 | AR200: 2128 | AS200: 2133 | AT200: 2138 | AU200: 2143 | AV200: 2148 | AW200: 2153 | AX200: 2158 | AY200: 2163 | AZ200: 2168
U201: Colonne | V201: 6 | W201: 7 | X201: 8 | Y201: 9 | Z201: 10 | AA201: 11 | AB201: 12 | AC201: 13 | AD201: 14 | AE201: 15 | AF201: 16 | AG201: 17 | AH201: 18 | AI201: 19 | AJ201: 20 | AK201: 21 | AL201: 22 | AM201: 23 | AN201: 24 | AO201: 25 | AP201: 26 | AQ201: 27 | AR201: 28 | AS201: 29 | AT201: 30 | AU201: 31 | AV201: 32 | AW201: 33 | AX201: 34 | AY201: 35 | AZ201: 36
B202: Figure 10a Évolution de la superficie selon le type de couvert | S202: =LEFT(B$202,10) -> Figure 10a | U202: OSUPINC
S203: Figure 10a | U203: Résineux | V203: =SUM(V214,V220,V221,V222,V224,V225) -> 1154517.2 | W203: =SUM(W214,W220,W221,W222,W224,W225) -> 1146362.85 | X203: 1144113.22 | Y203: 1141847.09 | Z203: 1140028.52 | AA203: 1134717.59 | AB203: 1131958.33 | AC203: 1108618.34 | AD203: 1082900.81 | AE203: 1077517.78 | AF203: 1057882.65 | AG203: 1048201.26 | AH203: 1033412.12 | AI203: 1021850.67 | AJ203: 1018306.53 | AK203: 1009249.96 | AL203: 1008222.73 | AM203: 991149.45 | AN203: 984840.37 | AO203: 983566.35 | AP203: 971858.89 | AQ203: 970770.8 | AR203: 966984.52 | AS203: 964972.34 | AT203: 966039.95 | AU203: 967199.61 | AV203: 971447.3 | AW203: 969637.7 | AX203: 969265.48 | AY203: 968354.28 | AZ203: 964599.33
S204: Figure 10a | U204: Mixtes résineux | V204: =V223 -> 60537.7 | W204: =W223 -> 67116.25 | X204: 68204.56 | Y204: 69614.01 | Z204: 70020.59 | AA204: 73102.46 | AB204: 74501.72 | AC204: 95842.86 | AD204: 119438.34 | AE204: 123616.85 | AF204: 141605.87 | AG204: 150329.8 | AH204: 164557.27 | AI204: 175344.8 | AJ204: 177729.77 | AK204: 185807.57 | AL204: 187831.12 | AM204: 203798.34 | AN204: 209240.71 | AO204: 210302.17 | AP204: 222234.36 | AQ204: 222736.09 | AR204: 225501.56 | AS204: 227020.06 | AT204: 225925.04 | AU204: 225250.38 | AV204: 222763.7 | AW204: 224342.57 | AX204: 224476.79 | AY204: 225394.98 | AZ204: 228394.33
S205: Figure 10a | U205: Mixtes feuillus intolérants | V205: =V213+V219 -> 32730.7 | W205: =W213+W219 -> 32637.06 | X205: =X213+X219 -> 32503.87 | Y205: =Y213+Y219 -> 32374.01 | Z205: 31984.12 | AA205: 31864.63 | AB205: 31492.16 | AC205: 31438.79 | AD205: 31430.45 | AE205: 31419.34 | AF205: 31370.05 | AG205: 31338.97 | AH205: 31309.55 | AI205: 31188.3 | AJ205: 31147.14 | AK205: 31070.08 | AL205: 30962.6 | AM205: 30821.73 | AN205: 30800.67 | AO205: 30798.89 | AP205: 31091.6 | AQ205: 31067.18 | AR205: 31285.9 | AS205: 31274.06 | AT205: 31274.06 | AU205: 31274.06 | AV205: 31274.06 | AW205: 31274.06 | AX205: 31274.06 | AY205: 30954.8 | AZ205: 30648.53
S206: Figure 10a | U206: Mixtes feuillus tolérants | V206: =V217 -> 0 | W206: =W217 -> 0 | X206: 0 | Y206: 0 | Z206: 0 | AA206: 0 | AB206: 0 | AC206: 0 | AD206: 0 | AE206: 0 | AF206: 0 | AG206: 0 | AH206: 0 | AI206: 0 | AJ206: 0 | AK206: 0 | AL206: 0 | AM206: 0 | AN206: 0 | AO206: 0 | AP206: 0 | AQ206: 0 | AR206: 0 | AS206: 0 | AT206: 0 | AU206: 0 | AV206: 0 | AW206: 0 | AX206: 0 | AY206: 0 | AZ206: 0
S207: Figure 10a | U207: Feuillus intolérants | V207: =V212+V215+V218 -> 40020.5 | W207: =W212+W215+W218 -> 39097.36 | X207: =X212+X215+X218 -> 38034.18 | Y207: 36613.12 | Z207: 35969.9 | AA207: 35870.25 | AB207: 35171.48 | AC207: 34885.7 | AD207: 34739.57 | AE207: 34530.52 | AF207: 34407.85 | AG207: 33847.81 | AH207: 32512.9 | AI207: 31872.79 | AJ207: 31773.52 | AK207: 31191.55 | AL207: 29278.37 | AM207: 29278.32 | AN207: 29226.85 | AO207: 29055.78 | AP207: 27953.77 | AQ207: 27952.78 | AR207: 27952.78 | AS207: 27952.78 | AT207: 27749.92 | AU207: 27181.74 | AV207: 25360.69 | AW207: 25360.69 | AX207: 25360.69 | AY207: 25446.35 | AZ207: 26240.52
S208: Figure 10a | U208: Feuillus tolérants | V208: =V216 -> 0 | W208: =W216 -> 0 | X208: 0 | Y208: 0 | Z208: 0 | AA208: 0 | AB208: 0 | AC208: 0 | AD208: 0 | AE208: 0 | AF208: 0 | AG208: 0 | AH208: 0 | AI208: 0 | AJ208: 0 | AK208: 0 | AL208: 0 | AM208: 0 | AN208: 0 | AO208: 0 | AP208: 0 | AQ208: 0 | AR208: 0 | AS208: 0 | AT208: 0 | AU208: 0 | AV208: 0 | AW208: 0 | AX208: 0 | AY208: 0 | AZ208: 0
S209: Figure 10a | U209: Total | V209: =SUM(V203:V208) -> 1287806.1 | W209: =SUM(W203:W208) -> 1285213.52 | X209: =SUM(X203:X208) -> 1282855.83 | Y209: 1280448.23 | Z209: 1278003.13 | AA209: 1275554.93 | AB209: 1273123.69 | AC209: 1270785.69 | AD209: 1268509.17 | AE209: 1267084.49 | AF209: 1265266.42 | AG209: 1263717.84 | AH209: 1261791.84 | AI209: 1260256.56 | AJ209: 1258956.96 | AK209: 1257319.16 | AL209: 1256294.82 | AM209: 1255047.84 | AN209: 1254108.6 | AO209: 1253723.19 | AP209: 1253138.62 | AQ209: 1252526.85 | AR209: 1251724.76 | AS209: 1251219.24 | AT209: 1250988.97 | AU209: 1250905.79 | AV209: 1250845.75 | AW209: 1250615.02 | AX209: 1250377.02 | AY209: 1250150.41 | AZ209: 1249882.71
S210: Figure 10a
S211: Figure 10a
S212: Figure 10a | T212: Bétulaies blanches | U212: (FCTYF_BOP) | V212: =VLOOKUP($U$202&$U212,GTYF!$C:$AP,V$201,FALSE) -> 16402.8 | W212: =VLOOKUP($U$202&$U212,GTYF!$C:$AP,W$201,FALSE) -> 15479.66 | X212: =VLOOKUP($U$202&$U212,GTYF!$C:$AP,X$201,FALSE) -> 14416.48 | Y212: =VLOOKUP($U$202&$U212,GTYF!$C:$AP,Y$201,FALSE) -> 12995.42 | Z212: =VLOOKUP($U$202&$U212,GTYF!$C:$AP,Z$201,FALSE) -> 12368.59 | AA212: =VLOOKUP($U$202&$U212,GTYF!$C:$AP,AA$201,FALSE) -> 12275.05 | AB212: =VLOOKUP($U$202&$U212,GTYF!$C:$AP,AB$201,FALSE) -> 11583.79 | AC212: =VLOOKUP($U$202&$U212,GTYF!$C:$AP,AC$201,FALSE) -> 11458.59 | AD212: =VLOOKUP($U$202&$U212,GTYF!$C:$AP,AD$201,FALSE) -> 11458.59 | AE212: =VLOOKUP($U$202&$U212,GTYF!$C:$AP,AE$201,FALSE) -> 11456.97 | AF212: =VLOOKUP($U$202&$U212,GTYF!$C:$AP,AF$201,FALSE) -> 11456.55 | AG212: =VLOOKUP($U$202&$U212,GTYF!$C:$AP,AG$201,FALSE) -> 10914.03 | AH212: =VLOOKUP($U$202&$U212,GTYF!$C:$AP,AH$201,FALSE) -> 9630.63 | AI212: =VLOOKUP($U$202&$U212,GTYF!$C:$AP,AI$201,FALSE) -> 8990.52 | AJ212: =VLOOKUP($U$202&$U212,GTYF!$C:$AP,AJ$201,FALSE) -> 8894.72 | AK212: =VLOOKUP($U$202&$U212,GTYF!$C:$AP,AK$201,FALSE) -> 8313.47 | AL212: =VLOOKUP($U$202&$U212,GTYF!$C:$AP,AL$201,FALSE) -> 6401.27 | AM212: =VLOOKUP($U$202&$U212,GTYF!$C:$AP,AM$201,FALSE) -> 6401.27 | AN212: =VLOOKUP($U$202&$U212,GTYF!$C:$AP,AN$201,FALSE) -> 6350.84 | AO212: =VLOOKUP($U$202&$U212,GTYF!$C:$AP,AO$201,FALSE) -> 6179.77 | AP212: =VLOOKUP($U$202&$U212,GTYF!$C:$AP,AP$201,FALSE) -> 5077.76 | AQ212: =VLOOKUP($U$202&$U212,GTYF!$C:$AP,AQ$201,FALSE) -> 5076.77 | AR212: =VLOOKUP($U$202&$U212,GTYF!$C:$AP,AR$201,FALSE) -> 5076.77 | AS212: =VLOOKUP($U$202&$U212,GTYF!$C:$AP,AS$201,FALSE) -> 5076.77 | AT212: =VLOOKUP($U$202&$U212,GTYF!$C:$AP,AT$201,FALSE) -> 4873.91 | AU212: =VLOOKUP($U$202&$U212,GTYF!$C:$AP,AU$201,FALSE) -> 4305.73 | AV212: =VLOOKUP($U$202&$U212,GTYF!$C:$AP,AV$201,FALSE) -> 2484.68 | AW212: =VLOOKUP($U$202&$U212,GTYF!$C:$AP,AW$201,FALSE) -> 2484.68 | AX212: =VLOOKUP($U$202&$U212,GTYF!$C:$AP,AX$201,FALSE) -> 2484.68 | AY212: =VLOOKUP($U$202&$U212,GTYF!$C:$AP,AY$201,FALSE) -> 2570.34 | AZ212: =VLOOKUP($U$202&$U212,GTYF!$C:$AP,AZ$201,FALSE) -> 3364.51
S213: Figure 10a | T213: Bétulaies blanches à résineux | U213: (FCTYF_BOPR) | V213: =VLOOKUP($U$202&$U213,GTYF!$C:$AP,V$201,FALSE) -> 32730.7 | W213: =VLOOKUP($U$202&$U213,GTYF!$C:$AP,W$201,FALSE) -> 32637.06 | X213: =VLOOKUP($U$202&$U213,GTYF!$C:$AP,X$201,FALSE) -> 32503.87 | Y213: =VLOOKUP($U$202&$U213,GTYF!$C:$AP,Y$201,FALSE) -> 32374.01 | Z213: =VLOOKUP($U$202&$U213,GTYF!$C:$AP,Z$201,FALSE) -> 31984.12 | AA213: =VLOOKUP($U$202&$U213,GTYF!$C:$AP,AA$201,FALSE) -> 31864.63 | AB213: =VLOOKUP($U$202&$U213,GTYF!$C:$AP,AB$201,FALSE) -> 31492.16 | AC213: =VLOOKUP($U$202&$U213,GTYF!$C:$AP,AC$201,FALSE) -> 31438.79 | AD213: =VLOOKUP($U$202&$U213,GTYF!$C:$AP,AD$201,FALSE) -> 31430.45 | AE213: =VLOOKUP($U$202&$U213,GTYF!$C:$AP,AE$201,FALSE) -> 31419.34 | AF213: =VLOOKUP($U$202&$U213,GTYF!$C:$AP,AF$201,FALSE) -> 31370.05 | AG213: =VLOOKUP($U$202&$U213,GTYF!$C:$AP,AG$201,FALSE) -> 31338.97 | AH213: =VLOOKUP($U$202&$U213,GTYF!$C:$AP,AH$201,FALSE) -> 31309.55 | AI213: =VLOOKUP($U$202&$U213,GTYF!$C:$AP,AI$201,FALSE) -> 31188.3 | AJ213: =VLOOKUP($U$202&$U213,GTYF!$C:$AP,AJ$201,FALSE) -> 31147.14 | AK213: =VLOOKUP($U$202&$U213,GTYF!$C:$AP,AK$201,FALSE) -> 31070.08 | AL213: =VLOOKUP($U$202&$U213,GTYF!$C:$AP,AL$201,FALSE) -> 30962.6 | AM213: =VLOOKUP($U$202&$U213,GTYF!$C:$AP,AM$201,FALSE) -> 30821.73 | AN213: =VLOOKUP($U$202&$U213,GTYF!$C:$AP,AN$201,FALSE) -> 30800.67 | AO213: =VLOOKUP($U$202&$U213,GTYF!$C:$AP,AO$201,FALSE) -> 30798.89 | AP213: =VLOOKUP($U$202&$U213,GTYF!$C:$AP,AP$201,FALSE) -> 31091.6 | AQ213: =VLOOKUP($U$202&$U213,GTYF!$C:$AP,AQ$201,FALSE) -> 31067.18 | AR213: =VLOOKUP($U$202&$U213,GTYF!$C:$AP,AR$201,FALSE) -> 31285.9 | AS213: =VLOOKUP($U$202&$U213,GTYF!$C:$AP,AS$201,FALSE) -> 31274.06 | AT213: =VLOOKUP($U$202&$U213,GTYF!$C:$AP,AT$201,FALSE) -> 31274.06 | AU213: =VLOOKUP($U$202&$U213,GTYF!$C:$AP,AU$201,FALSE) -> 31274.06 | AV213: =VLOOKUP($U$202&$U213,GTYF!$C:$AP,AV$201,FALSE) -> 31274.06 | AW213: =VLOOKUP($U$202&$U213,GTYF!$C:$AP,AW$201,FALSE) -> 31274.06 | AX213: =VLOOKUP($U$202&$U213,GTYF!$C:$AP,AX$201,FALSE) -> 31274.06 | AY213: =VLOOKUP($U$202&$U213,GTYF!$C:$AP,AY$201,FALSE) -> 30954.8 | AZ213: =VLOOKUP($U$202&$U213,GTYF!$C:$AP,AZ$201,FALSE) -> 30648.53
S214: Figure 10a | T214: Pessières | U214: (FCTYF_EPX) | V214: =VLOOKUP($U$202&$U214,GTYF!$C:$AP,V$201,FALSE) -> 847428.9 | W214: =VLOOKUP($U$202&$U214,GTYF!$C:$AP,W$201,FALSE) -> 846282 | X214: =VLOOKUP($U$202&$U214,GTYF!$C:$AP,X$201,FALSE) -> 844503.34 | Y214: =VLOOKUP($U$202&$U214,GTYF!$C:$AP,Y$201,FALSE) -> 845427.55 | Z214: =VLOOKUP($U$202&$U214,GTYF!$C:$AP,Z$201,FALSE) -> 844746.95 | AA214: =VLOOKUP($U$202&$U214,GTYF!$C:$AP,AA$201,FALSE) -> 840458.98 | AB214: =VLOOKUP($U$202&$U214,GTYF!$C:$AP,AB$201,FALSE) -> 838946.41 | AC214: =VLOOKUP($U$202&$U214,GTYF!$C:$AP,AC$201,FALSE) -> 816765.11 | AD214: =VLOOKUP($U$202&$U214,GTYF!$C:$AP,AD$201,FALSE) -> 794414.67 | AE214: =VLOOKUP($U$202&$U214,GTYF!$C:$AP,AE$201,FALSE) -> 790720.38 | AF214: =VLOOKUP($U$202&$U214,GTYF!$C:$AP,AF$201,FALSE) -> 778230.5 | AG214: =VLOOKUP($U$202&$U214,GTYF!$C:$AP,AG$201,FALSE) -> 772600.99 | AH214: =VLOOKUP($U$202&$U214,GTYF!$C:$AP,AH$201,FALSE) -> 762768.67 | AI214: =VLOOKUP($U$202&$U214,GTYF!$C:$AP,AI$201,FALSE) -> 758796.28 | AJ214: =VLOOKUP($U$202&$U214,GTYF!$C:$AP,AJ$201,FALSE) -> 758918.85 | AK214: =VLOOKUP($U$202&$U214,GTYF!$C:$AP,AK$201,FALSE) -> 759145.29 | AL214: =VLOOKUP($U$202&$U214,GTYF!$C:$AP,AL$201,FALSE) -> 759316.31 | AM214: =VLOOKUP($U$202&$U214,GTYF!$C:$AP,AM$201,FALSE) -> 745795.24 | AN214: =VLOOKUP($U$202&$U214,GTYF!$C:$AP,AN$201,FALSE) -> 745006.32 | AO214: =VLOOKUP($U$202&$U214,GTYF!$C:$AP,AO$201,FALSE) -> 745253.71 | AP214: =VLOOKUP($U$202&$U214,GTYF!$C:$AP,AP$201,FALSE) -> 744439.88 | AQ214: =VLOOKUP($U$202&$U214,GTYF!$C:$AP,AQ$201,FALSE) -> 743431.84 | AR214: =VLOOKUP($U$202&$U214,GTYF!$C:$AP,AR$201,FALSE) -> 741736.72 | AS214: =VLOOKUP($U$202&$U214,GTYF!$C:$AP,AS$201,FALSE) -> 741682.01 | AT214: =VLOOKUP($U$202&$U214,GTYF!$C:$AP,AT$201,FALSE) -> 742882.24 | AU214: =VLOOKUP($U$202&$U214,GTYF!$C:$AP,AU$201,FALSE) -> 744219.2 | AV214: =VLOOKUP($U$202&$U214,GTYF!$C:$AP,AV$201,FALSE) -> 748466.89 | AW214: =VLOOKUP($U$202&$U214,GTYF!$C:$AP,AW$201,FALSE) -> 746713.86 | AX214: =VLOOKUP($U$202&$U214,GTYF!$C:$AP,AX$201,FALSE) -> 745968.05 | AY214: =VLOOKUP($U$202&$U214,GTYF!$C:$AP,AY$201,FALSE) -> 744776.15 | AZ214: =VLOOKUP($U$202&$U214,GTYF!$C:$AP,AZ$201,FALSE) -> 742613.81
S215: Figure 10a | T215: Érablières rouges | U215: (FCTYF_ERO) | V215: =VLOOKUP($U$202&$U215,GTYF!$C:$AP,V$201,FALSE) -> 0 | W215: =VLOOKUP($U$202&$U215,GTYF!$C:$AP,W$201,FALSE) -> 0 | X215: =VLOOKUP($U$202&$U215,GTYF!$C:$AP,X$201,FALSE) -> 0 | Y215: =VLOOKUP($U$202&$U215,GTYF!$C:$AP,Y$201,FALSE) -> 0 | Z215: =VLOOKUP($U$202&$U215,GTYF!$C:$AP,Z$201,FALSE) -> 0 | AA215: =VLOOKUP($U$202&$U215,GTYF!$C:$AP,AA$201,FALSE) -> 0 | AB215: =VLOOKUP($U$202&$U215,GTYF!$C:$AP,AB$201,FALSE) -> 0 | AC215: =VLOOKUP($U$202&$U215,GTYF!$C:$AP,AC$201,FALSE) -> 0 | AD215: =VLOOKUP($U$202&$U215,GTYF!$C:$AP,AD$201,FALSE) -> 0 | AE215: =VLOOKUP($U$202&$U215,GTYF!$C:$AP,AE$201,FALSE) -> 0 | AF215: =VLOOKUP($U$202&$U215,GTYF!$C:$AP,AF$201,FALSE) -> 0 | AG215: =VLOOKUP($U$202&$U215,GTYF!$C:$AP,AG$201,FALSE) -> 0 | AH215: =VLOOKUP($U$202&$U215,GTYF!$C:$AP,AH$201,FALSE) -> 0 | AI215: =VLOOKUP($U$202&$U215,GTYF!$C:$AP,AI$201,FALSE) -> 0 | AJ215: =VLOOKUP($U$202&$U215,GTYF!$C:$AP,AJ$201,FALSE) -> 0 | AK215: =VLOOKUP($U$202&$U215,GTYF!$C:$AP,AK$201,FALSE) -> 0 | AL215: =VLOOKUP($U$202&$U215,GTYF!$C:$AP,AL$201,FALSE) -> 0 | AM215: =VLOOKUP($U$202&$U215,GTYF!$C:$AP,AM$201,FALSE) -> 0 | AN215: =VLOOKUP($U$202&$U215,GTYF!$C:$AP,AN$201,FALSE) -> 0 | AO215: =VLOOKUP($U$202&$U215,GTYF!$C:$AP,AO$201,FALSE) -> 0 | AP215: =VLOOKUP($U$202&$U215,GTYF!$C:$AP,AP$201,FALSE) -> 0 | AQ215: =VLOOKUP($U$202&$U215,GTYF!$C:$AP,AQ$201,FALSE) -> 0 | AR215: =VLOOKUP($U$202&$U215,GTYF!$C:$AP,AR$201,FALSE) -> 0 | AS215: =VLOOKUP($U$202&$U215,GTYF!$C:$AP,AS$201,FALSE) -> 0 | AT215: =VLOOKUP($U$202&$U215,GTYF!$C:$AP,AT$201,FALSE) -> 0 | AU215: =VLOOKUP($U$202&$U215,GTYF!$C:$AP,AU$201,FALSE) -> 0 | AV215: =VLOOKUP($U$202&$U215,GTYF!$C:$AP,AV$201,FALSE) -> 0 | AW215: =VLOOKUP($U$202&$U215,GTYF!$C:$AP,AW$201,FALSE) -> 0 | AX215: =VLOOKUP($U$202&$U215,GTYF!$C:$AP,AX$201,FALSE) -> 0 | AY215: =VLOOKUP($U$202&$U215,GTYF!$C:$AP,AY$201,FALSE) -> 0 | AZ215: =VLOOKUP($U$202&$U215,GTYF!$C:$AP,AZ$201,FALSE) -> 0
S216: Figure 10a | T216: Feuillus tolérants | U216: (FCTYF_FT) | V216: =VLOOKUP($U$202&$U216,GTYF!$C:$AP,V$201,FALSE) -> 0 | W216: =VLOOKUP($U$202&$U216,GTYF!$C:$AP,W$201,FALSE) -> 0 | X216: =VLOOKUP($U$202&$U216,GTYF!$C:$AP,X$201,FALSE) -> 0 | Y216: =VLOOKUP($U$202&$U216,GTYF!$C:$AP,Y$201,FALSE) -> 0 | Z216: =VLOOKUP($U$202&$U216,GTYF!$C:$AP,Z$201,FALSE) -> 0 | AA216: =VLOOKUP($U$202&$U216,GTYF!$C:$AP,AA$201,FALSE) -> 0 | AB216: =VLOOKUP($U$202&$U216,GTYF!$C:$AP,AB$201,FALSE) -> 0 | AC216: =VLOOKUP($U$202&$U216,GTYF!$C:$AP,AC$201,FALSE) -> 0 | AD216: =VLOOKUP($U$202&$U216,GTYF!$C:$AP,AD$201,FALSE) -> 0 | AE216: =VLOOKUP($U$202&$U216,GTYF!$C:$AP,AE$201,FALSE) -> 0 | AF216: =VLOOKUP($U$202&$U216,GTYF!$C:$AP,AF$201,FALSE) -> 0 | AG216: =VLOOKUP($U$202&$U216,GTYF!$C:$AP,AG$201,FALSE) -> 0 | AH216: =VLOOKUP($U$202&$U216,GTYF!$C:$AP,AH$201,FALSE) -> 0 | AI216: =VLOOKUP($U$202&$U216,GTYF!$C:$AP,AI$201,FALSE) -> 0 | AJ216: =VLOOKUP($U$202&$U216,GTYF!$C:$AP,AJ$201,FALSE) -> 0 | AK216: =VLOOKUP($U$202&$U216,GTYF!$C:$AP,AK$201,FALSE) -> 0 | AL216: =VLOOKUP($U$202&$U216,GTYF!$C:$AP,AL$201,FALSE) -> 0 | AM216: =VLOOKUP($U$202&$U216,GTYF!$C:$AP,AM$201,FALSE) -> 0 | AN216: =VLOOKUP($U$202&$U216,GTYF!$C:$AP,AN$201,FALSE) -> 0 | AO216: =VLOOKUP($U$202&$U216,GTYF!$C:$AP,AO$201,FALSE) -> 0 | AP216: =VLOOKUP($U$202&$U216,GTYF!$C:$AP,AP$201,FALSE) -> 0 | AQ216: =VLOOKUP($U$202&$U216,GTYF!$C:$AP,AQ$201,FALSE) -> 0 | AR216: =VLOOKUP($U$202&$U216,GTYF!$C:$AP,AR$201,FALSE) -> 0 | AS216: =VLOOKUP($U$202&$U216,GTYF!$C:$AP,AS$201,FALSE) -> 0 | AT216: =VLOOKUP($U$202&$U216,GTYF!$C:$AP,AT$201,FALSE) -> 0 | AU216: =VLOOKUP($U$202&$U216,GTYF!$C:$AP,AU$201,FALSE) -> 0 | AV216: =VLOOKUP($U$202&$U216,GTYF!$C:$AP,AV$201,FALSE) -> 0 | AW216: =VLOOKUP($U$202&$U216,GTYF!$C:$AP,AW$201,FALSE) -> 0 | AX216: =VLOOKUP($U$202&$U216,GTYF!$C:$AP,AX$201,FALSE) -> 0 | AY216: =VLOOKUP($U$202&$U216,GTYF!$C:$AP,AY$201,FALSE) -> 0 | AZ216: =VLOOKUP($U$202&$U216,GTYF!$C:$AP,AZ$201,FALSE) -> 0
S217: Figure 10a | T217: Feuillus tolérants à résineux | U217: (FCTYF_FTR) | V217: =VLOOKUP($U$202&$U217,GTYF!$C:$AP,V$201,FALSE) -> 0 | W217: =VLOOKUP($U$202&$U217,GTYF!$C:$AP,W$201,FALSE) -> 0 | X217: =VLOOKUP($U$202&$U217,GTYF!$C:$AP,X$201,FALSE) -> 0 | Y217: =VLOOKUP($U$202&$U217,GTYF!$C:$AP,Y$201,FALSE) -> 0 | Z217: =VLOOKUP($U$202&$U217,GTYF!$C:$AP,Z$201,FALSE) -> 0 | AA217: =VLOOKUP($U$202&$U217,GTYF!$C:$AP,AA$201,FALSE) -> 0 | AB217: =VLOOKUP($U$202&$U217,GTYF!$C:$AP,AB$201,FALSE) -> 0 | AC217: =VLOOKUP($U$202&$U217,GTYF!$C:$AP,AC$201,FALSE) -> 0 | AD217: =VLOOKUP($U$202&$U217,GTYF!$C:$AP,AD$201,FALSE) -> 0 | AE217: =VLOOKUP($U$202&$U217,GTYF!$C:$AP,AE$201,FALSE) -> 0 | AF217: =VLOOKUP($U$202&$U217,GTYF!$C:$AP,AF$201,FALSE) -> 0 | AG217: =VLOOKUP($U$202&$U217,GTYF!$C:$AP,AG$201,FALSE) -> 0 | AH217: =VLOOKUP($U$202&$U217,GTYF!$C:$AP,AH$201,FALSE) -> 0 | AI217: =VLOOKUP($U$202&$U217,GTYF!$C:$AP,AI$201,FALSE) -> 0 | AJ217: =VLOOKUP($U$202&$U217,GTYF!$C:$AP,AJ$201,FALSE) -> 0 | AK217: =VLOOKUP($U$202&$U217,GTYF!$C:$AP,AK$201,FALSE) -> 0 | AL217: =VLOOKUP($U$202&$U217,GTYF!$C:$AP,AL$201,FALSE) -> 0 | AM217: =VLOOKUP($U$202&$U217,GTYF!$C:$AP,AM$201,FALSE) -> 0 | AN217: =VLOOKUP($U$202&$U217,GTYF!$C:$AP,AN$201,FALSE) -> 0 | AO217: =VLOOKUP($U$202&$U217,GTYF!$C:$AP,AO$201,FALSE) -> 0 | AP217: =VLOOKUP($U$202&$U217,GTYF!$C:$AP,AP$201,FALSE) -> 0 | AQ217: =VLOOKUP($U$202&$U217,GTYF!$C:$AP,AQ$201,FALSE) -> 0 | AR217: =VLOOKUP($U$202&$U217,GTYF!$C:$AP,AR$201,FALSE) -> 0 | AS217: =VLOOKUP($U$202&$U217,GTYF!$C:$AP,AS$201,FALSE) -> 0 | AT217: =VLOOKUP($U$202&$U217,GTYF!$C:$AP,AT$201,FALSE) -> 0 | AU217: =VLOOKUP($U$202&$U217,GTYF!$C:$AP,AU$201,FALSE) -> 0 | AV217: =VLOOKUP($U$202&$U217,GTYF!$C:$AP,AV$201,FALSE) -> 0 | AW217: =VLOOKUP($U$202&$U217,GTYF!$C:$AP,AW$201,FALSE) -> 0 | AX217: =VLOOKUP($U$202&$U217,GTYF!$C:$AP,AX$201,FALSE) -> 0 | AY217: =VLOOKUP($U$202&$U217,GTYF!$C:$AP,AY$201,FALSE) -> 0 | AZ217: =VLOOKUP($U$202&$U217,GTYF!$C:$AP,AZ$201,FALSE) -> 0
S218: Figure 10a | T218: Peupleraies | U218: (FCTYF_PEU) | V218: =VLOOKUP($U$202&$U218,GTYF!$C:$AP,V$201,FALSE) -> 23617.7 | W218: =VLOOKUP($U$202&$U218,GTYF!$C:$AP,W$201,FALSE) -> 23617.7 | X218: =VLOOKUP($U$202&$U218,GTYF!$C:$AP,X$201,FALSE) -> 23617.7 | Y218: =VLOOKUP($U$202&$U218,GTYF!$C:$AP,Y$201,FALSE) -> 23617.7 | Z218: =VLOOKUP($U$202&$U218,GTYF!$C:$AP,Z$201,FALSE) -> 23601.31 | AA218: =VLOOKUP($U$202&$U218,GTYF!$C:$AP,AA$201,FALSE) -> 23595.2 | AB218: =VLOOKUP($U$202&$U218,GTYF!$C:$AP,AB$201,FALSE) -> 23587.69 | AC218: =VLOOKUP($U$202&$U218,GTYF!$C:$AP,AC$201,FALSE) -> 23427.11 | AD218: =VLOOKUP($U$202&$U218,GTYF!$C:$AP,AD$201,FALSE) -> 23280.98 | AE218: =VLOOKUP($U$202&$U218,GTYF!$C:$AP,AE$201,FALSE) -> 23073.55 | AF218: =VLOOKUP($U$202&$U218,GTYF!$C:$AP,AF$201,FALSE) -> 22951.3 | AG218: =VLOOKUP($U$202&$U218,GTYF!$C:$AP,AG$201,FALSE) -> 22933.78 | AH218: =VLOOKUP($U$202&$U218,GTYF!$C:$AP,AH$201,FALSE) -> 22882.27 | AI218: =VLOOKUP($U$202&$U218,GTYF!$C:$AP,AI$201,FALSE) -> 22882.27 | AJ218: =VLOOKUP($U$202&$U218,GTYF!$C:$AP,AJ$201,FALSE) -> 22878.8 | AK218: =VLOOKUP($U$202&$U218,GTYF!$C:$AP,AK$201,FALSE) -> 22878.08 | AL218: =VLOOKUP($U$202&$U218,GTYF!$C:$AP,AL$201,FALSE) -> 22877.1 | AM218: =VLOOKUP($U$202&$U218,GTYF!$C:$AP,AM$201,FALSE) -> 22877.05 | AN218: =VLOOKUP($U$202&$U218,GTYF!$C:$AP,AN$201,FALSE) -> 22876.01 | AO218: =VLOOKUP($U$202&$U218,GTYF!$C:$AP,AO$201,FALSE) -> 22876.01 | AP218: =VLOOKUP($U$202&$U218,GTYF!$C:$AP,AP$201,FALSE) -> 22876.01 | AQ218: =VLOOKUP($U$202&$U218,GTYF!$C:$AP,AQ$201,FALSE) -> 22876.01 | AR218: =VLOOKUP($U$202&$U218,GTYF!$C:$AP,AR$201,FALSE) -> 22876.01 | AS218: =VLOOKUP($U$202&$U218,GTYF!$C:$AP,AS$201,FALSE) -> 22876.01 | AT218: =VLOOKUP($U$202&$U218,GTYF!$C:$AP,AT$201,FALSE) -> 22876.01 | AU218: =VLOOKUP($U$202&$U218,GTYF!$C:$AP,AU$201,FALSE) -> 22876.01 | AV218: =VLOOKUP($U$202&$U218,GTYF!$C:$AP,AV$201,FALSE) -> 22876.01 | AW218: =VLOOKUP($U$202&$U218,GTYF!$C:$AP,AW$201,FALSE) -> 22876.01 | AX218: =VLOOKUP($U$202&$U218,GTYF!$C:$AP,AX$201,FALSE) -> 22876.01 | AY218: =VLOOKUP($U$202&$U218,GTYF!$C:$AP,AY$201,FALSE) -> 22876.01 | AZ218: =VLOOKUP($U$202&$U218,GTYF!$C:$AP,AZ$201,FALSE) -> 22876.01
S219: Figure 10a | T219: Peupleraies à résineux | U219: (FCTYF_PEUR) | V219: =VLOOKUP($U$202&$U219,GTYF!$C:$AP,V$201,FALSE) -> 0 | W219: =VLOOKUP($U$202&$U219,GTYF!$C:$AP,W$201,FALSE) -> 0 | X219: =VLOOKUP($U$202&$U219,GTYF!$C:$AP,X$201,FALSE) -> 0 | Y219: =VLOOKUP($U$202&$U219,GTYF!$C:$AP,Y$201,FALSE) -> 0 | Z219: =VLOOKUP($U$202&$U219,GTYF!$C:$AP,Z$201,FALSE) -> 0 | AA219: =VLOOKUP($U$202&$U219,GTYF!$C:$AP,AA$201,FALSE) -> 0 | AB219: =VLOOKUP($U$202&$U219,GTYF!$C:$AP,AB$201,FALSE) -> 0 | AC219: =VLOOKUP($U$202&$U219,GTYF!$C:$AP,AC$201,FALSE) -> 0 | AD219: =VLOOKUP($U$202&$U219,GTYF!$C:$AP,AD$201,FALSE) -> 0 | AE219: =VLOOKUP($U$202&$U219,GTYF!$C:$AP,AE$201,FALSE) -> 0 | AF219: =VLOOKUP($U$202&$U219,GTYF!$C:$AP,AF$201,FALSE) -> 0 | AG219: =VLOOKUP($U$202&$U219,GTYF!$C:$AP,AG$201,FALSE) -> 0 | AH219: =VLOOKUP($U$202&$U219,GTYF!$C:$AP,AH$201,FALSE) -> 0 | AI219: =VLOOKUP($U$202&$U219,GTYF!$C:$AP,AI$201,FALSE) -> 0 | AJ219: =VLOOKUP($U$202&$U219,GTYF!$C:$AP,AJ$201,FALSE) -> 0 | AK219: =VLOOKUP($U$202&$U219,GTYF!$C:$AP,AK$201,FALSE) -> 0 | AL219: =VLOOKUP($U$202&$U219,GTYF!$C:$AP,AL$201,FALSE) -> 0 | AM219: =VLOOKUP($U$202&$U219,GTYF!$C:$AP,AM$201,FALSE) -> 0 | AN219: =VLOOKUP($U$202&$U219,GTYF!$C:$AP,AN$201,FALSE) -> 0 | AO219: =VLOOKUP($U$202&$U219,GTYF!$C:$AP,AO$201,FALSE) -> 0 | AP219: =VLOOKUP($U$202&$U219,GTYF!$C:$AP,AP$201,FALSE) -> 0 | AQ219: =VLOOKUP($U$202&$U219,GTYF!$C:$AP,AQ$201,FALSE) -> 0 | AR219: =VLOOKUP($U$202&$U219,GTYF!$C:$AP,AR$201,FALSE) -> 0 | AS219: =VLOOKUP($U$202&$U219,GTYF!$C:$AP,AS$201,FALSE) -> 0 | AT219: =VLOOKUP($U$202&$U219,GTYF!$C:$AP,AT$201,FALSE) -> 0 | AU219: =VLOOKUP($U$202&$U219,GTYF!$C:$AP,AU$201,FALSE) -> 0 | AV219: =VLOOKUP($U$202&$U219,GTYF!$C:$AP,AV$201,FALSE) -> 0 | AW219: =VLOOKUP($U$202&$U219,GTYF!$C:$AP,AW$201,FALSE) -> 0 | AX219: =VLOOKUP($U$202&$U219,GTYF!$C:$AP,AX$201,FALSE) -> 0 | AY219: =VLOOKUP($U$202&$U219,GTYF!$C:$AP,AY$201,FALSE) -> 0 | AZ219: =VLOOKUP($U$202&$U219,GTYF!$C:$AP,AZ$201,FALSE) -> 0
S220: Figure 10a | T220: Pinèdes grises | U220: (FCTYF_PIG) | V220: =VLOOKUP($U$202&$U220,GTYF!$C:$AP,V$201,FALSE) -> 10774.2 | W220: =VLOOKUP($U$202&$U220,GTYF!$C:$AP,W$201,FALSE) -> 10643.37 | X220: =VLOOKUP($U$202&$U220,GTYF!$C:$AP,X$201,FALSE) -> 10389.97 | Y220: =VLOOKUP($U$202&$U220,GTYF!$C:$AP,Y$201,FALSE) -> 7710.43 | Z220: =VLOOKUP($U$202&$U220,GTYF!$C:$AP,Z$201,FALSE) -> 7546.03 | AA220: =VLOOKUP($U$202&$U220,GTYF!$C:$AP,AA$201,FALSE) -> 7202.49 | AB220: =VLOOKUP($U$202&$U220,GTYF!$C:$AP,AB$201,FALSE) -> 6719.92 | AC220: =VLOOKUP($U$202&$U220,GTYF!$C:$AP,AC$201,FALSE) -> 6476.51 | AD220: =VLOOKUP($U$202&$U220,GTYF!$C:$AP,AD$201,FALSE) -> 6371.39 | AE220: =VLOOKUP($U$202&$U220,GTYF!$C:$AP,AE$201,FALSE) -> 6166.28 | AF220: =VLOOKUP($U$202&$U220,GTYF!$C:$AP,AF$201,FALSE) -> 5276.52 | AG220: =VLOOKUP($U$202&$U220,GTYF!$C:$AP,AG$201,FALSE) -> 5268.86 | AH220: =VLOOKUP($U$202&$U220,GTYF!$C:$AP,AH$201,FALSE) -> 5049.06 | AI220: =VLOOKUP($U$202&$U220,GTYF!$C:$AP,AI$201,FALSE) -> 4824.62 | AJ220: =VLOOKUP($U$202&$U220,GTYF!$C:$AP,AJ$201,FALSE) -> 4703.47 | AK220: =VLOOKUP($U$202&$U220,GTYF!$C:$AP,AK$201,FALSE) -> 4692.22 | AL220: =VLOOKUP($U$202&$U220,GTYF!$C:$AP,AL$201,FALSE) -> 4489.72 | AM220: =VLOOKUP($U$202&$U220,GTYF!$C:$AP,AM$201,FALSE) -> 4384.72 | AN220: =VLOOKUP($U$202&$U220,GTYF!$C:$AP,AN$201,FALSE) -> 4384.72 | AO220: =VLOOKUP($U$202&$U220,GTYF!$C:$AP,AO$201,FALSE) -> 4384.72 | AP220: =VLOOKUP($U$202&$U220,GTYF!$C:$AP,AP$201,FALSE) -> 4383.01 | AQ220: =VLOOKUP($U$202&$U220,GTYF!$C:$AP,AQ$201,FALSE) -> 4383.01 | AR220: =VLOOKUP($U$202&$U220,GTYF!$C:$AP,AR$201,FALSE) -> 4383.01 | AS220: =VLOOKUP($U$202&$U220,GTYF!$C:$AP,AS$201,FALSE) -> 4378.86 | AT220: =VLOOKUP($U$202&$U220,GTYF!$C:$AP,AT$201,FALSE) -> 4378.86 | AU220: =VLOOKUP($U$202&$U220,GTYF!$C:$AP,AU$201,FALSE) -> 4370.46 | AV220: =VLOOKUP($U$202&$U220,GTYF!$C:$AP,AV$201,FALSE) -> 4370.46 | AW220: =VLOOKUP($U$202&$U220,GTYF!$C:$AP,AW$201,FALSE) -> 4370.2 | AX220: =VLOOKUP($U$202&$U220,GTYF!$C:$AP,AX$201,FALSE) -> 4370.2 | AY220: =VLOOKUP($U$202&$U220,GTYF!$C:$AP,AY$201,FALSE) -> 4077.59 | AZ220: =VLOOKUP($U$202&$U220,GTYF!$C:$AP,AZ$201,FALSE) -> 3808.57
S221: Figure 10a | T221: Pinèdes blanches | U221: (FCTYF_PIN) | V221: =VLOOKUP($U$202&$U221,GTYF!$C:$AP,V$201,FALSE) -> 0 | W221: =VLOOKUP($U$202&$U221,GTYF!$C:$AP,W$201,FALSE) -> 0 | X221: =VLOOKUP($U$202&$U221,GTYF!$C:$AP,X$201,FALSE) -> 0 | Y221: =VLOOKUP($U$202&$U221,GTYF!$C:$AP,Y$201,FALSE) -> 0 | Z221: =VLOOKUP($U$202&$U221,GTYF!$C:$AP,Z$201,FALSE) -> 0 | AA221: =VLOOKUP($U$202&$U221,GTYF!$C:$AP,AA$201,FALSE) -> 0 | AB221: =VLOOKUP($U$202&$U221,GTYF!$C:$AP,AB$201,FALSE) -> 0 | AC221: =VLOOKUP($U$202&$U221,GTYF!$C:$AP,AC$201,FALSE) -> 0 | AD221: =VLOOKUP($U$202&$U221,GTYF!$C:$AP,AD$201,FALSE) -> 0 | AE221: =VLOOKUP($U$202&$U221,GTYF!$C:$AP,AE$201,FALSE) -> 0 | AF221: =VLOOKUP($U$202&$U221,GTYF!$C:$AP,AF$201,FALSE) -> 0 | AG221: =VLOOKUP($U$202&$U221,GTYF!$C:$AP,AG$201,FALSE) -> 0 | AH221: =VLOOKUP($U$202&$U221,GTYF!$C:$AP,AH$201,FALSE) -> 0 | AI221: =VLOOKUP($U$202&$U221,GTYF!$C:$AP,AI$201,FALSE) -> 0 | AJ221: =VLOOKUP($U$202&$U221,GTYF!$C:$AP,AJ$201,FALSE) -> 0 | AK221: =VLOOKUP($U$202&$U221,GTYF!$C:$AP,AK$201,FALSE) -> 0 | AL221: =VLOOKUP($U$202&$U221,GTYF!$C:$AP,AL$201,FALSE) -> 0 | AM221: =VLOOKUP($U$202&$U221,GTYF!$C:$AP,AM$201,FALSE) -> 0 | AN221: =VLOOKUP($U$202&$U221,GTYF!$C:$AP,AN$201,FALSE) -> 0 | AO221: =VLOOKUP($U$202&$U221,GTYF!$C:$AP,AO$201,FALSE) -> 0 | AP221: =VLOOKUP($U$202&$U221,GTYF!$C:$AP,AP$201,FALSE) -> 0 | AQ221: =VLOOKUP($U$202&$U221,GTYF!$C:$AP,AQ$201,FALSE) -> 0 | AR221: =VLOOKUP($U$202&$U221,GTYF!$C:$AP,AR$201,FALSE) -> 0 | AS221: =VLOOKUP($U$202&$U221,GTYF!$C:$AP,AS$201,FALSE) -> 0 | AT221: =VLOOKUP($U$202&$U221,GTYF!$C:$AP,AT$201,FALSE) -> 0 | AU221: =VLOOKUP($U$202&$U221,GTYF!$C:$AP,AU$201,FALSE) -> 0 | AV221: =VLOOKUP($U$202&$U221,GTYF!$C:$AP,AV$201,FALSE) -> 0 | AW221: =VLOOKUP($U$202&$U221,GTYF!$C:$AP,AW$201,FALSE) -> 0 | AX221: =VLOOKUP($U$202&$U221,GTYF!$C:$AP,AX$201,FALSE) -> 0 | AY221: =VLOOKUP($U$202&$U221,GTYF!$C:$AP,AY$201,FALSE) -> 0 | AZ221: =VLOOKUP($U$202&$U221,GTYF!$C:$AP,AZ$201,FALSE) -> 0
S222: Figure 10a | T222: Prucheraies | U222: (FCTYF_PRU) | V222: =VLOOKUP($U$202&$U222,GTYF!$C:$AP,V$201,FALSE) -> 0 | W222: =VLOOKUP($U$202&$U222,GTYF!$C:$AP,W$201,FALSE) -> 0 | X222: =VLOOKUP($U$202&$U222,GTYF!$C:$AP,X$201,FALSE) -> 0 | Y222: =VLOOKUP($U$202&$U222,GTYF!$C:$AP,Y$201,FALSE) -> 0 | Z222: =VLOOKUP($U$202&$U222,GTYF!$C:$AP,Z$201,FALSE) -> 0 | AA222: =VLOOKUP($U$202&$U222,GTYF!$C:$AP,AA$201,FALSE) -> 0 | AB222: =VLOOKUP($U$202&$U222,GTYF!$C:$AP,AB$201,FALSE) -> 0 | AC222: =VLOOKUP($U$202&$U222,GTYF!$C:$AP,AC$201,FALSE) -> 0 | AD222: =VLOOKUP($U$202&$U222,GTYF!$C:$AP,AD$201,FALSE) -> 0 | AE222: =VLOOKUP($U$202&$U222,GTYF!$C:$AP,AE$201,FALSE) -> 0 | AF222: =VLOOKUP($U$202&$U222,GTYF!$C:$AP,AF$201,FALSE) -> 0 | AG222: =VLOOKUP($U$202&$U222,GTYF!$C:$AP,AG$201,FALSE) -> 0 | AH222: =VLOOKUP($U$202&$U222,GTYF!$C:$AP,AH$201,FALSE) -> 0 | AI222: =VLOOKUP($U$202&$U222,GTYF!$C:$AP,AI$201,FALSE) -> 0 | AJ222: =VLOOKUP($U$202&$U222,GTYF!$C:$AP,AJ$201,FALSE) -> 0 | AK222: =VLOOKUP($U$202&$U222,GTYF!$C:$AP,AK$201,FALSE) -> 0 | AL222: =VLOOKUP($U$202&$U222,GTYF!$C:$AP,AL$201,FALSE) -> 0 | AM222: =VLOOKUP($U$202&$U222,GTYF!$C:$AP,AM$201,FALSE) -> 0 | AN222: =VLOOKUP($U$202&$U222,GTYF!$C:$AP,AN$201,FALSE) -> 0 | AO222: =VLOOKUP($U$202&$U222,GTYF!$C:$AP,AO$201,FALSE) -> 0 | AP222: =VLOOKUP($U$202&$U222,GTYF!$C:$AP,AP$201,FALSE) -> 0 | AQ222: =VLOOKUP($U$202&$U222,GTYF!$C:$AP,AQ$201,FALSE) -> 0 | AR222: =VLOOKUP($U$202&$U222,GTYF!$C:$AP,AR$201,FALSE) -> 0 | AS222: =VLOOKUP($U$202&$U222,GTYF!$C:$AP,AS$201,FALSE) -> 0 | AT222: =VLOOKUP($U$202&$U222,GTYF!$C:$AP,AT$201,FALSE) -> 0 | AU222: =VLOOKUP($U$202&$U222,GTYF!$C:$AP,AU$201,FALSE) -> 0 | AV222: =VLOOKUP($U$202&$U222,GTYF!$C:$AP,AV$201,FALSE) -> 0 | AW222: =VLOOKUP($U$202&$U222,GTYF!$C:$AP,AW$201,FALSE) -> 0 | AX222: =VLOOKUP($U$202&$U222,GTYF!$C:$AP,AX$201,FALSE) -> 0 | AY222: =VLOOKUP($U$202&$U222,GTYF!$C:$AP,AY$201,FALSE) -> 0 | AZ222: =VLOOKUP($U$202&$U222,GTYF!$C:$AP,AZ$201,FALSE) -> 0
S223: Figure 10a | T223: Résineux à feuillus | U223: (FCTYF_RF) | V223: =VLOOKUP($U$202&$U223,GTYF!$C:$AP,V$201,FALSE) -> 60537.7 | W223: =VLOOKUP($U$202&$U223,GTYF!$C:$AP,W$201,FALSE) -> 67116.25 | X223: =VLOOKUP($U$202&$U223,GTYF!$C:$AP,X$201,FALSE) -> 68204.56 | Y223: =VLOOKUP($U$202&$U223,GTYF!$C:$AP,Y$201,FALSE) -> 69614.01 | Z223: =VLOOKUP($U$202&$U223,GTYF!$C:$AP,Z$201,FALSE) -> 70020.59 | AA223: =VLOOKUP($U$202&$U223,GTYF!$C:$AP,AA$201,FALSE) -> 73102.46 | AB223: =VLOOKUP($U$202&$U223,GTYF!$C:$AP,AB$201,FALSE) -> 74501.72 | AC223: =VLOOKUP($U$202&$U223,GTYF!$C:$AP,AC$201,FALSE) -> 95842.86 | AD223: =VLOOKUP($U$202&$U223,GTYF!$C:$AP,AD$201,FALSE) -> 119438.34 | AE223: =VLOOKUP($U$202&$U223,GTYF!$C:$AP,AE$201,FALSE) -> 123616.85 | AF223: =VLOOKUP($U$202&$U223,GTYF!$C:$AP,AF$201,FALSE) -> 141605.87 | AG223: =VLOOKUP($U$202&$U223,GTYF!$C:$AP,AG$201,FALSE) -> 150329.8 | AH223: =VLOOKUP($U$202&$U223,GTYF!$C:$AP,AH$201,FALSE) -> 164557.27 | AI223: =VLOOKUP($U$202&$U223,GTYF!$C:$AP,AI$201,FALSE) -> 175344.8 | AJ223: =VLOOKUP($U$202&$U223,GTYF!$C:$AP,AJ$201,FALSE) -> 177729.77 | AK223: =VLOOKUP($U$202&$U223,GTYF!$C:$AP,AK$201,FALSE) -> 185807.57 | AL223: =VLOOKUP($U$202&$U223,GTYF!$C:$AP,AL$201,FALSE) -> 187831.12 | AM223: =VLOOKUP($U$202&$U223,GTYF!$C:$AP,AM$201,FALSE) -> 203798.34 | AN223: =VLOOKUP($U$202&$U223,GTYF!$C:$AP,AN$201,FALSE) -> 209240.71 | AO223: =VLOOKUP($U$202&$U223,GTYF!$C:$AP,AO$201,FALSE) -> 210302.17 | AP223: =VLOOKUP($U$202&$U223,GTYF!$C:$AP,AP$201,FALSE) -> 222234.36 | AQ223: =VLOOKUP($U$202&$U223,GTYF!$C:$AP,AQ$201,FALSE) -> 222736.09 | AR223: =VLOOKUP($U$202&$U223,GTYF!$C:$AP,AR$201,FALSE) -> 225501.56 | AS223: =VLOOKUP($U$202&$U223,GTYF!$C:$AP,AS$201,FALSE) -> 227020.06 | AT223: =VLOOKUP($U$202&$U223,GTYF!$C:$AP,AT$201,FALSE) -> 225925.04 | AU223: =VLOOKUP($U$202&$U223,GTYF!$C:$AP,AU$201,FALSE) -> 225250.38 | AV223: =VLOOKUP($U$202&$U223,GTYF!$C:$AP,AV$201,FALSE) -> 222763.7 | AW223: =VLOOKUP($U$202&$U223,GTYF!$C:$AP,AW$201,FALSE) -> 224342.57 | AX223: =VLOOKUP($U$202&$U223,GTYF!$C:$AP,AX$201,FALSE) -> 224476.79 | AY223: =VLOOKUP($U$202&$U223,GTYF!$C:$AP,AY$201,FALSE) -> 225394.98 | AZ223: =VLOOKUP($U$202&$U223,GTYF!$C:$AP,AZ$201,FALSE) -> 228394.33
S224: Figure 10a | T224: Sapinières | U224: (FCTYF_SAB) | V224: =VLOOKUP($U$202&$U224,GTYF!$C:$AP,V$201,FALSE) -> 296314.1 | W224: =VLOOKUP($U$202&$U224,GTYF!$C:$AP,W$201,FALSE) -> 289437.48 | X224: =VLOOKUP($U$202&$U224,GTYF!$C:$AP,X$201,FALSE) -> 289219.91 | Y224: =VLOOKUP($U$202&$U224,GTYF!$C:$AP,Y$201,FALSE) -> 288709.11 | Z224: =VLOOKUP($U$202&$U224,GTYF!$C:$AP,Z$201,FALSE) -> 287735.54 | AA224: =VLOOKUP($U$202&$U224,GTYF!$C:$AP,AA$201,FALSE) -> 287056.12 | AB224: =VLOOKUP($U$202&$U224,GTYF!$C:$AP,AB$201,FALSE) -> 286292 | AC224: =VLOOKUP($U$202&$U224,GTYF!$C:$AP,AC$201,FALSE) -> 285376.72 | AD224: =VLOOKUP($U$202&$U224,GTYF!$C:$AP,AD$201,FALSE) -> 282114.75 | AE224: =VLOOKUP($U$202&$U224,GTYF!$C:$AP,AE$201,FALSE) -> 280631.12 | AF224: =VLOOKUP($U$202&$U224,GTYF!$C:$AP,AF$201,FALSE) -> 274375.63 | AG224: =VLOOKUP($U$202&$U224,GTYF!$C:$AP,AG$201,FALSE) -> 270331.41 | AH224: =VLOOKUP($U$202&$U224,GTYF!$C:$AP,AH$201,FALSE) -> 265594.39 | AI224: =VLOOKUP($U$202&$U224,GTYF!$C:$AP,AI$201,FALSE) -> 258229.77 | AJ224: =VLOOKUP($U$202&$U224,GTYF!$C:$AP,AJ$201,FALSE) -> 254684.21 | AK224: =VLOOKUP($U$202&$U224,GTYF!$C:$AP,AK$201,FALSE) -> 245412.45 | AL224: =VLOOKUP($U$202&$U224,GTYF!$C:$AP,AL$201,FALSE) -> 244416.7 | AM224: =VLOOKUP($U$202&$U224,GTYF!$C:$AP,AM$201,FALSE) -> 240969.49 | AN224: =VLOOKUP($U$202&$U224,GTYF!$C:$AP,AN$201,FALSE) -> 235449.33 | AO224: =VLOOKUP($U$202&$U224,GTYF!$C:$AP,AO$201,FALSE) -> 233927.92 | AP224: =VLOOKUP($U$202&$U224,GTYF!$C:$AP,AP$201,FALSE) -> 223036 | AQ224: =VLOOKUP($U$202&$U224,GTYF!$C:$AP,AQ$201,FALSE) -> 222955.95 | AR224: =VLOOKUP($U$202&$U224,GTYF!$C:$AP,AR$201,FALSE) -> 220864.79 | AS224: =VLOOKUP($U$202&$U224,GTYF!$C:$AP,AS$201,FALSE) -> 218911.47 | AT224: =VLOOKUP($U$202&$U224,GTYF!$C:$AP,AT$201,FALSE) -> 218778.85 | AU224: =VLOOKUP($U$202&$U224,GTYF!$C:$AP,AU$201,FALSE) -> 218609.95 | AV224: =VLOOKUP($U$202&$U224,GTYF!$C:$AP,AV$201,FALSE) -> 218609.95 | AW224: =VLOOKUP($U$202&$U224,GTYF!$C:$AP,AW$201,FALSE) -> 218553.64 | AX224: =VLOOKUP($U$202&$U224,GTYF!$C:$AP,AX$201,FALSE) -> 218927.23 | AY224: =VLOOKUP($U$202&$U224,GTYF!$C:$AP,AY$201,FALSE) -> 219500.54 | AZ224: =VLOOKUP($U$202&$U224,GTYF!$C:$AP,AZ$201,FALSE) -> 218176.95
B225: * Attention, étant donné que le graphique fait appel aux GTYF, certains TYF ne paraissent pas dans les bons types de couvert (ex: EoRx, PbFx, PuFx, ToFx) | S225: Figure 10a | T225: Cédrières | U225: (FCTYF_THO) | V225: =VLOOKUP($U$202&$U225,GTYF!$C:$AP,V$201,FALSE) -> 0 | W225: =VLOOKUP($U$202&$U225,GTYF!$C:$AP,W$201,FALSE) -> 0 | X225: =VLOOKUP($U$202&$U225,GTYF!$C:$AP,X$201,FALSE) -> 0 | Y225: =VLOOKUP($U$202&$U225,GTYF!$C:$AP,Y$201,FALSE) -> 0 | Z225: =VLOOKUP($U$202&$U225,GTYF!$C:$AP,Z$201,FALSE) -> 0 | AA225: =VLOOKUP($U$202&$U225,GTYF!$C:$AP,AA$201,FALSE) -> 0 | AB225: =VLOOKUP($U$202&$U225,GTYF!$C:$AP,AB$201,FALSE) -> 0 | AC225: =VLOOKUP($U$202&$U225,GTYF!$C:$AP,AC$201,FALSE) -> 0 | AD225: =VLOOKUP($U$202&$U225,GTYF!$C:$AP,AD$201,FALSE) -> 0 | AE225: =VLOOKUP($U$202&$U225,GTYF!$C:$AP,AE$201,FALSE) -> 0 | AF225: =VLOOKUP($U$202&$U225,GTYF!$C:$AP,AF$201,FALSE) -> 0 | AG225: =VLOOKUP($U$202&$U225,GTYF!$C:$AP,AG$201,FALSE) -> 0 | AH225: =VLOOKUP($U$202&$U225,GTYF!$C:$AP,AH$201,FALSE) -> 0 | AI225: =VLOOKUP($U$202&$U225,GTYF!$C:$AP,AI$201,FALSE) -> 0 | AJ225: =VLOOKUP($U$202&$U225,GTYF!$C:$AP,AJ$201,FALSE) -> 0 | AK225: =VLOOKUP($U$202&$U225,GTYF!$C:$AP,AK$201,FALSE) -> 0 | AL225: =VLOOKUP($U$202&$U225,GTYF!$C:$AP,AL$201,FALSE) -> 0 | AM225: =VLOOKUP($U$202&$U225,GTYF!$C:$AP,AM$201,FALSE) -> 0 | AN225: =VLOOKUP($U$202&$U225,GTYF!$C:$AP,AN$201,FALSE) -> 0 | AO225: =VLOOKUP($U$202&$U225,GTYF!$C:$AP,AO$201,FALSE) -> 0 | AP225: =VLOOKUP($U$202&$U225,GTYF!$C:$AP,AP$201,FALSE) -> 0 | AQ225: =VLOOKUP($U$202&$U225,GTYF!$C:$AP,AQ$201,FALSE) -> 0 | AR225: =VLOOKUP($U$202&$U225,GTYF!$C:$AP,AR$201,FALSE) -> 0 | AS225: =VLOOKUP($U$202&$U225,GTYF!$C:$AP,AS$201,FALSE) -> 0 | AT225: =VLOOKUP($U$202&$U225,GTYF!$C:$AP,AT$201,FALSE) -> 0 | AU225: =VLOOKUP($U$202&$U225,GTYF!$C:$AP,AU$201,FALSE) -> 0 | AV225: =VLOOKUP($U$202&$U225,GTYF!$C:$AP,AV$201,FALSE) -> 0 | AW225: =VLOOKUP($U$202&$U225,GTYF!$C:$AP,AW$201,FALSE) -> 0 | AX225: =VLOOKUP($U$202&$U225,GTYF!$C:$AP,AX$201,FALSE) -> 0 | AY225: =VLOOKUP($U$202&$U225,GTYF!$C:$AP,AY$201,FALSE) -> 0 | AZ225: =VLOOKUP($U$202&$U225,GTYF!$C:$AP,AZ$201,FALSE) -> 0
U228: Colonne | V228: 6 | W228: 7 | X228: 8 | Y228: 9 | Z228: 10 | AA228: 11 | AB228: 12 | AC228: 13 | AD228: 14 | AE228: 15 | AF228: 16 | AG228: 17 | AH228: 18 | AI228: 19 | AJ228: 20 | AK228: 21 | AL228: 22 | AM228: 23 | AN228: 24 | AO228: 25 | AP228: 26 | AQ228: 27 | AR228: 28 | AS228: 29 | AT228: 30 | AU228: 31 | AV228: 32 | AW228: 33 | AX228: 34 | AY228: 35 | AZ228: 36
B229: Figure 10c Évolution des superficies de hêtraie et d'érablière à hêtre | U229: Période | V229: P0 | W229: P1 | X229: P2 | Y229: P3 | Z229: P4 | AA229: P5 | AB229: P6 | AC229: P7 | AD229: P8 | AE229: P9 | AF229: P10 | AG229: P11 | AH229: P12 | AI229: P13 | AJ229: P14 | AK229: P15 | AL229: P16 | AM229: P17 | AN229: P18 | AO229: P19 | AP229: P20 | AQ229: P21 | AR229: P22 | AS229: P23 | AT229: P24 | AU229: P25 | AV229: P26 | AW229: P27 | AX229: P28 | AY229: P29 | AZ229: P30
U230: Axe des "X" Fin de période | V230: 2018 | W230: 2023 | X230: 2028 | Y230: 2033 | Z230: 2038 | AA230: 2043 | AB230: 2048 | AC230: 2053 | AD230: 2058 | AE230: 2063 | AF230: 2068 | AG230: 2073 | AH230: 2078 | AI230: 2083 | AJ230: 2088 | AK230: 2093 | AL230: 2098 | AM230: 2103 | AN230: 2108 | AO230: 2113 | AP230: 2118 | AQ230: 2123 | AR230: 2128 | AS230: 2133 | AT230: 2138 | AU230: 2143 | AV230: 2148 | AW230: 2153 | AX230: 2158 | AY230: 2163 | AZ230: 2168
S231: =LEFT(B$229,10) -> Figure 10c | T231: Hêtraie | U231: OSUPESHG_FX | V231: =VLOOKUP($U231,Output!$C:$AQ,V$228,FALSE) ->  | W231: =VLOOKUP($U231,Output!$C:$AQ,W$228,FALSE) ->  | X231: =VLOOKUP($U231,Output!$C:$AQ,X$228,FALSE) ->  | Y231: =VLOOKUP($U231,Output!$C:$AQ,Y$228,FALSE) ->  | Z231: =VLOOKUP($U231,Output!$C:$AQ,Z$228,FALSE) ->  | AA231: =VLOOKUP($U231,Output!$C:$AQ,AA$228,FALSE) ->  | AB231: =VLOOKUP($U231,Output!$C:$AQ,AB$228,FALSE) ->  | AC231: =VLOOKUP($U231,Output!$C:$AQ,AC$228,FALSE) ->  | AD231: =VLOOKUP($U231,Output!$C:$AQ,AD$228,FALSE) ->  | AE231: =VLOOKUP($U231,Output!$C:$AQ,AE$228,FALSE) ->  | AF231: =VLOOKUP($U231,Output!$C:$AQ,AF$228,FALSE) ->  | AG231: =VLOOKUP($U231,Output!$C:$AQ,AG$228,FALSE) ->  | AH231: =VLOOKUP($U231,Output!$C:$AQ,AH$228,FALSE) ->  | AI231: =VLOOKUP($U231,Output!$C:$AQ,AI$228,FALSE) ->  | AJ231: =VLOOKUP($U231,Output!$C:$AQ,AJ$228,FALSE) ->  | AK231: =VLOOKUP($U231,Output!$C:$AQ,AK$228,FALSE) ->  | AL231: =VLOOKUP($U231,Output!$C:$AQ,AL$228,FALSE) ->  | AM231: =VLOOKUP($U231,Output!$C:$AQ,AM$228,FALSE) ->  | AN231: =VLOOKUP($U231,Output!$C:$AQ,AN$228,FALSE) ->  | AO231: =VLOOKUP($U231,Output!$C:$AQ,AO$228,FALSE) ->  | AP231: =VLOOKUP($U231,Output!$C:$AQ,AP$228,FALSE) ->  | AQ231: =VLOOKUP($U231,Output!$C:$AQ,AQ$228,FALSE) ->  | AR231: =VLOOKUP($U231,Output!$C:$AQ,AR$228,FALSE) ->  | AS231: =VLOOKUP($U231,Output!$C:$AQ,AS$228,FALSE) ->  | AT231: =VLOOKUP($U231,Output!$C:$AQ,AT$228,FALSE) ->  | AU231: =VLOOKUP($U231,Output!$C:$AQ,AU$228,FALSE) ->  | AV231: =VLOOKUP($U231,Output!$C:$AQ,AV$228,FALSE) ->  | AW231: =VLOOKUP($U231,Output!$C:$AQ,AW$228,FALSE) ->  | AX231: =VLOOKUP($U231,Output!$C:$AQ,AX$228,FALSE) ->  | AY231: =VLOOKUP($U231,Output!$C:$AQ,AY$228,FALSE) ->  | AZ231: =VLOOKUP($U231,Output!$C:$AQ,AZ$228,FALSE) -> 
S232: =LEFT(B$229,10) -> Figure 10c | T232: Érablière à hêtre | U232: OSUPESHG | V232: =VLOOKUP($U232,Output!$C:$AQ,V$228,FALSE) ->  | W232: =VLOOKUP($U232,Output!$C:$AQ,W$228,FALSE) ->  | X232: =VLOOKUP($U232,Output!$C:$AQ,X$228,FALSE) ->  | Y232: =VLOOKUP($U232,Output!$C:$AQ,Y$228,FALSE) ->  | Z232: =VLOOKUP($U232,Output!$C:$AQ,Z$228,FALSE) ->  | AA232: =VLOOKUP($U232,Output!$C:$AQ,AA$228,FALSE) ->  | AB232: =VLOOKUP($U232,Output!$C:$AQ,AB$228,FALSE) ->  | AC232: =VLOOKUP($U232,Output!$C:$AQ,AC$228,FALSE) ->  | AD232: =VLOOKUP($U232,Output!$C:$AQ,AD$228,FALSE) ->  | AE232: =VLOOKUP($U232,Output!$C:$AQ,AE$228,FALSE) ->  | AF232: =VLOOKUP($U232,Output!$C:$AQ,AF$228,FALSE) ->  | AG232: =VLOOKUP($U232,Output!$C:$AQ,AG$228,FALSE) ->  | AH232: =VLOOKUP($U232,Output!$C:$AQ,AH$228,FALSE) ->  | AI232: =VLOOKUP($U232,Output!$C:$AQ,AI$228,FALSE) ->  | AJ232: =VLOOKUP($U232,Output!$C:$AQ,AJ$228,FALSE) ->  | AK232: =VLOOKUP($U232,Output!$C:$AQ,AK$228,FALSE) ->  | AL232: =VLOOKUP($U232,Output!$C:$AQ,AL$228,FALSE) ->  | AM232: =VLOOKUP($U232,Output!$C:$AQ,AM$228,FALSE) ->  | AN232: =VLOOKUP($U232,Output!$C:$AQ,AN$228,FALSE) ->  | AO232: =VLOOKUP($U232,Output!$C:$AQ,AO$228,FALSE) ->  | AP232: =VLOOKUP($U232,Output!$C:$AQ,AP$228,FALSE) ->  | AQ232: =VLOOKUP($U232,Output!$C:$AQ,AQ$228,FALSE) ->  | AR232: =VLOOKUP($U232,Output!$C:$AQ,AR$228,FALSE) ->  | AS232: =VLOOKUP($U232,Output!$C:$AQ,AS$228,FALSE) ->  | AT232: =VLOOKUP($U232,Output!$C:$AQ,AT$228,FALSE) ->  | AU232: =VLOOKUP($U232,Output!$C:$AQ,AU$228,FALSE) ->  | AV232: =VLOOKUP($U232,Output!$C:$AQ,AV$228,FALSE) ->  | AW232: =VLOOKUP($U232,Output!$C:$AQ,AW$228,FALSE) ->  | AX232: =VLOOKUP($U232,Output!$C:$AQ,AX$228,FALSE) ->  | AY232: =VLOOKUP($U232,Output!$C:$AQ,AY$228,FALSE) ->  | AZ232: =VLOOKUP($U232,Output!$C:$AQ,AZ$228,FALSE) -> 
S233: =LEFT(B$229,10) -> Figure 10c | T233: Total | U233: Total | V233: =SUM(V231:V232) ->  | W233: =SUM(W231:W232) -> 
B255: Figure 11b Évolution du volume de sapin et d'épinettes sur pied dans la composante SEPM
U262: Colonne | V262: 6 | W262: 7 | X262: 8 | Y262: 9 | Z262: 10 | AA262: 11 | AB262: 12 | AC262: 13 | AD262: 14 | AE262: 15 | AF262: 16 | AG262: 17 | AH262: 18 | AI262: 19 | AJ262: 20 | AK262: 21 | AL262: 22 | AM262: 23 | AN262: 24 | AO262: 25 | AP262: 26 | AQ262: 27 | AR262: 28 | AS262: 29 | AT262: 30 | AU262: 31 | AV262: 32 | AW262: 33 | AX262: 34 | AY262: 35 | AZ262: 36
U263: Axe des "X" Fin de période | V263: 2018 | W263: 2023 | X263: 2028 | Y263: 2033 | Z263: 2038 | AA263: 2043 | AB263: 2048 | AC263: 2053 | AD263: 2058 | AE263: 2063 | AF263: 2068 | AG263: 2073 | AH263: 2078 | AI263: 2083 | AJ263: 2088 | AK263: 2093 | AL263: 2098 | AM263: 2103 | AN263: 2108 | AO263: 2113 | AP263: 2118 | AQ263: 2123 | AR263: 2128 | AS263: 2133 | AT263: 2138 | AU263: 2143 | AV263: 2148 | AW263: 2153 | AX263: 2158 | AY263: 2163 | AZ263: 2168
S264: =LEFT(B$255,10) -> Figure 11b | U264: Période | V264: P0 | W264: P1 | X264: P2 | Y264: P3 | Z264: P4 | AA264: P5 | AB264: P6 | AC264: P7 | AD264: P8 | AE264: P9 | AF264: P10 | AG264: P11 | AH264: P12 | AI264: P13 | AJ264: P14 | AK264: P15 | AL264: P16 | AM264: P17 | AN264: P18 | AO264: P19 | AP264: P20 | AQ264: P21 | AR264: P22 | AS264: P23 | AT264: P24 | AU264: P25 | AV264: P26 | AW264: P27 | AX264: P28 | AY264: P29 | AZ264: P30
S265: Figure 11b | T265: Légende | Y265: PERIOD3 | Z265: PERIOD4 | AA265: PERIOD5 | AB265: PERIOD6 | AC265: PERIOD7 | AD265: PERIOD8 | AE265: PERIOD9 | AF265: PERIOD10 | AG265: PERIOD11 | AH265: PERIOD12 | AI265: PERIOD13 | AJ265: PERIOD14 | AK265: PERIOD15 | AL265: PERIOD16 | AM265: PERIOD17 | AN265: PERIOD18 | AO265: PERIOD19 | AP265: PERIOD20 | AQ265: PERIOD21 | AR265: PERIOD22 | AS265: PERIOD23 | AT265: PERIOD24 | AU265: PERIOD25 | AV265: PERIOD26 | AW265: PERIOD27 | AX265: PERIOD28 | AY265: PERIOD29 | AZ265: PERIOD30
S266: Figure 11b | T266: Volume Sapin | U266: OVOLSABPIEDINC(FCTYF_SEPM) | V266: =VLOOKUP($U266,GTYF!$C:$AL,Figures!V$262,FALSE) -> 19367228.88 | W266: =VLOOKUP($U266,GTYF!$C:$AL,Figures!W$262,FALSE) -> 19029368.22 | X266: =VLOOKUP($U266,GTYF!$C:$AL,Figures!X$262,FALSE) -> 11611179.1 | Y266: =VLOOKUP($U266,GTYF!$C:$AL,Figures!Y$262,FALSE) -> 12365870.56 | Z266: =VLOOKUP($U266,GTYF!$C:$AL,Figures!Z$262,FALSE) -> 13026058.12 | AA266: =VLOOKUP($U266,GTYF!$C:$AL,Figures!AA$262,FALSE) -> 13969752.55 | AB266: =VLOOKUP($U266,GTYF!$C:$AL,Figures!AB$262,FALSE) -> 15517455.72 | AC266: =VLOOKUP($U266,GTYF!$C:$AL,Figures!AC$262,FALSE) -> 17072721.5 | AD266: =VLOOKUP($U266,GTYF!$C:$AL,Figures!AD$262,FALSE) -> 18042478.23 | AE266: =VLOOKUP($U266,GTYF!$C:$AL,Figures!AE$262,FALSE) -> 18443891.47 | AF266: =VLOOKUP($U266,GTYF!$C:$AL,Figures!AF$262,FALSE) -> 19378948.5 | AG266: =VLOOKUP($U266,GTYF!$C:$AL,Figures!AG$262,FALSE) -> 20105655.65 | AH266: =VLOOKUP($U266,GTYF!$C:$AL,Figures!AH$262,FALSE) -> 20196526.96 | AI266: =VLOOKUP($U266,GTYF!$C:$AL,Figures!AI$262,FALSE) -> 19394508.48 | AJ266: =VLOOKUP($U266,GTYF!$C:$AL,Figures!AJ$262,FALSE) -> 19529999.22 | AK266: =VLOOKUP($U266,GTYF!$C:$AL,Figures!AK$262,FALSE) -> 18874237.97 | AL266: =VLOOKUP($U266,GTYF!$C:$AL,Figures!AL$262,FALSE) -> 18902395.59 | AM266: =VLOOKUP($U266,GTYF!$C:$AL,Figures!AM$262,FALSE) -> 18817994.88 | AN266: =VLOOKUP($U266,GTYF!$C:$AL,Figures!AN$262,FALSE) -> 17953949.78 | AO266: =VLOOKUP($U266,GTYF!$C:$AL,Figures!AO$262,FALSE) -> 17650710.14 | AP266: =VLOOKUP($U266,GTYF!$C:$AL,Figures!AP$262,FALSE) -> 16870479.93 | AQ266: =VLOOKUP($U266,GTYF!$C:$AL,Figures!AQ$262,FALSE) -> 16406657.38 | AR266: =VLOOKUP($U266,GTYF!$C:$AL,Figures!AR$262,FALSE) -> 16104070.39 | AS266: =VLOOKUP($U266,GTYF!$C:$AL,Figures!AS$262,FALSE) -> 15640710.7 | AT266: =VLOOKUP($U266,GTYF!$C:$AL,Figures!AT$262,FALSE) -> 15303129.5 | AU266: =VLOOKUP($U266,GTYF!$C:$AL,Figures!AU$262,FALSE) -> 15414931.63 | AV266: =VLOOKUP($U266,GTYF!$C:$AL,Figures!AV$262,FALSE) -> 15244484.33 | AW266: =VLOOKUP($U266,GTYF!$C:$AL,Figures!AW$262,FALSE) -> 15663297.92 | AX266: =VLOOKUP($U266,GTYF!$C:$AL,Figures!AX$262,FALSE) -> 15474226.56 | AY266: =VLOOKUP($U266,GTYF!$C:$AL,Figures!AY$262,FALSE) -> 16013506.01 | AZ266: =VLOOKUP($U266,GTYF!$C:$AL,Figures!AZ$262,FALSE) -> 16149677.88
S267: Figure 11b | T267: Volume Épinettes | U267: OVOLGEPXPIEDINC(FCTYF_SEPM) | V267: =VLOOKUP($U267,GTYF!$C:$AL,Figures!V$262,FALSE) -> 54910848.83 | W267: =VLOOKUP($U267,GTYF!$C:$AL,Figures!W$262,FALSE) -> 54246076.55 | X267: =VLOOKUP($U267,GTYF!$C:$AL,Figures!X$262,FALSE) -> 51384812.84 | Y267: =VLOOKUP($U267,GTYF!$C:$AL,Figures!Y$262,FALSE) -> 50310451.17 | Z267: =VLOOKUP($U267,GTYF!$C:$AL,Figures!Z$262,FALSE) -> 49414038.19 | AA267: =VLOOKUP($U267,GTYF!$C:$AL,Figures!AA$262,FALSE) -> 48944689.74 | AB267: =VLOOKUP($U267,GTYF!$C:$AL,Figures!AB$262,FALSE) -> 48634835.58 | AC267: =VLOOKUP($U267,GTYF!$C:$AL,Figures!AC$262,FALSE) -> 48228439.24 | AD267: =VLOOKUP($U267,GTYF!$C:$AL,Figures!AD$262,FALSE) -> 47277464.7 | AE267: =VLOOKUP($U267,GTYF!$C:$AL,Figures!AE$262,FALSE) -> 47113060.57 | AF267: =VLOOKUP($U267,GTYF!$C:$AL,Figures!AF$262,FALSE) -> 46952122.78 | AG267: =VLOOKUP($U267,GTYF!$C:$AL,Figures!AG$262,FALSE) -> 47126895.84 | AH267: =VLOOKUP($U267,GTYF!$C:$AL,Figures!AH$262,FALSE) -> 47468917.8 | AI267: =VLOOKUP($U267,GTYF!$C:$AL,Figures!AI$262,FALSE) -> 48903222.96 | AJ267: =VLOOKUP($U267,GTYF!$C:$AL,Figures!AJ$262,FALSE) -> 49479173.21 | AK267: =VLOOKUP($U267,GTYF!$C:$AL,Figures!AK$262,FALSE) -> 50831312.49 | AL267: =VLOOKUP($U267,GTYF!$C:$AL,Figures!AL$262,FALSE) -> 51103322.3 | AM267: =VLOOKUP($U267,GTYF!$C:$AL,Figures!AM$262,FALSE) -> 51894531.52 | AN267: =VLOOKUP($U267,GTYF!$C:$AL,Figures!AN$262,FALSE) -> 51640181.95 | AO267: =VLOOKUP($U267,GTYF!$C:$AL,Figures!AO$262,FALSE) -> 50398485.68 | AP267: =VLOOKUP($U267,GTYF!$C:$AL,Figures!AP$262,FALSE) -> 49672692.65 | AQ267: =VLOOKUP($U267,GTYF!$C:$AL,Figures!AQ$262,FALSE) -> 48706063.41 | AR267: =VLOOKUP($U267,GTYF!$C:$AL,Figures!AR$262,FALSE) -> 48432105.53 | AS267: =VLOOKUP($U267,GTYF!$C:$AL,Figures!AS$262,FALSE) -> 48317607.98 | AT267: =VLOOKUP($U267,GTYF!$C:$AL,Figures!AT$262,FALSE) -> 47350152.04 | AU267: =VLOOKUP($U267,GTYF!$C:$AL,Figures!AU$262,FALSE) -> 46584719.31 | AV267: =VLOOKUP($U267,GTYF!$C:$AL,Figures!AV$262,FALSE) -> 45399191.16 | AW267: =VLOOKUP($U267,GTYF!$C:$AL,Figures!AW$262,FALSE) -> 44215051.98 | AX267: =VLOOKUP($U267,GTYF!$C:$AL,Figures!AX$262,FALSE) -> 44124529.65 | AY267: =VLOOKUP($U267,GTYF!$C:$AL,Figures!AY$262,FALSE) -> 43208395.46 | AZ267: =VLOOKUP($U267,GTYF!$C:$AL,Figures!AZ$262,FALSE) -> 43270487.33
S268: Figure 11b
S269: Figure 11b | T269: SEPM sur pied | U269: OVOLGSEPMPIEDINC(FCTYF_SEPM) | V269: =VLOOKUP($U269,GTYF!$C:$AL,Figures!V$262,FALSE) -> 75775707.87 | W269: =VLOOKUP($U269,GTYF!$C:$AL,Figures!W$262,FALSE) -> 74866530.87 | X269: =VLOOKUP($U269,GTYF!$C:$AL,Figures!X$262,FALSE) -> 64724208.79 | Y269: =VLOOKUP($U269,GTYF!$C:$AL,Figures!Y$262,FALSE) -> 64394659.34 | Z269: =VLOOKUP($U269,GTYF!$C:$AL,Figures!Z$262,FALSE) -> 64271357.29 | AA269: =VLOOKUP($U269,GTYF!$C:$AL,Figures!AA$262,FALSE) -> 64902905.99 | AB269: =VLOOKUP($U269,GTYF!$C:$AL,Figures!AB$262,FALSE) -> 66258230.97 | AC269: =VLOOKUP($U269,GTYF!$C:$AL,Figures!AC$262,FALSE) -> 67595932.18 | AD269: =VLOOKUP($U269,GTYF!$C:$AL,Figures!AD$262,FALSE) -> 67738573.86 | AE269: =VLOOKUP($U269,GTYF!$C:$AL,Figures!AE$262,FALSE) -> 68219738.77 | AF269: =VLOOKUP($U269,GTYF!$C:$AL,Figures!AF$262,FALSE) -> 69018307.21 | AG269: =VLOOKUP($U269,GTYF!$C:$AL,Figures!AG$262,FALSE) -> 70202829.4 | AH269: =VLOOKUP($U269,GTYF!$C:$AL,Figures!AH$262,FALSE) -> 70845572.3 | AI269: =VLOOKUP($U269,GTYF!$C:$AL,Figures!AI$262,FALSE) -> 71621607.98 | AJ269: =VLOOKUP($U269,GTYF!$C:$AL,Figures!AJ$262,FALSE) -> 72490502.81 | AK269: =VLOOKUP($U269,GTYF!$C:$AL,Figures!AK$262,FALSE) -> 73313426.09 | AL269: =VLOOKUP($U269,GTYF!$C:$AL,Figures!AL$262,FALSE) -> 73774435.43 | AM269: =VLOOKUP($U269,GTYF!$C:$AL,Figures!AM$262,FALSE) -> 74509962.2 | AN269: =VLOOKUP($U269,GTYF!$C:$AL,Figures!AN$262,FALSE) -> 73211598.28 | AO269: =VLOOKUP($U269,GTYF!$C:$AL,Figures!AO$262,FALSE) -> 71481228.88 | AP269: =VLOOKUP($U269,GTYF!$C:$AL,Figures!AP$262,FALSE) -> 69620888.98 | AQ269: =VLOOKUP($U269,GTYF!$C:$AL,Figures!AQ$262,FALSE) -> 68012641.18 | AR269: =VLOOKUP($U269,GTYF!$C:$AL,Figures!AR$262,FALSE) -> 67320363.22 | AS269: =VLOOKUP($U269,GTYF!$C:$AL,Figures!AS$262,FALSE) -> 66772679.25 | AT269: =VLOOKUP($U269,GTYF!$C:$AL,Figures!AT$262,FALSE) -> 65445420.71 | AU269: =VLOOKUP($U269,GTYF!$C:$AL,Figures!AU$262,FALSE) -> 64753526.8 | AV269: =VLOOKUP($U269,GTYF!$C:$AL,Figures!AV$262,FALSE) -> 63377971.7 | AW269: =VLOOKUP($U269,GTYF!$C:$AL,Figures!AW$262,FALSE) -> 62738143.83 | AX269: =VLOOKUP($U269,GTYF!$C:$AL,Figures!AX$262,FALSE) -> 62585673.77 | AY269: =VLOOKUP($U269,GTYF!$C:$AL,Figures!AY$262,FALSE) -> 62058167.01 | AZ269: =VLOOKUP($U269,GTYF!$C:$AL,Figures!AZ$262,FALSE) -> 62101044.95
S270: Figure 11b
S271: Figure 11b | T271: % Sapin | V271: =IF(ISERROR(V266),0,V266/V269) -> 0.2555862482 | W271: 0.2541772405 | X271: 0.1793946858 | Y271: 0.1920325488 | Z271: 0.2026728339 | AA271: 0.2152407868 | AB271: 0.2341966499 | AC271: 0.2525702502 | AD271: 0.2663545629 | AE271: 0.2703600425 | AF271: 0.2807798291 | AG271: 0.2863938081 | AH271: 0.2850781821 | AI271: 0.2707913021 | AJ271: 0.2694145917 | AK271: 0.2574458592 | AL271: 0.2562187766 | AM271: 0.2525567632 | AN271: 0.2452336816 | AO271: 0.2469279056 | AP271: 0.242319226 | AQ271: 0.2412295287 | AR271: 0.2392154412 | AS271: 0.2342381776 | AT271: 0.2338304091 | AU271: 0.2380554758 | AV271: 0.2405328527 | AW271: 0.2496614813 | AX271: 0.2472487013 | AY271: 0.2580402674 | AZ271: 0.2600548492
S272: Figure 11b | T272: % Épinettes | V272: =IF(ISERROR(V267),0,V267/V269) -> 0.7246497641 | W272: =IF(ISERROR(W267),0,W267/W269) -> 0.7245704578 | X272: 0.7939040708 | Y272: 0.7812829773 | Z272: 0.7688345209 | AA272: 0.7541216991 | AB272: 0.7340195304 | AC272: 0.7134813839 | AD272: 0.6979400658 | AE272: 0.6906074608 | AF272: 0.680285053 | AG272: 0.6712962461 | AH272: 0.6700336557 | AI272: 0.6827998469 | AJ272: 0.6825607672 | AK272: 0.6933424776 | AL272: 0.6926968943 | AM272: 0.6964777593 | AN272: 0.7053552055 | AO272: 0.705059027 | AP272: 0.7134739785 | AQ272: 0.7161325096 | AR272: 0.719427276 | AS272: 0.7236134378 | AT272: 0.7235059616 | AU272: 0.7194159394 | AV272: 0.7163244569 | AW272: 0.7047555009 | AX272: 0.7050260386 | AY272: 0.6962563921 | AZ272: 0.696775511
... 481 more rows

Sheet UTA
M1: Jeune forêt | R1: Niveau d'altération des vieilles forêts | W1: Niveau d'altération combiné | AA1: Info à récupérer par le SSP Niveau d'altération des vieilles forêts
A2: Inscrire la liste des numéros d'UTA de l'UA: | B2: VieuxAlerte (%) | C2: VieuxAccept (%) | D2: RegeAlerte (%) | E2: RegeAccept (%) | G2: VieuxAlerte (ha) | H2: VieuxAccept (ha) | I2: RegeAlerte (ha) | J2: RegeAccept (ha) | K2: SupUTA | M2: OSUPJEUNEREGECO PERIOD1 (%) | N2: État Jeune 2023 | O2: OSUPJEUNEREGECO PERIOD6 (%) | P2: État Jeune 2048 | R2: OSUPVIEUXTOTREGECO PERIOD1 (%) | S2: État Vielle 2023 | T2: OSUPVIEUXTOTREGECO PERIOD6 (%) | U2: État Vielle 2048 | W2: UTA | X2: 2023 | Y2: 2048 | AA2: UA | AB2: UTA | AC2: 2023 | AD2: 2048 | AE2: Mode de répartition spatiale | AP2: Mode de répartition spatiale
A3: UTA1 | B3: =ROUND(G3/$K3,3) -> 0.231 | C3: =ROUND(H3/$K3,3) -> 0.385 | D3: =ROUND(I3/$K3,3) -> 0.35 | E3: =ROUND(J3/$K3,3) -> 0.25 | G3: =VLOOKUP(CONCATENATE("OSUPVIEUXALERTEREGECO_"&A3),Output!$C:$AQ,6,FALSE) -> 47356.66 | H3: =VLOOKUP(CONCATENATE("OSUPVIEUXACCEPTREGECO_"&A3),Output!$C:$AQ,6,FALSE) -> 78927.77 | I3: =VLOOKUP(CONCATENATE("OSUPJEUNEALERTEREGECO_"&A3),Output!$C:$AQ,6,FALSE) -> 71752.52 | J3: =VLOOKUP(CONCATENATE("OSUPJEUNEACCEPTREGECO_"&A3),Output!$C:$AQ,6,FALSE) -> 51251.8 | K3: =VLOOKUP(CONCATENATE("OSUPREGECO_"&A3),Output!$C:$AQ,6,FALSE) -> 205007.2 | M3: =ROUND(VLOOKUP("OSUPJEUNEREGECO_"&A3,Output!$C:$AQ,7,FALSE)/VLOOKUP("OSUPREGECO_"&A3,Output!$C:$AQ,6,FALSE),3) -> 0.368 | N3: =IF(M3<=$E3,"Faible",IF(M3<$D3,"Modéré","Supérieur")) -> Supérieur | O3: =ROUND(VLOOKUP("OSUPJEUNEREGECO_"&$A3,Output!$C:$AQ,12,FALSE)/VLOOKUP("OSUPREGECO_"&A3,Output!$C:$AQ,6,FALSE),3) -> 0.084 | P3: =IF(O3<=$E3,"Faible",IF(O3<$D3,"Modéré","Supérieur")) -> Faible | R3: =ROUND(VLOOKUP("OSUPVIEUXTOTREGECO_"&$A3,Output!$C:$AQ,7,FALSE)/VLOOKUP("OSUPREGECO_"&A3,Output!$C:$AQ,6,FALSE),3) -> 0.455 | S3: =IF(R3<$B3,"Supérieur",IF(R3<$C3,"Modéré","Faible")) -> Faible | T3: =ROUND(VLOOKUP("OSUPVIEUXTOTREGECO_"&$A3,Output!$C:$AQ,12,FALSE)/VLOOKUP("OSUPREGECO_"&A3,Output!$C:$AQ,6,FALSE),3) -> 0.385 | U3: =IF(T3<$B3,"Supérieur",IF(T3<$C3,"Modéré","Faible")) -> Faible | W3: =A3 -> UTA1 | X3: =IF(S3>N3,S3,N3) -> Supérieur | Y3: =IF(U3>P3,U3,P3) -> Faible | AA3: =Tableaux!$O$33 -> 09351 | AB3: =W3 -> UTA1 | AC3: =S3 -> Faible | AD3: =U3 -> Faible | AE3: COS pessière | AG3: Note: "Élevé" a été renommé "Supérieur" pour le bon fonctionnement des formules. | AP3: COS sapinière
A4: UTA2 | B4: =ROUND(G4/$K4,3) -> 0.231 | C4: =ROUND(H4/$K4,3) -> 0.385 | D4: 0.35 | E4: 0.25 | G4: =VLOOKUP(CONCATENATE("OSUPVIEUXALERTEREGECO_"&A4),Output!$C:$AQ,6,FALSE) -> 35843.53 | H4: =VLOOKUP(CONCATENATE("OSUPVIEUXACCEPTREGECO_"&A4),Output!$C:$AQ,6,FALSE) -> 59739.22 | I4: =VLOOKUP(CONCATENATE("OSUPJEUNEALERTEREGECO_"&A4),Output!$C:$AQ,6,FALSE) -> 54308.38 | J4: =VLOOKUP(CONCATENATE("OSUPJEUNEACCEPTREGECO_"&A4),Output!$C:$AQ,6,FALSE) -> 38791.7 | K4: =VLOOKUP(CONCATENATE("OSUPREGECO_"&A4),Output!$C:$AQ,6,FALSE) -> 155166.8 | M4: =ROUND(VLOOKUP("OSUPJEUNEREGECO_"&A4,Output!$C:$AQ,7,FALSE)/VLOOKUP("OSUPREGECO_"&A4,Output!$C:$AQ,6,FALSE),3) -> 0.146 | N4: =IF(M4<=$E4,"Faible",IF(M4<$D4,"Modéré","Supérieur")) -> Faible | O4: =ROUND(VLOOKUP("OSUPJEUNEREGECO_"&$A4,Output!$C:$AQ,12,FALSE)/VLOOKUP("OSUPREGECO_"&A4,Output!$C:$AQ,6,FALSE),3) -> 0.071 | P4: =IF(O4<=$E4,"Faible",IF(O4<$D4,"Modéré","Supérieur")) -> Faible | R4: =ROUND(VLOOKUP("OSUPVIEUXTOTREGECO_"&$A4,Output!$C:$AQ,7,FALSE)/VLOOKUP("OSUPREGECO_"&A4,Output!$C:$AQ,6,FALSE),3) -> 0.412 | S4: =IF(R4<$B4,"Supérieur",IF(R4<$C4,"Modéré","Faible")) -> Faible | T4: =ROUND(VLOOKUP("OSUPVIEUXTOTREGECO_"&$A4,Output!$C:$AQ,12,FALSE)/VLOOKUP("OSUPREGECO_"&A4,Output!$C:$AQ,6,FALSE),3) -> 0.385 | U4: =IF(T4<$B4,"Supérieur",IF(T4<$C4,"Modéré","Faible")) -> Faible | W4: =A4 -> UTA2 | X4: =IF(S4>N4,S4,N4) -> Faible | Y4: =IF(U4>P4,U4,P4) -> Faible | AA4: =Tableaux!$O$33 -> 09351 | AB4: =W4 -> UTA2 | AC4: =S4 -> Faible | AD4: =U4 -> Faible | AE4: COS pessière | AP4: COS pessière
A5: UTA3 | B5: 0.231 | C5: 0.385 | D5: 0.35 | E5: 0.25 | G5: =VLOOKUP(CONCATENATE("OSUPVIEUXALERTEREGECO_"&A5),Output!$C:$AQ,6,FALSE) -> 49150.91 | H5: =VLOOKUP(CONCATENATE("OSUPVIEUXACCEPTREGECO_"&A5),Output!$C:$AQ,6,FALSE) -> 81918.18 | I5: =VLOOKUP(CONCATENATE("OSUPJEUNEALERTEREGECO_"&A5),Output!$C:$AQ,6,FALSE) -> 74471.07 | J5: =VLOOKUP(CONCATENATE("OSUPJEUNEACCEPTREGECO_"&A5),Output!$C:$AQ,6,FALSE) -> 53193.62 | K5: =VLOOKUP(CONCATENATE("OSUPREGECO_"&A5),Output!$C:$AQ,6,FALSE) -> 212774.5 | M5: =ROUND(VLOOKUP("OSUPJEUNEREGECO_"&A5,Output!$C:$AQ,7,FALSE)/VLOOKUP("OSUPREGECO_"&A5,Output!$C:$AQ,6,FALSE),3) -> 0.175 | N5: Faible | O5: =ROUND(VLOOKUP("OSUPJEUNEREGECO_"&$A5,Output!$C:$AQ,12,FALSE)/VLOOKUP("OSUPREGECO_"&A5,Output!$C:$AQ,6,FALSE),3) -> 0.093 | P5: Faible | R5: =ROUND(VLOOKUP("OSUPVIEUXTOTREGECO_"&$A5,Output!$C:$AQ,7,FALSE)/VLOOKUP("OSUPREGECO_"&A5,Output!$C:$AQ,6,FALSE),3) -> 0.345 | S5: Modéré | T5: =ROUND(VLOOKUP("OSUPVIEUXTOTREGECO_"&$A5,Output!$C:$AQ,12,FALSE)/VLOOKUP("OSUPREGECO_"&A5,Output!$C:$AQ,6,FALSE),3) -> 0.304 | U5: Modéré | W5: UTA3 | X5: Modéré | Y5: Modéré | AA5: =Tableaux!$O$33 -> 09351 | AB5: =W5 -> UTA3 | AC5: =S5 -> Modéré | AD5: =U5 -> Modéré | AE5: COS pessière | AP5: CMO
A6: UTA4 | B6: 0.195 | C6: 0.325 | D6: 0.35 | E6: 0.25 | G6: =VLOOKUP(CONCATENATE("OSUPVIEUXALERTEREGECO_"&A6),Output!$C:$AQ,6,FALSE) -> 41574.14 | H6: =VLOOKUP(CONCATENATE("OSUPVIEUXACCEPTREGECO_"&A6),Output!$C:$AQ,6,FALSE) -> 69290.23 | I6: =VLOOKUP(CONCATENATE("OSUPJEUNEALERTEREGECO_"&A6),Output!$C:$AQ,6,FALSE) -> 74620.24 | J6: =VLOOKUP(CONCATENATE("OSUPJEUNEACCEPTREGECO_"&A6),Output!$C:$AQ,6,FALSE) -> 53300.18 | K6: =VLOOKUP(CONCATENATE("OSUPREGECO_"&A6),Output!$C:$AQ,6,FALSE) -> 213200.7 | M6: =ROUND(VLOOKUP("OSUPJEUNEREGECO_"&A6,Output!$C:$AQ,7,FALSE)/VLOOKUP("OSUPREGECO_"&A6,Output!$C:$AQ,6,FALSE),3) -> 0.168 | N6: Faible | O6: =ROUND(VLOOKUP("OSUPJEUNEREGECO_"&$A6,Output!$C:$AQ,12,FALSE)/VLOOKUP("OSUPREGECO_"&A6,Output!$C:$AQ,6,FALSE),3) -> 0.148 | P6: Faible | R6: =ROUND(VLOOKUP("OSUPVIEUXTOTREGECO_"&$A6,Output!$C:$AQ,7,FALSE)/VLOOKUP("OSUPREGECO_"&A6,Output!$C:$AQ,6,FALSE),3) -> 0.665 | S6: Faible | T6: =ROUND(VLOOKUP("OSUPVIEUXTOTREGECO_"&$A6,Output!$C:$AQ,12,FALSE)/VLOOKUP("OSUPREGECO_"&A6,Output!$C:$AQ,6,FALSE),3) -> 0.471 | U6: Faible | W6: UTA4 | X6: Faible | Y6: Faible | AA6: =Tableaux!$O$33 -> 09351 | AB6: UTA4 | AC6: Faible | AD6: =U6 -> Faible | AE6: COS pessière | AP6: CMO entente Cris
A7: UTA5 | B7: 0.195 | C7: 0.325 | D7: 0.35 | E7: 0.25 | G7: =VLOOKUP(CONCATENATE("OSUPVIEUXALERTEREGECO_"&A7),Output!$C:$AQ,6,FALSE) -> 46779.88 | H7: =VLOOKUP(CONCATENATE("OSUPVIEUXACCEPTREGECO_"&A7),Output!$C:$AQ,6,FALSE) -> 77966.46 | I7: =VLOOKUP(CONCATENATE("OSUPJEUNEALERTEREGECO_"&A7),Output!$C:$AQ,6,FALSE) -> 83963.88 | J7: =VLOOKUP(CONCATENATE("OSUPJEUNEACCEPTREGECO_"&A7),Output!$C:$AQ,6,FALSE) -> 59974.2 | K7: =VLOOKUP(CONCATENATE("OSUPREGECO_"&A7),Output!$C:$AQ,6,FALSE) -> 239896.8 | M7: =ROUND(VLOOKUP("OSUPJEUNEREGECO_"&A7,Output!$C:$AQ,7,FALSE)/VLOOKUP("OSUPREGECO_"&A7,Output!$C:$AQ,6,FALSE),3) -> 0.129 | N7: Faible | O7: =ROUND(VLOOKUP("OSUPJEUNEREGECO_"&$A7,Output!$C:$AQ,12,FALSE)/VLOOKUP("OSUPREGECO_"&A7,Output!$C:$AQ,6,FALSE),3) -> 0.109 | P7: Faible | R7: =ROUND(VLOOKUP("OSUPVIEUXTOTREGECO_"&$A7,Output!$C:$AQ,7,FALSE)/VLOOKUP("OSUPREGECO_"&A7,Output!$C:$AQ,6,FALSE),3) -> 0.343 | S7: Faible | T7: =ROUND(VLOOKUP("OSUPVIEUXTOTREGECO_"&$A7,Output!$C:$AQ,12,FALSE)/VLOOKUP("OSUPREGECO_"&A7,Output!$C:$AQ,6,FALSE),3) -> 0.25 | U7: Modéré | W7: UTA5 | X7: Faible | Y7: Modéré | AA7: =Tableaux!$O$33 -> 09351 | AB7: UTA5 | AC7: =S7 -> Faible | AD7: =U7 -> Modéré | AE7: COS pessière | AG7: Voir à renommer "Élevé" dans la légende des figures | AP7: CMO entente BM
A8: UTA6 | B8: 0.195 | C8: 0.325 | D8: 0.35 | E8: 0.25 | G8: =VLOOKUP(CONCATENATE("OSUPVIEUXALERTEREGECO_"&A8),Output!$C:$AQ,6,FALSE) -> 52257.74 | H8: =VLOOKUP(CONCATENATE("OSUPVIEUXACCEPTREGECO_"&A8),Output!$C:$AQ,6,FALSE) -> 87096.23 | I8: =VLOOKUP(CONCATENATE("OSUPJEUNEALERTEREGECO_"&A8),Output!$C:$AQ,6,FALSE) -> 93795.94 | J8: =VLOOKUP(CONCATENATE("OSUPJEUNEACCEPTREGECO_"&A8),Output!$C:$AQ,6,FALSE) -> 66997.1 | K8: =VLOOKUP(CONCATENATE("OSUPREGECO_"&A8),Output!$C:$AQ,6,FALSE) -> 267988.4 | M8: =ROUND(VLOOKUP("OSUPJEUNEREGECO_"&A8,Output!$C:$AQ,7,FALSE)/VLOOKUP("OSUPREGECO_"&A8,Output!$C:$AQ,6,FALSE),3) -> 0.094 | N8: Faible | O8: =ROUND(VLOOKUP("OSUPJEUNEREGECO_"&$A8,Output!$C:$AQ,12,FALSE)/VLOOKUP("OSUPREGECO_"&A8,Output!$C:$AQ,6,FALSE),3) -> 0.212 | P8: Faible | R8: =ROUND(VLOOKUP("OSUPVIEUXTOTREGECO_"&$A8,Output!$C:$AQ,7,FALSE)/VLOOKUP("OSUPREGECO_"&A8,Output!$C:$AQ,6,FALSE),3) -> 0.848 | S8: Faible | T8: =ROUND(VLOOKUP("OSUPVIEUXTOTREGECO_"&$A8,Output!$C:$AQ,12,FALSE)/VLOOKUP("OSUPREGECO_"&A8,Output!$C:$AQ,6,FALSE),3) -> 0.59 | U8: Faible | W8: UTA6 | X8: Faible | Y8: Faible | AA8: =Tableaux!$O$33 -> 09351 | AB8: UTA6 | AC8: Faible | AD8: Faible | AE8: COS pessière
A9: UTR1 | B9: 0.258 | C9: 0.43 | D9: 0.3 | E9: 0.2 | G9: =VLOOKUP(CONCATENATE("OSUPVIEUXALERTEREGECO_"&A9),Output!$C:$AQ,6,FALSE) -> 3106.99 | H9: =VLOOKUP(CONCATENATE("OSUPVIEUXACCEPTREGECO_"&A9),Output!$C:$AQ,6,FALSE) -> 5178.32 | I9: =VLOOKUP(CONCATENATE("OSUPJEUNEALERTEREGECO_"&A9),Output!$C:$AQ,6,FALSE) -> 3612.78 | J9: =VLOOKUP(CONCATENATE("OSUPJEUNEACCEPTREGECO_"&A9),Output!$C:$AQ,6,FALSE) -> 2408.52 | K9: =VLOOKUP(CONCATENATE("OSUPREGECO_"&A9),Output!$C:$AQ,6,FALSE) -> 12042.6 | M9: =ROUND(VLOOKUP("OSUPJEUNEREGECO_"&A9,Output!$C:$AQ,7,FALSE)/VLOOKUP("OSUPREGECO_"&A9,Output!$C:$AQ,6,FALSE),3) -> 0.002 | N9: Faible | O9: =ROUND(VLOOKUP("OSUPJEUNEREGECO_"&$A9,Output!$C:$AQ,12,FALSE)/VLOOKUP("OSUPREGECO_"&A9,Output!$C:$AQ,6,FALSE),3) -> 0.016 | P9: Faible | R9: =ROUND(VLOOKUP("OSUPVIEUXTOTREGECO_"&$A9,Output!$C:$AQ,7,FALSE)/VLOOKUP("OSUPREGECO_"&A9,Output!$C:$AQ,6,FALSE),3) -> 0.071 | S9: Supérieur | T9: =ROUND(VLOOKUP("OSUPVIEUXTOTREGECO_"&$A9,Output!$C:$AQ,12,FALSE)/VLOOKUP("OSUPREGECO_"&A9,Output!$C:$AQ,6,FALSE),3) -> 0.164 | U9: Supérieur | W9: UTR1 | X9: Supérieur | Y9: Supérieur | AA9: =Tableaux!$O$33 -> 09351 | AB9: UTR1 | AC9: Supérieur | AD9: Supérieur | AE9: COS sapinière
A10: UTR2 | B10: 0.258 | C10: 0.43 | D10: 0.3 | E10: 0.2 | G10: =VLOOKUP(CONCATENATE("OSUPVIEUXALERTEREGECO_"&A10),Output!$C:$AQ,6,FALSE) -> 6161.3 | H10: =VLOOKUP(CONCATENATE("OSUPVIEUXACCEPTREGECO_"&A10),Output!$C:$AQ,6,FALSE) -> 10268.83 | I10: =VLOOKUP(CONCATENATE("OSUPJEUNEALERTEREGECO_"&A10),Output!$C:$AQ,6,FALSE) -> 7164.3 | J10: =VLOOKUP(CONCATENATE("OSUPJEUNEACCEPTREGECO_"&A10),Output!$C:$AQ,6,FALSE) -> 4776.2 | K10: =VLOOKUP(CONCATENATE("OSUPREGECO_"&A10),Output!$C:$AQ,6,FALSE) -> 23881 | M10: =ROUND(VLOOKUP("OSUPJEUNEREGECO_"&A10,Output!$C:$AQ,7,FALSE)/VLOOKUP("OSUPREGECO_"&A10,Output!$C:$AQ,6,FALSE),3) -> 0 | N10: Faible | O10: =ROUND(VLOOKUP("OSUPJEUNEREGECO_"&$A10,Output!$C:$AQ,12,FALSE)/VLOOKUP("OSUPREGECO_"&A10,Output!$C:$AQ,6,FALSE),3) -> 0.034 | P10: Faible | R10: =ROUND(VLOOKUP("OSUPVIEUXTOTREGECO_"&$A10,Output!$C:$AQ,7,FALSE)/VLOOKUP("OSUPREGECO_"&A10,Output!$C:$AQ,6,FALSE),3) -> 0.062 | S10: Supérieur | T10: =ROUND(VLOOKUP("OSUPVIEUXTOTREGECO_"&$A10,Output!$C:$AQ,12,FALSE)/VLOOKUP("OSUPREGECO_"&A10,Output!$C:$AQ,6,FALSE),3) -> 0.092 | U10: Supérieur | W10: UTR2 | X10: Supérieur | Y10: Supérieur | AA10: =Tableaux!$O$33 -> 09351 | AB10: UTR2 | AC10: Supérieur | AD10: Supérieur | AE10: COS sapinière
A11: UTR3 | B11: 0.258 | C11: 0.43 | D11: 0.3 | E11: =ROUND(J11/$K11,3) -> 0.2 | G11: =VLOOKUP(CONCATENATE("OSUPVIEUXALERTEREGECO_"&A11),Output!$C:$AQ,6,FALSE) -> 4775.68 | H11: =VLOOKUP(CONCATENATE("OSUPVIEUXACCEPTREGECO_"&A11),Output!$C:$AQ,6,FALSE) -> 7959.47 | I11: =VLOOKUP(CONCATENATE("OSUPJEUNEALERTEREGECO_"&A11),Output!$C:$AQ,6,FALSE) -> 5553.12 | J11: =VLOOKUP(CONCATENATE("OSUPJEUNEACCEPTREGECO_"&A11),Output!$C:$AQ,6,FALSE) -> 3702.08 | K11: =VLOOKUP(CONCATENATE("OSUPREGECO_"&A11),Output!$C:$AQ,6,FALSE) -> 18510.4 | M11: =ROUND(VLOOKUP("OSUPJEUNEREGECO_"&A11,Output!$C:$AQ,7,FALSE)/VLOOKUP("OSUPREGECO_"&A11,Output!$C:$AQ,6,FALSE),3) -> 0.009 | N11: Faible | O11: =ROUND(VLOOKUP("OSUPJEUNEREGECO_"&$A11,Output!$C:$AQ,12,FALSE)/VLOOKUP("OSUPREGECO_"&A11,Output!$C:$AQ,6,FALSE),3) -> 0.024 | P11: Faible | R11: =ROUND(VLOOKUP("OSUPVIEUXTOTREGECO_"&$A11,Output!$C:$AQ,7,FALSE)/VLOOKUP("OSUPREGECO_"&A11,Output!$C:$AQ,6,FALSE),3) -> 0.089 | S11: Supérieur | T11: =ROUND(VLOOKUP("OSUPVIEUXTOTREGECO_"&$A11,Output!$C:$AQ,12,FALSE)/VLOOKUP("OSUPREGECO_"&A11,Output!$C:$AQ,6,FALSE),3) -> 0.141 | U11: Supérieur | W11: UTR3 | X11: Supérieur | Y11: Supérieur | AA11: =Tableaux!$O$33 -> 09351 | AB11: UTR3 | AC11: Supérieur | AD11: Supérieur | AE11: COS sapinière
A12: UTR4 | B12: 0.258 | C12: 0.43 | D12: 0.3 | E12: 0.2 | G12: =VLOOKUP(CONCATENATE("OSUPVIEUXALERTEREGECO_"&A12),Output!$C:$AQ,6,FALSE) -> 5049.6 | H12: =VLOOKUP(CONCATENATE("OSUPVIEUXACCEPTREGECO_"&A12),Output!$C:$AQ,6,FALSE) -> 8416 | I12: =VLOOKUP(CONCATENATE("OSUPJEUNEALERTEREGECO_"&A12),Output!$C:$AQ,6,FALSE) -> 5871.63 | J12: =VLOOKUP(CONCATENATE("OSUPJEUNEACCEPTREGECO_"&A12),Output!$C:$AQ,6,FALSE) -> 3914.42 | K12: =VLOOKUP(CONCATENATE("OSUPREGECO_"&A12),Output!$C:$AQ,6,FALSE) -> 19572.1 | M12: =ROUND(VLOOKUP("OSUPJEUNEREGECO_"&A12,Output!$C:$AQ,7,FALSE)/VLOOKUP("OSUPREGECO_"&A12,Output!$C:$AQ,6,FALSE),3) -> 0.05 | N12: Faible | O12: =ROUND(VLOOKUP("OSUPJEUNEREGECO_"&$A12,Output!$C:$AQ,12,FALSE)/VLOOKUP("OSUPREGECO_"&A12,Output!$C:$AQ,6,FALSE),3) -> 0.023 | P12: Faible | R12: =ROUND(VLOOKUP("OSUPVIEUXTOTREGECO_"&$A12,Output!$C:$AQ,7,FALSE)/VLOOKUP("OSUPREGECO_"&A12,Output!$C:$AQ,6,FALSE),3) -> 0.166 | S12: Supérieur | T12: =ROUND(VLOOKUP("OSUPVIEUXTOTREGECO_"&$A12,Output!$C:$AQ,12,FALSE)/VLOOKUP("OSUPREGECO_"&A12,Output!$C:$AQ,6,FALSE),3) -> 0.339 | U12: Modéré | W12: UTR4 | X12: Supérieur | Y12: Modéré | AA12: =Tableaux!$O$33 -> 09351 | AB12: UTR4 | AC12: Supérieur | AD12: Modéré | AE12: COS sapinière | AG12: Compléter cellules en jaune
A13: UTR5 | B13: 0.258 | C13: 0.43 | D13: 0.3 | E13: 0.2 | G13: =VLOOKUP(CONCATENATE("OSUPVIEUXALERTEREGECO_"&A13),Output!$C:$AQ,6,FALSE) -> 2802.16 | H13: =VLOOKUP(CONCATENATE("OSUPVIEUXACCEPTREGECO_"&A13),Output!$C:$AQ,6,FALSE) -> 4670.27 | I13: =VLOOKUP(CONCATENATE("OSUPJEUNEALERTEREGECO_"&A13),Output!$C:$AQ,6,FALSE) -> 3258.33 | J13: =VLOOKUP(CONCATENATE("OSUPJEUNEACCEPTREGECO_"&A13),Output!$C:$AQ,6,FALSE) -> 2172.22 | K13: =VLOOKUP(CONCATENATE("OSUPREGECO_"&A13),Output!$C:$AQ,6,FALSE) -> 10861.1 | M13: =ROUND(VLOOKUP("OSUPJEUNEREGECO_"&A13,Output!$C:$AQ,7,FALSE)/VLOOKUP("OSUPREGECO_"&A13,Output!$C:$AQ,6,FALSE),3) -> 0.136 | N13: Faible | O13: =ROUND(VLOOKUP("OSUPJEUNEREGECO_"&$A13,Output!$C:$AQ,12,FALSE)/VLOOKUP("OSUPREGECO_"&A13,Output!$C:$AQ,6,FALSE),3) -> 0.018 | P13: Faible | R13: =ROUND(VLOOKUP("OSUPVIEUXTOTREGECO_"&$A13,Output!$C:$AQ,7,FALSE)/VLOOKUP("OSUPREGECO_"&A13,Output!$C:$AQ,6,FALSE),3) -> 0.322 | S13: Modéré | T13: =ROUND(VLOOKUP("OSUPVIEUXTOTREGECO_"&$A13,Output!$C:$AQ,12,FALSE)/VLOOKUP("OSUPREGECO_"&A13,Output!$C:$AQ,6,FALSE),3) -> 0.683 | U13: Faible | W13: UTR5 | X13: Modéré | Y13: Faible | AA13: =Tableaux!$O$33 -> 09351 | AB13: UTR5 | AC13: Modéré | AD13: Faible | AE13: COS sapinière
A14: UTR6 | B14: 0.258 | C14: 0.43 | D14: 0.3 | E14: 0.2 | G14: =VLOOKUP(CONCATENATE("OSUPVIEUXALERTEREGECO_"&A14),Output!$C:$AQ,6,FALSE) -> 6097.8 | H14: =VLOOKUP(CONCATENATE("OSUPVIEUXACCEPTREGECO_"&A14),Output!$C:$AQ,6,FALSE) -> 10163.01 | I14: =VLOOKUP(CONCATENATE("OSUPJEUNEALERTEREGECO_"&A14),Output!$C:$AQ,6,FALSE) -> 7090.47 | J14: =VLOOKUP(CONCATENATE("OSUPJEUNEACCEPTREGECO_"&A14),Output!$C:$AQ,6,FALSE) -> 4726.98 | K14: =VLOOKUP(CONCATENATE("OSUPREGECO_"&A14),Output!$C:$AQ,6,FALSE) -> 23634.9 | M14: =ROUND(VLOOKUP("OSUPJEUNEREGECO_"&A14,Output!$C:$AQ,7,FALSE)/VLOOKUP("OSUPREGECO_"&A14,Output!$C:$AQ,6,FALSE),3) -> 0.048 | N14: Faible | O14: =ROUND(VLOOKUP("OSUPJEUNEREGECO_"&$A14,Output!$C:$AQ,12,FALSE)/VLOOKUP("OSUPREGECO_"&A14,Output!$C:$AQ,6,FALSE),3) -> 0.023 | P14: Faible | R14: =ROUND(VLOOKUP("OSUPVIEUXTOTREGECO_"&$A14,Output!$C:$AQ,7,FALSE)/VLOOKUP("OSUPREGECO_"&A14,Output!$C:$AQ,6,FALSE),3) -> 0.264 | S14: Modéré | T14: =ROUND(VLOOKUP("OSUPVIEUXTOTREGECO_"&$A14,Output!$C:$AQ,12,FALSE)/VLOOKUP("OSUPREGECO_"&A14,Output!$C:$AQ,6,FALSE),3) -> 0.54 | U14: Faible | W14: UTR6 | X14: Modéré | Y14: Faible | AA14: =Tableaux!$O$33 -> 09351 | AB14: UTR6 | AC14: Modéré | AD14: Faible | AE14: COS sapinière
A15: UTR7 | B15: 0.258 | C15: 0.43 | D15: 0.3 | E15: 0.2 | G15: =VLOOKUP(CONCATENATE("OSUPVIEUXALERTEREGECO_"&A15),Output!$C:$AQ,6,FALSE) -> 6356.84 | H15: =VLOOKUP(CONCATENATE("OSUPVIEUXACCEPTREGECO_"&A15),Output!$C:$AQ,6,FALSE) -> 10594.73 | I15: =VLOOKUP(CONCATENATE("OSUPJEUNEALERTEREGECO_"&A15),Output!$C:$AQ,6,FALSE) -> 7391.67 | J15: =VLOOKUP(CONCATENATE("OSUPJEUNEACCEPTREGECO_"&A15),Output!$C:$AQ,6,FALSE) -> 4927.78 | K15: =VLOOKUP(CONCATENATE("OSUPREGECO_"&A15),Output!$C:$AQ,6,FALSE) -> 24638.9 | M15: =ROUND(VLOOKUP("OSUPJEUNEREGECO_"&A15,Output!$C:$AQ,7,FALSE)/VLOOKUP("OSUPREGECO_"&A15,Output!$C:$AQ,6,FALSE),3) -> 0.04 | N15: Faible | O15: =ROUND(VLOOKUP("OSUPJEUNEREGECO_"&$A15,Output!$C:$AQ,12,FALSE)/VLOOKUP("OSUPREGECO_"&A15,Output!$C:$AQ,6,FALSE),3) -> 0.046 | P15: Faible | R15: =ROUND(VLOOKUP("OSUPVIEUXTOTREGECO_"&$A15,Output!$C:$AQ,7,FALSE)/VLOOKUP("OSUPREGECO_"&A15,Output!$C:$AQ,6,FALSE),3) -> 0.272 | S15: Modéré | T15: =ROUND(VLOOKUP("OSUPVIEUXTOTREGECO_"&$A15,Output!$C:$AQ,12,FALSE)/VLOOKUP("OSUPREGECO_"&A15,Output!$C:$AQ,6,FALSE),3) -> 0.419 | U15: Modéré | W15: UTR7 | X15: Modéré | Y15: Modéré | AA15: =Tableaux!$O$33 -> 09351 | AB15: UTR7 | AC15: Modéré | AD15: Modéré | AE15: COS sapinière
A16: UTR8 | B16: 0.258 | C16: 0.43 | D16: 0.3 | E16: 0.2 | G16: =VLOOKUP(CONCATENATE("OSUPVIEUXALERTEREGECO_"&A16),Output!$C:$AQ,6,FALSE) -> 3160.68 | H16: =VLOOKUP(CONCATENATE("OSUPVIEUXACCEPTREGECO_"&A16),Output!$C:$AQ,6,FALSE) -> 5267.8 | I16: =VLOOKUP(CONCATENATE("OSUPJEUNEALERTEREGECO_"&A16),Output!$C:$AQ,6,FALSE) -> 3675.21 | J16: =VLOOKUP(CONCATENATE("OSUPJEUNEACCEPTREGECO_"&A16),Output!$C:$AQ,6,FALSE) -> 2450.14 | K16: =VLOOKUP(CONCATENATE("OSUPREGECO_"&A16),Output!$C:$AQ,6,FALSE) -> 12250.7 | M16: =ROUND(VLOOKUP("OSUPJEUNEREGECO_"&A16,Output!$C:$AQ,7,FALSE)/VLOOKUP("OSUPREGECO_"&A16,Output!$C:$AQ,6,FALSE),3) -> 0.072 | N16: Faible | O16: =ROUND(VLOOKUP("OSUPJEUNEREGECO_"&$A16,Output!$C:$AQ,12,FALSE)/VLOOKUP("OSUPREGECO_"&A16,Output!$C:$AQ,6,FALSE),3) -> 0.067 | P16: Faible | R16: =ROUND(VLOOKUP("OSUPVIEUXTOTREGECO_"&$A16,Output!$C:$AQ,7,FALSE)/VLOOKUP("OSUPREGECO_"&A16,Output!$C:$AQ,6,FALSE),3) -> 0.179 | S16: Supérieur | T16: =ROUND(VLOOKUP("OSUPVIEUXTOTREGECO_"&$A16,Output!$C:$AQ,12,FALSE)/VLOOKUP("OSUPREGECO_"&A16,Output!$C:$AQ,6,FALSE),3) -> 0.339 | U16: Modéré | W16: =A16 -> UTR8 | X16: Supérieur | Y16: Modéré | AA16: =Tableaux!$O$33 -> 09351 | AB16: UTR8 | AC16: Supérieur | AD16: Modéré | AE16: COS sapinière
A17: UTR9 | B17: 0.258 | C17: 0.43 | D17: 0.3 | E17: 0.2 | G17: =VLOOKUP(CONCATENATE("OSUPVIEUXALERTEREGECO_"&A17),Output!$C:$AQ,6,FALSE) -> 3557.92 | H17: =VLOOKUP(CONCATENATE("OSUPVIEUXACCEPTREGECO_"&A17),Output!$C:$AQ,6,FALSE) -> 5929.87 | I17: =VLOOKUP(CONCATENATE("OSUPJEUNEALERTEREGECO_"&A17),Output!$C:$AQ,6,FALSE) -> 4137.12 | J17: =VLOOKUP(CONCATENATE("OSUPJEUNEACCEPTREGECO_"&A17),Output!$C:$AQ,6,FALSE) -> 2758.08 | K17: =VLOOKUP(CONCATENATE("OSUPREGECO_"&A17),Output!$C:$AQ,6,FALSE) -> 13790.4 | M17: =ROUND(VLOOKUP("OSUPJEUNEREGECO_"&A17,Output!$C:$AQ,7,FALSE)/VLOOKUP("OSUPREGECO_"&A17,Output!$C:$AQ,6,FALSE),3) -> 0.217 | N17: Modéré | O17: =ROUND(VLOOKUP("OSUPJEUNEREGECO_"&$A17,Output!$C:$AQ,12,FALSE)/VLOOKUP("OSUPREGECO_"&A17,Output!$C:$AQ,6,FALSE),3) -> 0.019 | P17: Faible | R17: =ROUND(VLOOKUP("OSUPVIEUXTOTREGECO_"&$A17,Output!$C:$AQ,7,FALSE)/VLOOKUP("OSUPREGECO_"&A17,Output!$C:$AQ,6,FALSE),3) -> 0.232 | S17: Supérieur | T17: =ROUND(VLOOKUP("OSUPVIEUXTOTREGECO_"&$A17,Output!$C:$AQ,12,FALSE)/VLOOKUP("OSUPREGECO_"&A17,Output!$C:$AQ,6,FALSE),3) -> 0.63 | U17: Faible | W17: =A17 -> UTR9 | X17: Supérieur | Y17: Faible | AA17: =Tableaux!$O$33 -> 09351 | AB17: UTR9 | AC17: Supérieur | AD17: Faible | AE17: COS sapinière
A18: UTR10 | B18: 0.258 | C18: 0.43 | D18: 0.3 | E18: 0.2 | G18: =VLOOKUP(CONCATENATE("OSUPVIEUXALERTEREGECO_"&A18),Output!$C:$AQ,6,FALSE) -> 4191.67 | H18: =VLOOKUP(CONCATENATE("OSUPVIEUXACCEPTREGECO_"&A18),Output!$C:$AQ,6,FALSE) -> 6986.12 | I18: =VLOOKUP(CONCATENATE("OSUPJEUNEALERTEREGECO_"&A18),Output!$C:$AQ,6,FALSE) -> 4874.04 | J18: =VLOOKUP(CONCATENATE("OSUPJEUNEACCEPTREGECO_"&A18),Output!$C:$AQ,6,FALSE) -> 3249.36 | K18: =VLOOKUP(CONCATENATE("OSUPREGECO_"&A18),Output!$C:$AQ,6,FALSE) -> 16246.8 | M18: =ROUND(VLOOKUP("OSUPJEUNEREGECO_"&A18,Output!$C:$AQ,7,FALSE)/VLOOKUP("OSUPREGECO_"&A18,Output!$C:$AQ,6,FALSE),3) -> 0.063 | N18: Faible | O18: =ROUND(VLOOKUP("OSUPJEUNEREGECO_"&$A18,Output!$C:$AQ,12,FALSE)/VLOOKUP("OSUPREGECO_"&A18,Output!$C:$AQ,6,FALSE),3) -> 0.007 | P18: Faible | R18: =ROUND(VLOOKUP("OSUPVIEUXTOTREGECO_"&$A18,Output!$C:$AQ,7,FALSE)/VLOOKUP("OSUPREGECO_"&A18,Output!$C:$AQ,6,FALSE),3) -> 0.189 | S18: Supérieur | T18: =ROUND(VLOOKUP("OSUPVIEUXTOTREGECO_"&$A18,Output!$C:$AQ,12,FALSE)/VLOOKUP("OSUPREGECO_"&A18,Output!$C:$AQ,6,FALSE),3) -> 0.76 | U18: Faible | W18: =A18 -> UTR10 | X18: Supérieur | Y18: Faible | AA18: =Tableaux!$O$33 -> 09351 | AB18: UTR10 | AC18: Supérieur | AD18: Faible | AE18: COS sapinière
A19: UTR11 | B19: 0.258 | C19: 0.43 | D19: 0.3 | E19: 0.2 | G19: =VLOOKUP(CONCATENATE("OSUPVIEUXALERTEREGECO_"&A19),Output!$C:$AQ,6,FALSE) -> 6074.56 | H19: =VLOOKUP(CONCATENATE("OSUPVIEUXACCEPTREGECO_"&A19),Output!$C:$AQ,6,FALSE) -> 10124.26 | I19: =VLOOKUP(CONCATENATE("OSUPJEUNEALERTEREGECO_"&A19),Output!$C:$AQ,6,FALSE) -> 7063.44 | J19: =VLOOKUP(CONCATENATE("OSUPJEUNEACCEPTREGECO_"&A19),Output!$C:$AQ,6,FALSE) -> 4708.96 | K19: =VLOOKUP(CONCATENATE("OSUPREGECO_"&A19),Output!$C:$AQ,6,FALSE) -> 23544.8 | M19: =ROUND(VLOOKUP("OSUPJEUNEREGECO_"&A19,Output!$C:$AQ,7,FALSE)/VLOOKUP("OSUPREGECO_"&A19,Output!$C:$AQ,6,FALSE),3) -> 0.033 | N19: Faible | O19: =ROUND(VLOOKUP("OSUPJEUNEREGECO_"&$A19,Output!$C:$AQ,12,FALSE)/VLOOKUP("OSUPREGECO_"&A19,Output!$C:$AQ,6,FALSE),3) -> 0.006 | P19: Faible | R19: =ROUND(VLOOKUP("OSUPVIEUXTOTREGECO_"&$A19,Output!$C:$AQ,7,FALSE)/VLOOKUP("OSUPREGECO_"&A19,Output!$C:$AQ,6,FALSE),3) -> 0.338 | S19: Modéré | T19: =ROUND(VLOOKUP("OSUPVIEUXTOTREGECO_"&$A19,Output!$C:$AQ,12,FALSE)/VLOOKUP("OSUPREGECO_"&A19,Output!$C:$AQ,6,FALSE),3) -> 0.728 | U19: Faible | W19: =A19 -> UTR11 | X19: Modéré | Y19: Faible | AA19: =Tableaux!$O$33 -> 09351 | AB19: UTR11 | AC19: Modéré | AD19: Faible | AE19: COS sapinière
A20: UTR12 | B20: 0.258 | C20: 0.43 | D20: 0.3 | E20: 0.2 | G20: =VLOOKUP(CONCATENATE("OSUPVIEUXALERTEREGECO_"&A20),Output!$C:$AQ,6,FALSE) -> 8570.01 | H20: =VLOOKUP(CONCATENATE("OSUPVIEUXACCEPTREGECO_"&A20),Output!$C:$AQ,6,FALSE) -> 14283.35 | I20: =VLOOKUP(CONCATENATE("OSUPJEUNEALERTEREGECO_"&A20),Output!$C:$AQ,6,FALSE) -> 9965.13 | J20: =VLOOKUP(CONCATENATE("OSUPJEUNEACCEPTREGECO_"&A20),Output!$C:$AQ,6,FALSE) -> 6643.42 | K20: =VLOOKUP(CONCATENATE("OSUPREGECO_"&A20),Output!$C:$AQ,6,FALSE) -> 33217.1 | M20: =ROUND(VLOOKUP("OSUPJEUNEREGECO_"&A20,Output!$C:$AQ,7,FALSE)/VLOOKUP("OSUPREGECO_"&A20,Output!$C:$AQ,6,FALSE),3) -> 0.035 | N20: Faible | O20: =ROUND(VLOOKUP("OSUPJEUNEREGECO_"&$A20,Output!$C:$AQ,12,FALSE)/VLOOKUP("OSUPREGECO_"&A20,Output!$C:$AQ,6,FALSE),3) -> 0.044 | P20: Faible | R20: =ROUND(VLOOKUP("OSUPVIEUXTOTREGECO_"&$A20,Output!$C:$AQ,7,FALSE)/VLOOKUP("OSUPREGECO_"&A20,Output!$C:$AQ,6,FALSE),3) -> 0.297 | S20: Modéré | T20: =ROUND(VLOOKUP("OSUPVIEUXTOTREGECO_"&$A20,Output!$C:$AQ,12,FALSE)/VLOOKUP("OSUPREGECO_"&A20,Output!$C:$AQ,6,FALSE),3) -> 0.801 | U20: Faible | W20: =A20 -> UTR12 | X20: Modéré | Y20: Faible | AA20: =Tableaux!$O$33 -> 09351 | AB20: UTR12 | AC20: Modéré | AD20: Faible | AE20: COS sapinière
B21: =ROUND(G21/$K21,2) ->  | C21: =H21/$K21 ->  | D21: =ROUND(I21/$K21,3) ->  | G21: =VLOOKUP(CONCATENATE("OSUPVIEUXALERTEREGECO_"&A21),Output!$C:$AQ,6,FALSE) ->  | H21: =VLOOKUP(CONCATENATE("OSUPVIEUXACCEPTREGECO_"&A21),Output!$C:$AQ,6,FALSE) ->  | I21: =VLOOKUP(CONCATENATE("OSUPJEUNEALERTEREGECO_"&A21),Output!$C:$AQ,6,FALSE) ->  | J21: =VLOOKUP(CONCATENATE("OSUPJEUNEACCEPTREGECO_"&A21),Output!$C:$AQ,6,FALSE) ->  | K21: =VLOOKUP(CONCATENATE("OSUPREGECO_"&A21),Output!$C:$AQ,6,FALSE) ->  | M21: =ROUND(VLOOKUP("OSUPJEUNEREGECO_"&A21,Output!$C:$AQ,7,FALSE)/VLOOKUP("OSUPREGECO_"&A21,Output!$C:$AQ,6,FALSE),3) ->  | O21: =ROUND(VLOOKUP("OSUPJEUNEREGECO_"&$A21,Output!$C:$AQ,12,FALSE)/VLOOKUP("OSUPREGECO_"&A21,Output!$C:$AQ,6,FALSE),3) ->  | R21: =ROUND(VLOOKUP("OSUPVIEUXTOTREGECO_"&$A21,Output!$C:$AQ,7,FALSE)/VLOOKUP("OSUPREGECO_"&A21,Output!$C:$AQ,6,FALSE),3) ->  | T21: =ROUND(VLOOKUP("OSUPVIEUXTOTREGECO_"&$A21,Output!$C:$AQ,12,FALSE)/VLOOKUP("OSUPREGECO_"&A21,Output!$C:$AQ,6,FALSE),3) ->  | W21: 0 | AA21: =Tableaux!$O$33 -> 09351 | AB21: 0 | AE21: COS sapinière
A22: UTR14 | B22: 0.26 | C22: 0.4300000563 | D22: 0.3 | E22: 0.2 | G22: =VLOOKUP(CONCATENATE("OSUPVIEUXALERTEREGECO_"&A22),Output!$C:$AQ,6,FALSE) -> 13757.57 | H22: =VLOOKUP(CONCATENATE("OSUPVIEUXACCEPTREGECO_"&A22),Output!$C:$AQ,6,FALSE) -> 22929.28 | I22: =VLOOKUP(CONCATENATE("OSUPJEUNEALERTEREGECO_"&A22),Output!$C:$AQ,6,FALSE) -> 15997.17 | J22: =VLOOKUP(CONCATENATE("OSUPJEUNEACCEPTREGECO_"&A22),Output!$C:$AQ,6,FALSE) -> 10664.78 | K22: =VLOOKUP(CONCATENATE("OSUPREGECO_"&A22),Output!$C:$AQ,6,FALSE) -> 53323.9 | M22: =ROUND(VLOOKUP("OSUPJEUNEREGECO_"&A22,Output!$C:$AQ,7,FALSE)/VLOOKUP("OSUPREGECO_"&A22,Output!$C:$AQ,6,FALSE),3) -> 0.037 | N22: Faible | O22: =ROUND(VLOOKUP("OSUPJEUNEREGECO_"&$A22,Output!$C:$AQ,12,FALSE)/VLOOKUP("OSUPREGECO_"&A22,Output!$C:$AQ,6,FALSE),3) -> 0.058 | P22: Faible | R22: =ROUND(VLOOKUP("OSUPVIEUXTOTREGECO_"&$A22,Output!$C:$AQ,7,FALSE)/VLOOKUP("OSUPREGECO_"&A22,Output!$C:$AQ,6,FALSE),3) -> 0.301 | S22: Modéré | T22: =ROUND(VLOOKUP("OSUPVIEUXTOTREGECO_"&$A22,Output!$C:$AQ,12,FALSE)/VLOOKUP("OSUPREGECO_"&A22,Output!$C:$AQ,6,FALSE),3) -> 0.713 | U22: Faible | W22: UTR14 | X22: Modéré | Y22: Faible | AA22: =Tableaux!$O$33 -> 09351 | AB22: UTR14 | AC22: Modéré | AD22: Faible | AE22: COS sapinière
A23: UTR15 | B23: 0.26 | C23: 0.4299998205 | D23: 0.3 | E23: 0.2 | G23: =VLOOKUP(CONCATENATE("OSUPVIEUXALERTEREGECO_"&A23),Output!$C:$AQ,6,FALSE) -> 5749.99 | H23: =VLOOKUP(CONCATENATE("OSUPVIEUXACCEPTREGECO_"&A23),Output!$C:$AQ,6,FALSE) -> 9583.32 | I23: =VLOOKUP(CONCATENATE("OSUPJEUNEALERTEREGECO_"&A23),Output!$C:$AQ,6,FALSE) -> 6686.04 | J23: =VLOOKUP(CONCATENATE("OSUPJEUNEACCEPTREGECO_"&A23),Output!$C:$AQ,6,FALSE) -> 4457.36 | K23: =VLOOKUP(CONCATENATE("OSUPREGECO_"&A23),Output!$C:$AQ,6,FALSE) -> 22286.8 | M23: =ROUND(VLOOKUP("OSUPJEUNEREGECO_"&A23,Output!$C:$AQ,7,FALSE)/VLOOKUP("OSUPREGECO_"&A23,Output!$C:$AQ,6,FALSE),3) -> 0.063 | N23: Faible | O23: =ROUND(VLOOKUP("OSUPJEUNEREGECO_"&$A23,Output!$C:$AQ,12,FALSE)/VLOOKUP("OSUPREGECO_"&A23,Output!$C:$AQ,6,FALSE),3) -> 0.024 | P23: Faible | R23: =ROUND(VLOOKUP("OSUPVIEUXTOTREGECO_"&$A23,Output!$C:$AQ,7,FALSE)/VLOOKUP("OSUPREGECO_"&A23,Output!$C:$AQ,6,FALSE),3) -> 0.283 | S23: Modéré | T23: =ROUND(VLOOKUP("OSUPVIEUXTOTREGECO_"&$A23,Output!$C:$AQ,12,FALSE)/VLOOKUP("OSUPREGECO_"&A23,Output!$C:$AQ,6,FALSE),3) -> 0.744 | U23: Faible | W23: UTR15 | X23: Modéré | Y23: Faible | AA23: =Tableaux!$O$33 -> 09351 | AB23: UTR15 | AC23: Modéré | AD23: Faible | AE23: COS sapinière
A24: UTR16 | B24: 0.26 | C24: 0.43 | D24: 0.3 | E24: 0.2 | G24: =VLOOKUP(CONCATENATE("OSUPVIEUXALERTEREGECO_"&A24),Output!$C:$AQ,6,FALSE) -> 5895.3 | H24: =VLOOKUP(CONCATENATE("OSUPVIEUXACCEPTREGECO_"&A24),Output!$C:$AQ,6,FALSE) -> 9825.5 | I24: =VLOOKUP(CONCATENATE("OSUPJEUNEALERTEREGECO_"&A24),Output!$C:$AQ,6,FALSE) -> 6855 | J24: =VLOOKUP(CONCATENATE("OSUPJEUNEACCEPTREGECO_"&A24),Output!$C:$AQ,6,FALSE) -> 4570 | K24: =VLOOKUP(CONCATENATE("OSUPREGECO_"&A24),Output!$C:$AQ,6,FALSE) -> 22850 | M24: =ROUND(VLOOKUP("OSUPJEUNEREGECO_"&A24,Output!$C:$AQ,7,FALSE)/VLOOKUP("OSUPREGECO_"&A24,Output!$C:$AQ,6,FALSE),3) -> 0.039 | N24: Faible | O24: =ROUND(VLOOKUP("OSUPJEUNEREGECO_"&$A24,Output!$C:$AQ,12,FALSE)/VLOOKUP("OSUPREGECO_"&A24,Output!$C:$AQ,6,FALSE),3) -> 0.021 | P24: Faible | R24: =ROUND(VLOOKUP("OSUPVIEUXTOTREGECO_"&$A24,Output!$C:$AQ,7,FALSE)/VLOOKUP("OSUPREGECO_"&A24,Output!$C:$AQ,6,FALSE),3) -> 0.206 | S24: Supérieur | T24: =ROUND(VLOOKUP("OSUPVIEUXTOTREGECO_"&$A24,Output!$C:$AQ,12,FALSE)/VLOOKUP("OSUPREGECO_"&A24,Output!$C:$AQ,6,FALSE),3) -> 0.629 | U24: Faible | W24: UTR16 | X24: Supérieur | Y24: Faible | AA24: =Tableaux!$O$33 -> 09351 | AB24: UTR16 | AC24: Supérieur | AD24: Faible | AE24: COS sapinière
A25: UTR17 | B25: 0.26 | C25: 0.4299999056 | D25: 0.3 | E25: 0.2 | G25: =VLOOKUP(CONCATENATE("OSUPVIEUXALERTEREGECO_"&A25),Output!$C:$AQ,6,FALSE) -> 5465.06 | H25: =VLOOKUP(CONCATENATE("OSUPVIEUXACCEPTREGECO_"&A25),Output!$C:$AQ,6,FALSE) -> 9108.43 | I25: =VLOOKUP(CONCATENATE("OSUPJEUNEALERTEREGECO_"&A25),Output!$C:$AQ,6,FALSE) -> 6354.72 | J25: =VLOOKUP(CONCATENATE("OSUPJEUNEACCEPTREGECO_"&A25),Output!$C:$AQ,6,FALSE) -> 4236.48 | K25: =VLOOKUP(CONCATENATE("OSUPREGECO_"&A25),Output!$C:$AQ,6,FALSE) -> 21182.4 | M25: =ROUND(VLOOKUP("OSUPJEUNEREGECO_"&A25,Output!$C:$AQ,7,FALSE)/VLOOKUP("OSUPREGECO_"&A25,Output!$C:$AQ,6,FALSE),3) -> 0.032 | N25: Faible | O25: =ROUND(VLOOKUP("OSUPJEUNEREGECO_"&$A25,Output!$C:$AQ,12,FALSE)/VLOOKUP("OSUPREGECO_"&A25,Output!$C:$AQ,6,FALSE),3) -> 0.008 | P25: Faible | R25: =ROUND(VLOOKUP("OSUPVIEUXTOTREGECO_"&$A25,Output!$C:$AQ,7,FALSE)/VLOOKUP("OSUPREGECO_"&A25,Output!$C:$AQ,6,FALSE),3) -> 0.12 | S25: Supérieur | T25: =ROUND(VLOOKUP("OSUPVIEUXTOTREGECO_"&$A25,Output!$C:$AQ,12,FALSE)/VLOOKUP("OSUPREGECO_"&A25,Output!$C:$AQ,6,FALSE),3) -> 0.712 | U25: Faible | W25: UTR17 | X25: Supérieur | Y25: Faible | AA25: =Tableaux!$O$33 -> 09351 | AB25: UTR17 | AC25: Supérieur | AD25: Faible | AE25: COS sapinière
G26: =VLOOKUP(CONCATENATE("OSUPVIEUXALERTEREGECO_"&A26),Output!$C:$AQ,6,FALSE) ->  | H26: =VLOOKUP(CONCATENATE("OSUPVIEUXACCEPTREGECO_"&A26),Output!$C:$AQ,6,FALSE) ->  | I26: =VLOOKUP(CONCATENATE("OSUPJEUNEALERTEREGECO_"&A26),Output!$C:$AQ,6,FALSE) ->  | J26: =VLOOKUP(CONCATENATE("OSUPJEUNEACCEPTREGECO_"&A26),Output!$C:$AQ,6,FALSE) ->  | K26: =VLOOKUP(CONCATENATE("OSUPREGECO_"&A26),Output!$C:$AQ,6,FALSE) ->  | M26: =ROUND(VLOOKUP("OSUPJEUNEREGECO_"&A26,Output!$C:$AQ,7,FALSE)/VLOOKUP("OSUPREGECO_"&A26,Output!$C:$AQ,6,FALSE),3) ->  | O26: =ROUND(VLOOKUP("OSUPJEUNEREGECO_"&$A26,Output!$C:$AQ,12,FALSE)/VLOOKUP("OSUPREGECO_"&A26,Output!$C:$AQ,6,FALSE),3) ->  | R26: =ROUND(VLOOKUP("OSUPVIEUXTOTREGECO_"&$A26,Output!$C:$AQ,7,FALSE)/VLOOKUP("OSUPREGECO_"&A26,Output!$C:$AQ,6,FALSE),3) ->  | T26: =ROUND(VLOOKUP("OSUPVIEUXTOTREGECO_"&$A26,Output!$C:$AQ,12,FALSE)/VLOOKUP("OSUPREGECO_"&A26,Output!$C:$AQ,6,FALSE),3) ->  | W26: 0 | AA26: =Tableaux!$O$33 -> 09351 | AB26: 0 | AE26: COS sapinière
A27: UTR19 | B27: 0.23 | C27: =ROUND(H27/$K27,3) -> 0.385 | D27: 0.35 | E27: 0.25 | G27: =VLOOKUP(CONCATENATE("OSUPVIEUXALERTEREGECO_"&A27),Output!$C:$AQ,6,FALSE) -> 2313.19 | H27: =VLOOKUP(CONCATENATE("OSUPVIEUXACCEPTREGECO_"&A27),Output!$C:$AQ,6,FALSE) -> 3855.31 | I27: =VLOOKUP(CONCATENATE("OSUPJEUNEALERTEREGECO_"&A27),Output!$C:$AQ,6,FALSE) -> 3504.83 | J27: =VLOOKUP(CONCATENATE("OSUPJEUNEACCEPTREGECO_"&A27),Output!$C:$AQ,6,FALSE) -> 2503.45 | K27: =VLOOKUP(CONCATENATE("OSUPREGECO_"&A27),Output!$C:$AQ,6,FALSE) -> 10013.8 | M27: =ROUND(VLOOKUP("OSUPJEUNEREGECO_"&A27,Output!$C:$AQ,7,FALSE)/VLOOKUP("OSUPREGECO_"&A27,Output!$C:$AQ,6,FALSE),3) -> 0.038 | N27: Faible | O27: =ROUND(VLOOKUP("OSUPJEUNEREGECO_"&$A27,Output!$C:$AQ,12,FALSE)/VLOOKUP("OSUPREGECO_"&A27,Output!$C:$AQ,6,FALSE),3) -> 0.179 | P27: Faible | R27: =ROUND(VLOOKUP("OSUPVIEUXTOTREGECO_"&$A27,Output!$C:$AQ,7,FALSE)/VLOOKUP("OSUPREGECO_"&A27,Output!$C:$AQ,6,FALSE),3) -> 0.373 | S27: Modéré | T27: =ROUND(VLOOKUP("OSUPVIEUXTOTREGECO_"&$A27,Output!$C:$AQ,12,FALSE)/VLOOKUP("OSUPREGECO_"&A27,Output!$C:$AQ,6,FALSE),3) -> 0.264 | U27: Modéré | W27: UTR19 | X27: Modéré | Y27: Modéré | AA27: =Tableaux!$O$33 -> 09351 | AB27: UTR19 | AC27: Modéré | AD27: Modéré | AE27: COS sapinière
A28: UTR20 | B28: 0.26 | C28: 0.43 | D28: 0.3 | E28: 0.2 | G28: =VLOOKUP(CONCATENATE("OSUPVIEUXALERTEREGECO_"&A28),Output!$C:$AQ,6,FALSE) -> 3655.32 | H28: =VLOOKUP(CONCATENATE("OSUPVIEUXACCEPTREGECO_"&A28),Output!$C:$AQ,6,FALSE) -> 6092.2 | I28: =VLOOKUP(CONCATENATE("OSUPJEUNEALERTEREGECO_"&A28),Output!$C:$AQ,6,FALSE) -> 4250.37 | J28: =VLOOKUP(CONCATENATE("OSUPJEUNEACCEPTREGECO_"&A28),Output!$C:$AQ,6,FALSE) -> 2833.58 | K28: =VLOOKUP(CONCATENATE("OSUPREGECO_"&A28),Output!$C:$AQ,6,FALSE) -> 14167.9 | M28: =ROUND(VLOOKUP("OSUPJEUNEREGECO_"&A28,Output!$C:$AQ,7,FALSE)/VLOOKUP("OSUPREGECO_"&A28,Output!$C:$AQ,6,FALSE),3) -> 0.095 | N28: Faible | O28: =ROUND(VLOOKUP("OSUPJEUNEREGECO_"&$A28,Output!$C:$AQ,12,FALSE)/VLOOKUP("OSUPREGECO_"&A28,Output!$C:$AQ,6,FALSE),3) -> 0.022 | P28: Faible | R28: =ROUND(VLOOKUP("OSUPVIEUXTOTREGECO_"&$A28,Output!$C:$AQ,7,FALSE)/VLOOKUP("OSUPREGECO_"&A28,Output!$C:$AQ,6,FALSE),3) -> 0.535 | S28: Faible | T28: =ROUND(VLOOKUP("OSUPVIEUXTOTREGECO_"&$A28,Output!$C:$AQ,12,FALSE)/VLOOKUP("OSUPREGECO_"&A28,Output!$C:$AQ,6,FALSE),3) -> 0.788 | U28: Faible | W28: UTR20 | X28: Faible | Y28: Faible | AA28: =Tableaux!$O$33 -> 09351 | AB28: UTR20 | AC28: Faible | AD28: Faible | AE28: COS sapinière
A29: UTR21 | B29: 0.26 | C29: 0.43 | D29: 0.3 | E29: 0.2 | G29: =VLOOKUP(CONCATENATE("OSUPVIEUXALERTEREGECO_"&A29),Output!$C:$AQ,6,FALSE) -> 5630.33 | H29: =VLOOKUP(CONCATENATE("OSUPVIEUXACCEPTREGECO_"&A29),Output!$C:$AQ,6,FALSE) -> 9383.89 | I29: =VLOOKUP(CONCATENATE("OSUPJEUNEALERTEREGECO_"&A29),Output!$C:$AQ,6,FALSE) -> 6546.9 | J29: =VLOOKUP(CONCATENATE("OSUPJEUNEACCEPTREGECO_"&A29),Output!$C:$AQ,6,FALSE) -> 4364.6 | K29: =VLOOKUP(CONCATENATE("OSUPREGECO_"&A29),Output!$C:$AQ,6,FALSE) -> 21823 | M29: =ROUND(VLOOKUP("OSUPJEUNEREGECO_"&A29,Output!$C:$AQ,7,FALSE)/VLOOKUP("OSUPREGECO_"&A29,Output!$C:$AQ,6,FALSE),3) -> 0.187 | N29: Faible | O29: =ROUND(VLOOKUP("OSUPJEUNEREGECO_"&$A29,Output!$C:$AQ,12,FALSE)/VLOOKUP("OSUPREGECO_"&A29,Output!$C:$AQ,6,FALSE),3) -> 0.09 | P29: Faible | R29: =ROUND(VLOOKUP("OSUPVIEUXTOTREGECO_"&$A29,Output!$C:$AQ,7,FALSE)/VLOOKUP("OSUPREGECO_"&A29,Output!$C:$AQ,6,FALSE),3) -> 0.352 | S29: Modéré | T29: =ROUND(VLOOKUP("OSUPVIEUXTOTREGECO_"&$A29,Output!$C:$AQ,12,FALSE)/VLOOKUP("OSUPREGECO_"&A29,Output!$C:$AQ,6,FALSE),3) -> 0.567 | U29: Faible | W29: UTR21 | X29: Modéré | Y29: Faible | AA29: =Tableaux!$O$33 -> 09351 | AB29: UTR21 | AC29: Modéré | AD29: Faible | AE29: COS sapinière
A30: UTR22 | B30: 0.26 | C30: 0.43 | D30: 0.3 | E30: 0.2 | G30: =VLOOKUP(CONCATENATE("OSUPVIEUXALERTEREGECO_"&A30),Output!$C:$AQ,6,FALSE) -> 8511.08 | H30: =VLOOKUP(CONCATENATE("OSUPVIEUXACCEPTREGECO_"&A30),Output!$C:$AQ,6,FALSE) -> 14185.14 | I30: =VLOOKUP(CONCATENATE("OSUPJEUNEALERTEREGECO_"&A30),Output!$C:$AQ,6,FALSE) -> 9896.61 | J30: =VLOOKUP(CONCATENATE("OSUPJEUNEACCEPTREGECO_"&A30),Output!$C:$AQ,6,FALSE) -> 6597.74 | K30: =VLOOKUP(CONCATENATE("OSUPREGECO_"&A30),Output!$C:$AQ,6,FALSE) -> 32988.7 | M30: =ROUND(VLOOKUP("OSUPJEUNEREGECO_"&A30,Output!$C:$AQ,7,FALSE)/VLOOKUP("OSUPREGECO_"&A30,Output!$C:$AQ,6,FALSE),3) -> 0.1 | N30: Faible | O30: =ROUND(VLOOKUP("OSUPJEUNEREGECO_"&$A30,Output!$C:$AQ,12,FALSE)/VLOOKUP("OSUPREGECO_"&A30,Output!$C:$AQ,6,FALSE),3) -> 0.017 | P30: Faible | R30: =ROUND(VLOOKUP("OSUPVIEUXTOTREGECO_"&$A30,Output!$C:$AQ,7,FALSE)/VLOOKUP("OSUPREGECO_"&A30,Output!$C:$AQ,6,FALSE),3) -> 0.364 | S30: Modéré | T30: =ROUND(VLOOKUP("OSUPVIEUXTOTREGECO_"&$A30,Output!$C:$AQ,12,FALSE)/VLOOKUP("OSUPREGECO_"&A30,Output!$C:$AQ,6,FALSE),3) -> 0.586 | U30: Faible | W30: UTR22 | X30: Modéré | Y30: Faible | AA30: =Tableaux!$O$33 -> 09351 | AB30: UTR22 | AC30: Modéré | AD30: Faible | AE30: COS sapinière
A31: UTR23 | B31: 0.23 | C31: 0.385 | D31: 0.35 | E31: 0.25 | G31: =VLOOKUP(CONCATENATE("OSUPVIEUXALERTEREGECO_"&A31),Output!$C:$AQ,6,FALSE) -> 5807.39 | H31: =VLOOKUP(CONCATENATE("OSUPVIEUXACCEPTREGECO_"&A31),Output!$C:$AQ,6,FALSE) -> 9678.98 | I31: =VLOOKUP(CONCATENATE("OSUPJEUNEALERTEREGECO_"&A31),Output!$C:$AQ,6,FALSE) -> 8799.07 | J31: =VLOOKUP(CONCATENATE("OSUPJEUNEACCEPTREGECO_"&A31),Output!$C:$AQ,6,FALSE) -> 6285.05 | K31: =VLOOKUP(CONCATENATE("OSUPREGECO_"&A31),Output!$C:$AQ,6,FALSE) -> 25140.2 | M31: =ROUND(VLOOKUP("OSUPJEUNEREGECO_"&A31,Output!$C:$AQ,7,FALSE)/VLOOKUP("OSUPREGECO_"&A31,Output!$C:$AQ,6,FALSE),3) -> 0.329 | N31: Modéré | O31: =ROUND(VLOOKUP("OSUPJEUNEREGECO_"&$A31,Output!$C:$AQ,12,FALSE)/VLOOKUP("OSUPREGECO_"&A31,Output!$C:$AQ,6,FALSE),3) -> 0.047 | P31: Faible | R31: =ROUND(VLOOKUP("OSUPVIEUXTOTREGECO_"&$A31,Output!$C:$AQ,7,FALSE)/VLOOKUP("OSUPREGECO_"&A31,Output!$C:$AQ,6,FALSE),3) -> 0.273 | S31: Modéré | T31: =ROUND(VLOOKUP("OSUPVIEUXTOTREGECO_"&$A31,Output!$C:$AQ,12,FALSE)/VLOOKUP("OSUPREGECO_"&A31,Output!$C:$AQ,6,FALSE),3) -> 0.317 | U31: Modéré | W31: UTR23 | X31: Modéré | Y31: Modéré | AA31: =Tableaux!$O$33 -> 09351 | AB31: UTR23 | AC31: Modéré | AD31: Modéré | AE31: COS sapinière
A32: UTR24 | B32: 0.26 | C32: 0.43 | D32: 0.3 | E32: 0.2 | G32: =VLOOKUP(CONCATENATE("OSUPVIEUXALERTEREGECO_"&A32),Output!$C:$AQ,6,FALSE) -> 2550.33 | H32: =VLOOKUP(CONCATENATE("OSUPVIEUXACCEPTREGECO_"&A32),Output!$C:$AQ,6,FALSE) -> 4250.55 | I32: =VLOOKUP(CONCATENATE("OSUPJEUNEALERTEREGECO_"&A32),Output!$C:$AQ,6,FALSE) -> 2965.5 | J32: =VLOOKUP(CONCATENATE("OSUPJEUNEACCEPTREGECO_"&A32),Output!$C:$AQ,6,FALSE) -> 1977 | K32: =VLOOKUP(CONCATENATE("OSUPREGECO_"&A32),Output!$C:$AQ,6,FALSE) -> 9885 | M32: =ROUND(VLOOKUP("OSUPJEUNEREGECO_"&A32,Output!$C:$AQ,7,FALSE)/VLOOKUP("OSUPREGECO_"&A32,Output!$C:$AQ,6,FALSE),3) -> 0.101 | N32: Faible | O32: =ROUND(VLOOKUP("OSUPJEUNEREGECO_"&$A32,Output!$C:$AQ,12,FALSE)/VLOOKUP("OSUPREGECO_"&A32,Output!$C:$AQ,6,FALSE),3) -> 0 | P32: Faible | R32: =ROUND(VLOOKUP("OSUPVIEUXTOTREGECO_"&$A32,Output!$C:$AQ,7,FALSE)/VLOOKUP("OSUPREGECO_"&A32,Output!$C:$AQ,6,FALSE),3) -> 0.289 | S32: Modéré | T32: =ROUND(VLOOKUP("OSUPVIEUXTOTREGECO_"&$A32,Output!$C:$AQ,12,FALSE)/VLOOKUP("OSUPREGECO_"&A32,Output!$C:$AQ,6,FALSE),3) -> 0.559 | U32: Faible | W32: UTR24 | X32: Modéré | Y32: Faible | AA32: =Tableaux!$O$33 -> 09351 | AB32: UTR24 | AC32: Modéré | AD32: Faible | AE32: COS sapinière
G33: =VLOOKUP(CONCATENATE("OSUPVIEUXALERTEREGECO_"&A33),Output!$C:$AQ,6,FALSE) ->  | H33: =VLOOKUP(CONCATENATE("OSUPVIEUXACCEPTREGECO_"&A33),Output!$C:$AQ,6,FALSE) ->  | I33: =VLOOKUP(CONCATENATE("OSUPJEUNEALERTEREGECO_"&A33),Output!$C:$AQ,6,FALSE) ->  | J33: =VLOOKUP(CONCATENATE("OSUPJEUNEACCEPTREGECO_"&A33),Output!$C:$AQ,6,FALSE) ->  | K33: =VLOOKUP(CONCATENATE("OSUPREGECO_"&A33),Output!$C:$AQ,6,FALSE) ->  | M33: =ROUND(VLOOKUP("OSUPJEUNEREGECO_"&A33,Output!$C:$AQ,7,FALSE)/VLOOKUP("OSUPREGECO_"&A33,Output!$C:$AQ,6,FALSE),3) ->  | O33: =ROUND(VLOOKUP("OSUPJEUNEREGECO_"&$A33,Output!$C:$AQ,12,FALSE)/VLOOKUP("OSUPREGECO_"&A33,Output!$C:$AQ,6,FALSE),3) ->  | R33: =ROUND(VLOOKUP("OSUPVIEUXTOTREGECO_"&$A33,Output!$C:$AQ,7,FALSE)/VLOOKUP("OSUPREGECO_"&A33,Output!$C:$AQ,6,FALSE),3) ->  | T33: =ROUND(VLOOKUP("OSUPVIEUXTOTREGECO_"&$A33,Output!$C:$AQ,12,FALSE)/VLOOKUP("OSUPREGECO_"&A33,Output!$C:$AQ,6,FALSE),3) ->  | W33: 0 | AA33: =Tableaux!$O$33 -> 09351 | AB33: =W33 -> 0
G34: =VLOOKUP(CONCATENATE("OSUPVIEUXALERTEREGECO_"&A34),Output!$C:$AQ,6,FALSE) ->  | H34: =VLOOKUP(CONCATENATE("OSUPVIEUXACCEPTREGECO_"&A34),Output!$C:$AQ,6,FALSE) ->  | I34: =VLOOKUP(CONCATENATE("OSUPJEUNEALERTEREGECO_"&A34),Output!$C:$AQ,6,FALSE) ->  | J34: =VLOOKUP(CONCATENATE("OSUPJEUNEACCEPTREGECO_"&A34),Output!$C:$AQ,6,FALSE) ->  | K34: =VLOOKUP(CONCATENATE("OSUPREGECO_"&A34),Output!$C:$AQ,6,FALSE) ->  | M34: =ROUND(VLOOKUP("OSUPJEUNEREGECO_"&A34,Output!$C:$AQ,7,FALSE)/VLOOKUP("OSUPREGECO_"&A34,Output!$C:$AQ,6,FALSE),3) ->  | O34: =ROUND(VLOOKUP("OSUPJEUNEREGECO_"&$A34,Output!$C:$AQ,12,FALSE)/VLOOKUP("OSUPREGECO_"&A34,Output!$C:$AQ,6,FALSE),3) ->  | R34: =ROUND(VLOOKUP("OSUPVIEUXTOTREGECO_"&$A34,Output!$C:$AQ,7,FALSE)/VLOOKUP("OSUPREGECO_"&A34,Output!$C:$AQ,6,FALSE),3) ->  | T34: =ROUND(VLOOKUP("OSUPVIEUXTOTREGECO_"&$A34,Output!$C:$AQ,12,FALSE)/VLOOKUP("OSUPREGECO_"&A34,Output!$C:$AQ,6,FALSE),3) ->  | W34: 0 | AA34: =Tableaux!$O$33 -> 09351 | AB34: 0
G35: =VLOOKUP(CONCATENATE("OSUPVIEUXALERTEREGECO_"&A35),Output!$C:$AQ,6,FALSE) ->  | H35: =VLOOKUP(CONCATENATE("OSUPVIEUXACCEPTREGECO_"&A35),Output!$C:$AQ,6,FALSE) ->  | I35: =VLOOKUP(CONCATENATE("OSUPJEUNEALERTEREGECO_"&A35),Output!$C:$AQ,6,FALSE) ->  | J35: =VLOOKUP(CONCATENATE("OSUPJEUNEACCEPTREGECO_"&A35),Output!$C:$AQ,6,FALSE) ->  | K35: =VLOOKUP(CONCATENATE("OSUPREGECO_"&A35),Output!$C:$AQ,6,FALSE) ->  | M35: =ROUND(VLOOKUP("OSUPJEUNEREGECO_"&A35,Output!$C:$AQ,7,FALSE)/VLOOKUP("OSUPREGECO_"&A35,Output!$C:$AQ,6,FALSE),3) ->  | O35: =ROUND(VLOOKUP("OSUPJEUNEREGECO_"&$A35,Output!$C:$AQ,12,FALSE)/VLOOKUP("OSUPREGECO_"&A35,Output!$C:$AQ,6,FALSE),3) ->  | R35: =ROUND(VLOOKUP("OSUPVIEUXTOTREGECO_"&$A35,Output!$C:$AQ,7,FALSE)/VLOOKUP("OSUPREGECO_"&A35,Output!$C:$AQ,6,FALSE),3) ->  | T35: =ROUND(VLOOKUP("OSUPVIEUXTOTREGECO_"&$A35,Output!$C:$AQ,12,FALSE)/VLOOKUP("OSUPREGECO_"&A35,Output!$C:$AQ,6,FALSE),3) ->  | W35: 0 | AA35: =Tableaux!$O$33 -> 09351 | AB35: 0
G36: =VLOOKUP(CONCATENATE("OSUPVIEUXALERTEREGECO_"&A36),Output!$C:$AQ,6,FALSE) ->  | H36: =VLOOKUP(CONCATENATE("OSUPVIEUXACCEPTREGECO_"&A36),Output!$C:$AQ,6,FALSE) ->  | I36: =VLOOKUP(CONCATENATE("OSUPJEUNEALERTEREGECO_"&A36),Output!$C:$AQ,6,FALSE) ->  | J36: =VLOOKUP(CONCATENATE("OSUPJEUNEACCEPTREGECO_"&A36),Output!$C:$AQ,6,FALSE) ->  | K36: =VLOOKUP(CONCATENATE("OSUPREGECO_"&A36),Output!$C:$AQ,6,FALSE) ->  | M36: =ROUND(VLOOKUP("OSUPJEUNEREGECO_"&A36,Output!$C:$AQ,7,FALSE)/VLOOKUP("OSUPREGECO_"&A36,Output!$C:$AQ,6,FALSE),3) ->  | O36: =ROUND(VLOOKUP("OSUPJEUNEREGECO_"&$A36,Output!$C:$AQ,12,FALSE)/VLOOKUP("OSUPREGECO_"&A36,Output!$C:$AQ,6,FALSE),3) ->  | R36: =ROUND(VLOOKUP("OSUPVIEUXTOTREGECO_"&$A36,Output!$C:$AQ,7,FALSE)/VLOOKUP("OSUPREGECO_"&A36,Output!$C:$AQ,6,FALSE),3) ->  | T36: =ROUND(VLOOKUP("OSUPVIEUXTOTREGECO_"&$A36,Output!$C:$AQ,12,FALSE)/VLOOKUP("OSUPREGECO_"&A36,Output!$C:$AQ,6,FALSE),3) ->  | W36: 0 | AA36: =Tableaux!$O$33 -> 09351 | AB36: 0
G37: =VLOOKUP(CONCATENATE("OSUPVIEUXALERTEREGECO_"&A37),Output!$C:$AQ,6,FALSE) ->  | H37: =VLOOKUP(CONCATENATE("OSUPVIEUXACCEPTREGECO_"&A37),Output!$C:$AQ,6,FALSE) ->  | I37: =VLOOKUP(CONCATENATE("OSUPJEUNEALERTEREGECO_"&A37),Output!$C:$AQ,6,FALSE) ->  | J37: =VLOOKUP(CONCATENATE("OSUPJEUNEACCEPTREGECO_"&A37),Output!$C:$AQ,6,FALSE) ->  | K37: =VLOOKUP(CONCATENATE("OSUPREGECO_"&A37),Output!$C:$AQ,6,FALSE) ->  | M37: =ROUND(VLOOKUP("OSUPJEUNEREGECO_"&A37,Output!$C:$AQ,7,FALSE)/VLOOKUP("OSUPREGECO_"&A37,Output!$C:$AQ,6,FALSE),3) ->  | O37: =ROUND(VLOOKUP("OSUPJEUNEREGECO_"&$A37,Output!$C:$AQ,12,FALSE)/VLOOKUP("OSUPREGECO_"&A37,Output!$C:$AQ,6,FALSE),3) ->  | R37: =ROUND(VLOOKUP("OSUPVIEUXTOTREGECO_"&$A37,Output!$C:$AQ,7,FALSE)/VLOOKUP("OSUPREGECO_"&A37,Output!$C:$AQ,6,FALSE),3) ->  | T37: =ROUND(VLOOKUP("OSUPVIEUXTOTREGECO_"&$A37,Output!$C:$AQ,12,FALSE)/VLOOKUP("OSUPREGECO_"&A37,Output!$C:$AQ,6,FALSE),3) ->  | W37: 0 | AA37: =Tableaux!$O$33 -> 09351 | AB37: 0
G38: =VLOOKUP(CONCATENATE("OSUPVIEUXALERTEREGECO_"&A38),Output!$C:$AQ,6,FALSE) ->  | H38: =VLOOKUP(CONCATENATE("OSUPVIEUXACCEPTREGECO_"&A38),Output!$C:$AQ,6,FALSE) ->  | I38: =VLOOKUP(CONCATENATE("OSUPJEUNEALERTEREGECO_"&A38),Output!$C:$AQ,6,FALSE) ->  | J38: =VLOOKUP(CONCATENATE("OSUPJEUNEACCEPTREGECO_"&A38),Output!$C:$AQ,6,FALSE) ->  | K38: =VLOOKUP(CONCATENATE("OSUPREGECO_"&A38),Output!$C:$AQ,6,FALSE) ->  | M38: =ROUND(VLOOKUP("OSUPJEUNEREGECO_"&A38,Output!$C:$AQ,7,FALSE)/VLOOKUP("OSUPREGECO_"&A38,Output!$C:$AQ,6,FALSE),3) ->  | O38: =ROUND(VLOOKUP("OSUPJEUNEREGECO_"&$A38,Output!$C:$AQ,12,FALSE)/VLOOKUP("OSUPREGECO_"&A38,Output!$C:$AQ,6,FALSE),3) ->  | R38: =ROUND(VLOOKUP("OSUPVIEUXTOTREGECO_"&$A38,Output!$C:$AQ,7,FALSE)/VLOOKUP("OSUPREGECO_"&A38,Output!$C:$AQ,6,FALSE),3) ->  | T38: =ROUND(VLOOKUP("OSUPVIEUXTOTREGECO_"&$A38,Output!$C:$AQ,12,FALSE)/VLOOKUP("OSUPREGECO_"&A38,Output!$C:$AQ,6,FALSE),3) ->  | W38: 0 | AA38: =Tableaux!$O$33 -> 09351 | AB38: 0
G39: =VLOOKUP(CONCATENATE("OSUPVIEUXALERTEREGECO_"&A39),Output!$C:$AQ,6,FALSE) ->  | H39: =VLOOKUP(CONCATENATE("OSUPVIEUXACCEPTREGECO_"&A39),Output!$C:$AQ,6,FALSE) ->  | I39: =VLOOKUP(CONCATENATE("OSUPJEUNEALERTEREGECO_"&A39),Output!$C:$AQ,6,FALSE) ->  | J39: =VLOOKUP(CONCATENATE("OSUPJEUNEACCEPTREGECO_"&A39),Output!$C:$AQ,6,FALSE) ->  | K39: =VLOOKUP(CONCATENATE("OSUPREGECO_"&A39),Output!$C:$AQ,6,FALSE) ->  | M39: =ROUND(VLOOKUP("OSUPJEUNEREGECO_"&A39,Output!$C:$AQ,7,FALSE)/VLOOKUP("OSUPREGECO_"&A39,Output!$C:$AQ,6,FALSE),3) ->  | O39: =ROUND(VLOOKUP("OSUPJEUNEREGECO_"&$A39,Output!$C:$AQ,12,FALSE)/VLOOKUP("OSUPREGECO_"&A39,Output!$C:$AQ,6,FALSE),3) ->  | R39: =ROUND(VLOOKUP("OSUPVIEUXTOTREGECO_"&$A39,Output!$C:$AQ,7,FALSE)/VLOOKUP("OSUPREGECO_"&A39,Output!$C:$AQ,6,FALSE),3) ->  | T39: =ROUND(VLOOKUP("OSUPVIEUXTOTREGECO_"&$A39,Output!$C:$AQ,12,FALSE)/VLOOKUP("OSUPREGECO_"&A39,Output!$C:$AQ,6,FALSE),3) ->  | W39: 0 | AA39: =Tableaux!$O$33 -> 09351 | AB39: 0
G40: =VLOOKUP(CONCATENATE("OSUPVIEUXALERTEREGECO_"&A40),Output!$C:$AQ,6,FALSE) ->  | H40: =VLOOKUP(CONCATENATE("OSUPVIEUXACCEPTREGECO_"&A40),Output!$C:$AQ,6,FALSE) ->  | I40: =VLOOKUP(CONCATENATE("OSUPJEUNEALERTEREGECO_"&A40),Output!$C:$AQ,6,FALSE) ->  | J40: =VLOOKUP(CONCATENATE("OSUPJEUNEACCEPTREGECO_"&A40),Output!$C:$AQ,6,FALSE) ->  | K40: =VLOOKUP(CONCATENATE("OSUPREGECO_"&A40),Output!$C:$AQ,6,FALSE) ->  | M40: =ROUND(VLOOKUP("OSUPJEUNEREGECO_"&A40,Output!$C:$AQ,7,FALSE)/VLOOKUP("OSUPREGECO_"&A40,Output!$C:$AQ,6,FALSE),3) ->  | O40: =ROUND(VLOOKUP("OSUPJEUNEREGECO_"&$A40,Output!$C:$AQ,12,FALSE)/VLOOKUP("OSUPREGECO_"&A40,Output!$C:$AQ,6,FALSE),3) ->  | R40: =ROUND(VLOOKUP("OSUPVIEUXTOTREGECO_"&$A40,Output!$C:$AQ,7,FALSE)/VLOOKUP("OSUPREGECO_"&A40,Output!$C:$AQ,6,FALSE),3) ->  | T40: =ROUND(VLOOKUP("OSUPVIEUXTOTREGECO_"&$A40,Output!$C:$AQ,12,FALSE)/VLOOKUP("OSUPREGECO_"&A40,Output!$C:$AQ,6,FALSE),3) ->  | W40: 0 | AA40: =Tableaux!$O$33 -> 09351 | AB40: 0
G41: =VLOOKUP(CONCATENATE("OSUPVIEUXALERTEREGECO_"&A41),Output!$C:$AQ,6,FALSE) ->  | H41: =VLOOKUP(CONCATENATE("OSUPVIEUXACCEPTREGECO_"&A41),Output!$C:$AQ,6,FALSE) ->  | I41: =VLOOKUP(CONCATENATE("OSUPJEUNEALERTEREGECO_"&A41),Output!$C:$AQ,6,FALSE) ->  | J41: =VLOOKUP(CONCATENATE("OSUPJEUNEACCEPTREGECO_"&A41),Output!$C:$AQ,6,FALSE) ->  | K41: =VLOOKUP(CONCATENATE("OSUPREGECO_"&A41),Output!$C:$AQ,6,FALSE) ->  | M41: =ROUND(VLOOKUP("OSUPJEUNEREGECO_"&A41,Output!$C:$AQ,7,FALSE)/VLOOKUP("OSUPREGECO_"&A41,Output!$C:$AQ,6,FALSE),3) ->  | O41: =ROUND(VLOOKUP("OSUPJEUNEREGECO_"&$A41,Output!$C:$AQ,12,FALSE)/VLOOKUP("OSUPREGECO_"&A41,Output!$C:$AQ,6,FALSE),3) ->  | R41: =ROUND(VLOOKUP("OSUPVIEUXTOTREGECO_"&$A41,Output!$C:$AQ,7,FALSE)/VLOOKUP("OSUPREGECO_"&A41,Output!$C:$AQ,6,FALSE),3) ->  | T41: =ROUND(VLOOKUP("OSUPVIEUXTOTREGECO_"&$A41,Output!$C:$AQ,12,FALSE)/VLOOKUP("OSUPREGECO_"&A41,Output!$C:$AQ,6,FALSE),3) ->  | W41: 0 | AA41: =Tableaux!$O$33 -> 09351 | AB41: 0
G42: =VLOOKUP(CONCATENATE("OSUPVIEUXALERTEREGECO_"&A42),Output!$C:$AQ,6,FALSE) ->  | H42: =VLOOKUP(CONCATENATE("OSUPVIEUXACCEPTREGECO_"&A42),Output!$C:$AQ,6,FALSE) ->  | I42: =VLOOKUP(CONCATENATE("OSUPJEUNEALERTEREGECO_"&A42),Output!$C:$AQ,6,FALSE) ->  | J42: =VLOOKUP(CONCATENATE("OSUPJEUNEACCEPTREGECO_"&A42),Output!$C:$AQ,6,FALSE) ->  | K42: =VLOOKUP(CONCATENATE("OSUPREGECO_"&A42),Output!$C:$AQ,6,FALSE) ->  | M42: =ROUND(VLOOKUP("OSUPJEUNEREGECO_"&A42,Output!$C:$AQ,7,FALSE)/VLOOKUP("OSUPREGECO_"&A42,Output!$C:$AQ,6,FALSE),3) ->  | O42: =ROUND(VLOOKUP("OSUPJEUNEREGECO_"&$A42,Output!$C:$AQ,12,FALSE)/VLOOKUP("OSUPREGECO_"&A42,Output!$C:$AQ,6,FALSE),3) ->  | R42: =ROUND(VLOOKUP("OSUPVIEUXTOTREGECO_"&$A42,Output!$C:$AQ,7,FALSE)/VLOOKUP("OSUPREGECO_"&A42,Output!$C:$AQ,6,FALSE),3) ->  | T42: =ROUND(VLOOKUP("OSUPVIEUXTOTREGECO_"&$A42,Output!$C:$AQ,12,FALSE)/VLOOKUP("OSUPREGECO_"&A42,Output!$C:$AQ,6,FALSE),3) ->  | W42: 0 | AA42: =Tableaux!$O$33 -> 09351 | AB42: 0
J44: En pessière | K44: =SUM(K3:K8) -> 1294034.4 | L44: =K44/(K44+K45) -> 0.7352940692
J45: En sapinière | K45: =SUM(K27:K32,K22:K25,K9:K20) -> 465852.5 | L45: =K45/(K44+K45) -> 0.2647059308

Sheet Output
C1: 1 | D1: 2 | E1: 3 | F1: 4 | G1: 5 | H1: 6 | I1: 7 | J1: 8 | K1: 9 | L1: 10 | M1: 11 | N1: 12 | O1: 13 | P1: 14 | Q1: 15 | R1: 16 | S1: 17 | T1: 18 | U1: 19 | V1: 20 | W1: 21 | X1: 22 | Y1: 23 | Z1: 24 | AA1: 25 | AB1: 26 | AC1: 27 | AD1: 28 | AE1: 29 | AF1: 30 | AG1: 31 | AH1: 32 | AI1: 33 | AJ1: 34 | AK1: 35 | AL1: 36 | AM1: 37 | AN1: 38 | AO1: 39 | AP1: 40 | AQ1: 41
A2: Record | B2: Group | C2: Name | D2: Description | E2: Attribute | F2: Minimum | G2: Maximum | H2: Period0 | I2: Period1 | J2: Period2 | K2: Period3 | L2: Period4 | M2: Period5 | N2: Period6 | O2: Period7 | P2: Period8 | Q2: Period9 | R2: Period10 | S2: Period11 | T2: Period12 | U2: Period13 | V2: Period14 | W2: Period15 | X2: Period16 | Y2: Period17 | Z2: Period18 | AA2: Period19 | AB2: Period20 | AC2: Period21 | AD2: Period22 | AE2: Period23 | AF2: Period24 | AG2: Period25 | AH2: Period26 | AI2: Period27 | AJ2: Period28 | AK2: Period29 | AL2: Period30 | AM2: Moyemme P2 à P6 | AN2: Moyenne P7 à P11 | AO2: Moyenne P12 à P20 | AP2: Moyenne P21 à P30 | AQ2: Moyenne P2 à P30
B3: GROUP | C3: NAME | D3: DESCRIPTIO | E3: ATTRIBUTE | F3: MINIMUM | G3: MAXIMUM | H3: PERIOD0 | I3: PERIOD1 | J3: PERIOD2 | K3: PERIOD3 | L3: PERIOD4 | M3: PERIOD5 | N3: PERIOD6 | O3: PERIOD7 | P3: PERIOD8 | Q3: PERIOD9 | R3: PERIOD10 | S3: PERIOD11 | T3: PERIOD12 | U3: PERIOD13 | V3: PERIOD14 | W3: PERIOD15 | X3: PERIOD16 | Y3: PERIOD17 | Z3: PERIOD18 | AA3: PERIOD19 | AB3: PERIOD20 | AC3: PERIOD21 | AD3: PERIOD22 | AE3: PERIOD23 | AF3: PERIOD24 | AG3: PERIOD25 | AH3: PERIOD26 | AI3: PERIOD27 | AJ3: PERIOD28 | AK3: PERIOD29 | AL3: PERIOD30 | AM3: =AVERAGE(J3:N3) ->  | AN3: =AVERAGE(O3:S3) ->  | AO3: =AVERAGE(T3:AB3) ->  | AP3: =AVERAGE(AC3:AL3) ->  | AQ3: =AVERAGE(J3:AL3) -> 
B4: <Non regroupÚ(s)> | C4: OSUPTOT | D4: Superficie Totale | F4: 2187231.1 | G4: 2187231.1 | H4: 2187231.1 | I4: 2187231.1 | J4: 2187231.1 | K4: 2187231.1 | L4: 2187231.1 | M4: 2187231.1 | N4: 2187231.1 | O4: 2187231.1 | P4: 2187231.1 | Q4: 2187231.1 | R4: 2187231.1 | S4: 2187231.1 | T4: 2187231.1 | U4: 2187231.1 | V4: 2187231.1 | W4: 2187231.1 | X4: 2187231.1 | Y4: 2187231.1 | Z4: 2187231.1 | AA4: 2187231.1 | AB4: 2187231.1 | AC4: 2187231.1 | AD4: 2187231.1 | AE4: 2187231.1 | AF4: 2187231.1 | AG4: 2187231.1 | AH4: 2187231.1 | AI4: 2187231.1 | AJ4: 2187231.1 | AK4: 2187231.1 | AL4: 2187231.1 | AM4: =AVERAGE(J4:N4) -> 2187231.1 | AN4: =AVERAGE(O4:S4) -> 2187231.1 | AO4: =AVERAGE(T4:AB4) -> 2187231.1 | AP4: =AVERAGE(AC4:AL4) -> 2187231.1 | AQ4: =AVERAGE(J4:AL4) -> 2187231.1
B5: <Non regroupÚ(s)> | C5: OSUPINC | D5: Superficie InclusActions par courbe | F5: 1339652.92 | G5: 1377576.3 | H5: 1377576.3 | I5: 1374983.71 | J5: 1372626.03 | K5: 1370218.42 | L5: 1367773.34 | M5: 1365325.12 | N5: 1362893.88 | O5: 1360555.9 | P5: 1358279.37 | Q5: 1356854.69 | R5: 1355036.61 | S5: 1353488.03 | T5: 1351562.04 | U5: 1350026.76 | V5: 1348727.16 | W5: 1347089.37 | X5: 1346065.02 | Y5: 1344818.05 | Z5: 1343878.8 | AA5: 1343493.39 | AB5: 1342908.81 | AC5: 1342297.06 | AD5: 1341494.97 | AE5: 1340989.44 | AF5: 1340759.17 | AG5: 1340675.98 | AH5: 1340615.94 | AI5: 1340385.22 | AJ5: 1340147.22 | AK5: 1339920.62 | AL5: 1339652.92 | AM5: 1367767.358 | AN5: 1356842.92 | AO5: 1346507.711 | AP5: 1340693.854 | AQ5: 1349950.322
B6: <Non regroupÚ(s)> | C6: OSUPregECO | D6: Superficie Disponible aux RÚsultats ╔cologiques | F6: 1732682.92 | G6: 1770606.3 | H6: 1770606.3 | I6: 1768013.71 | J6: 1765656.03 | K6: 1763248.42 | L6: 1760803.34 | M6: 1758355.12 | N6: 1755923.88 | O6: 1753585.9 | P6: 1751309.37 | Q6: 1749884.69 | R6: 1748066.61 | S6: 1746518.03 | T6: 1744592.04 | U6: 1743056.76 | V6: 1741757.16 | W6: 1740119.37 | X6: 1739095.02 | Y6: 1737848.05 | Z6: 1736908.8 | AA6: 1736523.39 | AB6: 1735938.81 | AC6: 1735327.06 | AD6: 1734524.97 | AE6: 1734019.44 | AF6: 1733789.17 | AG6: 1733705.98 | AH6: 1733645.94 | AI6: 1733415.22 | AJ6: 1733177.22 | AK6: 1732950.62 | AL6: 1732682.92 | AM6: 1760797.358 | AN6: 1749872.92 | AO6: 1739537.711 | AP6: 1733723.854 | AQ6: 1742980.322
B7: <Non regroupÚ(s)> | C7: OSUPEXIN | D7: Superficie ExcluActionsInclus | F7: 393030 | G7: 393030 | H7: 393030 | I7: 393030 | J7: 393030 | K7: 393030 | L7: 393030 | M7: 393030 | N7: 393030 | O7: 393030 | P7: 393030 | Q7: 393030 | R7: 393030 | S7: 393030 | T7: 393030 | U7: 393030 | V7: 393030 | W7: 393030 | X7: 393030 | Y7: 393030 | Z7: 393030 | AA7: 393030 | AB7: 393030 | AC7: 393030 | AD7: 393030 | AE7: 393030 | AF7: 393030 | AG7: 393030 | AH7: 393030 | AI7: 393030 | AJ7: 393030 | AK7: 393030 | AL7: 393030 | AM7: 393030 | AN7: 393030 | AO7: 393030 | AP7: 393030 | AQ7: 393030
B8: <Non regroupÚ(s)> | C8: OSUPEXTI | D8: Superficie Improductive | F8: 108178.8 | G8: 108178.8 | H8: 108178.8 | I8: 108178.8 | J8: 108178.8 | K8: 108178.8 | L8: 108178.8 | M8: 108178.8 | N8: 108178.8 | O8: 108178.8 | P8: 108178.8 | Q8: 108178.8 | R8: 108178.8 | S8: 108178.8 | T8: 108178.8 | U8: 108178.8 | V8: 108178.8 | W8: 108178.8 | X8: 108178.8 | Y8: 108178.8 | Z8: 108178.8 | AA8: 108178.8 | AB8: 108178.8 | AC8: 108178.8 | AD8: 108178.8 | AE8: 108178.8 | AF8: 108178.8 | AG8: 108178.8 | AH8: 108178.8 | AI8: 108178.8 | AJ8: 108178.8 | AK8: 108178.8 | AL8: 108178.8 | AM8: 108178.8 | AN8: 108178.8 | AO8: 108178.8 | AP8: 108178.8 | AQ8: 108178.8
B9: <Non regroupÚ(s)> | C9: OSUPLOCK | D9: Superficie Sous Verrous | F9: 5719.97 | G9: 282746.6 | H9: 114096.3 | I9: 121354.3 | J9: 268335.76 | K9: 275813.81 | L9: 282746.6 | M9: 256957.2 | N9: 262358.32 | O9: 269371.75 | P9: 59006.76 | Q9: 46964.95 | R9: 45147.75 | S9: 42154.23 | T9: 42564.67 | U9: 43974.16 | V9: 40297.42 | W9: 40537.23 | X9: 35410.78 | Y9: 30402.12 | Z9: 31051.6 | AA9: 27217.64 | AB9: 22511.23 | AC9: 19609.42 | AD9: 14854.87 | AE9: 13571.18 | AF9: 10325.79 | AG9: 7859.56 | AH9: 5719.97 | AI9: 10037.62 | AJ9: 19039.8 | AK9: 25744.71 | AL9: 34326.12 | AM9: 269242.338 | AN9: 92529.088 | AO9: 34885.20556 | AP9: 16108.904 | AQ9: 78755.62138
B10: Economique | C10: oSupTcsdDEG_1_T100% | D10: oSupTcsdDEG_1_T100% | F10: 0 | G10: 10360 | H10: 0 | I10: 10360 | J10: 6600 | K10: 5400 | L10: 5700 | M10: 5700 | N10: 5700 | O10: 8250 | P10: 7801.52 | Q10: 8807.87 | R10: 8249.98 | S10: 9647.37 | T10: 7827.77 | U10: 7386.63 | V10: 6687.28 | W10: 4861.64 | X10: 7236.65 | Y10: 7143.26 | Z10: 4616.73 | AA10: 6271.57 | AB10: 5847.19 | AC10: 6731.19 | AD10: 6521.18 | AE10: 9737.92 | AF10: 9022.85 | AG10: 8715.19 | AH10: 7380.47 | AI10: 7493.56 | AJ10: 5062.85 | AK10: 4656.38 | AL10: 7106.44 | AM10: 5820 | AN10: 8551.348 | AO10: 6430.968889 | AP10: 7242.803 | AQ10: 6971.154828
B11: Economique | C11: oSupTcsdDEG_2_T100% | D11: oSupTcsdDEG_2_T100% | F11: 0 | G11: 1334.6 | H11: 0 | I11: 0 | J11: 550 | K11: 450 | L11: 450 | M11: 450 | N11: 450 | O11: 0 | P11: 0 | Q11: 0 | R11: 0 | S11: 0 | T11: 0 | U11: 0 | V11: 0 | W11: 0 | X11: 0 | Y11: 0 | Z11: 0 | AA11: 0 | AB11: 0 | AC11: 0 | AD11: 0 | AE11: 0 | AF11: 0 | AG11: 0 | AH11: 0 | AI11: 0 | AJ11: 0 | AK11: 1334.6 | AL11: 302.65 | AM11: 470 | AN11: 0 | AO11: 0 | AP11: 163.725 | AQ11: 137.4913793
B12: Economique | C12: oSupDEG_1_T100% | D12: oSupDEG_1_T100% | F12: 0 | G12: 10360 | H12: 0 | I12: 10360 | J12: 6600 | K12: 5400 | L12: 5700 | M12: 5700 | N12: 5700 | O12: 8250 | P12: 7801.52 | Q12: 8807.87 | R12: 8249.98 | S12: 9647.37 | T12: 7827.77 | U12: 7386.63 | V12: 6687.28 | W12: 4861.64 | X12: 7236.65 | Y12: 7143.26 | Z12: 4616.73 | AA12: 6271.57 | AB12: 5847.19 | AC12: 6731.19 | AD12: 6521.18 | AE12: 9737.92 | AF12: 9022.85 | AG12: 8715.19 | AH12: 7380.47 | AI12: 7493.56 | AJ12: 5062.85 | AK12: 4656.38 | AL12: 7106.44 | AM12: 5820 | AN12: 8551.348 | AO12: 6430.968889 | AP12: 7242.803 | AQ12: 6971.154828
B13: Economique | C13: oSupDEG_2_T100% | D13: oSupDEG_2_T100% | F13: 0 | G13: 1334.6 | H13: 0 | I13: 0 | J13: 550 | K13: 450 | L13: 450 | M13: 450 | N13: 450 | O13: 0 | P13: 0 | Q13: 0 | R13: 0 | S13: 0 | T13: 0 | U13: 0 | V13: 0 | W13: 0 | X13: 0 | Y13: 0 | Z13: 0 | AA13: 0 | AB13: 0 | AC13: 0 | AD13: 0 | AE13: 0 | AF13: 0 | AG13: 0 | AH13: 0 | AI13: 0 | AJ13: 0 | AK13: 1334.6 | AL13: 302.65 | AM13: 470 | AN13: 0 | AO13: 0 | AP13: 163.725 | AQ13: 137.4913793
B14: Economique | C14: oSupDEG_1 | D14: oSupDEG_1 | F14: 0 | G14: 10360 | H14: 0 | I14: 10360 | J14: 6600 | K14: 5400 | L14: 5700 | M14: 5700 | N14: 5700 | O14: 8250 | P14: 7801.52 | Q14: 8807.87 | R14: 8249.98 | S14: 9647.37 | T14: 7827.77 | U14: 7386.63 | V14: 6687.28 | W14: 4861.64 | X14: 7236.65 | Y14: 7143.26 | Z14: 4616.73 | AA14: 6271.57 | AB14: 5847.19 | AC14: 6731.19 | AD14: 6521.18 | AE14: 9737.92 | AF14: 9022.85 | AG14: 8715.19 | AH14: 7380.47 | AI14: 7493.56 | AJ14: 5062.85 | AK14: 4656.38 | AL14: 7106.44 | AM14: 5820 | AN14: 8551.348 | AO14: 6430.968889 | AP14: 7242.803 | AQ14: 6971.154828
B15: Economique | C15: oSupDEG_2 | D15: oSupDEG_2 | F15: 0 | G15: 1334.6 | H15: 0 | I15: 0 | J15: 550 | K15: 450 | L15: 450 | M15: 450 | N15: 450 | O15: 0 | P15: 0 | Q15: 0 | R15: 0 | S15: 0 | T15: 0 | U15: 0 | V15: 0 | W15: 0 | X15: 0 | Y15: 0 | Z15: 0 | AA15: 0 | AB15: 0 | AC15: 0 | AD15: 0 | AE15: 0 | AF15: 0 | AG15: 0 | AH15: 0 | AI15: 0 | AJ15: 0 | AK15: 1334.6 | AL15: 302.65 | AM15: 470 | AN15: 0 | AO15: 0 | AP15: 163.725 | AQ15: 137.4913793
B16: Economique | C16: oSupTcsdSCA_PART_T100% | D16: oSupTcsdSCA_PART_T100% | F16: 0 | G16: 1334.6 | H16: 0 | I16: 0 | J16: 550 | K16: 450 | L16: 450 | M16: 450 | N16: 450 | O16: 0 | P16: 0 | Q16: 0 | R16: 0 | S16: 0 | T16: 0 | U16: 0 | V16: 0 | W16: 0 | X16: 0 | Y16: 0 | Z16: 0 | AA16: 0 | AB16: 0 | AC16: 0 | AD16: 0 | AE16: 0 | AF16: 0 | AG16: 0 | AH16: 0 | AI16: 0 | AJ16: 0 | AK16: 1334.6 | AL16: 302.65 | AM16: 470 | AN16: 0 | AO16: 0 | AP16: 163.725 | AQ16: 137.4913793
B17: Economique | C17: oSupTcsdSCA_REG_T100% | D17: oSupTcsdSCA_REG_T100% | F17: 0 | G17: 16000 | H17: 0 | I17: 16000 | J17: 14950 | K17: 14950 | L17: 14950 | M17: 14950 | N17: 14950 | O17: 13860 | P17: 14418.85 | Q17: 13028.32 | R17: 12660.58 | S17: 11394.52 | T17: 12533.97 | U17: 11280.58 | V17: 11737.51 | W17: 12013.6 | X17: 13214.96 | Y17: 13808.01 | Z17: 14977.98 | AA17: 15190.31 | AB17: 15314.14 | AC17: 15303 | AD17: 15614.7 | AE17: 15135.34 | AF17: 13857.31 | AG17: 12892.32 | AH17: 11603.09 | AI17: 10442.78 | AJ17: 9398.5 | AK17: 7139.51 | AL17: 8546.37 | AM17: 14950 | AN17: 13072.454 | AO17: 13341.22889 | AP17: 11993.292 | AQ17: 13107.4569
B18: Economique | C18: oSupSCA_PART_T100% | D18: oSupSCA_PART_T100% | F18: 0 | G18: 1334.6 | H18: 0 | I18: 0 | J18: 550 | K18: 450 | L18: 450 | M18: 450 | N18: 450 | O18: 0 | P18: 0 | Q18: 0 | R18: 0 | S18: 0 | T18: 0 | U18: 0 | V18: 0 | W18: 0 | X18: 0 | Y18: 0 | Z18: 0 | AA18: 0 | AB18: 0 | AC18: 0 | AD18: 0 | AE18: 0 | AF18: 0 | AG18: 0 | AH18: 0 | AI18: 0 | AJ18: 0 | AK18: 1334.6 | AL18: 302.65 | AM18: 470 | AN18: 0 | AO18: 0 | AP18: 163.725 | AQ18: 137.4913793
B19: Economique | C19: oSupSCA_REG_T100% | D19: oSupSCA_REG_T100% | F19: 0 | G19: 16000 | H19: 0 | I19: 16000 | J19: 14950 | K19: 14950 | L19: 14950 | M19: 14950 | N19: 14950 | O19: 13860 | P19: 14418.85 | Q19: 13028.32 | R19: 12660.58 | S19: 11394.52 | T19: 12533.97 | U19: 11280.58 | V19: 11737.51 | W19: 12013.6 | X19: 13214.96 | Y19: 13808.01 | Z19: 14977.98 | AA19: 15190.31 | AB19: 15314.14 | AC19: 15303 | AD19: 15614.7 | AE19: 15135.34 | AF19: 13857.31 | AG19: 12892.32 | AH19: 11603.09 | AI19: 10442.78 | AJ19: 9398.5 | AK19: 7139.51 | AL19: 8546.37 | AM19: 14950 | AN19: 13072.454 | AO19: 13341.22889 | AP19: 11993.292 | AQ19: 13107.4569
B20: Economique | C20: oSupSCA_PART | D20: oSupSCA_PART | F20: 0 | G20: 1334.6 | H20: 0 | I20: 0 | J20: 550 | K20: 450 | L20: 450 | M20: 450 | N20: 450 | O20: 0 | P20: 0 | Q20: 0 | R20: 0 | S20: 0 | T20: 0 | U20: 0 | V20: 0 | W20: 0 | X20: 0 | Y20: 0 | Z20: 0 | AA20: 0 | AB20: 0 | AC20: 0 | AD20: 0 | AE20: 0 | AF20: 0 | AG20: 0 | AH20: 0 | AI20: 0 | AJ20: 0 | AK20: 1334.6 | AL20: 302.65 | AM20: 470 | AN20: 0 | AO20: 0 | AP20: 163.725 | AQ20: 137.4913793
B21: Economique | C21: oSupSCA_REG | D21: oSupSCA_REG | F21: 0 | G21: 16000 | H21: 0 | I21: 16000 | J21: 14950 | K21: 14950 | L21: 14950 | M21: 14950 | N21: 14950 | O21: 13860 | P21: 14418.85 | Q21: 13028.32 | R21: 12660.58 | S21: 11394.52 | T21: 12533.97 | U21: 11280.58 | V21: 11737.51 | W21: 12013.6 | X21: 13214.96 | Y21: 13808.01 | Z21: 14977.98 | AA21: 15190.31 | AB21: 15314.14 | AC21: 15303 | AD21: 15614.7 | AE21: 15135.34 | AF21: 13857.31 | AG21: 12892.32 | AH21: 11603.09 | AI21: 10442.78 | AJ21: 9398.5 | AK21: 7139.51 | AL21: 8546.37 | AM21: 14950 | AN21: 13072.454 | AO21: 13341.22889 | AP21: 11993.292 | AQ21: 13107.4569
B22: Economique | C22: oSupActREG_T100% | D22: oSupActREG_T100% | F22: 0 | G22: 1334.6 | H22: 0 | I22: 0 | J22: 550 | K22: 450 | L22: 450 | M22: 450 | N22: 450 | O22: 0 | P22: 0 | Q22: 0 | R22: 0 | S22: 0 | T22: 0 | U22: 0 | V22: 0 | W22: 0 | X22: 0 | Y22: 0 | Z22: 0 | AA22: 0 | AB22: 0 | AC22: 0 | AD22: 0 | AE22: 0 | AF22: 0 | AG22: 0 | AH22: 0 | AI22: 0 | AJ22: 0 | AK22: 1334.6 | AL22: 302.65 | AM22: 470 | AN22: 0 | AO22: 0 | AP22: 163.725 | AQ22: 137.4913793
B23: Economique | C23: oSupREG_T100% | D23: oSupREG_T100% | F23: 0 | G23: 1334.6 | H23: 0 | I23: 0 | J23: 550 | K23: 450 | L23: 450 | M23: 450 | N23: 450 | O23: 0 | P23: 0 | Q23: 0 | R23: 0 | S23: 0 | T23: 0 | U23: 0 | V23: 0 | W23: 0 | X23: 0 | Y23: 0 | Z23: 0 | AA23: 0 | AB23: 0 | AC23: 0 | AD23: 0 | AE23: 0 | AF23: 0 | AG23: 0 | AH23: 0 | AI23: 0 | AJ23: 0 | AK23: 1334.6 | AL23: 302.65 | AM23: 470 | AN23: 0 | AO23: 0 | AP23: 163.725 | AQ23: 137.4913793
B24: Economique | C24: oSupREG | D24: oSupREG | F24: 0 | G24: 1334.6 | H24: 0 | I24: 0 | J24: 550 | K24: 450 | L24: 450 | M24: 450 | N24: 450 | O24: 0 | P24: 0 | Q24: 0 | R24: 0 | S24: 0 | T24: 0 | U24: 0 | V24: 0 | W24: 0 | X24: 0 | Y24: 0 | Z24: 0 | AA24: 0 | AB24: 0 | AC24: 0 | AD24: 0 | AE24: 0 | AF24: 0 | AG24: 0 | AH24: 0 | AI24: 0 | AJ24: 0 | AK24: 1334.6 | AL24: 302.65 | AM24: 470 | AN24: 0 | AO24: 0 | AP24: 163.725 | AQ24: 137.4913793
B25: Economique | C25: oSupActCPIRL_FIN_T100% | D25: oSupActCPIRL_FIN_T100% | F25: 0 | G25: 8678.5 | H25: 0 | I25: 0 | J25: 0 | K25: 0 | L25: 0 | M25: 0 | N25: 0 | O25: 0 | P25: 70.86 | Q25: 2302.75 | R25: 1548.25 | S25: 6500.02 | T25: 3822.81 | U25: 5094.71 | V25: 8240.04 | W25: 3182.62 | X25: 8678.5 | Y25: 5844.4 | Z25: 5417.01 | AA25: 3694.8 | AB25: 6107.05 | AC25: 6120.68 | AD25: 3470.92 | AE25: 5727.11 | AF25: 6455.03 | AG25: 6846.67 | AH25: 6353.47 | AI25: 3870.35 | AJ25: 772.1 | AK25: 1340.63 | AL25: 766.5 | AM25: 0 | AN25: 2084.376 | AO25: 5564.66 | AP25: 4172.346 | AQ25: 3525.078621
B26: Economique | C26: oSupActCPIRL_INI_T100% | D26: oSupActCPIRL_INI_T100% | F26: 0 | G26: 7867.23 | H26: 0 | I26: 7600 | J26: 7370 | K26: 7370 | L26: 7296.3 | M26: 6030 | N26: 6030 | O26: 5067.95 | P26: 7867.23 | Q26: 4947.8 | R26: 7772.86 | S26: 1346.17 | T26: 7799.34 | U26: 5653.74 | V26: 2990.4 | W26: 6914.6 | X26: 1672.18 | Y26: 3535.02 | Z26: 3024.47 | AA26: 3902.54 | AB26: 730.55 | AC26: 33.16 | AD26: 2067.53 | AE26: 365.19 | AF26: 246.5 | AG26: 525.01 | AH26: 1075.96 | AI26: 5049.39 | AJ26: 6470.38 | AK26: 6118.16 | AL26: 5741.7 | AM26: 6819.26 | AN26: 5400.402 | AO26: 4024.76 | AP26: 2769.298 | AQ26: 4310.832069
B27: Economique | C27: oSupCPIRL_FIN_T100% | D27: oSupCPIRL_FIN_T100% | F27: 0 | G27: 8678.5 | H27: 0 | I27: 0 | J27: 0 | K27: 0 | L27: 0 | M27: 0 | N27: 0 | O27: 0 | P27: 70.86 | Q27: 2302.75 | R27: 1548.25 | S27: 6500.02 | T27: 3822.81 | U27: 5094.71 | V27: 8240.04 | W27: 3182.62 | X27: 8678.5 | Y27: 5844.4 | Z27: 5417.01 | AA27: 3694.8 | AB27: 6107.05 | AC27: 6120.68 | AD27: 3470.92 | AE27: 5727.11 | AF27: 6455.03 | AG27: 6846.67 | AH27: 6353.47 | AI27: 3870.35 | AJ27: 772.1 | AK27: 1340.63 | AL27: 766.5 | AM27: 0 | AN27: 2084.376 | AO27: 5564.66 | AP27: 4172.346 | AQ27: 3525.078621
B28: Economique | C28: oSupCPIRL_INI_T100% | D28: oSupCPIRL_INI_T100% | F28: 0 | G28: 7867.23 | H28: 0 | I28: 7600 | J28: 7370 | K28: 7370 | L28: 7296.3 | M28: 6030 | N28: 6030 | O28: 5067.95 | P28: 7867.23 | Q28: 4947.8 | R28: 7772.86 | S28: 1346.17 | T28: 7799.34 | U28: 5653.74 | V28: 2990.4 | W28: 6914.6 | X28: 1672.18 | Y28: 3535.02 | Z28: 3024.47 | AA28: 3902.54 | AB28: 730.55 | AC28: 33.16 | AD28: 2067.53 | AE28: 365.19 | AF28: 246.5 | AG28: 525.01 | AH28: 1075.96 | AI28: 5049.39 | AJ28: 6470.38 | AK28: 6118.16 | AL28: 5741.7 | AM28: 6819.26 | AN28: 5400.402 | AO28: 4024.76 | AP28: 2769.298 | AQ28: 4310.832069
B29: Economique | C29: oSupCPIRL_FIN | D29: oSupCPIRL_FIN | F29: 0 | G29: 8678.5 | H29: 0 | I29: 0 | J29: 0 | K29: 0 | L29: 0 | M29: 0 | N29: 0 | O29: 0 | P29: 70.86 | Q29: 2302.75 | R29: 1548.25 | S29: 6500.02 | T29: 3822.81 | U29: 5094.71 | V29: 8240.04 | W29: 3182.62 | X29: 8678.5 | Y29: 5844.4 | Z29: 5417.01 | AA29: 3694.8 | AB29: 6107.05 | AC29: 6120.68 | AD29: 3470.92 | AE29: 5727.11 | AF29: 6455.03 | AG29: 6846.67 | AH29: 6353.47 | AI29: 3870.35 | AJ29: 772.1 | AK29: 1340.63 | AL29: 766.5 | AM29: 0 | AN29: 2084.376 | AO29: 5564.66 | AP29: 4172.346 | AQ29: 3525.078621
B30: Economique | C30: oSupCPIRL_INI | D30: oSupCPIRL_INI | F30: 0 | G30: 7867.23 | H30: 0 | I30: 7600 | J30: 7370 | K30: 7370 | L30: 7296.3 | M30: 6030 | N30: 6030 | O30: 5067.95 | P30: 7867.23 | Q30: 4947.8 | R30: 7772.86 | S30: 1346.17 | T30: 7799.34 | U30: 5653.74 | V30: 2990.4 | W30: 6914.6 | X30: 1672.18 | Y30: 3535.02 | Z30: 3024.47 | AA30: 3902.54 | AB30: 730.55 | AC30: 33.16 | AD30: 2067.53 | AE30: 365.19 | AF30: 246.5 | AG30: 525.01 | AH30: 1075.96 | AI30: 5049.39 | AJ30: 6470.38 | AK30: 6118.16 | AL30: 5741.7 | AM30: 6819.26 | AN30: 5400.402 | AO30: 4024.76 | AP30: 2769.298 | AQ30: 4310.832069
B31: Economique | C31: oSupActCT_T100% | D31: oSupActCT_T100% | F31: 0 | G31: 71083.48 | H31: 0 | I31: 50013.06 | J31: 45023.01 | K31: 46132.32 | L31: 48415.13 | M31: 48569.23 | N31: 48906.98 | O31: 49501.09 | P31: 59183.48 | Q31: 58714.88 | R31: 57581.47 | S31: 53897.85 | T31: 57416 | U31: 52168.7 | V31: 48253.41 | W31: 52320.3 | X31: 46035.03 | Y31: 51020.85 | Z31: 60727.13 | AA31: 67357.39 | AB31: 69659.53 | AC31: 71083.48 | AD31: 70067.03 | AE31: 70725.89 | AF31: 60462.02 | AG31: 60833.5 | AH31: 62397.42 | AI31: 53591.79 | AJ31: 63863.22 | AK31: 60759.37 | AL31: 66420.13 | AM31: 47409.334 | AN31: 55775.754 | AO31: 56106.48222 | AP31: 64020.385 | AQ31: 57278.88379
B32: Economique | C32: oSupCT_T100% | D32: oSupCT_T100% | F32: 0 | G32: 71083.48 | H32: 0 | I32: 50013.06 | J32: 45023.01 | K32: 46132.32 | L32: 48415.13 | M32: 48569.23 | N32: 48906.98 | O32: 49501.09 | P32: 59183.48 | Q32: 58714.88 | R32: 57581.47 | S32: 53897.85 | T32: 57416 | U32: 52168.7 | V32: 48253.41 | W32: 52320.3 | X32: 46035.03 | Y32: 51020.85 | Z32: 60727.13 | AA32: 67357.39 | AB32: 69659.53 | AC32: 71083.48 | AD32: 70067.03 | AE32: 70725.89 | AF32: 60462.02 | AG32: 60833.5 | AH32: 62397.42 | AI32: 53591.79 | AJ32: 63863.22 | AK32: 60759.37 | AL32: 66420.13 | AM32: 47409.334 | AN32: 55775.754 | AO32: 56106.48222 | AP32: 64020.385 | AQ32: 57278.88379
B33: Economique | C33: oSupCT | D33: oSupCT | F33: 0 | G33: 71083.48 | H33: 0 | I33: 50013.06 | J33: 45023.01 | K33: 46132.32 | L33: 48415.13 | M33: 48569.23 | N33: 48906.98 | O33: 49501.09 | P33: 59183.48 | Q33: 58714.88 | R33: 57581.47 | S33: 53897.85 | T33: 57416 | U33: 52168.7 | V33: 48253.41 | W33: 52320.3 | X33: 46035.03 | Y33: 51020.85 | Z33: 60727.13 | AA33: 67357.39 | AB33: 69659.53 | AC33: 71083.48 | AD33: 70067.03 | AE33: 70725.89 | AF33: 60462.02 | AG33: 60833.5 | AH33: 62397.42 | AI33: 53591.79 | AJ33: 63863.22 | AK33: 60759.37 | AL33: 66420.13 | AM33: 47409.334 | AN33: 55775.754 | AO33: 56106.48222 | AP33: 64020.385 | AQ33: 57278.88379
B34: Economique | C34: oSupActPL_SEPM_E_T100% | D34: oSupActPL_SEPM_E_T100% | F34: 0 | G34: 16000 | H34: 0 | I34: 16000 | J34: 11940.33 | K34: 14950 | L34: 12914.08 | M34: 13953.18 | N34: 13925.2 | O34: 13789.1 | P34: 14418.85 | Q34: 13028.32 | R34: 12660.58 | S34: 11394.52 | T34: 12533.97 | U34: 11280.58 | V34: 11737.51 | W34: 12013.6 | X34: 9509.64 | Y34: 12243.81 | Z34: 14268.61 | AA34: 12621.08 | AB34: 11980.05 | AC34: 12097.61 | AD34: 15614.7 | AE34: 15135.34 | AF34: 10999.82 | AG34: 9822.93 | AH34: 7286.56 | AI34: 6551.08 | AJ34: 6285.38 | AK34: 5344.24 | AL34: 5617.42 | AM34: 13536.558 | AN34: 13058.274 | AO34: 12020.98333 | AP34: 9475.508 | AQ34: 11583.38241
B35: Economique | C35: oSupActPL_SEPM_I_T100% | D35: oSupActPL_SEPM_I_T100% | F35: 0 | G35: 4316.53 | H35: 0 | I35: 0 | J35: 3009.67 | K35: 0 | L35: 2035.92 | M35: 996.82 | N35: 1024.8 | O35: 70.9 | P35: 0 | Q35: 0 | R35: 0 | S35: 0 | T35: 0 | U35: 0 | V35: 0 | W35: 0 | X35: 3705.32 | Y35: 1564.21 | Z35: 709.37 | AA35: 2569.23 | AB35: 3334.09 | AC35: 3205.39 | AD35: 0 | AE35: 0 | AF35: 2857.49 | AG35: 3069.39 | AH35: 4316.53 | AI35: 3891.7 | AJ35: 3113.12 | AK35: 1795.26 | AL35: 2928.95 | AM35: 1413.442 | AN35: 14.18 | AO35: 1320.246667 | AP35: 2517.783 | AQ35: 1524.074483
B36: Economique | C36: oSupPL_SEPM_E_T100% | D36: oSupPL_SEPM_E_T100% | F36: 0 | G36: 16000 | H36: 0 | I36: 16000 | J36: 11940.33 | K36: 14950 | L36: 12914.08 | M36: 13953.18 | N36: 13925.2 | O36: 13789.1 | P36: 14418.85 | Q36: 13028.32 | R36: 12660.58 | S36: 11394.52 | T36: 12533.97 | U36: 11280.58 | V36: 11737.51 | W36: 12013.6 | X36: 9509.64 | Y36: 12243.81 | Z36: 14268.61 | AA36: 12621.08 | AB36: 11980.05 | AC36: 12097.61 | AD36: 15614.7 | AE36: 15135.34 | AF36: 10999.82 | AG36: 9822.93 | AH36: 7286.56 | AI36: 6551.08 | AJ36: 6285.38 | AK36: 5344.24 | AL36: 5617.42 | AM36: 13536.558 | AN36: 13058.274 | AO36: 12020.98333 | AP36: 9475.508 | AQ36: 11583.38241
B37: Economique | C37: oSupPL_SEPM_I_T100% | D37: oSupPL_SEPM_I_T100% | F37: 0 | G37: 4316.53 | H37: 0 | I37: 0 | J37: 3009.67 | K37: 0 | L37: 2035.92 | M37: 996.82 | N37: 1024.8 | O37: 70.9 | P37: 0 | Q37: 0 | R37: 0 | S37: 0 | T37: 0 | U37: 0 | V37: 0 | W37: 0 | X37: 3705.32 | Y37: 1564.21 | Z37: 709.37 | AA37: 2569.23 | AB37: 3334.09 | AC37: 3205.39 | AD37: 0 | AE37: 0 | AF37: 2857.49 | AG37: 3069.39 | AH37: 4316.53 | AI37: 3891.7 | AJ37: 3113.12 | AK37: 1795.26 | AL37: 2928.95 | AM37: 1413.442 | AN37: 14.18 | AO37: 1320.246667 | AP37: 2517.783 | AQ37: 1524.074483
B38: Economique | C38: oSupPL_SEPM_E | D38: oSupPL_SEPM_E | F38: 0 | G38: 16000 | H38: 0 | I38: 16000 | J38: 11940.33 | K38: 14950 | L38: 12914.08 | M38: 13953.18 | N38: 13925.2 | O38: 13789.1 | P38: 14418.85 | Q38: 13028.32 | R38: 12660.58 | S38: 11394.52 | T38: 12533.97 | U38: 11280.58 | V38: 11737.51 | W38: 12013.6 | X38: 9509.64 | Y38: 12243.81 | Z38: 14268.61 | AA38: 12621.08 | AB38: 11980.05 | AC38: 12097.61 | AD38: 15614.7 | AE38: 15135.34 | AF38: 10999.82 | AG38: 9822.93 | AH38: 7286.56 | AI38: 6551.08 | AJ38: 6285.38 | AK38: 5344.24 | AL38: 5617.42 | AM38: 13536.558 | AN38: 13058.274 | AO38: 12020.98333 | AP38: 9475.508 | AQ38: 11583.38241
B39: Economique | C39: oSupPL_SEPM_I | D39: oSupPL_SEPM_I | F39: 0 | G39: 4316.53 | H39: 0 | I39: 0 | J39: 3009.67 | K39: 0 | L39: 2035.92 | M39: 996.82 | N39: 1024.8 | O39: 70.9 | P39: 0 | Q39: 0 | R39: 0 | S39: 0 | T39: 0 | U39: 0 | V39: 0 | W39: 0 | X39: 3705.32 | Y39: 1564.21 | Z39: 709.37 | AA39: 2569.23 | AB39: 3334.09 | AC39: 3205.39 | AD39: 0 | AE39: 0 | AF39: 2857.49 | AG39: 3069.39 | AH39: 4316.53 | AI39: 3891.7 | AJ39: 3113.12 | AK39: 1795.26 | AL39: 2928.95 | AM39: 1413.442 | AN39: 14.18 | AO39: 1320.246667 | AP39: 2517.783 | AQ39: 1524.074483
B40: Economique | C40: oSupActEPC_1_T100% | D40: oSupActEPC_1_T100% | F40: 0 | G40: 0 | H40: 0 | I40: 0 | J40: 0 | K40: 0 | L40: 0 | M40: 0 | N40: 0 | O40: 0 | P40: 0 | Q40: 0 | R40: 0 | S40: 0 | T40: 0 | U40: 0 | V40: 0 | W40: 0 | X40: 0 | Y40: 0 | Z40: 0 | AA40: 0 | AB40: 0 | AC40: 0 | AD40: 0 | AE40: 0 | AF40: 0 | AG40: 0 | AH40: 0 | AI40: 0 | AJ40: 0 | AK40: 0 | AL40: 0 | AM40: 0 | AN40: 0 | AO40: 0 | AP40: 0 | AQ40: 0
B41: Economique | C41: oSupActEPC_2_T100% | D41: oSupActEPC_2_T100% | F41: 0 | G41: 0 | H41: 0 | I41: 0 | J41: 0 | K41: 0 | L41: 0 | M41: 0 | N41: 0 | O41: 0 | P41: 0 | Q41: 0 | R41: 0 | S41: 0 | T41: 0 | U41: 0 | V41: 0 | W41: 0 | X41: 0 | Y41: 0 | Z41: 0 | AA41: 0 | AB41: 0 | AC41: 0 | AD41: 0 | AE41: 0 | AF41: 0 | AG41: 0 | AH41: 0 | AI41: 0 | AJ41: 0 | AK41: 0 | AL41: 0 | AM41: 0 | AN41: 0 | AO41: 0 | AP41: 0 | AQ41: 0
B42: Economique | C42: oSupEPC_1_T100% | D42: oSupEPC_1_T100% | F42: 0 | G42: 0 | H42: 0 | I42: 0 | J42: 0 | K42: 0 | L42: 0 | M42: 0 | N42: 0 | O42: 0 | P42: 0 | Q42: 0 | R42: 0 | S42: 0 | T42: 0 | U42: 0 | V42: 0 | W42: 0 | X42: 0 | Y42: 0 | Z42: 0 | AA42: 0 | AB42: 0 | AC42: 0 | AD42: 0 | AE42: 0 | AF42: 0 | AG42: 0 | AH42: 0 | AI42: 0 | AJ42: 0 | AK42: 0 | AL42: 0 | AM42: 0 | AN42: 0 | AO42: 0 | AP42: 0 | AQ42: 0
B43: Economique | C43: oSupEPC_2_T100% | D43: oSupEPC_2_T100% | F43: 0 | G43: 0 | H43: 0 | I43: 0 | J43: 0 | K43: 0 | L43: 0 | M43: 0 | N43: 0 | O43: 0 | P43: 0 | Q43: 0 | R43: 0 | S43: 0 | T43: 0 | U43: 0 | V43: 0 | W43: 0 | X43: 0 | Y43: 0 | Z43: 0 | AA43: 0 | AB43: 0 | AC43: 0 | AD43: 0 | AE43: 0 | AF43: 0 | AG43: 0 | AH43: 0 | AI43: 0 | AJ43: 0 | AK43: 0 | AL43: 0 | AM43: 0 | AN43: 0 | AO43: 0 | AP43: 0 | AQ43: 0
B44: Economique | C44: oSupEPC_1 | D44: oSupEPC_1 | F44: 0 | G44: 0 | H44: 0 | I44: 0 | J44: 0 | K44: 0 | L44: 0 | M44: 0 | N44: 0 | O44: 0 | P44: 0 | Q44: 0 | R44: 0 | S44: 0 | T44: 0 | U44: 0 | V44: 0 | W44: 0 | X44: 0 | Y44: 0 | Z44: 0 | AA44: 0 | AB44: 0 | AC44: 0 | AD44: 0 | AE44: 0 | AF44: 0 | AG44: 0 | AH44: 0 | AI44: 0 | AJ44: 0 | AK44: 0 | AL44: 0 | AM44: 0 | AN44: 0 | AO44: 0 | AP44: 0 | AQ44: 0
B45: Economique | C45: oSupEPC_2 | D45: oSupEPC_2 | F45: 0 | G45: 0 | H45: 0 | I45: 0 | J45: 0 | K45: 0 | L45: 0 | M45: 0 | N45: 0 | O45: 0 | P45: 0 | Q45: 0 | R45: 0 | S45: 0 | T45: 0 | U45: 0 | V45: 0 | W45: 0 | X45: 0 | Y45: 0 | Z45: 0 | AA45: 0 | AB45: 0 | AC45: 0 | AD45: 0 | AE45: 0 | AF45: 0 | AG45: 0 | AH45: 0 | AI45: 0 | AJ45: 0 | AK45: 0 | AL45: 0 | AM45: 0 | AN45: 0 | AO45: 0 | AP45: 0 | AQ45: 0
B46: Economique | C46: oSupActEC_SEPM_T100% | D46: oSupActEC_SEPM_T100% | F46: 0 | G46: 3334.09 | H46: 0 | I46: 0 | J46: 0 | K46: 737 | L46: 0 | M46: 536.67 | N46: 530.4 | O46: 2148.49 | P46: 0 | Q46: 1481.34 | R46: 283.98 | S46: 2719.41 | T46: 0 | U46: 2035.92 | V46: 996.82 | W46: 1024.8 | X46: 70.9 | Y46: 0 | Z46: 0 | AA46: 0 | AB46: 0 | AC46: 0 | AD46: 0 | AE46: 0 | AF46: 0 | AG46: 0 | AH46: 679.43 | AI46: 0 | AJ46: 2569.23 | AK46: 3334.09 | AL46: 3205.39 | AM46: 360.814 | AN46: 1326.644 | AO46: 458.7155556 | AP46: 978.814 | AQ46: 770.8231034
B47: Economique | C47: oSupEC_SEPM_T100% | D47: oSupEC_SEPM_T100% | F47: 0 | G47: 3334.09 | H47: 0 | I47: 0 | J47: 0 | K47: 737 | L47: 0 | M47: 536.67 | N47: 530.4 | O47: 2148.49 | P47: 0 | Q47: 1481.34 | R47: 283.98 | S47: 2719.41 | T47: 0 | U47: 2035.92 | V47: 996.82 | W47: 1024.8 | X47: 70.9 | Y47: 0 | Z47: 0 | AA47: 0 | AB47: 0 | AC47: 0 | AD47: 0 | AE47: 0 | AF47: 0 | AG47: 0 | AH47: 679.43 | AI47: 0 | AJ47: 2569.23 | AK47: 3334.09 | AL47: 3205.39 | AM47: 360.814 | AN47: 1326.644 | AO47: 458.7155556 | AP47: 978.814 | AQ47: 770.8231034
B48: Economique | C48: oSupEC_SEPM | D48: oSupEC_SEPM | F48: 0 | G48: 3334.09 | H48: 0 | I48: 0 | J48: 0 | K48: 737 | L48: 0 | M48: 536.67 | N48: 530.4 | O48: 2148.49 | P48: 0 | Q48: 1481.34 | R48: 283.98 | S48: 2719.41 | T48: 0 | U48: 2035.92 | V48: 996.82 | W48: 1024.8 | X48: 70.9 | Y48: 0 | Z48: 0 | AA48: 0 | AB48: 0 | AC48: 0 | AD48: 0 | AE48: 0 | AF48: 0 | AG48: 0 | AH48: 679.43 | AI48: 0 | AJ48: 2569.23 | AK48: 3334.09 | AL48: 3205.39 | AM48: 360.814 | AN48: 1326.644 | AO48: 458.7155556 | AP48: 978.814 | AQ48: 770.8231034
B49: Economique | C49: oSupActNETT_T100% | D49: oSupActNETT_T100% | F49: 0 | G49: 1 | H49: 0 | I49: 0 | J49: 1 | K49: 0 | L49: 0 | M49: 0 | N49: 0 | O49: 0 | P49: 0 | Q49: 0 | R49: 0 | S49: 0 | T49: 0 | U49: 0 | V49: 0 | W49: 0 | X49: 0 | Y49: 0 | Z49: 0 | AA49: 0 | AB49: 0 | AC49: 0 | AD49: 0 | AE49: 0 | AF49: 0 | AG49: 0 | AH49: 0 | AI49: 0 | AJ49: 0 | AK49: 0 | AL49: 0 | AM49: 0.2 | AN49: 0 | AO49: 0 | AP49: 0 | AQ49: 0.03448275862
B50: Economique | C50: oSupTcadNETT_T100% | D50: oSupTcadNETT_T100% | F50: 0 | G50: 7493.56 | H50: 0 | I50: 0 | J50: 0 | K50: 1650 | L50: 1350 | M50: 1350 | N50: 1350 | O50: 0 | P50: 1273.48 | Q50: 1174.63 | R50: 2730.77 | S50: 1960.44 | T50: 3603.69 | U50: 4082.47 | V50: 5928.72 | W50: 6492.77 | X50: 3942.37 | Y50: 3406.5 | Z50: 4878.04 | AA50: 2273.73 | AB50: 3152.71 | AC50: 2451.81 | AD50: 2513.1 | AE50: 199.79 | AF50: 1908.62 | AG50: 3309.43 | AH50: 5188.54 | AI50: 6332.35 | AJ50: 7380.47 | AK50: 7493.56 | AL50: 5062.85 | AM50: 1140 | AN50: 1427.864 | AO50: 4195.666667 | AP50: 4184.052 | AQ50: 3187.615172
B51: Economique | C51: oSupNETT_T100% | D51: oSupNETT_T100% | F51: 0 | G51: 7493.56 | H51: 0 | I51: 0 | J51: 1 | K51: 1650 | L51: 1350 | M51: 1350 | N51: 1350 | O51: 0 | P51: 1273.48 | Q51: 1174.63 | R51: 2730.77 | S51: 1960.44 | T51: 3603.69 | U51: 4082.47 | V51: 5928.72 | W51: 6492.77 | X51: 3942.37 | Y51: 3406.5 | Z51: 4878.04 | AA51: 2273.73 | AB51: 3152.71 | AC51: 2451.81 | AD51: 2513.1 | AE51: 199.79 | AF51: 1908.62 | AG51: 3309.43 | AH51: 5188.54 | AI51: 6332.35 | AJ51: 7380.47 | AK51: 7493.56 | AL51: 5062.85 | AM51: 1140.2 | AN51: 1427.864 | AO51: 4195.666667 | AP51: 4184.052 | AQ51: 3187.649655
B52: Economique | C52: oSupNETT | D52: oSupNETT | F52: 0 | G52: 7493.56 | H52: 0 | I52: 0 | J52: 1 | K52: 1650 | L52: 1350 | M52: 1350 | N52: 1350 | O52: 0 | P52: 1273.48 | Q52: 1174.63 | R52: 2730.77 | S52: 1960.44 | T52: 3603.69 | U52: 4082.47 | V52: 5928.72 | W52: 6492.77 | X52: 3942.37 | Y52: 3406.5 | Z52: 4878.04 | AA52: 2273.73 | AB52: 3152.71 | AC52: 2451.81 | AD52: 2513.1 | AE52: 199.79 | AF52: 1908.62 | AG52: 3309.43 | AH52: 5188.54 | AI52: 6332.35 | AJ52: 7380.47 | AK52: 7493.56 | AL52: 5062.85 | AM52: 1140.2 | AN52: 1427.864 | AO52: 4195.666667 | AP52: 4184.052 | AQ52: 3187.649655
B53: Economique | C53: oTauxDEG | D53: oTauxDEG | F53: 0 | G53: 13260800 | H53: 0 | I53: 13260800 | J53: 9152000 | K53: 7488000 | L53: 7872000 | M53: 7872000 | N53: 7872000 | O53: 10560000 | P53: 9985939.38 | Q53: 11274071.55 | R53: 10559969.64 | S53: 12348634.7 | T53: 10019551.59 | U53: 9454883.33 | V53: 8559717.92 | W53: 6222895.7 | X53: 9262907.45 | Y53: 9143369.47 | Z53: 5909420.47 | AA53: 8027614.32 | AB53: 7484399.64 | AC53: 8615918.34 | AD53: 8347109.39 | AE53: 12464535.88 | AF53: 11549249.18 | AG53: 11155444.03 | AH53: 9447000.27 | AI53: 9591757.69 | AJ53: 6480452.79 | AK53: 7668448.12 | AL53: 9483637.69 | AM53: 8051200 | AN53: 10945723.05 | AO53: 8231639.988 | AP53: 9480355.338 | AQ53: 9099066.501
B54: Economique | C54: oTauxSCA | D54: oTauxSCA | F54: 0 | G54: 6880000 | H54: 0 | I54: 6880000 | J54: 6736500 | K54: 6680500 | L54: 6680500 | M54: 6680500 | N54: 6680500 | O54: 5959800 | P54: 6200103.5 | Q54: 5602179.59 | R54: 5444049.09 | S54: 4899644.18 | T54: 5389608.6 | U54: 4850647.74 | V54: 5047130.03 | W54: 5165847.01 | X54: 5682431.71 | Y54: 5937446.02 | Z54: 6440531.38 | AA54: 6531831.49 | AB54: 6585080.65 | AC54: 6580291.44 | AD54: 6714321.4 | AE54: 6508195.72 | AF54: 5958643.99 | AG54: 5543698.41 | AH54: 4989328.57 | AI54: 4490395.71 | AJ54: 4041356.14 | AK54: 3817363.81 | AL54: 3844424.63 | AM54: 6691700 | AN54: 5621155.272 | AO54: 5736728.292 | AP54: 5248801.982 | AQ54: 5713201.752
B55: Economique | C55: oTauxREG | D55: oTauxREG | F55: 0 | G55: 560531.63 | H55: 0 | I55: 0 | J55: 231000 | K55: 189000 | L55: 189000 | M55: 189000 | N55: 189000 | O55: 0 | P55: 0 | Q55: 0 | R55: 0 | S55: 0 | T55: 0 | U55: 0 | V55: 0 | W55: 0 | X55: 0 | Y55: 0 | Z55: 0 | AA55: 0 | AB55: 0 | AC55: 0 | AD55: 0 | AE55: 0 | AF55: 0 | AG55: 0 | AH55: 0 | AI55: 0 | AJ55: 0 | AK55: 560531.63 | AL55: 127112.81 | AM55: 197400 | AN55: 0 | AO55: 0 | AP55: 68764.444 | AQ55: 57746.36
B56: Economique | C56: oTauxCPI | D56: oTauxCPI | F56: 0 | G56: 2360167.56 | H56: 0 | I56: 2280000 | J56: 2211000 | K56: 2211000 | L56: 2188890 | M56: 1809000 | N56: 1809000 | O56: 1520385.63 | P56: 2360167.56 | Q56: 1484340 | R56: 2331857.4 | S56: 403850.03 | T56: 2339803.29 | U56: 1696121.72 | V56: 897120 | W56: 2074378.93 | X56: 501654 | Y56: 1060506 | Z56: 907342.02 | AA56: 1170760.71 | AB56: 219166.1 | AC56: 9947.7 | AD56: 620259.97 | AE56: 109557.6 | AF56: 73949.68 | AG56: 157504.44 | AH56: 322787.55 | AI56: 1514816.5 | AJ56: 1941114.77 | AK56: 1835449.12 | AL56: 1722510.27 | AM56: 2045778 | AN56: 1620120.124 | AO56: 1207428.086 | AP56: 830789.76 | AQ56: 1293249.689
B57: Economique | C57: oTauxCT | D57: oTauxCT | F57: 0 | G57: 0 | H57: 0 | I57: 0 | J57: 0 | K57: 0 | L57: 0 | M57: 0 | N57: 0 | O57: 0 | P57: 0 | Q57: 0 | R57: 0 | S57: 0 | T57: 0 | U57: 0 | V57: 0 | W57: 0 | X57: 0 | Y57: 0 | Z57: 0 | AA57: 0 | AB57: 0 | AC57: 0 | AD57: 0 | AE57: 0 | AF57: 0 | AG57: 0 | AH57: 0 | AI57: 0 | AJ57: 0 | AK57: 0 | AL57: 0 | AM57: 0 | AN57: 0 | AO57: 0 | AP57: 0 | AQ57: 0
B58: Economique | C58: oTauxPL | D58: oTauxPL | F58: 0 | G58: 17932241.61 | H58: 0 | I58: 17760000 | J58: 17437207.5 | K58: 16594500 | L58: 17164557.5 | M58: 16873610 | N58: 16881445.24 | O58: 15404452 | P58: 16004918.34 | Q58: 14461440.34 | R58: 14053243.01 | S58: 12647918.71 | T58: 13912710.58 | U58: 12521439.52 | V58: 13028637.99 | W58: 13335093.45 | X58: 15706092.24 | Y58: 15764873.53 | Z58: 16824182.47 | AA58: 17580622.58 | AB58: 17932241.61 | AC58: 17883843.65 | AD58: 17332318.03 | AE58: 16800226.16 | AF58: 16181713.15 | AG58: 15169907.46 | AH58: 14088057.1 | AI58: 12681161.85 | AJ58: 11304012.88 | AK58: 8427527.7 | AL58: 10306582.72 | AM58: 16990264.05 | AN58: 14514394.48 | AO58: 15178432.66 | AP58: 14017535.07 | AQ58: 14976018.53
B59: Economique | C59: oTauxEC | D59: oTauxEC | F59: 0 | G59: 4167611.84 | H59: 0 | I59: 0 | J59: 0 | K59: 921250 | L59: 0 | M59: 670837.5 | N59: 663002.26 | O59: 2685612.37 | P59: 0 | Q59: 1851675.33 | R59: 354971.45 | S59: 3399261.52 | T59: 0 | U59: 2544899.55 | V59: 1246026.79 | W59: 1281005.52 | X59: 88625 | Y59: 0 | Z59: 0 | AA59: 0 | AB59: 0 | AC59: 0 | AD59: 0 | AE59: 0 | AF59: 0 | AG59: 0 | AH59: 849282.11 | AI59: 0 | AJ59: 3211531.9 | AK59: 4167611.84 | AL59: 4006740.73 | AM59: 451017.952 | AN59: 1658304.134 | AO59: 573395.2067 | AP59: 1223516.658 | AQ59: 963528.7541
B60: Economique | C60: oTauxNET | D60: oTauxNET | F60: 0 | G60: 9292015.27 | H60: 0 | I60: 0 | J60: 1240 | K60: 2046000 | L60: 1674000 | M60: 1674000 | N60: 1674000 | O60: 0 | P60: 1579121.23 | Q60: 1456543.19 | R60: 3386159.42 | S60: 2430940.87 | T60: 4468575.93 | U60: 5062258.14 | V60: 7351617.27 | W60: 8051029.39 | X60: 4888539.6 | Y60: 4224054.98 | Z60: 6048773.66 | AA60: 2819420.89 | AB60: 3909361.99 | AC60: 3040248.86 | AD60: 3116241.21 | AE60: 247734.64 | AF60: 2366694.01 | AG60: 4103695.67 | AH60: 6433794.4 | AI60: 7852118.24 | AJ60: 9151781.51 | AK60: 9292015.27 | AL60: 6277938.65 | AM60: 1413848 | AN60: 1770552.942 | AO60: 5202625.761 | AP60: 5188226.246 | AQ60: 3952686.173
B61: Economique | C61: oSupRealDEG | D61: oSupRealDEG | F61: 0 | G61: 10360 | H61: 0 | I61: 10360 | J61: 7150 | K61: 5850 | L61: 6150 | M61: 6150 | N61: 6150 | O61: 8250 | P61: 7801.52 | Q61: 8807.87 | R61: 8249.98 | S61: 9647.37 | T61: 7827.77 | U61: 7386.63 | V61: 6687.28 | W61: 4861.64 | X61: 7236.65 | Y61: 7143.26 | Z61: 4616.73 | AA61: 6271.57 | AB61: 5847.19 | AC61: 6731.19 | AD61: 6521.18 | AE61: 9737.92 | AF61: 9022.85 | AG61: 8715.19 | AH61: 7380.47 | AI61: 7493.56 | AJ61: 5062.85 | AK61: 5990.98 | AL61: 7409.09 | AM61: 6290 | AN61: 8551.348 | AO61: 6430.968889 | AP61: 7406.528 | AQ61: 7108.646207
B62: Economique | C62: oSupRealSCA | D62: oSupRealSCA | F62: 0 | G62: 16000 | H62: 0 | I62: 16000 | J62: 15500 | K62: 15400 | L62: 15400 | M62: 15400 | N62: 15400 | O62: 13860 | P62: 14418.85 | Q62: 13028.32 | R62: 12660.58 | S62: 11394.52 | T62: 12533.97 | U62: 11280.58 | V62: 11737.51 | W62: 12013.6 | X62: 13214.96 | Y62: 13808.01 | Z62: 14977.98 | AA62: 15190.31 | AB62: 15314.14 | AC62: 15303 | AD62: 15614.7 | AE62: 15135.34 | AF62: 13857.31 | AG62: 12892.32 | AH62: 11603.09 | AI62: 10442.78 | AJ62: 9398.5 | AK62: 8474.11 | AL62: 8849.02 | AM62: 15420 | AN62: 13072.454 | AO62: 13341.22889 | AP62: 12157.017 | AQ62: 13244.94828
B63: Economique | C63: oSupRealREG | D63: oSupRealREG | F63: 0 | G63: 1334.6 | H63: 0 | I63: 0 | J63: 550 | K63: 450 | L63: 450 | M63: 450 | N63: 450 | O63: 0 | P63: 0 | Q63: 0 | R63: 0 | S63: 0 | T63: 0 | U63: 0 | V63: 0 | W63: 0 | X63: 0 | Y63: 0 | Z63: 0 | AA63: 0 | AB63: 0 | AC63: 0 | AD63: 0 | AE63: 0 | AF63: 0 | AG63: 0 | AH63: 0 | AI63: 0 | AJ63: 0 | AK63: 1334.6 | AL63: 302.65 | AM63: 470 | AN63: 0 | AO63: 0 | AP63: 163.725 | AQ63: 137.4913793
B64: Economique | C64: oSupRealCPI | D64: oSupRealCPI | F64: 0 | G64: 11622.15 | H64: 0 | I64: 7600 | J64: 7370 | K64: 7370 | L64: 7296.3 | M64: 6030 | N64: 6030 | O64: 5067.95 | P64: 7938.09 | Q64: 7250.55 | R64: 9321.11 | S64: 7846.18 | T64: 11622.15 | U64: 10748.45 | V64: 11230.44 | W64: 10097.22 | X64: 10350.68 | Y64: 9379.42 | Z64: 8441.48 | AA64: 7597.33 | AB64: 6837.6 | AC64: 6153.84 | AD64: 5538.46 | AE64: 6092.3 | AF64: 6701.53 | AG64: 7371.68 | AH64: 7429.43 | AI64: 8919.74 | AJ64: 7242.49 | AK64: 7458.79 | AL64: 6508.2 | AM64: 6819.26 | AN64: 7484.776 | AO64: 9589.418889 | AP64: 6941.646 | AQ64: 7835.91069
B65: Economique | C65: oSupRealCT | D65: oSupRealCT | F65: 0 | G65: 71083.48 | H65: 0 | I65: 50013.06 | J65: 45023.01 | K65: 46132.32 | L65: 48415.13 | M65: 48569.23 | N65: 48906.98 | O65: 49501.09 | P65: 59183.48 | Q65: 58714.88 | R65: 57581.47 | S65: 53897.85 | T65: 57416 | U65: 52168.7 | V65: 48253.41 | W65: 52320.3 | X65: 46035.03 | Y65: 51020.85 | Z65: 60727.13 | AA65: 67357.39 | AB65: 69659.53 | AC65: 71083.48 | AD65: 70067.03 | AE65: 70725.89 | AF65: 60462.02 | AG65: 60833.5 | AH65: 62397.42 | AI65: 53591.79 | AJ65: 63863.22 | AK65: 60759.37 | AL65: 66420.13 | AM65: 47409.334 | AN65: 55775.754 | AO65: 56106.48222 | AP65: 64020.385 | AQ65: 57278.88379
B66: Economique | C66: oSupRealPL | D66: oSupRealPL | F66: 0 | G66: 16000 | H66: 0 | I66: 16000 | J66: 14950 | K66: 14950 | L66: 14950 | M66: 14950 | N66: 14950 | O66: 13860 | P66: 14418.85 | Q66: 13028.32 | R66: 12660.58 | S66: 11394.52 | T66: 12533.97 | U66: 11280.58 | V66: 11737.51 | W66: 12013.6 | X66: 13214.96 | Y66: 13808.01 | Z66: 14977.98 | AA66: 15190.31 | AB66: 15314.14 | AC66: 15303 | AD66: 15614.7 | AE66: 15135.34 | AF66: 13857.31 | AG66: 12892.32 | AH66: 11603.09 | AI66: 10442.78 | AJ66: 9398.5 | AK66: 7139.51 | AL66: 8546.37 | AM66: 14950 | AN66: 13072.454 | AO66: 13341.22889 | AP66: 11993.292 | AQ66: 13107.4569
B67: Economique | C67: oSupRealEC | D67: oSupRealEC | F67: 0 | G67: 3334.09 | H67: 0 | I67: 0 | J67: 0 | K67: 737 | L67: 0 | M67: 536.67 | N67: 530.4 | O67: 2148.49 | P67: 0 | Q67: 1481.34 | R67: 283.98 | S67: 2719.41 | T67: 0 | U67: 2035.92 | V67: 996.82 | W67: 1024.8 | X67: 70.9 | Y67: 0 | Z67: 0 | AA67: 0 | AB67: 0 | AC67: 0 | AD67: 0 | AE67: 0 | AF67: 0 | AG67: 0 | AH67: 679.43 | AI67: 0 | AJ67: 2569.23 | AK67: 3334.09 | AL67: 3205.39 | AM67: 360.814 | AN67: 1326.644 | AO67: 458.7155556 | AP67: 978.814 | AQ67: 770.8231034
B68: Economique | C68: oSupRealEPC | D68: oSupRealEPC | F68: 0 | G68: 0 | H68: 0 | I68: 0 | J68: 0 | K68: 0 | L68: 0 | M68: 0 | N68: 0 | O68: 0 | P68: 0 | Q68: 0 | R68: 0 | S68: 0 | T68: 0 | U68: 0 | V68: 0 | W68: 0 | X68: 0 | Y68: 0 | Z68: 0 | AA68: 0 | AB68: 0 | AC68: 0 | AD68: 0 | AE68: 0 | AF68: 0 | AG68: 0 | AH68: 0 | AI68: 0 | AJ68: 0 | AK68: 0 | AL68: 0 | AM68: =AVERAGE(J68:N68) -> 0 | AN68: =AVERAGE(O68:S68) -> 0 | AO68: =AVERAGE(T68:AB68) -> 0 | AP68: =AVERAGE(AC68:AL68) -> 0 | AQ68: =AVERAGE(J68:AL68) -> 0
B69: Economique | C69: oSupRealNET | D69: oSupRealNET | F69: 0 | G69: 7493.56 | H69: 0 | I69: 0 | J69: 1 | K69: 1650 | L69: 1350 | M69: 1350 | N69: 1350 | O69: 0 | P69: 1273.48 | Q69: 1174.63 | R69: 2730.77 | S69: 1960.44 | T69: 3603.69 | U69: 4082.47 | V69: 5928.72 | W69: 6492.77 | X69: 3942.37 | Y69: 3406.5 | Z69: 4878.04 | AA69: 2273.73 | AB69: 3152.71 | AC69: 2451.81 | AD69: 2513.1 | AE69: 199.79 | AF69: 1908.62 | AG69: 3309.43 | AH69: 5188.54 | AI69: 6332.35 | AJ69: 7380.47 | AK69: 7493.56 | AL69: 5062.85 | AM69: 1140.2 | AN69: 1427.864 | AO69: 4195.666667 | AP69: 4184.052 | AQ69: 3187.649655
B70: Economique | C70: oCoutProdPlants | D70: oCoutProdPlants | F70: 0 | G70: 0 | H70: 0 | I70: 0 | J70: 0 | K70: 0 | L70: 0 | M70: 0 | N70: 0 | O70: 0 | P70: 0 | Q70: 0 | R70: 0 | S70: 0 | T70: 0 | U70: 0 | V70: 0 | W70: 0 | X70: 0 | Y70: 0 | Z70: 0 | AA70: 0 | AB70: 0 | AC70: 0 | AD70: 0 | AE70: 0 | AF70: 0 | AG70: 0 | AH70: 0 | AI70: 0 | AJ70: 0 | AK70: 0 | AL70: 0 | AM70: 0 | AN70: 0 | AO70: 0 | AP70: 0 | AQ70: 0
B71: Economique | C71: oCoutTransPlants | D71: oCoutTransPlants | F71: 0 | G71: 0 | H71: 0 | I71: 0 | J71: 0 | K71: 0 | L71: 0 | M71: 0 | N71: 0 | O71: 0 | P71: 0 | Q71: 0 | R71: 0 | S71: 0 | T71: 0 | U71: 0 | V71: 0 | W71: 0 | X71: 0 | Y71: 0 | Z71: 0 | AA71: 0 | AB71: 0 | AC71: 0 | AD71: 0 | AE71: 0 | AF71: 0 | AG71: 0 | AH71: 0 | AI71: 0 | AJ71: 0 | AK71: 0 | AL71: 0 | AM71: 0 | AN71: 0 | AO71: 0 | AP71: 0 | AQ71: 0
B72: Economique | C72: o$InvestisTS | D72: o$InvestisTS | F72: 0 | G72: 40180800 | H72: 0 | I72: 40180800 | J72: 35768947.5 | K72: 36130250 | L72: 35768947.5 | M72: 35768947.5 | N72: 35768947.5 | O72: 36130250 | P72: 36130250 | Q72: 36130250 | R72: 36130250 | S72: 36130250 | T72: 36130250 | U72: 36130250 | V72: 36130250 | W72: 36130250 | X72: 36130250 | Y72: 36130250 | Z72: 36130250 | AA72: 36130250 | AB72: 36130250 | AC72: 36130250 | AD72: 36130250 | AE72: 36130250 | AF72: 36130250 | AG72: 36130250 | AH72: 36130250 | AI72: 36130250 | AJ72: 36130250 | AK72: 35768947.5 | AL72: 35768947.5 | AM72: 35841208 | AN72: 36130250 | AO72: 36130250 | AP72: 36057989.5 | AQ72: 36055497.76
B73: Economique | C73: oTauxREGAPAR | D73: oTauxREGAPAR | F73: 0 | G73: 6003060.96 | H73: 0 | I73: 2280000 | J73: 2211000 | K73: 3132250 | L73: 2188890 | M73: 2479837.5 | N73: 2472002.26 | O73: 4205998 | P73: 2360167.56 | Q73: 3336015.33 | R73: 2686828.85 | S73: 3803111.54 | T73: 2339803.29 | U73: 4241021.27 | V73: 2143146.79 | W73: 3355384.45 | X73: 590279 | Y73: 1060506 | Z73: 907342.02 | AA73: 1170760.71 | AB73: 219166.1 | AC73: 9947.7 | AD73: 620259.97 | AE73: 109557.6 | AF73: 73949.68 | AG73: 157504.44 | AH73: 1172069.66 | AI73: 1514816.5 | AJ73: 5152646.68 | AK73: 6003060.96 | AL73: 5729251 | AM73: 2496795.952 | AN73: 3278424.256 | AO73: 1780823.292 | AP73: 2054306.419 | AQ73: 2256778.443
B74: Economique | C74: oTauxREGAEDU | D74: oTauxREGAEDU | F74: 0 | G74: 17443875.94 | H74: 0 | I74: 13260800 | J74: 9153240 | K74: 9534000 | L74: 9546000 | M74: 9546000 | N74: 9546000 | O74: 10560000 | P74: 11565060.61 | Q74: 12730614.74 | R74: 13946129.05 | S74: 14779575.57 | T74: 14488127.53 | U74: 14517141.47 | V74: 15911335.19 | W74: 14273925.09 | X74: 14151447.05 | Y74: 13367424.45 | Z74: 11958194.13 | AA74: 10847035.21 | AB74: 11393761.64 | AC74: 11656167.21 | AD74: 11463350.6 | AE74: 12712270.52 | AF74: 13915943.19 | AG74: 15259139.69 | AH74: 15880794.67 | AI74: 17443875.94 | AJ74: 15632234.31 | AK74: 16960463.38 | AL74: 15761576.34 | AM74: 9465048 | AN74: 12716275.99 | AO74: 13434265.75 | AP74: 14668581.58 | AQ74: 13051752.68
B75: Economique | C75: oTauxREGAREG | D75: oTauxREGAREG | F75: 0 | G75: 17932241.61 | H75: 0 | I75: 17760000 | J75: 17668207.5 | K75: 16783500 | L75: 17353557.5 | M75: 17062610 | N75: 17070445.24 | O75: 15404452 | P75: 16004918.34 | Q75: 14461440.34 | R75: 14053243.01 | S75: 12647918.71 | T75: 13912710.58 | U75: 12521439.52 | V75: 13028637.99 | W75: 13335093.45 | X75: 15706092.24 | Y75: 15764873.53 | Z75: 16824182.47 | AA75: 17580622.58 | AB75: 17932241.61 | AC75: 17883843.65 | AD75: 17332318.03 | AE75: 16800226.16 | AF75: 16181713.15 | AG75: 15169907.46 | AH75: 14088057.1 | AI75: 12681161.85 | AJ75: 11304012.88 | AK75: 8988059.34 | AL75: 10433695.52 | AM75: 17187664.05 | AN75: 14514394.48 | AO75: 15178432.66 | AP75: 14086299.51 | AQ75: 15033764.89
B76: Economique | C76: oTauxAUTRES | D76: oTauxAUTRES | F76: 0 | G76: 6880000 | H76: 0 | I76: 6880000 | J76: 6736500 | K76: 6680500 | L76: 6680500 | M76: 6680500 | N76: 6680500 | O76: 5959800 | P76: 6200103.5 | Q76: 5602179.59 | R76: 5444049.09 | S76: 4899644.18 | T76: 5389608.6 | U76: 4850647.74 | V76: 5047130.03 | W76: 5165847.01 | X76: 5682431.71 | Y76: 5937446.02 | Z76: 6440531.38 | AA76: 6531831.49 | AB76: 6585080.65 | AC76: 6580291.44 | AD76: 6714321.4 | AE76: 6508195.72 | AF76: 5958643.99 | AG76: 5543698.41 | AH76: 4989328.57 | AI76: 4490395.71 | AJ76: 4041356.14 | AK76: 3817363.81 | AL76: 3844424.63 | AM76: 6691700 | AN76: 5621155.272 | AO76: 5736728.292 | AP76: 5248801.982 | AQ76: 5713201.752
B77: Economique | C77: oTauxREGAFIN | D77: oTauxREGAFIN | F77: 0 | G77: 0 | H77: 0 | I77: 0 | J77: 0 | K77: 0 | L77: 0 | M77: 0 | N77: 0 | O77: 0 | P77: 0 | Q77: 0 | R77: 0 | S77: 0 | T77: 0 | U77: 0 | V77: 0 | W77: 0 | X77: 0 | Y77: 0 | Z77: 0 | AA77: 0 | AB77: 0 | AC77: 0 | AD77: 0 | AE77: 0 | AF77: 0 | AG77: 0 | AH77: 0 | AI77: 0 | AJ77: 0 | AK77: 0 | AL77: 0 | AM77: 0 | AN77: 0 | AO77: 0 | AP77: 0 | AQ77: 0
B78: Economique | C78: oSupRealREGAPAR | D78: oSupRealREGAPAR | F78: 0 | G78: 12784.37 | H78: 0 | I78: 7600 | J78: 7370 | K78: 8107 | L78: 7296.3 | M78: 6566.67 | N78: 6560.4 | O78: 7216.44 | P78: 7938.09 | Q78: 8731.89 | R78: 9605.08 | S78: 10565.59 | T78: 11622.15 | U78: 12784.37 | V78: 12227.26 | W78: 11122.02 | X78: 10421.58 | Y78: 9379.42 | Z78: 8441.48 | AA78: 7597.33 | AB78: 6837.6 | AC78: 6153.84 | AD78: 5538.46 | AE78: 6092.3 | AF78: 6701.53 | AG78: 7371.68 | AH78: 8108.85 | AI78: 8919.74 | AJ78: 9811.71 | AK78: 10792.88 | AL78: 9713.59 | AM78: 7180.074 | AN78: 8811.418 | AO78: 10048.13444 | AP78: 7920.458 | AQ78: 8606.732759
B79: Economique | C79: oSupRealREGAEDU | D79: oSupRealREGAEDU | F79: 0 | G79: 13825.91 | H79: 0 | I79: 10360 | J79: 7151 | K79: 7500 | L79: 7500 | M79: 7500 | N79: 7500 | O79: 8250 | P79: 9075 | Q79: 9982.5 | R79: 10980.75 | S79: 11607.81 | T79: 11431.46 | U79: 11469.09 | V79: 12616 | W79: 11354.4 | X79: 11179.02 | Y79: 10549.75 | Z79: 9494.78 | AA79: 8545.3 | AB79: 8999.9 | AC79: 9183 | AD79: 9034.28 | AE79: 9937.7 | AF79: 10931.48 | AG79: 12024.62 | AH79: 12569.01 | AI79: 13825.91 | AJ79: 12443.32 | AK79: 13484.54 | AL79: 12471.95 | AM79: 7430.2 | AN79: 9979.212 | AO79: 10626.63333 | AP79: 11590.581 | AQ79: 10296.29552
B80: Economique | C80: oSupRealREGAREG | D80: oSupRealREGAREG | F80: 0 | G80: 16000 | H80: 0 | I80: 16000 | J80: 15500 | K80: 15400 | L80: 15400 | M80: 15400 | N80: 15400 | O80: 13860 | P80: 14418.85 | Q80: 13028.32 | R80: 12660.58 | S80: 11394.52 | T80: 12533.97 | U80: 11280.58 | V80: 11737.51 | W80: 12013.6 | X80: 13214.96 | Y80: 13808.01 | Z80: 14977.98 | AA80: 15190.31 | AB80: 15314.14 | AC80: 15303 | AD80: 15614.7 | AE80: 15135.34 | AF80: 13857.31 | AG80: 12892.32 | AH80: 11603.09 | AI80: 10442.78 | AJ80: 9398.5 | AK80: 8474.11 | AL80: 8849.02 | AM80: 15420 | AN80: 13072.454 | AO80: 13341.22889 | AP80: 12157.017 | AQ80: 13244.94828
B81: Economique | C81: oSupRealAUTRES | D81: oSupRealAUTRES | F81: 0 | G81: 16000 | H81: 0 | I81: 16000 | J81: 15500 | K81: 15400 | L81: 15400 | M81: 15400 | N81: 15400 | O81: 13860 | P81: 14418.85 | Q81: 13028.32 | R81: 12660.58 | S81: 11394.52 | T81: 12533.97 | U81: 11280.58 | V81: 11737.51 | W81: 12013.6 | X81: 13214.96 | Y81: 13808.01 | Z81: 14977.98 | AA81: 15190.31 | AB81: 15314.14 | AC81: 15303 | AD81: 15614.7 | AE81: 15135.34 | AF81: 13857.31 | AG81: 12892.32 | AH81: 11603.09 | AI81: 10442.78 | AJ81: 9398.5 | AK81: 8474.11 | AL81: 8849.02 | AM81: 15420 | AN81: 13072.454 | AO81: 13341.22889 | AP81: 12157.017 | AQ81: 13244.94828
B82: Economique | C82: oSupRealREGAFIN | D82: oSupRealREGAFIN | F82: 0 | G82: 71083.48 | H82: 0 | I82: 50013.06 | J82: 45023.01 | K82: 46132.32 | L82: 48415.13 | M82: 48569.23 | N82: 48906.98 | O82: 49501.09 | P82: 59183.48 | Q82: 58714.88 | R82: 57581.47 | S82: 53897.85 | T82: 57416 | U82: 52168.7 | V82: 48253.41 | W82: 52320.3 | X82: 46035.03 | Y82: 51020.85 | Z82: 60727.13 | AA82: 67357.39 | AB82: 69659.53 | AC82: 71083.48 | AD82: 70067.03 | AE82: 70725.89 | AF82: 60462.02 | AG82: 60833.5 | AH82: 62397.42 | AI82: 53591.79 | AJ82: 63863.22 | AK82: 60759.37 | AL82: 66420.13 | AM82: 47409.334 | AN82: 55775.754 | AO82: 56106.48222 | AP82: 64020.385 | AQ82: 57278.88379
B83: VolExpl | C83: OVOLBOJADMaEC | D83: Volume BOJ Admissible InclusActions aEC | F83: 0 | G83: 0 | H83: 0 | I83: 0 | J83: 0 | K83: 0 | L83: 0 | M83: 0 | N83: 0 | O83: 0 | P83: 0 | Q83: 0 | R83: 0 | S83: 0 | T83: 0 | U83: 0 | V83: 0 | W83: 0 | X83: 0 | Y83: 0 | Z83: 0 | AA83: 0 | AB83: 0 | AC83: 0 | AD83: 0 | AE83: 0 | AF83: 0 | AG83: 0 | AH83: 0 | AI83: 0 | AJ83: 0 | AK83: 0 | AL83: 0 | AM83: 0 | AN83: 0 | AO83: 0 | AP83: 0 | AQ83: 0
B84: VolExpl | C84: OVOLBOJADMaEC2 | D84: Volume BOJ Admissible InclusActions aEC2 | F84: 0 | G84: 0 | H84: 0 | I84: 0 | J84: 0 | K84: 0 | L84: 0 | M84: 0 | N84: 0 | O84: 0 | P84: 0 | Q84: 0 | R84: 0 | S84: 0 | T84: 0 | U84: 0 | V84: 0 | W84: 0 | X84: 0 | Y84: 0 | Z84: 0 | AA84: 0 | AB84: 0 | AC84: 0 | AD84: 0 | AE84: 0 | AF84: 0 | AG84: 0 | AH84: 0 | AI84: 0 | AJ84: 0 | AK84: 0 | AL84: 0 | AM84: 0 | AN84: 0 | AO84: 0 | AP84: 0 | AQ84: 0
B85: VolExpl | C85: OVOLBOJADMaEC3 | D85: Volume BOJ Admissible InclusActions aEC3 | F85: 0 | G85: 0 | H85: 0 | I85: 0 | J85: 0 | K85: 0 | L85: 0 | M85: 0 | N85: 0 | O85: 0 | P85: 0 | Q85: 0 | R85: 0 | S85: 0 | T85: 0 | U85: 0 | V85: 0 | W85: 0 | X85: 0 | Y85: 0 | Z85: 0 | AA85: 0 | AB85: 0 | AC85: 0 | AD85: 0 | AE85: 0 | AF85: 0 | AG85: 0 | AH85: 0 | AI85: 0 | AJ85: 0 | AK85: 0 | AL85: 0 | AM85: 0 | AN85: 0 | AO85: 0 | AP85: 0 | AQ85: 0
B86: VolExpl | C86: OVOLBOJADMaCA | D86: Volume BOJ Admissible InclusActions aCA | F86: 0 | G86: 0 | H86: 0 | I86: 0 | J86: 0 | K86: 0 | L86: 0 | M86: 0 | N86: 0 | O86: 0 | P86: 0 | Q86: 0 | R86: 0 | S86: 0 | T86: 0 | U86: 0 | V86: 0 | W86: 0 | X86: 0 | Y86: 0 | Z86: 0 | AA86: 0 | AB86: 0 | AC86: 0 | AD86: 0 | AE86: 0 | AF86: 0 | AG86: 0 | AH86: 0 | AI86: 0 | AJ86: 0 | AK86: 0 | AL86: 0 | AM86: 0 | AN86: 0 | AO86: 0 | AP86: 0 | AQ86: 0
B87: VolExpl | C87: OVOLBOJADMaCA2 | D87: Volume BOJ Admissible InclusActions aCA2 | F87: 0 | G87: 0 | H87: 0 | I87: 0 | J87: 0 | K87: 0 | L87: 0 | M87: 0 | N87: 0 | O87: 0 | P87: 0 | Q87: 0 | R87: 0 | S87: 0 | T87: 0 | U87: 0 | V87: 0 | W87: 0 | X87: 0 | Y87: 0 | Z87: 0 | AA87: 0 | AB87: 0 | AC87: 0 | AD87: 0 | AE87: 0 | AF87: 0 | AG87: 0 | AH87: 0 | AI87: 0 | AJ87: 0 | AK87: 0 | AL87: 0 | AM87: 0 | AN87: 0 | AO87: 0 | AP87: 0 | AQ87: 0
B88: VolExpl | C88: OVOLBOJADMaCPROG | D88: Volume BOJ Admissible InclusActions aCPROG | F88: 0 | G88: 0 | H88: 0 | I88: 0 | J88: 0 | K88: 0 | L88: 0 | M88: 0 | N88: 0 | O88: 0 | P88: 0 | Q88: 0 | R88: 0 | S88: 0 | T88: 0 | U88: 0 | V88: 0 | W88: 0 | X88: 0 | Y88: 0 | Z88: 0 | AA88: 0 | AB88: 0 | AC88: 0 | AD88: 0 | AE88: 0 | AF88: 0 | AG88: 0 | AH88: 0 | AI88: 0 | AJ88: 0 | AK88: 0 | AL88: 0 | AM88: 0 | AN88: 0 | AO88: 0 | AP88: 0 | AQ88: 0
B89: VolExpl | C89: OVOLBOJADMaCPIL | D89: Volume BOJ Admissible InclusActions aCPIL | F89: 0 | G89: 1171.13 | H89: 0 | I89: 5.69 | J89: 10.27 | K89: 8.77 | L89: 3.23 | M89: 0 | N89: 11.13 | O89: 47.58 | P89: 72.98 | Q89: 2.31 | R89: 6.67 | S89: 0 | T89: 10.15 | U89: 52.1 | V89: 4.26 | W89: 10.44 | X89: 0.03 | Y89: 3.12 | Z89: 62.75 | AA89: 158.49 | AB89: 128.82 | AC89: 245.82 | AD89: 263 | AE89: 62.78 | AF89: 66.8 | AG89: 23.78 | AH89: 34.92 | AI89: 1171.13 | AJ89: 560.57 | AK89: 30.16 | AL89: 60.96 | AM89: 6.68 | AN89: 25.908 | AO89: 47.79555556 | AP89: 251.992 | AQ89: 107.3455172
B90: VolExpl | C90: OVOLBOJADMaCPIP | D90: Volume BOJ Admissible InclusActions aCPIP | F90: 0 | G90: 0 | H90: 0 | I90: 0 | J90: 0 | K90: 0 | L90: 0 | M90: 0 | N90: 0 | O90: 0 | P90: 0 | Q90: 0 | R90: 0 | S90: 0 | T90: 0 | U90: 0 | V90: 0 | W90: 0 | X90: 0 | Y90: 0 | Z90: 0 | AA90: 0 | AB90: 0 | AC90: 0 | AD90: 0 | AE90: 0 | AF90: 0 | AG90: 0 | AH90: 0 | AI90: 0 | AJ90: 0 | AK90: 0 | AL90: 0 | AM90: 0 | AN90: 0 | AO90: 0 | AP90: 0 | AQ90: 0
B91: VolExpl | C91: OVOLBOJADMaCPFORT | D91: Volume BOJ Admissible InclusActions aCPFORT | F91: 0 | G91: 0 | H91: 0 | I91: 0 | J91: 0 | K91: 0 | L91: 0 | M91: 0 | N91: 0 | O91: 0 | P91: 0 | Q91: 0 | R91: 0 | S91: 0 | T91: 0 | U91: 0 | V91: 0 | W91: 0 | X91: 0 | Y91: 0 | Z91: 0 | AA91: 0 | AB91: 0 | AC91: 0 | AD91: 0 | AE91: 0 | AF91: 0 | AG91: 0 | AH91: 0 | AI91: 0 | AJ91: 0 | AK91: 0 | AL91: 0 | AM91: 0 | AN91: 0 | AO91: 0 | AP91: 0 | AQ91: 0
B92: VolExpl | C92: OVOLBOJADMaCPFAIBL | D92: Volume BOJ Admissible InclusActions aCPFAIBL | F92: 0 | G92: 0 | H92: 0 | I92: 0 | J92: 0 | K92: 0 | L92: 0 | M92: 0 | N92: 0 | O92: 0 | P92: 0 | Q92: 0 | R92: 0 | S92: 0 | T92: 0 | U92: 0 | V92: 0 | W92: 0 | X92: 0 | Y92: 0 | Z92: 0 | AA92: 0 | AB92: 0 | AC92: 0 | AD92: 0 | AE92: 0 | AF92: 0 | AG92: 0 | AH92: 0 | AI92: 0 | AJ92: 0 | AK92: 0 | AL92: 0 | AM92: 0 | AN92: 0 | AO92: 0 | AP92: 0 | AQ92: 0
B93: VolExpl | C93: OVOLBOJADMaCP | D93: Volume BOJ Admissible InclusActions aCP | F93: 0 | G93: 0 | H93: 0 | I93: 0 | J93: 0 | K93: 0 | L93: 0 | M93: 0 | N93: 0 | O93: 0 | P93: 0 | Q93: 0 | R93: 0 | S93: 0 | T93: 0 | U93: 0 | V93: 0 | W93: 0 | X93: 0 | Y93: 0 | Z93: 0 | AA93: 0 | AB93: 0 | AC93: 0 | AD93: 0 | AE93: 0 | AF93: 0 | AG93: 0 | AH93: 0 | AI93: 0 | AJ93: 0 | AK93: 0 | AL93: 0 | AM93: 0 | AN93: 0 | AO93: 0 | AP93: 0 | AQ93: 0
B94: VolExpl | C94: OVOLBOJADMaCPJ | D94: Volume BOJ Admissible InclusActions aCPJ | F94: 0 | G94: 0 | H94: 0 | I94: 0 | J94: 0 | K94: 0 | L94: 0 | M94: 0 | N94: 0 | O94: 0 | P94: 0 | Q94: 0 | R94: 0 | S94: 0 | T94: 0 | U94: 0 | V94: 0 | W94: 0 | X94: 0 | Y94: 0 | Z94: 0 | AA94: 0 | AB94: 0 | AC94: 0 | AD94: 0 | AE94: 0 | AF94: 0 | AG94: 0 | AH94: 0 | AI94: 0 | AJ94: 0 | AK94: 0 | AL94: 0 | AM94: 0 | AN94: 0 | AO94: 0 | AP94: 0 | AQ94: 0
B95: VolExpl | C95: OVOLBOJADMaCJ | D95: Volume BOJ Admissible InclusActions aCJ | F95: 0 | G95: 0 | H95: 0 | I95: 0 | J95: 0 | K95: 0 | L95: 0 | M95: 0 | N95: 0 | O95: 0 | P95: 0 | Q95: 0 | R95: 0 | S95: 0 | T95: 0 | U95: 0 | V95: 0 | W95: 0 | X95: 0 | Y95: 0 | Z95: 0 | AA95: 0 | AB95: 0 | AC95: 0 | AD95: 0 | AE95: 0 | AF95: 0 | AG95: 0 | AH95: 0 | AI95: 0 | AJ95: 0 | AK95: 0 | AL95: 0 | AM95: 0 | AN95: 0 | AO95: 0 | AP95: 0 | AQ95: 0
B96: VolExpl | C96: OVOLBOJADMaCRV | D96: Volume BOJ Admissible InclusActions aCRV | F96: 0 | G96: 0 | H96: 0 | I96: 0 | J96: 0 | K96: 0 | L96: 0 | M96: 0 | N96: 0 | O96: 0 | P96: 0 | Q96: 0 | R96: 0 | S96: 0 | T96: 0 | U96: 0 | V96: 0 | W96: 0 | X96: 0 | Y96: 0 | Z96: 0 | AA96: 0 | AB96: 0 | AC96: 0 | AD96: 0 | AE96: 0 | AF96: 0 | AG96: 0 | AH96: 0 | AI96: 0 | AJ96: 0 | AK96: 0 | AL96: 0 | AM96: 0 | AN96: 0 | AO96: 0 | AP96: 0 | AQ96: 0
B97: VolExpl | C97: OVOLBOJADMaCRS | D97: Volume BOJ Admissible InclusActions aCRS | F97: 0 | G97: 0 | H97: 0 | I97: 0 | J97: 0 | K97: 0 | L97: 0 | M97: 0 | N97: 0 | O97: 0 | P97: 0 | Q97: 0 | R97: 0 | S97: 0 | T97: 0 | U97: 0 | V97: 0 | W97: 0 | X97: 0 | Y97: 0 | Z97: 0 | AA97: 0 | AB97: 0 | AC97: 0 | AD97: 0 | AE97: 0 | AF97: 0 | AG97: 0 | AH97: 0 | AI97: 0 | AJ97: 0 | AK97: 0 | AL97: 0 | AM97: 0 | AN97: 0 | AO97: 0 | AP97: 0 | AQ97: 0
B98: VolExpl | C98: OVOLBOJADMaCFP | D98: Volume BOJ Admissible InclusActions aCFP | F98: 0 | G98: 4157.97 | H98: 0 | I98: 11.99 | J98: 0 | K98: 0 | L98: 0 | M98: 0 | N98: 23.46 | O98: 100.24 | P98: 153.74 | Q98: 4.86 | R98: 14.05 | S98: 0 | T98: 21.38 | U98: 2.83 | V98: 0 | W98: 18.64 | X98: 28.44 | Y98: 390.21 | Z98: 528.71 | AA98: 742.89 | AB98: 646.01 | AC98: 695.04 | AD98: 3081.84 | AE98: 2423.43 | AF98: 565.96 | AG98: 1016.45 | AH98: 341.75 | AI98: 4157.97 | AJ98: 2211.17 | AK98: 401.88 | AL98: 658.16 | AM98: 4.692 | AN98: 54.578 | AO98: 264.3455556 | AP98: 1555.365 | AQ98: 628.59
B99: VolExpl | C99: OVOLBOJADMaCPPTM | D99: Volume BOJ Admissible InclusActions aCPPTM | F99: 0 | G99: 0 | H99: 0 | I99: 0 | J99: 0 | K99: 0 | L99: 0 | M99: 0 | N99: 0 | O99: 0 | P99: 0 | Q99: 0 | R99: 0 | S99: 0 | T99: 0 | U99: 0 | V99: 0 | W99: 0 | X99: 0 | Y99: 0 | Z99: 0 | AA99: 0 | AB99: 0 | AC99: 0 | AD99: 0 | AE99: 0 | AF99: 0 | AG99: 0 | AH99: 0 | AI99: 0 | AJ99: 0 | AK99: 0 | AL99: 0 | AM99: 0 | AN99: 0 | AO99: 0 | AP99: 0 | AQ99: 0
B100: VolExpl | C100: OVOLBOJADMaCT | D100: Volume BOJ Admissible InclusActions aCT | F100: 0 | G100: 4105.95 | H100: 0 | I100: 726.86 | J100: 509.33 | K100: 1069.24 | L100: 1165.52 | M100: 1599.83 | N100: 1330.76 | O100: 3317.63 | P100: 4105.95 | Q100: 3177.38 | R100: 3443.24 | S100: 734.65 | T100: 1263.41 | U100: 1199.18 | V100: 597 | W100: 707.78 | X100: 146.65 | Y100: 1638.09 | Z100: 1574.65 | AA100: 1526.89 | AB100: 1690.75 | AC100: 806.25 | AD100: 2575.14 | AE100: 1699.89 | AF100: 1922.96 | AG100: 2031.84 | AH100: 776.23 | AI100: 2549.91 | AJ100: 1442.26 | AK100: 1319.69 | AL100: 2105.59 | AM100: 1134.936 | AN100: 2955.77 | AO100: 1149.377778 | AP100: 1722.976 | AQ100: 1656.127241
B101: VolExpl | C101: OVOLERSADMaEC | D101: Volume ERS Admissible InclusActions aEC | F101: 0 | G101: 0 | H101: 0 | I101: 0 | J101: 0 | K101: 0 | L101: 0 | M101: 0 | N101: 0 | O101: 0 | P101: 0 | Q101: 0 | R101: 0 | S101: 0 | T101: 0 | U101: 0 | V101: 0 | W101: 0 | X101: 0 | Y101: 0 | Z101: 0 | AA101: 0 | AB101: 0 | AC101: 0 | AD101: 0 | AE101: 0 | AF101: 0 | AG101: 0 | AH101: 0 | AI101: 0 | AJ101: 0 | AK101: 0 | AL101: 0 | AM101: 0 | AN101: 0 | AO101: 0 | AP101: 0 | AQ101: 0
B102: VolExpl | C102: OVOLERSADMaEC2 | D102: Volume ERS Admissible InclusActions aEC2 | F102: 0 | G102: 0 | H102: 0 | I102: 0 | J102: 0 | K102: 0 | L102: 0 | M102: 0 | N102: 0 | O102: 0 | P102: 0 | Q102: 0 | R102: 0 | S102: 0 | T102: 0 | U102: 0 | V102: 0 | W102: 0 | X102: 0 | Y102: 0 | Z102: 0 | AA102: 0 | AB102: 0 | AC102: 0 | AD102: 0 | AE102: 0 | AF102: 0 | AG102: 0 | AH102: 0 | AI102: 0 | AJ102: 0 | AK102: 0 | AL102: 0 | AM102: 0 | AN102: 0 | AO102: 0 | AP102: 0 | AQ102: 0
